Workbook

Sheet Pricing model
G2: AER pricing model
G3: =DNSP&" "&forecastyear -> AusNet Services 2026–27
G4: Electicity Distribution Network Service Provider
C9: Key: | G9: Version Record | H9: Date | I9: Description
E10: Final determination AER input | G10: 0.1 | H10: 2021-08-01 | I10: Draft version of new model - including inputs and calculations worksheets, as well as lookup worksheet
E11: Annual AER input | G11: 0.2 | H11: 2021-10-01 | I11: Draft version of full model for feedback
E12: Updated AER input (e.g. placeholder updated for final submission) | G12: 0.3 | H12: 2021-11-01 | I12: Final model for DNSP QA
E13: Annual DNSP input | G13: 1 | H13: 2021-12-01 | I13: Final model for use in 2022/23 process
E14: Updated DNSP input (e.g. placeholder updated for final submission) | G14: 1.1 | H14: 2022-03-01 | I14: Updated for issues arising in 2022/23 pre-lodgement engagement proces
E15: Calculation | G15: 1.2 | H15: 2022-11-01 | I15: Final updated model (from broader stakeholder consultation and revisions) for DNSP QA
E16: N/A | G16: 2 | H16: 2022-12-01 | I16: Final model for use in 2023/24 process
E17: Overrides for cost movement calculations | G17: 2.1 | H17: 2023-12-01 | I17: Updated presentation of outputs and cost movements mechanisms.
G18: 3 | H18: 2023-12-01 | I18: Final model updated for 2024–29 determinations for use in 2024/25 initial pricing
G19: 3.1 | H19: 2024-12-01 | I19: Updated model to add metering true-up and for other minor formatting issues
C21: Contents
C23: Rules | E23: Provides Distribution Pricing Rules
C24: Mechanisms | E24: Provides applicable mechanisms
C25: Outputs
C26: ='Outputs>>'!C7 -> Tariff schedule | E26: ='Outputs>>'!D7 -> Provides schedules of network prices
C27: Stakeholder report | E27: Provides report on allowed revenue, consumption trend and cost movements for the DNSP
C28: Proposal report | E28: Provides report on DNSP's proposal of revenues, unders/overs accounts, side constraints, tariff trials and costs
C29: Model report | E29: Provides output report including compliance, validations, trend analysis, and quantity forecast analysis
C30: Quantity forecasts | E30: Provides quantity forecast analysis and charts
C31: ='Outputs>>'!C10 -> Compliance | E31: ='Outputs>>'!D10 -> Compliance checks against total allowable revenues, unders/overs closing balances, side constraint thresholds, trial tariff thresholds, and standalone and avoidable costs.
C32: ='Outputs>>'!C11 -> Price comparisons (indicative) | E32: ='Outputs>>'!D11 -> Compliance checks of proposed prices against relevant indicative prices from previous indicative schedule
C33: Price comparisons (current) | E33: Analysis of proposed prices against current prices
C34: ='Outputs>>'!C13 -> Tables | E34: ='Outputs>>'!D13 -> Provides output tables for use in pricing proposal documents
C35: ='Outputs>>'!C14 -> Cost movements | E35: ='Outputs>>'!D14 -> Provides cost movements summaries
C36: ='Outputs>>'!C15 -> Charts | E36: ='Outputs>>'!D15 -> Provides output charts for revenue and cost movements (some editing of charts may be necessary for presentational issues)
C37: Inputs | E37: Provides links and guide to inputs required at each stage in process
C38: ='Inputs>>'!C7 -> General | E38: ='Inputs>>'!D7 -> Inputs NSP name, regulatory years for the t, t-1, and t-2 years, inflation, day counts, etc.
C39: ='Inputs>>'!C8 -> Financial | E39: ='Inputs>>'!D8 -> Inputs the WACC, x-factors, allowed revenues, and annual adjustments
C40: ='Inputs>>'!C9 -> Actuals | E40: ='Inputs>>'!D9 -> Inputs actual revenues, demand, and customer numbers
C41: ='Inputs>>'!C10 -> Metering | E41: ='Inputs>>'!D10 -> Inputs relating to metering (prices for cost movements for non-Vic, prices and quantities for revenue caps for Vic)
C42: ='Inputs>>'!C11 -> Tariffs | E42: ='Inputs>>'!D11 -> Inputs tariff information including charging components and tariff classes
C43: ='Inputs>>'!C12 -> Quantities | E43: ='Inputs>>'!D12 -> Inputs forecast, estimated, and actual quantities
C44: ='Inputs>>'!C13 -> Proposed prices input | E44: ='Inputs>>'!D13 -> Inputs proposed prices for SCS
C45: Proposed prices control input | E45: Inputs controls for proposed prices for SCS as a function of current prices
C46: ='Inputs>>'!C15 -> Historical prices | E46: ='Inputs>>'!D15 -> Inputs historical prices for SCS for calculating estimated and actual revenues
C47: ='Inputs>>'!C16 -> Indicative prices | E47: ='Inputs>>'!D16 -> Inputs indicative tariffs to update the schedule for the remainder of the regulatory control period (updates previous schedule for only remaining years)
C48: ='Inputs>>'!C18 -> Trial tariffs | E48: ='Inputs>>'!D18 -> Inputs trial tariffs and relevant revenues (both forecast and historical)
C49: ='Inputs>>'!C19 -> Tariff costs | E49: ='Inputs>>'!D19 -> Inputs cost information related to standalone and avoidable costs
C50: Metering true-up | E50: True-up mechanism for metering operating expenditure to adjust for 3rd parties actions in relation to LMRPs
C51: Calculations
C52: ='Calculations>>'!C7 -> Total allowable revenue | E52: ='Calculations>>'!D7 -> Calculates total allowable revenues
C53: ='Calculations>>'!C8 -> Accounts | E53: ='Calculations>>'!D8 -> Calculates under/over-recovery and related data
C54: ='Calculations>>'!C9 -> Revenue summary | E54: ='Calculations>>'!D9 -> Totals revenues for each tariff, charging component, and tariff class
C55: Proposed prices controls | E55: Identifies applicable controls for each price
C56: Proposed prices | E56: Proposed prices for forecast year, sourced from inputs or calculated using current prices and controls, as relevant
C57: ='Calculations>>'!C12 -> Proposed revenue | E57: ='Calculations>>'!D12 -> Calculates revenues for the t year for each tariff component
C58: ='Calculations>>'!C13 -> Historical revenue | E58: ='Calculations>>'!D13 -> Calculates revenues for the t-1 and t-2 years for each tariff component
C59: ='Calculations>>'!C14 -> Side constraints revenue | E59: ='Calculations>>'!D14 -> Calculates permissable percentage and revenue for side constraint mechanism
C60: ='Calculations>>'!C15 -> Total quantities | E60: ='Calculations>>'!D15 -> Calculates demand for each charging component, tariff, and tariff class
C61: ='Calculations>>'!C16 -> Movements | E61: ='Calculations>>'!D16 -> Calculates network costs and consumption profiles for each residential and small business tariff
C62: Lookups | E62: Provides lookups for use throughout the model
C63: Model update log | E63: Provides log of updates made to the model template (rather than changes between preliminary and final model submissions)
C65: Changelog (to detail completion of inputs, and any changes to inputs)
C67: Date | E67: Description
B82: End

Sheet Outputs>>
B1: ='Pricing model'!G2&" - "&'Pricing model'!G3 -> AER pricing model - AusNet Services 2026–27
B2: Outputs
B4: Model index
C6: Sheet Name | D6: Sheet Description
C7: Tariff schedule | D7: Provides schedules of network prices
C8: Model report | D8: Provides output report including compliance, validations, trend analysis, and quantity forecast analysis
C9: Quantity forecasts | D9: Provides quantity forecast analysis and charts
C10: Compliance | D10: Compliance checks against total allowable revenues, unders/overs closing balances, side constraint thresholds, trial tariff thresholds, and standalone and avoidable costs.
C11: Price comparisons (indicative) | D11: Compliance checks of proposed prices against relevant indicative prices from previous indicative schedule
C12: Price comparisons (current) | D12: Analysis of proposed prices against current prices
C13: Tables | D13: Provides output tables for use in pricing proposal documents
C14: Cost movements | D14: Provides cost movements summaries
C15: Charts | D15: Provides output charts for revenue and cost movements (some editing of charts may be necessary for presentational issues)
B17: End

Sheet Tariff schedule
B1: ='Outputs>>'!B1 -> AER pricing model - AusNet Services 2026–27 | I1: Back to Index
B2: ='Outputs>>'!C7 -> Tariff schedule | L2: ALL PRICES ARE EXCLUDING GST | AD2: VALIDATION
B3: ='Outputs>>'!D7 -> Provides schedules of network prices | AD3: =IF(COUNTIF(AD5:AD813,"CHECK")>0,"CHECK","OK") -> OK
B5: ="Tariff schedule 1 | "&forecastyear&" Metering prices (where a revenue cap is applicable)" -> Tariff schedule 1 | 2026–27 Metering prices (where a revenue cap is applicable) | I5: =forecastyear -> 2026–27
C7: =Metering!C42 -> 1 phase, 1 element | I7: =INDEX(Metering!$N42:$R42,1,MATCH(forecastyear,Metering!$N$39:$R$39,0)) -> 39.7322337 | AD7: =IF(_xlfn.ISFORMULA(I7),"OK","CHECK") -> OK
C8: =Metering!C43 -> 1 phase, 2 element | I8: =INDEX(Metering!$N43:$R43,1,MATCH(forecastyear,Metering!$N$39:$R$39,0)) -> 48.04151626 | AD8: OK
C9: =Metering!C44 -> Multiphase | I9: =INDEX(Metering!$N44:$R44,1,MATCH(forecastyear,Metering!$N$39:$R$39,0)) -> 60.6808678 | AD9: OK
C10: =Metering!C45 -> Multiphase, CT | I10: =INDEX(Metering!$N45:$R45,1,MATCH(forecastyear,Metering!$N$39:$R$39,0)) -> 63.78722163 | AD10: OK
C11: =Metering!C46 -> 1 phase, 1 element - not providing smart meter benefits | I11: =INDEX(Metering!$N46:$R46,1,MATCH(forecastyear,Metering!$N$39:$R$39,0)) -> 63.47541855 | AD11: OK
C12: =Metering!C47 -> Multiphase - not providing smart meter benefits | I12: =INDEX(Metering!$N47:$R47,1,MATCH(forecastyear,Metering!$N$39:$R$39,0)) -> 76.74462234 | AD12: OK
C13: =Metering!C48 -> Historical - Multiphase, DC | I13: =INDEX(Metering!$N48:$R48,1,MATCH(forecastyear,Metering!$N$39:$R$39,0)) -> 0 | AD13: OK
B16: ="Tariff schedule 2 | "&forecastyear&" VDO tariffs" -> Tariff schedule 2 | 2026–27 VDO tariffs | D16: =D83 -> Tariff class | E16: =E83 -> Code | F16: =F83 -> Other identifier | G16: =G83 -> Other identifier | I16: =I83 -> Fixed | J16: =J83 -> Anytime | K16: Block 1 | L16: Block 2 | M16: Peak | N16: Shoulder | O16: Summer peak | P16: Summer shoulder | Q16: Winter peak | R16: Off-peak | S16: Dedicated | T16: Solar soak | U16: Export charge | V16: Export reward | W16: Capacity | X16: Critical peak | Y16: Monthly peak | Z16: Monthly off-peak | AA16: Rebate | AB16: HIST - Feed in | AC16: 0 | AD16: 0 | AE16: 0 | AF16: 0 | AG16: 0 | AH16: 0 | AI16: 0 | AJ16: 0 | AK16: 0 | AL16: 0 | AM16: 0 | AN16: 0 | AO16: 0 | AP16: 0 | AQ16: 0 | AR16: 0
I17: =I84 -> $/year | J17: cents/kWh | K17: cents/kWh | L17: cents/kWh | M17: cents/kWh | N17: cents/kWh | O17: cents/kWh | P17: cents/kWh | Q17: cents/kWh | R17: cents/kWh | S17: cents/kWh | T17: cents/kWh | U17: cents/kWh | V17: cents/kWh | W17: $/kVA/year | X17: $/kVA/year | Y17: $/kW | Z17: $/kW | AA17: $ | AB17: cents/kWh | AC17: 0 | AD17: 0 | AE17: 0 | AF17: 0 | AG17: 0 | AH17: 0 | AI17: 0 | AJ17: 0 | AK17: 0 | AL17: 0 | AM17: 0 | AN17: 0 | AO17: 0 | AP17: 0 | AQ17: 0 | AR17: 0
C18: =C85 -> Total network prices
C19: =_xlfn.IFNA(INDEX(Tariffs!$C$46:$C$120,MATCH(VDO!D8,Tariffs!$I$46:$I$120,0)),0) -> Small single rate | D19: =_xlfn.IFNA(INDEX(Tariffs!$D$46:$D$120,MATCH(VDO!D8,Tariffs!$I$46:$I$120,0)),0) -> Residential | E19: =_xlfn.IFNA(INDEX(Tariffs!$E$46:$E$120,MATCH(VDO!D8,Tariffs!$I$46:$I$120,0)),0) -> NEE11 | F19: =_xlfn.IFNA(INDEX(Tariffs!$F$46:$F$120,MATCH(VDO!D8,Tariffs!$I$46:$I$120,0)),0) -> 0 | G19: =_xlfn.IFNA(INDEX(Tariffs!$G$46:$G$120,MATCH(VDO!D8,Tariffs!$I$46:$I$120,0)),0) -> 0 | H19: =IF(C19=0,0,MATCH(C19,$C$86:$C$320,0)) -> 1 | I19: =IF($H19=0,0,INDEX(I$86:I$160,$H19)) -> 145.3052217 | J19: =IF($H19=0,0,INDEX(J$86:J$160,$H19)) -> 0 | K19: =IF($H19=0,0,INDEX(K$86:K$160,$H19)) -> 13.4296516 | L19: =IF($H19=0,0,INDEX(L$86:L$160,$H19)) -> 13.4296516 | M19: =IF($H19=0,0,INDEX(M$86:M$160,$H19)) -> 0 | N19: =IF($H19=0,0,INDEX(N$86:N$160,$H19)) -> 0 | O19: =IF($H19=0,0,INDEX(O$86:O$160,$H19)) -> 0 | P19: =IF($H19=0,0,INDEX(P$86:P$160,$H19)) -> 0 | Q19: =IF($H19=0,0,INDEX(Q$86:Q$160,$H19)) -> 0 | R19: =IF($H19=0,0,INDEX(R$86:R$160,$H19)) -> 0 | S19: =IF($H19=0,0,INDEX(S$86:S$160,$H19)) -> 0 | T19: =IF($H19=0,0,INDEX(T$86:T$160,$H19)) -> 0 | U19: =IF($H19=0,0,INDEX(U$86:U$160,$H19)) -> 0 | V19: =IF($H19=0,0,INDEX(V$86:V$160,$H19)) -> 0 | W19: =IF($H19=0,0,INDEX(W$86:W$160,$H19)) -> 0 | X19: =IF($H19=0,0,INDEX(X$86:X$160,$H19)) -> 0 | Y19: =IF($H19=0,0,INDEX(Y$86:Y$160,$H19)) -> 0 | Z19: =IF($H19=0,0,INDEX(Z$86:Z$160,$H19)) -> 0 | AA19: =IF($H19=0,0,INDEX(AA$86:AA$160,$H19)) -> 0 | AB19: =IF($H19=0,0,INDEX(AB$86:AB$160,$H19)) -> 0 | AD19: =IF(SUMPRODUCT(--_xlfn.ISFORMULA(C19:AB19))=26,"OK","CHECK") -> OK | AE19: =IF($H19=0,0,INDEX(AE$86:AE$320,$H19)) -> 0 | AF19: =IF($H19=0,0,INDEX(AF$86:AF$320,$H19)) -> 0 | AG19: =IF($H19=0,0,INDEX(AG$86:AG$320,$H19)) -> 0 | AH19: =IF($H19=0,0,INDEX(AH$86:AH$320,$H19)) -> 0 | AI19: =IF($H19=0,0,INDEX(AI$86:AI$320,$H19)) -> 0 | AJ19: =IF($H19=0,0,INDEX(AJ$86:AJ$320,$H19)) -> 0 | AK19: =IF($H19=0,0,INDEX(AK$86:AK$320,$H19)) -> 0 | AL19: =IF($H19=0,0,INDEX(AL$86:AL$320,$H19)) -> 0 | AM19: =IF($H19=0,0,INDEX(AM$86:AM$320,$H19)) -> 0 | AN19: =IF($H19=0,0,INDEX(AN$86:AN$320,$H19)) -> 0 | AO19: =IF($H19=0,0,INDEX(AO$86:AO$320,$H19)) -> 0 | AP19: =IF($H19=0,0,INDEX(AP$86:AP$320,$H19)) -> 0 | AQ19: =IF($H19=0,0,INDEX(AQ$86:AQ$320,$H19)) -> 0 | AR19: =IF($H19=0,0,INDEX(AR$86:AR$320,$H19)) -> 0
C20: =_xlfn.IFNA(INDEX(Tariffs!$C$46:$C$120,MATCH(VDO!D9,Tariffs!$I$46:$I$120,0)),0) -> Small single rate & dedicated circuit 24 hour | D20: =_xlfn.IFNA(INDEX(Tariffs!$D$46:$D$120,MATCH(VDO!D9,Tariffs!$I$46:$I$120,0)),0) -> Residential | E20: =_xlfn.IFNA(INDEX(Tariffs!$E$46:$E$120,MATCH(VDO!D9,Tariffs!$I$46:$I$120,0)),0) -> NEE19 | F20: =_xlfn.IFNA(INDEX(Tariffs!$F$46:$F$120,MATCH(VDO!D9,Tariffs!$I$46:$I$120,0)),0) -> 0 | G20: =_xlfn.IFNA(INDEX(Tariffs!$G$46:$G$120,MATCH(VDO!D9,Tariffs!$I$46:$I$120,0)),0) -> 0 | H20: =IF(C20=0,0,MATCH(C20,$C$86:$C$320,0)) -> 3 | I20: =IF($H20=0,0,INDEX(I$86:I$160,$H20)) -> 145.3052217 | J20: =IF($H20=0,0,INDEX(J$86:J$160,$H20)) -> 0 | K20: =IF($H20=0,0,INDEX(K$86:K$160,$H20)) -> 13.4296516 | L20: =IF($H20=0,0,INDEX(L$86:L$160,$H20)) -> 13.4296516 | M20: =IF($H20=0,0,INDEX(M$86:M$160,$H20)) -> 0 | N20: =IF($H20=0,0,INDEX(N$86:N$160,$H20)) -> 0 | O20: =IF($H20=0,0,INDEX(O$86:O$160,$H20)) -> 0 | P20: =IF($H20=0,0,INDEX(P$86:P$160,$H20)) -> 0 | Q20: =IF($H20=0,0,INDEX(Q$86:Q$160,$H20)) -> 0 | R20: =IF($H20=0,0,INDEX(R$86:R$160,$H20)) -> 0 | S20: =IF($H20=0,0,INDEX(S$86:S$160,$H20)) -> 4.90046407 | T20: =IF($H20=0,0,INDEX(T$86:T$160,$H20)) -> 0 | U20: =IF($H20=0,0,INDEX(U$86:U$160,$H20)) -> 0 | V20: =IF($H20=0,0,INDEX(V$86:V$160,$H20)) -> 0 | W20: =IF($H20=0,0,INDEX(W$86:W$160,$H20)) -> 0 | X20: =IF($H20=0,0,INDEX(X$86:X$160,$H20)) -> 0 | Y20: =IF($H20=0,0,INDEX(Y$86:Y$160,$H20)) -> 0 | Z20: =IF($H20=0,0,INDEX(Z$86:Z$160,$H20)) -> 0 | AA20: =IF($H20=0,0,INDEX(AA$86:AA$160,$H20)) -> 0 | AB20: =IF($H20=0,0,INDEX(AB$86:AB$160,$H20)) -> 0 | AD20: =IF(SUMPRODUCT(--_xlfn.ISFORMULA(C20:AB20))=26,"OK","CHECK") -> OK | AE20: =IF($H20=0,0,INDEX(AE$86:AE$320,$H20)) -> 0 | AF20: =IF($H20=0,0,INDEX(AF$86:AF$320,$H20)) -> 0 | AG20: =IF($H20=0,0,INDEX(AG$86:AG$320,$H20)) -> 0 | AH20: =IF($H20=0,0,INDEX(AH$86:AH$320,$H20)) -> 0 | AI20: =IF($H20=0,0,INDEX(AI$86:AI$320,$H20)) -> 0 | AJ20: =IF($H20=0,0,INDEX(AJ$86:AJ$320,$H20)) -> 0 | AK20: =IF($H20=0,0,INDEX(AK$86:AK$320,$H20)) -> 0 | AL20: =IF($H20=0,0,INDEX(AL$86:AL$320,$H20)) -> 0 | AM20: =IF($H20=0,0,INDEX(AM$86:AM$320,$H20)) -> 0 | AN20: =IF($H20=0,0,INDEX(AN$86:AN$320,$H20)) -> 0 | AO20: =IF($H20=0,0,INDEX(AO$86:AO$320,$H20)) -> 0 | AP20: =IF($H20=0,0,INDEX(AP$86:AP$320,$H20)) -> 0 | AQ20: =IF($H20=0,0,INDEX(AQ$86:AQ$320,$H20)) -> 0 | AR20: =IF($H20=0,0,INDEX(AR$86:AR$320,$H20)) -> 0
C21: =_xlfn.IFNA(INDEX(Tariffs!$C$46:$C$120,MATCH(VDO!D10,Tariffs!$I$46:$I$120,0)),0) -> Small residential time of use | D21: =_xlfn.IFNA(INDEX(Tariffs!$D$46:$D$120,MATCH(VDO!D10,Tariffs!$I$46:$I$120,0)),0) -> Residential | E21: =_xlfn.IFNA(INDEX(Tariffs!$E$46:$E$120,MATCH(VDO!D10,Tariffs!$I$46:$I$120,0)),0) -> NASS11 | F21: =_xlfn.IFNA(INDEX(Tariffs!$F$46:$F$120,MATCH(VDO!D10,Tariffs!$I$46:$I$120,0)),0) -> 0 | G21: =_xlfn.IFNA(INDEX(Tariffs!$G$46:$G$120,MATCH(VDO!D10,Tariffs!$I$46:$I$120,0)),0) -> 0 | H21: 4 | I21: =IF($H21=0,0,INDEX(I$86:I$160,$H21)) -> 145.3052217 | J21: =IF($H21=0,0,INDEX(J$86:J$160,$H21)) -> 0 | K21: =IF($H21=0,0,INDEX(K$86:K$160,$H21)) -> 0 | L21: =IF($H21=0,0,INDEX(L$86:L$160,$H21)) -> 0 | M21: =IF($H21=0,0,INDEX(M$86:M$160,$H21)) -> 26.95562084 | N21: =IF($H21=0,0,INDEX(N$86:N$160,$H21)) -> 0 | O21: =IF($H21=0,0,INDEX(O$86:O$160,$H21)) -> 0 | P21: =IF($H21=0,0,INDEX(P$86:P$160,$H21)) -> 0 | Q21: =IF($H21=0,0,INDEX(Q$86:Q$160,$H21)) -> 0 | R21: =IF($H21=0,0,INDEX(R$86:R$160,$H21)) -> 5.329943883 | S21: =IF($H21=0,0,INDEX(S$86:S$160,$H21)) -> 0 | T21: =IF($H21=0,0,INDEX(T$86:T$160,$H21)) -> 1 | U21: =IF($H21=0,0,INDEX(U$86:U$160,$H21)) -> 0 | V21: =IF($H21=0,0,INDEX(V$86:V$160,$H21)) -> 0 | W21: =IF($H21=0,0,INDEX(W$86:W$160,$H21)) -> 0 | X21: =IF($H21=0,0,INDEX(X$86:X$160,$H21)) -> 0 | Y21: =IF($H21=0,0,INDEX(Y$86:Y$160,$H21)) -> 0 | Z21: =IF($H21=0,0,INDEX(Z$86:Z$160,$H21)) -> 0 | AA21: =IF($H21=0,0,INDEX(AA$86:AA$160,$H21)) -> 0 | AB21: =IF($H21=0,0,INDEX(AB$86:AB$160,$H21)) -> 0 | AD21: =IF(SUMPRODUCT(--_xlfn.ISFORMULA(C21:AB21))=26,"OK","CHECK") -> OK | AE21: =IF($H21=0,0,INDEX(AE$86:AE$320,$H21)) -> 0 | AF21: =IF($H21=0,0,INDEX(AF$86:AF$320,$H21)) -> 0 | AG21: =IF($H21=0,0,INDEX(AG$86:AG$320,$H21)) -> 0 | AH21: =IF($H21=0,0,INDEX(AH$86:AH$320,$H21)) -> 0 | AI21: =IF($H21=0,0,INDEX(AI$86:AI$320,$H21)) -> 0 | AJ21: =IF($H21=0,0,INDEX(AJ$86:AJ$320,$H21)) -> 0 | AK21: =IF($H21=0,0,INDEX(AK$86:AK$320,$H21)) -> 0 | AL21: =IF($H21=0,0,INDEX(AL$86:AL$320,$H21)) -> 0 | AM21: =IF($H21=0,0,INDEX(AM$86:AM$320,$H21)) -> 0 | AN21: =IF($H21=0,0,INDEX(AN$86:AN$320,$H21)) -> 0 | AO21: =IF($H21=0,0,INDEX(AO$86:AO$320,$H21)) -> 0 | AP21: =IF($H21=0,0,INDEX(AP$86:AP$320,$H21)) -> 0 | AQ21: =IF($H21=0,0,INDEX(AQ$86:AQ$320,$H21)) -> 0 | AR21: =IF($H21=0,0,INDEX(AR$86:AR$320,$H21)) -> 0
C22: =_xlfn.IFNA(INDEX(Tariffs!$C$46:$C$120,MATCH(VDO!D11,Tariffs!$I$46:$I$120,0)),0) -> Small business single rate | D22: =_xlfn.IFNA(INDEX(Tariffs!$D$46:$D$120,MATCH(VDO!D11,Tariffs!$I$46:$I$120,0)),0) -> Small industrial & commercial | E22: =_xlfn.IFNA(INDEX(Tariffs!$E$46:$E$120,MATCH(VDO!D11,Tariffs!$I$46:$I$120,0)),0) -> NEE12 | F22: =_xlfn.IFNA(INDEX(Tariffs!$F$46:$F$120,MATCH(VDO!D11,Tariffs!$I$46:$I$120,0)),0) -> 0 | G22: =_xlfn.IFNA(INDEX(Tariffs!$G$46:$G$120,MATCH(VDO!D11,Tariffs!$I$46:$I$120,0)),0) -> 0 | H22: 16 | I22: =IF($H22=0,0,INDEX(I$86:I$160,$H22)) -> 148.9378522 | J22: =IF($H22=0,0,INDEX(J$86:J$160,$H22)) -> 0 | K22: =IF($H22=0,0,INDEX(K$86:K$160,$H22)) -> 17.60728387 | L22: =IF($H22=0,0,INDEX(L$86:L$160,$H22)) -> 17.60728387 | M22: =IF($H22=0,0,INDEX(M$86:M$160,$H22)) -> 0 | N22: =IF($H22=0,0,INDEX(N$86:N$160,$H22)) -> 0 | O22: =IF($H22=0,0,INDEX(O$86:O$160,$H22)) -> 0 | P22: =IF($H22=0,0,INDEX(P$86:P$160,$H22)) -> 0 | Q22: =IF($H22=0,0,INDEX(Q$86:Q$160,$H22)) -> 0 | R22: =IF($H22=0,0,INDEX(R$86:R$160,$H22)) -> 0 | S22: =IF($H22=0,0,INDEX(S$86:S$160,$H22)) -> 0 | T22: =IF($H22=0,0,INDEX(T$86:T$160,$H22)) -> 0 | U22: =IF($H22=0,0,INDEX(U$86:U$160,$H22)) -> 0 | V22: =IF($H22=0,0,INDEX(V$86:V$160,$H22)) -> 0 | W22: =IF($H22=0,0,INDEX(W$86:W$160,$H22)) -> 0 | X22: =IF($H22=0,0,INDEX(X$86:X$160,$H22)) -> 0 | Y22: =IF($H22=0,0,INDEX(Y$86:Y$160,$H22)) -> 0 | Z22: =IF($H22=0,0,INDEX(Z$86:Z$160,$H22)) -> 0 | AA22: =IF($H22=0,0,INDEX(AA$86:AA$160,$H22)) -> 0 | AB22: =IF($H22=0,0,INDEX(AB$86:AB$160,$H22)) -> 0 | AD22: =IF(SUMPRODUCT(--_xlfn.ISFORMULA(C22:AB22))=26,"OK","CHECK") -> OK | AE22: =IF($H22=0,0,INDEX(AE$86:AE$320,$H22)) -> 0 | AF22: =IF($H22=0,0,INDEX(AF$86:AF$320,$H22)) -> 0 | AG22: =IF($H22=0,0,INDEX(AG$86:AG$320,$H22)) -> 0 | AH22: =IF($H22=0,0,INDEX(AH$86:AH$320,$H22)) -> 0 | AI22: =IF($H22=0,0,INDEX(AI$86:AI$320,$H22)) -> 0 | AJ22: =IF($H22=0,0,INDEX(AJ$86:AJ$320,$H22)) -> 0 | AK22: =IF($H22=0,0,INDEX(AK$86:AK$320,$H22)) -> 0 | AL22: =IF($H22=0,0,INDEX(AL$86:AL$320,$H22)) -> 0 | AM22: =IF($H22=0,0,INDEX(AM$86:AM$320,$H22)) -> 0 | AN22: =IF($H22=0,0,INDEX(AN$86:AN$320,$H22)) -> 0 | AO22: =IF($H22=0,0,INDEX(AO$86:AO$320,$H22)) -> 0 | AP22: =IF($H22=0,0,INDEX(AP$86:AP$320,$H22)) -> 0 | AQ22: =IF($H22=0,0,INDEX(AQ$86:AQ$320,$H22)) -> 0 | AR22: =IF($H22=0,0,INDEX(AR$86:AR$320,$H22)) -> 0
C23: =_xlfn.IFNA(INDEX(Tariffs!$C$46:$C$120,MATCH(VDO!D12,Tariffs!$I$46:$I$120,0)),0) -> Small business time of use | D23: =_xlfn.IFNA(INDEX(Tariffs!$D$46:$D$120,MATCH(VDO!D12,Tariffs!$I$46:$I$120,0)),0) -> Small industrial & commercial | E23: =_xlfn.IFNA(INDEX(Tariffs!$E$46:$E$120,MATCH(VDO!D12,Tariffs!$I$46:$I$120,0)),0) -> NAST12 | F23: =_xlfn.IFNA(INDEX(Tariffs!$F$46:$F$120,MATCH(VDO!D12,Tariffs!$I$46:$I$120,0)),0) -> 0 | G23: =_xlfn.IFNA(INDEX(Tariffs!$G$46:$G$120,MATCH(VDO!D12,Tariffs!$I$46:$I$120,0)),0) -> 0 | H23: 21 | I23: =IF($H23=0,0,INDEX(I$86:I$160,$H23)) -> 148.9378522 | J23: =IF($H23=0,0,INDEX(J$86:J$160,$H23)) -> 0 | K23: =IF($H23=0,0,INDEX(K$86:K$160,$H23)) -> 0 | L23: =IF($H23=0,0,INDEX(L$86:L$160,$H23)) -> 0 | M23: =IF($H23=0,0,INDEX(M$86:M$160,$H23)) -> 20.77312399 | N23: =IF($H23=0,0,INDEX(N$86:N$160,$H23)) -> 0 | O23: =IF($H23=0,0,INDEX(O$86:O$160,$H23)) -> 0 | P23: =IF($H23=0,0,INDEX(P$86:P$160,$H23)) -> 0 | Q23: =IF($H23=0,0,INDEX(Q$86:Q$160,$H23)) -> 0 | R23: =IF($H23=0,0,INDEX(R$86:R$160,$H23)) -> 4.879130184 | S23: =IF($H23=0,0,INDEX(S$86:S$160,$H23)) -> 0 | T23: =IF($H23=0,0,INDEX(T$86:T$160,$H23)) -> 0 | U23: =IF($H23=0,0,INDEX(U$86:U$160,$H23)) -> 0 | V23: =IF($H23=0,0,INDEX(V$86:V$160,$H23)) -> 0 | W23: =IF($H23=0,0,INDEX(W$86:W$160,$H23)) -> 0 | X23: =IF($H23=0,0,INDEX(X$86:X$160,$H23)) -> 0 | Y23: =IF($H23=0,0,INDEX(Y$86:Y$160,$H23)) -> 0 | Z23: =IF($H23=0,0,INDEX(Z$86:Z$160,$H23)) -> 0 | AA23: =IF($H23=0,0,INDEX(AA$86:AA$160,$H23)) -> 0 | AB23: =IF($H23=0,0,INDEX(AB$86:AB$160,$H23)) -> 0 | AD23: =IF(SUMPRODUCT(--_xlfn.ISFORMULA(C23:AB23))=26,"OK","CHECK") -> OK | AE23: =IF($H23=0,0,INDEX(AE$86:AE$320,$H23)) -> 0 | AF23: =IF($H23=0,0,INDEX(AF$86:AF$320,$H23)) -> 0 | AG23: =IF($H23=0,0,INDEX(AG$86:AG$320,$H23)) -> 0 | AH23: =IF($H23=0,0,INDEX(AH$86:AH$320,$H23)) -> 0 | AI23: =IF($H23=0,0,INDEX(AI$86:AI$320,$H23)) -> 0 | AJ23: =IF($H23=0,0,INDEX(AJ$86:AJ$320,$H23)) -> 0 | AK23: =IF($H23=0,0,INDEX(AK$86:AK$320,$H23)) -> 0 | AL23: =IF($H23=0,0,INDEX(AL$86:AL$320,$H23)) -> 0 | AM23: =IF($H23=0,0,INDEX(AM$86:AM$320,$H23)) -> 0 | AN23: =IF($H23=0,0,INDEX(AN$86:AN$320,$H23)) -> 0 | AO23: =IF($H23=0,0,INDEX(AO$86:AO$320,$H23)) -> 0 | AP23: =IF($H23=0,0,INDEX(AP$86:AP$320,$H23)) -> 0 | AQ23: =IF($H23=0,0,INDEX(AQ$86:AQ$320,$H23)) -> 0 | AR23: =IF($H23=0,0,INDEX(AR$86:AR$320,$H23)) -> 0
C24: =_xlfn.IFNA(INDEX(Tariffs!$C$46:$C$120,MATCH(VDO!D13,Tariffs!$I$46:$I$120,0)),0) -> 0 | D24: =_xlfn.IFNA(INDEX(Tariffs!$D$46:$D$120,MATCH(VDO!D13,Tariffs!$I$46:$I$120,0)),0) -> 0 | E24: =_xlfn.IFNA(INDEX(Tariffs!$E$46:$E$120,MATCH(VDO!D13,Tariffs!$I$46:$I$120,0)),0) -> 0 | F24: =_xlfn.IFNA(INDEX(Tariffs!$F$46:$F$120,MATCH(VDO!D13,Tariffs!$I$46:$I$120,0)),0) -> 0 | G24: =_xlfn.IFNA(INDEX(Tariffs!$G$46:$G$120,MATCH(VDO!D13,Tariffs!$I$46:$I$120,0)),0) -> 0 | H24: 0 | I24: =IF($H24=0,0,INDEX(I$86:I$160,$H24)) -> 0 | J24: =IF($H24=0,0,INDEX(J$86:J$160,$H24)) -> 0 | K24: =IF($H24=0,0,INDEX(K$86:K$160,$H24)) -> 0 | L24: =IF($H24=0,0,INDEX(L$86:L$160,$H24)) -> 0 | M24: =IF($H24=0,0,INDEX(M$86:M$160,$H24)) -> 0 | N24: =IF($H24=0,0,INDEX(N$86:N$160,$H24)) -> 0 | O24: =IF($H24=0,0,INDEX(O$86:O$160,$H24)) -> 0 | P24: =IF($H24=0,0,INDEX(P$86:P$160,$H24)) -> 0 | Q24: =IF($H24=0,0,INDEX(Q$86:Q$160,$H24)) -> 0 | R24: =IF($H24=0,0,INDEX(R$86:R$160,$H24)) -> 0 | S24: =IF($H24=0,0,INDEX(S$86:S$160,$H24)) -> 0 | T24: =IF($H24=0,0,INDEX(T$86:T$160,$H24)) -> 0 | U24: =IF($H24=0,0,INDEX(U$86:U$160,$H24)) -> 0 | V24: =IF($H24=0,0,INDEX(V$86:V$160,$H24)) -> 0 | W24: =IF($H24=0,0,INDEX(W$86:W$160,$H24)) -> 0 | X24: =IF($H24=0,0,INDEX(X$86:X$160,$H24)) -> 0 | Y24: =IF($H24=0,0,INDEX(Y$86:Y$160,$H24)) -> 0 | Z24: =IF($H24=0,0,INDEX(Z$86:Z$160,$H24)) -> 0 | AA24: =IF($H24=0,0,INDEX(AA$86:AA$160,$H24)) -> 0 | AB24: =IF($H24=0,0,INDEX(AB$86:AB$160,$H24)) -> 0 | AD24: =IF(SUMPRODUCT(--_xlfn.ISFORMULA(C24:AB24))=26,"OK","CHECK") -> OK | AE24: =IF($H24=0,0,INDEX(AE$86:AE$320,$H24)) -> 0 | AF24: =IF($H24=0,0,INDEX(AF$86:AF$320,$H24)) -> 0 | AG24: =IF($H24=0,0,INDEX(AG$86:AG$320,$H24)) -> 0 | AH24: =IF($H24=0,0,INDEX(AH$86:AH$320,$H24)) -> 0 | AI24: =IF($H24=0,0,INDEX(AI$86:AI$320,$H24)) -> 0 | AJ24: =IF($H24=0,0,INDEX(AJ$86:AJ$320,$H24)) -> 0 | AK24: =IF($H24=0,0,INDEX(AK$86:AK$320,$H24)) -> 0 | AL24: =IF($H24=0,0,INDEX(AL$86:AL$320,$H24)) -> 0 | AM24: =IF($H24=0,0,INDEX(AM$86:AM$320,$H24)) -> 0 | AN24: =IF($H24=0,0,INDEX(AN$86:AN$320,$H24)) -> 0 | AO24: =IF($H24=0,0,INDEX(AO$86:AO$320,$H24)) -> 0 | AP24: =IF($H24=0,0,INDEX(AP$86:AP$320,$H24)) -> 0 | AQ24: =IF($H24=0,0,INDEX(AQ$86:AQ$320,$H24)) -> 0 | AR24: =IF($H24=0,0,INDEX(AR$86:AR$320,$H24)) -> 0
C25: =_xlfn.IFNA(INDEX(Tariffs!$C$46:$C$120,MATCH(VDO!D14,Tariffs!$I$46:$I$120,0)),0) -> 0 | D25: =_xlfn.IFNA(INDEX(Tariffs!$D$46:$D$120,MATCH(VDO!D14,Tariffs!$I$46:$I$120,0)),0) -> 0 | E25: =_xlfn.IFNA(INDEX(Tariffs!$E$46:$E$120,MATCH(VDO!D14,Tariffs!$I$46:$I$120,0)),0) -> 0 | F25: =_xlfn.IFNA(INDEX(Tariffs!$F$46:$F$120,MATCH(VDO!D14,Tariffs!$I$46:$I$120,0)),0) -> 0 | G25: =_xlfn.IFNA(INDEX(Tariffs!$G$46:$G$120,MATCH(VDO!D14,Tariffs!$I$46:$I$120,0)),0) -> 0 | H25: 0 | I25: =IF($H25=0,0,INDEX(I$86:I$160,$H25)) -> 0 | J25: =IF($H25=0,0,INDEX(J$86:J$160,$H25)) -> 0 | K25: =IF($H25=0,0,INDEX(K$86:K$160,$H25)) -> 0 | L25: =IF($H25=0,0,INDEX(L$86:L$160,$H25)) -> 0 | M25: =IF($H25=0,0,INDEX(M$86:M$160,$H25)) -> 0 | N25: =IF($H25=0,0,INDEX(N$86:N$160,$H25)) -> 0 | O25: =IF($H25=0,0,INDEX(O$86:O$160,$H25)) -> 0 | P25: =IF($H25=0,0,INDEX(P$86:P$160,$H25)) -> 0 | Q25: =IF($H25=0,0,INDEX(Q$86:Q$160,$H25)) -> 0 | R25: =IF($H25=0,0,INDEX(R$86:R$160,$H25)) -> 0 | S25: =IF($H25=0,0,INDEX(S$86:S$160,$H25)) -> 0 | T25: =IF($H25=0,0,INDEX(T$86:T$160,$H25)) -> 0 | U25: =IF($H25=0,0,INDEX(U$86:U$160,$H25)) -> 0 | V25: =IF($H25=0,0,INDEX(V$86:V$160,$H25)) -> 0 | W25: =IF($H25=0,0,INDEX(W$86:W$160,$H25)) -> 0 | X25: =IF($H25=0,0,INDEX(X$86:X$160,$H25)) -> 0 | Y25: =IF($H25=0,0,INDEX(Y$86:Y$160,$H25)) -> 0 | Z25: =IF($H25=0,0,INDEX(Z$86:Z$160,$H25)) -> 0 | AA25: =IF($H25=0,0,INDEX(AA$86:AA$160,$H25)) -> 0 | AB25: =IF($H25=0,0,INDEX(AB$86:AB$160,$H25)) -> 0 | AD25: =IF(SUMPRODUCT(--_xlfn.ISFORMULA(C25:AB25))=26,"OK","CHECK") -> OK | AE25: =IF($H25=0,0,INDEX(AE$86:AE$320,$H25)) -> 0 | AF25: =IF($H25=0,0,INDEX(AF$86:AF$320,$H25)) -> 0 | AG25: =IF($H25=0,0,INDEX(AG$86:AG$320,$H25)) -> 0 | AH25: =IF($H25=0,0,INDEX(AH$86:AH$320,$H25)) -> 0 | AI25: =IF($H25=0,0,INDEX(AI$86:AI$320,$H25)) -> 0 | AJ25: =IF($H25=0,0,INDEX(AJ$86:AJ$320,$H25)) -> 0 | AK25: =IF($H25=0,0,INDEX(AK$86:AK$320,$H25)) -> 0 | AL25: =IF($H25=0,0,INDEX(AL$86:AL$320,$H25)) -> 0 | AM25: =IF($H25=0,0,INDEX(AM$86:AM$320,$H25)) -> 0 | AN25: =IF($H25=0,0,INDEX(AN$86:AN$320,$H25)) -> 0 | AO25: =IF($H25=0,0,INDEX(AO$86:AO$320,$H25)) -> 0 | AP25: =IF($H25=0,0,INDEX(AP$86:AP$320,$H25)) -> 0 | AQ25: =IF($H25=0,0,INDEX(AQ$86:AQ$320,$H25)) -> 0 | AR25: =IF($H25=0,0,INDEX(AR$86:AR$320,$H25)) -> 0
C26: =_xlfn.IFNA(INDEX(Tariffs!$C$46:$C$120,MATCH(VDO!D15,Tariffs!$I$46:$I$120,0)),0) -> 0 | D26: =_xlfn.IFNA(INDEX(Tariffs!$D$46:$D$120,MATCH(VDO!D15,Tariffs!$I$46:$I$120,0)),0) -> 0 | E26: =_xlfn.IFNA(INDEX(Tariffs!$E$46:$E$120,MATCH(VDO!D15,Tariffs!$I$46:$I$120,0)),0) -> 0 | F26: =_xlfn.IFNA(INDEX(Tariffs!$F$46:$F$120,MATCH(VDO!D15,Tariffs!$I$46:$I$120,0)),0) -> 0 | G26: =_xlfn.IFNA(INDEX(Tariffs!$G$46:$G$120,MATCH(VDO!D15,Tariffs!$I$46:$I$120,0)),0) -> 0 | H26: 0 | I26: =IF($H26=0,0,INDEX(I$86:I$160,$H26)) -> 0 | J26: =IF($H26=0,0,INDEX(J$86:J$160,$H26)) -> 0 | K26: =IF($H26=0,0,INDEX(K$86:K$160,$H26)) -> 0 | L26: =IF($H26=0,0,INDEX(L$86:L$160,$H26)) -> 0 | M26: =IF($H26=0,0,INDEX(M$86:M$160,$H26)) -> 0 | N26: =IF($H26=0,0,INDEX(N$86:N$160,$H26)) -> 0 | O26: =IF($H26=0,0,INDEX(O$86:O$160,$H26)) -> 0 | P26: =IF($H26=0,0,INDEX(P$86:P$160,$H26)) -> 0 | Q26: =IF($H26=0,0,INDEX(Q$86:Q$160,$H26)) -> 0 | R26: =IF($H26=0,0,INDEX(R$86:R$160,$H26)) -> 0 | S26: =IF($H26=0,0,INDEX(S$86:S$160,$H26)) -> 0 | T26: =IF($H26=0,0,INDEX(T$86:T$160,$H26)) -> 0 | U26: =IF($H26=0,0,INDEX(U$86:U$160,$H26)) -> 0 | V26: =IF($H26=0,0,INDEX(V$86:V$160,$H26)) -> 0 | W26: =IF($H26=0,0,INDEX(W$86:W$160,$H26)) -> 0 | X26: =IF($H26=0,0,INDEX(X$86:X$160,$H26)) -> 0 | Y26: =IF($H26=0,0,INDEX(Y$86:Y$160,$H26)) -> 0 | Z26: =IF($H26=0,0,INDEX(Z$86:Z$160,$H26)) -> 0 | AA26: =IF($H26=0,0,INDEX(AA$86:AA$160,$H26)) -> 0 | AB26: =IF($H26=0,0,INDEX(AB$86:AB$160,$H26)) -> 0 | AD26: =IF(SUMPRODUCT(--_xlfn.ISFORMULA(C26:AB26))=26,"OK","CHECK") -> OK | AE26: =IF($H26=0,0,INDEX(AE$86:AE$320,$H26)) -> 0 | AF26: =IF($H26=0,0,INDEX(AF$86:AF$320,$H26)) -> 0 | AG26: =IF($H26=0,0,INDEX(AG$86:AG$320,$H26)) -> 0 | AH26: =IF($H26=0,0,INDEX(AH$86:AH$320,$H26)) -> 0 | AI26: =IF($H26=0,0,INDEX(AI$86:AI$320,$H26)) -> 0 | AJ26: =IF($H26=0,0,INDEX(AJ$86:AJ$320,$H26)) -> 0 | AK26: =IF($H26=0,0,INDEX(AK$86:AK$320,$H26)) -> 0 | AL26: =IF($H26=0,0,INDEX(AL$86:AL$320,$H26)) -> 0 | AM26: =IF($H26=0,0,INDEX(AM$86:AM$320,$H26)) -> 0 | AN26: =IF($H26=0,0,INDEX(AN$86:AN$320,$H26)) -> 0 | AO26: =IF($H26=0,0,INDEX(AO$86:AO$320,$H26)) -> 0 | AP26: =IF($H26=0,0,INDEX(AP$86:AP$320,$H26)) -> 0 | AQ26: =IF($H26=0,0,INDEX(AQ$86:AQ$320,$H26)) -> 0 | AR26: =IF($H26=0,0,INDEX(AR$86:AR$320,$H26)) -> 0
C27: =_xlfn.IFNA(INDEX(Tariffs!$C$46:$C$120,MATCH(VDO!D16,Tariffs!$I$46:$I$120,0)),0) -> 0 | D27: =_xlfn.IFNA(INDEX(Tariffs!$D$46:$D$120,MATCH(VDO!D16,Tariffs!$I$46:$I$120,0)),0) -> 0 | E27: =_xlfn.IFNA(INDEX(Tariffs!$E$46:$E$120,MATCH(VDO!D16,Tariffs!$I$46:$I$120,0)),0) -> 0 | F27: =_xlfn.IFNA(INDEX(Tariffs!$F$46:$F$120,MATCH(VDO!D16,Tariffs!$I$46:$I$120,0)),0) -> 0 | G27: =_xlfn.IFNA(INDEX(Tariffs!$G$46:$G$120,MATCH(VDO!D16,Tariffs!$I$46:$I$120,0)),0) -> 0 | H27: 0 | I27: =IF($H27=0,0,INDEX(I$86:I$160,$H27)) -> 0 | J27: =IF($H27=0,0,INDEX(J$86:J$160,$H27)) -> 0 | K27: =IF($H27=0,0,INDEX(K$86:K$160,$H27)) -> 0 | L27: =IF($H27=0,0,INDEX(L$86:L$160,$H27)) -> 0 | M27: =IF($H27=0,0,INDEX(M$86:M$160,$H27)) -> 0 | N27: =IF($H27=0,0,INDEX(N$86:N$160,$H27)) -> 0 | O27: =IF($H27=0,0,INDEX(O$86:O$160,$H27)) -> 0 | P27: =IF($H27=0,0,INDEX(P$86:P$160,$H27)) -> 0 | Q27: =IF($H27=0,0,INDEX(Q$86:Q$160,$H27)) -> 0 | R27: =IF($H27=0,0,INDEX(R$86:R$160,$H27)) -> 0 | S27: =IF($H27=0,0,INDEX(S$86:S$160,$H27)) -> 0 | T27: =IF($H27=0,0,INDEX(T$86:T$160,$H27)) -> 0 | U27: =IF($H27=0,0,INDEX(U$86:U$160,$H27)) -> 0 | V27: =IF($H27=0,0,INDEX(V$86:V$160,$H27)) -> 0 | W27: =IF($H27=0,0,INDEX(W$86:W$160,$H27)) -> 0 | X27: =IF($H27=0,0,INDEX(X$86:X$160,$H27)) -> 0 | Y27: =IF($H27=0,0,INDEX(Y$86:Y$160,$H27)) -> 0 | Z27: =IF($H27=0,0,INDEX(Z$86:Z$160,$H27)) -> 0 | AA27: =IF($H27=0,0,INDEX(AA$86:AA$160,$H27)) -> 0 | AB27: =IF($H27=0,0,INDEX(AB$86:AB$160,$H27)) -> 0 | AD27: =IF(SUMPRODUCT(--_xlfn.ISFORMULA(C27:AB27))=26,"OK","CHECK") -> OK | AE27: =IF($H27=0,0,INDEX(AE$86:AE$320,$H27)) -> 0 | AF27: =IF($H27=0,0,INDEX(AF$86:AF$320,$H27)) -> 0 | AG27: =IF($H27=0,0,INDEX(AG$86:AG$320,$H27)) -> 0 | AH27: =IF($H27=0,0,INDEX(AH$86:AH$320,$H27)) -> 0 | AI27: =IF($H27=0,0,INDEX(AI$86:AI$320,$H27)) -> 0 | AJ27: =IF($H27=0,0,INDEX(AJ$86:AJ$320,$H27)) -> 0 | AK27: =IF($H27=0,0,INDEX(AK$86:AK$320,$H27)) -> 0 | AL27: =IF($H27=0,0,INDEX(AL$86:AL$320,$H27)) -> 0 | AM27: =IF($H27=0,0,INDEX(AM$86:AM$320,$H27)) -> 0 | AN27: =IF($H27=0,0,INDEX(AN$86:AN$320,$H27)) -> 0 | AO27: =IF($H27=0,0,INDEX(AO$86:AO$320,$H27)) -> 0 | AP27: =IF($H27=0,0,INDEX(AP$86:AP$320,$H27)) -> 0 | AQ27: =IF($H27=0,0,INDEX(AQ$86:AQ$320,$H27)) -> 0 | AR27: =IF($H27=0,0,INDEX(AR$86:AR$320,$H27)) -> 0
C28: =_xlfn.IFNA(INDEX(Tariffs!$C$46:$C$120,MATCH(VDO!D17,Tariffs!$I$46:$I$120,0)),0) -> 0 | D28: =_xlfn.IFNA(INDEX(Tariffs!$D$46:$D$120,MATCH(VDO!D17,Tariffs!$I$46:$I$120,0)),0) -> 0 | E28: =_xlfn.IFNA(INDEX(Tariffs!$E$46:$E$120,MATCH(VDO!D17,Tariffs!$I$46:$I$120,0)),0) -> 0 | F28: =_xlfn.IFNA(INDEX(Tariffs!$F$46:$F$120,MATCH(VDO!D17,Tariffs!$I$46:$I$120,0)),0) -> 0 | G28: =_xlfn.IFNA(INDEX(Tariffs!$G$46:$G$120,MATCH(VDO!D17,Tariffs!$I$46:$I$120,0)),0) -> 0 | H28: 0 | I28: =IF($H28=0,0,INDEX(I$86:I$160,$H28)) -> 0 | J28: =IF($H28=0,0,INDEX(J$86:J$160,$H28)) -> 0 | K28: =IF($H28=0,0,INDEX(K$86:K$160,$H28)) -> 0 | L28: =IF($H28=0,0,INDEX(L$86:L$160,$H28)) -> 0 | M28: =IF($H28=0,0,INDEX(M$86:M$160,$H28)) -> 0 | N28: =IF($H28=0,0,INDEX(N$86:N$160,$H28)) -> 0 | O28: =IF($H28=0,0,INDEX(O$86:O$160,$H28)) -> 0 | P28: =IF($H28=0,0,INDEX(P$86:P$160,$H28)) -> 0 | Q28: =IF($H28=0,0,INDEX(Q$86:Q$160,$H28)) -> 0 | R28: =IF($H28=0,0,INDEX(R$86:R$160,$H28)) -> 0 | S28: =IF($H28=0,0,INDEX(S$86:S$160,$H28)) -> 0 | T28: =IF($H28=0,0,INDEX(T$86:T$160,$H28)) -> 0 | U28: =IF($H28=0,0,INDEX(U$86:U$160,$H28)) -> 0 | V28: =IF($H28=0,0,INDEX(V$86:V$160,$H28)) -> 0 | W28: =IF($H28=0,0,INDEX(W$86:W$160,$H28)) -> 0 | X28: =IF($H28=0,0,INDEX(X$86:X$160,$H28)) -> 0 | Y28: =IF($H28=0,0,INDEX(Y$86:Y$160,$H28)) -> 0 | Z28: =IF($H28=0,0,INDEX(Z$86:Z$160,$H28)) -> 0 | AA28: =IF($H28=0,0,INDEX(AA$86:AA$160,$H28)) -> 0 | AB28: =IF($H28=0,0,INDEX(AB$86:AB$160,$H28)) -> 0 | AD28: =IF(SUMPRODUCT(--_xlfn.ISFORMULA(C28:AB28))=26,"OK","CHECK") -> OK | AE28: =IF($H28=0,0,INDEX(AE$86:AE$320,$H28)) -> 0 | AF28: =IF($H28=0,0,INDEX(AF$86:AF$320,$H28)) -> 0 | AG28: =IF($H28=0,0,INDEX(AG$86:AG$320,$H28)) -> 0 | AH28: =IF($H28=0,0,INDEX(AH$86:AH$320,$H28)) -> 0 | AI28: =IF($H28=0,0,INDEX(AI$86:AI$320,$H28)) -> 0 | AJ28: =IF($H28=0,0,INDEX(AJ$86:AJ$320,$H28)) -> 0 | AK28: =IF($H28=0,0,INDEX(AK$86:AK$320,$H28)) -> 0 | AL28: =IF($H28=0,0,INDEX(AL$86:AL$320,$H28)) -> 0 | AM28: =IF($H28=0,0,INDEX(AM$86:AM$320,$H28)) -> 0 | AN28: =IF($H28=0,0,INDEX(AN$86:AN$320,$H28)) -> 0 | AO28: =IF($H28=0,0,INDEX(AO$86:AO$320,$H28)) -> 0 | AP28: =IF($H28=0,0,INDEX(AP$86:AP$320,$H28)) -> 0 | AQ28: =IF($H28=0,0,INDEX(AQ$86:AQ$320,$H28)) -> 0 | AR28: =IF($H28=0,0,INDEX(AR$86:AR$320,$H28)) -> 0
C29: =_xlfn.IFNA(INDEX(Tariffs!$C$46:$C$120,MATCH(VDO!D18,Tariffs!$I$46:$I$120,0)),0) -> 0 | D29: =_xlfn.IFNA(INDEX(Tariffs!$D$46:$D$120,MATCH(VDO!D18,Tariffs!$I$46:$I$120,0)),0) -> 0 | E29: =_xlfn.IFNA(INDEX(Tariffs!$E$46:$E$120,MATCH(VDO!D18,Tariffs!$I$46:$I$120,0)),0) -> 0 | F29: =_xlfn.IFNA(INDEX(Tariffs!$F$46:$F$120,MATCH(VDO!D18,Tariffs!$I$46:$I$120,0)),0) -> 0 | G29: =_xlfn.IFNA(INDEX(Tariffs!$G$46:$G$120,MATCH(VDO!D18,Tariffs!$I$46:$I$120,0)),0) -> 0 | H29: 0 | I29: =IF($H29=0,0,INDEX(I$86:I$160,$H29)) -> 0 | J29: =IF($H29=0,0,INDEX(J$86:J$160,$H29)) -> 0 | K29: =IF($H29=0,0,INDEX(K$86:K$160,$H29)) -> 0 | L29: =IF($H29=0,0,INDEX(L$86:L$160,$H29)) -> 0 | M29: =IF($H29=0,0,INDEX(M$86:M$160,$H29)) -> 0 | N29: =IF($H29=0,0,INDEX(N$86:N$160,$H29)) -> 0 | O29: =IF($H29=0,0,INDEX(O$86:O$160,$H29)) -> 0 | P29: =IF($H29=0,0,INDEX(P$86:P$160,$H29)) -> 0 | Q29: =IF($H29=0,0,INDEX(Q$86:Q$160,$H29)) -> 0 | R29: =IF($H29=0,0,INDEX(R$86:R$160,$H29)) -> 0 | S29: =IF($H29=0,0,INDEX(S$86:S$160,$H29)) -> 0 | T29: =IF($H29=0,0,INDEX(T$86:T$160,$H29)) -> 0 | U29: =IF($H29=0,0,INDEX(U$86:U$160,$H29)) -> 0 | V29: =IF($H29=0,0,INDEX(V$86:V$160,$H29)) -> 0 | W29: =IF($H29=0,0,INDEX(W$86:W$160,$H29)) -> 0 | X29: =IF($H29=0,0,INDEX(X$86:X$160,$H29)) -> 0 | Y29: =IF($H29=0,0,INDEX(Y$86:Y$160,$H29)) -> 0 | Z29: =IF($H29=0,0,INDEX(Z$86:Z$160,$H29)) -> 0 | AA29: =IF($H29=0,0,INDEX(AA$86:AA$160,$H29)) -> 0 | AB29: =IF($H29=0,0,INDEX(AB$86:AB$160,$H29)) -> 0 | AD29: =IF(SUMPRODUCT(--_xlfn.ISFORMULA(C29:AB29))=26,"OK","CHECK") -> OK | AE29: =IF($H29=0,0,INDEX(AE$86:AE$320,$H29)) -> 0 | AF29: =IF($H29=0,0,INDEX(AF$86:AF$320,$H29)) -> 0 | AG29: =IF($H29=0,0,INDEX(AG$86:AG$320,$H29)) -> 0 | AH29: =IF($H29=0,0,INDEX(AH$86:AH$320,$H29)) -> 0 | AI29: =IF($H29=0,0,INDEX(AI$86:AI$320,$H29)) -> 0 | AJ29: =IF($H29=0,0,INDEX(AJ$86:AJ$320,$H29)) -> 0 | AK29: =IF($H29=0,0,INDEX(AK$86:AK$320,$H29)) -> 0 | AL29: =IF($H29=0,0,INDEX(AL$86:AL$320,$H29)) -> 0 | AM29: =IF($H29=0,0,INDEX(AM$86:AM$320,$H29)) -> 0 | AN29: =IF($H29=0,0,INDEX(AN$86:AN$320,$H29)) -> 0 | AO29: =IF($H29=0,0,INDEX(AO$86:AO$320,$H29)) -> 0 | AP29: =IF($H29=0,0,INDEX(AP$86:AP$320,$H29)) -> 0 | AQ29: =IF($H29=0,0,INDEX(AQ$86:AQ$320,$H29)) -> 0 | AR29: =IF($H29=0,0,INDEX(AR$86:AR$320,$H29)) -> 0
C30: =_xlfn.IFNA(INDEX(Tariffs!$C$46:$C$120,MATCH(VDO!D19,Tariffs!$I$46:$I$120,0)),0) -> 0 | D30: =_xlfn.IFNA(INDEX(Tariffs!$D$46:$D$120,MATCH(VDO!D19,Tariffs!$I$46:$I$120,0)),0) -> 0 | E30: =_xlfn.IFNA(INDEX(Tariffs!$E$46:$E$120,MATCH(VDO!D19,Tariffs!$I$46:$I$120,0)),0) -> 0 | F30: =_xlfn.IFNA(INDEX(Tariffs!$F$46:$F$120,MATCH(VDO!D19,Tariffs!$I$46:$I$120,0)),0) -> 0 | G30: =_xlfn.IFNA(INDEX(Tariffs!$G$46:$G$120,MATCH(VDO!D19,Tariffs!$I$46:$I$120,0)),0) -> 0 | H30: 0 | I30: =IF($H30=0,0,INDEX(I$86:I$160,$H30)) -> 0 | J30: =IF($H30=0,0,INDEX(J$86:J$160,$H30)) -> 0 | K30: =IF($H30=0,0,INDEX(K$86:K$160,$H30)) -> 0 | L30: =IF($H30=0,0,INDEX(L$86:L$160,$H30)) -> 0 | M30: =IF($H30=0,0,INDEX(M$86:M$160,$H30)) -> 0 | N30: =IF($H30=0,0,INDEX(N$86:N$160,$H30)) -> 0 | O30: =IF($H30=0,0,INDEX(O$86:O$160,$H30)) -> 0 | P30: =IF($H30=0,0,INDEX(P$86:P$160,$H30)) -> 0 | Q30: =IF($H30=0,0,INDEX(Q$86:Q$160,$H30)) -> 0 | R30: =IF($H30=0,0,INDEX(R$86:R$160,$H30)) -> 0 | S30: =IF($H30=0,0,INDEX(S$86:S$160,$H30)) -> 0 | T30: =IF($H30=0,0,INDEX(T$86:T$160,$H30)) -> 0 | U30: =IF($H30=0,0,INDEX(U$86:U$160,$H30)) -> 0 | V30: =IF($H30=0,0,INDEX(V$86:V$160,$H30)) -> 0 | W30: =IF($H30=0,0,INDEX(W$86:W$160,$H30)) -> 0 | X30: =IF($H30=0,0,INDEX(X$86:X$160,$H30)) -> 0 | Y30: =IF($H30=0,0,INDEX(Y$86:Y$160,$H30)) -> 0 | Z30: =IF($H30=0,0,INDEX(Z$86:Z$160,$H30)) -> 0 | AA30: =IF($H30=0,0,INDEX(AA$86:AA$160,$H30)) -> 0 | AB30: =IF($H30=0,0,INDEX(AB$86:AB$160,$H30)) -> 0 | AD30: =IF(SUMPRODUCT(--_xlfn.ISFORMULA(C30:AB30))=26,"OK","CHECK") -> OK | AE30: =IF($H30=0,0,INDEX(AE$86:AE$320,$H30)) -> 0 | AF30: =IF($H30=0,0,INDEX(AF$86:AF$320,$H30)) -> 0 | AG30: =IF($H30=0,0,INDEX(AG$86:AG$320,$H30)) -> 0 | AH30: =IF($H30=0,0,INDEX(AH$86:AH$320,$H30)) -> 0 | AI30: =IF($H30=0,0,INDEX(AI$86:AI$320,$H30)) -> 0 | AJ30: =IF($H30=0,0,INDEX(AJ$86:AJ$320,$H30)) -> 0 | AK30: =IF($H30=0,0,INDEX(AK$86:AK$320,$H30)) -> 0 | AL30: =IF($H30=0,0,INDEX(AL$86:AL$320,$H30)) -> 0 | AM30: =IF($H30=0,0,INDEX(AM$86:AM$320,$H30)) -> 0 | AN30: =IF($H30=0,0,INDEX(AN$86:AN$320,$H30)) -> 0 | AO30: =IF($H30=0,0,INDEX(AO$86:AO$320,$H30)) -> 0 | AP30: =IF($H30=0,0,INDEX(AP$86:AP$320,$H30)) -> 0 | AQ30: =IF($H30=0,0,INDEX(AQ$86:AQ$320,$H30)) -> 0 | AR30: =IF($H30=0,0,INDEX(AR$86:AR$320,$H30)) -> 0
C31: =_xlfn.IFNA(INDEX(Tariffs!$C$46:$C$120,MATCH(VDO!D20,Tariffs!$I$46:$I$120,0)),0) -> 0 | D31: =_xlfn.IFNA(INDEX(Tariffs!$D$46:$D$120,MATCH(VDO!D20,Tariffs!$I$46:$I$120,0)),0) -> 0 | E31: =_xlfn.IFNA(INDEX(Tariffs!$E$46:$E$120,MATCH(VDO!D20,Tariffs!$I$46:$I$120,0)),0) -> 0 | F31: =_xlfn.IFNA(INDEX(Tariffs!$F$46:$F$120,MATCH(VDO!D20,Tariffs!$I$46:$I$120,0)),0) -> 0 | G31: =_xlfn.IFNA(INDEX(Tariffs!$G$46:$G$120,MATCH(VDO!D20,Tariffs!$I$46:$I$120,0)),0) -> 0 | H31: 0 | I31: =IF($H31=0,0,INDEX(I$86:I$160,$H31)) -> 0 | J31: =IF($H31=0,0,INDEX(J$86:J$160,$H31)) -> 0 | K31: =IF($H31=0,0,INDEX(K$86:K$160,$H31)) -> 0 | L31: =IF($H31=0,0,INDEX(L$86:L$160,$H31)) -> 0 | M31: =IF($H31=0,0,INDEX(M$86:M$160,$H31)) -> 0 | N31: =IF($H31=0,0,INDEX(N$86:N$160,$H31)) -> 0 | O31: =IF($H31=0,0,INDEX(O$86:O$160,$H31)) -> 0 | P31: =IF($H31=0,0,INDEX(P$86:P$160,$H31)) -> 0 | Q31: =IF($H31=0,0,INDEX(Q$86:Q$160,$H31)) -> 0 | R31: =IF($H31=0,0,INDEX(R$86:R$160,$H31)) -> 0 | S31: =IF($H31=0,0,INDEX(S$86:S$160,$H31)) -> 0 | T31: =IF($H31=0,0,INDEX(T$86:T$160,$H31)) -> 0 | U31: =IF($H31=0,0,INDEX(U$86:U$160,$H31)) -> 0 | V31: =IF($H31=0,0,INDEX(V$86:V$160,$H31)) -> 0 | W31: =IF($H31=0,0,INDEX(W$86:W$160,$H31)) -> 0 | X31: =IF($H31=0,0,INDEX(X$86:X$160,$H31)) -> 0 | Y31: =IF($H31=0,0,INDEX(Y$86:Y$160,$H31)) -> 0 | Z31: =IF($H31=0,0,INDEX(Z$86:Z$160,$H31)) -> 0 | AA31: =IF($H31=0,0,INDEX(AA$86:AA$160,$H31)) -> 0 | AB31: =IF($H31=0,0,INDEX(AB$86:AB$160,$H31)) -> 0 | AD31: =IF(SUMPRODUCT(--_xlfn.ISFORMULA(C31:AB31))=26,"OK","CHECK") -> OK | AE31: =IF($H31=0,0,INDEX(AE$86:AE$320,$H31)) -> 0 | AF31: =IF($H31=0,0,INDEX(AF$86:AF$320,$H31)) -> 0 | AG31: =IF($H31=0,0,INDEX(AG$86:AG$320,$H31)) -> 0 | AH31: =IF($H31=0,0,INDEX(AH$86:AH$320,$H31)) -> 0 | AI31: =IF($H31=0,0,INDEX(AI$86:AI$320,$H31)) -> 0 | AJ31: =IF($H31=0,0,INDEX(AJ$86:AJ$320,$H31)) -> 0 | AK31: =IF($H31=0,0,INDEX(AK$86:AK$320,$H31)) -> 0 | AL31: =IF($H31=0,0,INDEX(AL$86:AL$320,$H31)) -> 0 | AM31: =IF($H31=0,0,INDEX(AM$86:AM$320,$H31)) -> 0 | AN31: =IF($H31=0,0,INDEX(AN$86:AN$320,$H31)) -> 0 | AO31: =IF($H31=0,0,INDEX(AO$86:AO$320,$H31)) -> 0 | AP31: =IF($H31=0,0,INDEX(AP$86:AP$320,$H31)) -> 0 | AQ31: =IF($H31=0,0,INDEX(AQ$86:AQ$320,$H31)) -> 0 | AR31: =IF($H31=0,0,INDEX(AR$86:AR$320,$H31)) -> 0
C32: =_xlfn.IFNA(INDEX(Tariffs!$C$46:$C$120,MATCH(VDO!D21,Tariffs!$I$46:$I$120,0)),0) -> 0 | D32: =_xlfn.IFNA(INDEX(Tariffs!$D$46:$D$120,MATCH(VDO!D21,Tariffs!$I$46:$I$120,0)),0) -> 0 | E32: =_xlfn.IFNA(INDEX(Tariffs!$E$46:$E$120,MATCH(VDO!D21,Tariffs!$I$46:$I$120,0)),0) -> 0 | F32: =_xlfn.IFNA(INDEX(Tariffs!$F$46:$F$120,MATCH(VDO!D21,Tariffs!$I$46:$I$120,0)),0) -> 0 | G32: =_xlfn.IFNA(INDEX(Tariffs!$G$46:$G$120,MATCH(VDO!D21,Tariffs!$I$46:$I$120,0)),0) -> 0 | H32: 0 | I32: =IF($H32=0,0,INDEX(I$86:I$160,$H32)) -> 0 | J32: =IF($H32=0,0,INDEX(J$86:J$160,$H32)) -> 0 | K32: =IF($H32=0,0,INDEX(K$86:K$160,$H32)) -> 0 | L32: =IF($H32=0,0,INDEX(L$86:L$160,$H32)) -> 0 | M32: =IF($H32=0,0,INDEX(M$86:M$160,$H32)) -> 0 | N32: =IF($H32=0,0,INDEX(N$86:N$160,$H32)) -> 0 | O32: =IF($H32=0,0,INDEX(O$86:O$160,$H32)) -> 0 | P32: =IF($H32=0,0,INDEX(P$86:P$160,$H32)) -> 0 | Q32: =IF($H32=0,0,INDEX(Q$86:Q$160,$H32)) -> 0 | R32: =IF($H32=0,0,INDEX(R$86:R$160,$H32)) -> 0 | S32: =IF($H32=0,0,INDEX(S$86:S$160,$H32)) -> 0 | T32: =IF($H32=0,0,INDEX(T$86:T$160,$H32)) -> 0 | U32: =IF($H32=0,0,INDEX(U$86:U$160,$H32)) -> 0 | V32: =IF($H32=0,0,INDEX(V$86:V$160,$H32)) -> 0 | W32: =IF($H32=0,0,INDEX(W$86:W$160,$H32)) -> 0 | X32: =IF($H32=0,0,INDEX(X$86:X$160,$H32)) -> 0 | Y32: =IF($H32=0,0,INDEX(Y$86:Y$160,$H32)) -> 0 | Z32: =IF($H32=0,0,INDEX(Z$86:Z$160,$H32)) -> 0 | AA32: =IF($H32=0,0,INDEX(AA$86:AA$160,$H32)) -> 0 | AB32: =IF($H32=0,0,INDEX(AB$86:AB$160,$H32)) -> 0 | AD32: =IF(SUMPRODUCT(--_xlfn.ISFORMULA(C32:AB32))=26,"OK","CHECK") -> OK | AE32: =IF($H32=0,0,INDEX(AE$86:AE$320,$H32)) -> 0 | AF32: =IF($H32=0,0,INDEX(AF$86:AF$320,$H32)) -> 0 | AG32: =IF($H32=0,0,INDEX(AG$86:AG$320,$H32)) -> 0 | AH32: =IF($H32=0,0,INDEX(AH$86:AH$320,$H32)) -> 0 | AI32: =IF($H32=0,0,INDEX(AI$86:AI$320,$H32)) -> 0 | AJ32: =IF($H32=0,0,INDEX(AJ$86:AJ$320,$H32)) -> 0 | AK32: =IF($H32=0,0,INDEX(AK$86:AK$320,$H32)) -> 0 | AL32: =IF($H32=0,0,INDEX(AL$86:AL$320,$H32)) -> 0 | AM32: =IF($H32=0,0,INDEX(AM$86:AM$320,$H32)) -> 0 | AN32: =IF($H32=0,0,INDEX(AN$86:AN$320,$H32)) -> 0 | AO32: =IF($H32=0,0,INDEX(AO$86:AO$320,$H32)) -> 0 | AP32: =IF($H32=0,0,INDEX(AP$86:AP$320,$H32)) -> 0 | AQ32: =IF($H32=0,0,INDEX(AQ$86:AQ$320,$H32)) -> 0 | AR32: =IF($H32=0,0,INDEX(AR$86:AR$320,$H32)) -> 0
C34: =C163 -> Distribution
C35: =C19 -> Small single rate | D35: Residential | E35: NEE11 | F35: 0 | G35: 0 | H35: 1 | I35: =IF($H35=0,0,INDEX(I$164:I$238,$H35)) -> 145.3052217 | J35: =IF($H35=0,0,INDEX(J$164:J$238,$H35)) -> 0 | K35: =IF($H35=0,0,INDEX(K$164:K$238,$H35)) -> 9.987277961 | L35: =IF($H35=0,0,INDEX(L$164:L$238,$H35)) -> 9.987277961 | M35: =IF($H35=0,0,INDEX(M$164:M$238,$H35)) -> 0 | N35: =IF($H35=0,0,INDEX(N$164:N$238,$H35)) -> 0 | O35: =IF($H35=0,0,INDEX(O$164:O$238,$H35)) -> 0 | P35: =IF($H35=0,0,INDEX(P$164:P$238,$H35)) -> 0 | Q35: =IF($H35=0,0,INDEX(Q$164:Q$238,$H35)) -> 0 | R35: =IF($H35=0,0,INDEX(R$164:R$238,$H35)) -> 0 | S35: =IF($H35=0,0,INDEX(S$164:S$238,$H35)) -> 0 | T35: =IF($H35=0,0,INDEX(T$164:T$238,$H35)) -> 0 | U35: =IF($H35=0,0,INDEX(U$164:U$238,$H35)) -> 0 | V35: =IF($H35=0,0,INDEX(V$164:V$238,$H35)) -> 0 | W35: =IF($H35=0,0,INDEX(W$164:W$238,$H35)) -> 0 | X35: =IF($H35=0,0,INDEX(X$164:X$238,$H35)) -> 0 | Y35: =IF($H35=0,0,INDEX(Y$164:Y$238,$H35)) -> 0 | Z35: =IF($H35=0,0,INDEX(Z$164:Z$238,$H35)) -> 0 | AA35: =IF($H35=0,0,INDEX(AA$164:AA$238,$H35)) -> 0 | AB35: =IF($H35=0,0,INDEX(AB$164:AB$238,$H35)) -> 0 | AD35: =IF(SUMPRODUCT(--_xlfn.ISFORMULA(C35:AB35))=26,"OK","CHECK") -> OK | AE35: =IF($H35=0,0,INDEX(AE$324:AE$558,$H35)) -> 0 | AF35: =IF($H35=0,0,INDEX(AF$324:AF$558,$H35)) -> 0 | AG35: =IF($H35=0,0,INDEX(AG$324:AG$558,$H35)) -> 0 | AH35: =IF($H35=0,0,INDEX(AH$324:AH$558,$H35)) -> 0 | AI35: =IF($H35=0,0,INDEX(AI$324:AI$558,$H35)) -> 0 | AJ35: =IF($H35=0,0,INDEX(AJ$324:AJ$558,$H35)) -> 0 | AK35: =IF($H35=0,0,INDEX(AK$324:AK$558,$H35)) -> 0 | AL35: =IF($H35=0,0,INDEX(AL$324:AL$558,$H35)) -> 0 | AM35: =IF($H35=0,0,INDEX(AM$324:AM$558,$H35)) -> 0 | AN35: =IF($H35=0,0,INDEX(AN$324:AN$558,$H35)) -> 0 | AO35: =IF($H35=0,0,INDEX(AO$324:AO$558,$H35)) -> 0 | AP35: =IF($H35=0,0,INDEX(AP$324:AP$558,$H35)) -> 0 | AQ35: =IF($H35=0,0,INDEX(AQ$324:AQ$558,$H35)) -> 0 | AR35: =IF($H35=0,0,INDEX(AR$324:AR$558,$H35)) -> 0
C36: Small single rate & dedicated circuit 24 hour | D36: Residential | E36: NEE19 | F36: 0 | G36: 0 | H36: 3 | I36: =IF($H36=0,0,INDEX(I$164:I$238,$H36)) -> 145.3052217 | J36: =IF($H36=0,0,INDEX(J$164:J$238,$H36)) -> 0 | K36: =IF($H36=0,0,INDEX(K$164:K$238,$H36)) -> 9.987277961 | L36: =IF($H36=0,0,INDEX(L$164:L$238,$H36)) -> 9.987277961 | M36: =IF($H36=0,0,INDEX(M$164:M$238,$H36)) -> 0 | N36: =IF($H36=0,0,INDEX(N$164:N$238,$H36)) -> 0 | O36: =IF($H36=0,0,INDEX(O$164:O$238,$H36)) -> 0 | P36: =IF($H36=0,0,INDEX(P$164:P$238,$H36)) -> 0 | Q36: =IF($H36=0,0,INDEX(Q$164:Q$238,$H36)) -> 0 | R36: =IF($H36=0,0,INDEX(R$164:R$238,$H36)) -> 0 | S36: =IF($H36=0,0,INDEX(S$164:S$238,$H36)) -> 3.845656042 | T36: =IF($H36=0,0,INDEX(T$164:T$238,$H36)) -> 0 | U36: =IF($H36=0,0,INDEX(U$164:U$238,$H36)) -> 0 | V36: =IF($H36=0,0,INDEX(V$164:V$238,$H36)) -> 0 | W36: =IF($H36=0,0,INDEX(W$164:W$238,$H36)) -> 0 | X36: =IF($H36=0,0,INDEX(X$164:X$238,$H36)) -> 0 | Y36: =IF($H36=0,0,INDEX(Y$164:Y$238,$H36)) -> 0 | Z36: =IF($H36=0,0,INDEX(Z$164:Z$238,$H36)) -> 0 | AA36: =IF($H36=0,0,INDEX(AA$164:AA$238,$H36)) -> 0 | AB36: =IF($H36=0,0,INDEX(AB$164:AB$238,$H36)) -> 0 | AD36: =IF(SUMPRODUCT(--_xlfn.ISFORMULA(C36:AB36))=26,"OK","CHECK") -> OK | AE36: =IF($H36=0,0,INDEX(AE$324:AE$558,$H36)) -> 0 | AF36: =IF($H36=0,0,INDEX(AF$324:AF$558,$H36)) -> 0 | AG36: =IF($H36=0,0,INDEX(AG$324:AG$558,$H36)) -> 0 | AH36: =IF($H36=0,0,INDEX(AH$324:AH$558,$H36)) -> 0 | AI36: =IF($H36=0,0,INDEX(AI$324:AI$558,$H36)) -> 0 | AJ36: =IF($H36=0,0,INDEX(AJ$324:AJ$558,$H36)) -> 0 | AK36: =IF($H36=0,0,INDEX(AK$324:AK$558,$H36)) -> 0 | AL36: =IF($H36=0,0,INDEX(AL$324:AL$558,$H36)) -> 0 | AM36: =IF($H36=0,0,INDEX(AM$324:AM$558,$H36)) -> 0 | AN36: =IF($H36=0,0,INDEX(AN$324:AN$558,$H36)) -> 0 | AO36: =IF($H36=0,0,INDEX(AO$324:AO$558,$H36)) -> 0 | AP36: =IF($H36=0,0,INDEX(AP$324:AP$558,$H36)) -> 0 | AQ36: =IF($H36=0,0,INDEX(AQ$324:AQ$558,$H36)) -> 0 | AR36: =IF($H36=0,0,INDEX(AR$324:AR$558,$H36)) -> 0
C37: Small residential time of use | D37: Residential | E37: NASS11 | F37: 0 | G37: 0 | H37: 4 | I37: =IF($H37=0,0,INDEX(I$164:I$238,$H37)) -> 145.3052217 | J37: =IF($H37=0,0,INDEX(J$164:J$238,$H37)) -> 0 | K37: =IF($H37=0,0,INDEX(K$164:K$238,$H37)) -> 0 | L37: =IF($H37=0,0,INDEX(L$164:L$238,$H37)) -> 0 | M37: =IF($H37=0,0,INDEX(M$164:M$238,$H37)) -> 23.5132472 | N37: =IF($H37=0,0,INDEX(N$164:N$238,$H37)) -> 0 | O37: =IF($H37=0,0,INDEX(O$164:O$238,$H37)) -> 0 | P37: =IF($H37=0,0,INDEX(P$164:P$238,$H37)) -> 0 | Q37: =IF($H37=0,0,INDEX(Q$164:Q$238,$H37)) -> 0 | R37: =IF($H37=0,0,INDEX(R$164:R$238,$H37)) -> 4.275135854 | S37: =IF($H37=0,0,INDEX(S$164:S$238,$H37)) -> 0 | T37: =IF($H37=0,0,INDEX(T$164:T$238,$H37)) -> 1 | U37: =IF($H37=0,0,INDEX(U$164:U$238,$H37)) -> 0 | V37: =IF($H37=0,0,INDEX(V$164:V$238,$H37)) -> 0 | W37: =IF($H37=0,0,INDEX(W$164:W$238,$H37)) -> 0 | X37: =IF($H37=0,0,INDEX(X$164:X$238,$H37)) -> 0 | Y37: =IF($H37=0,0,INDEX(Y$164:Y$238,$H37)) -> 0 | Z37: =IF($H37=0,0,INDEX(Z$164:Z$238,$H37)) -> 0 | AA37: =IF($H37=0,0,INDEX(AA$164:AA$238,$H37)) -> 0 | AB37: =IF($H37=0,0,INDEX(AB$164:AB$238,$H37)) -> 0 | AD37: =IF(SUMPRODUCT(--_xlfn.ISFORMULA(C37:AB37))=26,"OK","CHECK") -> OK | AE37: =IF($H37=0,0,INDEX(AE$324:AE$558,$H37)) -> 0 | AF37: =IF($H37=0,0,INDEX(AF$324:AF$558,$H37)) -> 0 | AG37: =IF($H37=0,0,INDEX(AG$324:AG$558,$H37)) -> 0 | AH37: =IF($H37=0,0,INDEX(AH$324:AH$558,$H37)) -> 0 | AI37: =IF($H37=0,0,INDEX(AI$324:AI$558,$H37)) -> 0 | AJ37: =IF($H37=0,0,INDEX(AJ$324:AJ$558,$H37)) -> 0 | AK37: =IF($H37=0,0,INDEX(AK$324:AK$558,$H37)) -> 0 | AL37: =IF($H37=0,0,INDEX(AL$324:AL$558,$H37)) -> 0 | AM37: =IF($H37=0,0,INDEX(AM$324:AM$558,$H37)) -> 0 | AN37: =IF($H37=0,0,INDEX(AN$324:AN$558,$H37)) -> 0 | AO37: =IF($H37=0,0,INDEX(AO$324:AO$558,$H37)) -> 0 | AP37: =IF($H37=0,0,INDEX(AP$324:AP$558,$H37)) -> 0 | AQ37: =IF($H37=0,0,INDEX(AQ$324:AQ$558,$H37)) -> 0 | AR37: =IF($H37=0,0,INDEX(AR$324:AR$558,$H37)) -> 0
C38: Small business single rate | D38: Small industrial & commercial | E38: NEE12 | F38: 0 | G38: 0 | H38: 16 | I38: =IF($H38=0,0,INDEX(I$164:I$238,$H38)) -> 148.9378522 | J38: =IF($H38=0,0,INDEX(J$164:J$238,$H38)) -> 0 | K38: =IF($H38=0,0,INDEX(K$164:K$238,$H38)) -> 14.16491023 | L38: =IF($H38=0,0,INDEX(L$164:L$238,$H38)) -> 14.16491023 | M38: =IF($H38=0,0,INDEX(M$164:M$238,$H38)) -> 0 | N38: =IF($H38=0,0,INDEX(N$164:N$238,$H38)) -> 0 | O38: =IF($H38=0,0,INDEX(O$164:O$238,$H38)) -> 0 | P38: =IF($H38=0,0,INDEX(P$164:P$238,$H38)) -> 0 | Q38: =IF($H38=0,0,INDEX(Q$164:Q$238,$H38)) -> 0 | R38: =IF($H38=0,0,INDEX(R$164:R$238,$H38)) -> 0 | S38: =IF($H38=0,0,INDEX(S$164:S$238,$H38)) -> 0 | T38: =IF($H38=0,0,INDEX(T$164:T$238,$H38)) -> 0 | U38: =IF($H38=0,0,INDEX(U$164:U$238,$H38)) -> 0 | V38: =IF($H38=0,0,INDEX(V$164:V$238,$H38)) -> 0 | W38: =IF($H38=0,0,INDEX(W$164:W$238,$H38)) -> 0 | X38: =IF($H38=0,0,INDEX(X$164:X$238,$H38)) -> 0 | Y38: =IF($H38=0,0,INDEX(Y$164:Y$238,$H38)) -> 0 | Z38: =IF($H38=0,0,INDEX(Z$164:Z$238,$H38)) -> 0 | AA38: =IF($H38=0,0,INDEX(AA$164:AA$238,$H38)) -> 0 | AB38: =IF($H38=0,0,INDEX(AB$164:AB$238,$H38)) -> 0 | AD38: =IF(SUMPRODUCT(--_xlfn.ISFORMULA(C38:AB38))=26,"OK","CHECK") -> OK | AE38: =IF($H38=0,0,INDEX(AE$324:AE$558,$H38)) -> 0 | AF38: =IF($H38=0,0,INDEX(AF$324:AF$558,$H38)) -> 0 | AG38: =IF($H38=0,0,INDEX(AG$324:AG$558,$H38)) -> 0 | AH38: =IF($H38=0,0,INDEX(AH$324:AH$558,$H38)) -> 0 | AI38: =IF($H38=0,0,INDEX(AI$324:AI$558,$H38)) -> 0 | AJ38: =IF($H38=0,0,INDEX(AJ$324:AJ$558,$H38)) -> 0 | AK38: =IF($H38=0,0,INDEX(AK$324:AK$558,$H38)) -> 0 | AL38: =IF($H38=0,0,INDEX(AL$324:AL$558,$H38)) -> 0 | AM38: =IF($H38=0,0,INDEX(AM$324:AM$558,$H38)) -> 0 | AN38: =IF($H38=0,0,INDEX(AN$324:AN$558,$H38)) -> 0 | AO38: =IF($H38=0,0,INDEX(AO$324:AO$558,$H38)) -> 0 | AP38: =IF($H38=0,0,INDEX(AP$324:AP$558,$H38)) -> 0 | AQ38: =IF($H38=0,0,INDEX(AQ$324:AQ$558,$H38)) -> 0 | AR38: =IF($H38=0,0,INDEX(AR$324:AR$558,$H38)) -> 0
C39: Small business time of use | D39: Small industrial & commercial | E39: NAST12 | F39: 0 | G39: 0 | H39: 21 | I39: =IF($H39=0,0,INDEX(I$164:I$238,$H39)) -> 148.9378522 | J39: =IF($H39=0,0,INDEX(J$164:J$238,$H39)) -> 0 | K39: =IF($H39=0,0,INDEX(K$164:K$238,$H39)) -> 0 | L39: =IF($H39=0,0,INDEX(L$164:L$238,$H39)) -> 0 | M39: =IF($H39=0,0,INDEX(M$164:M$238,$H39)) -> 17.33075036 | N39: =IF($H39=0,0,INDEX(N$164:N$238,$H39)) -> 0 | O39: =IF($H39=0,0,INDEX(O$164:O$238,$H39)) -> 0 | P39: =IF($H39=0,0,INDEX(P$164:P$238,$H39)) -> 0 | Q39: =IF($H39=0,0,INDEX(Q$164:Q$238,$H39)) -> 0 | R39: =IF($H39=0,0,INDEX(R$164:R$238,$H39)) -> 3.824322156 | S39: =IF($H39=0,0,INDEX(S$164:S$238,$H39)) -> 0 | T39: =IF($H39=0,0,INDEX(T$164:T$238,$H39)) -> 0 | U39: =IF($H39=0,0,INDEX(U$164:U$238,$H39)) -> 0 | V39: =IF($H39=0,0,INDEX(V$164:V$238,$H39)) -> 0 | W39: =IF($H39=0,0,INDEX(W$164:W$238,$H39)) -> 0 | X39: =IF($H39=0,0,INDEX(X$164:X$238,$H39)) -> 0 | Y39: =IF($H39=0,0,INDEX(Y$164:Y$238,$H39)) -> 0 | Z39: =IF($H39=0,0,INDEX(Z$164:Z$238,$H39)) -> 0 | AA39: =IF($H39=0,0,INDEX(AA$164:AA$238,$H39)) -> 0 | AB39: =IF($H39=0,0,INDEX(AB$164:AB$238,$H39)) -> 0 | AD39: =IF(SUMPRODUCT(--_xlfn.ISFORMULA(C39:AB39))=26,"OK","CHECK") -> OK | AE39: =IF($H39=0,0,INDEX(AE$324:AE$558,$H39)) -> 0 | AF39: =IF($H39=0,0,INDEX(AF$324:AF$558,$H39)) -> 0 | AG39: =IF($H39=0,0,INDEX(AG$324:AG$558,$H39)) -> 0 | AH39: =IF($H39=0,0,INDEX(AH$324:AH$558,$H39)) -> 0 | AI39: =IF($H39=0,0,INDEX(AI$324:AI$558,$H39)) -> 0 | AJ39: =IF($H39=0,0,INDEX(AJ$324:AJ$558,$H39)) -> 0 | AK39: =IF($H39=0,0,INDEX(AK$324:AK$558,$H39)) -> 0 | AL39: =IF($H39=0,0,INDEX(AL$324:AL$558,$H39)) -> 0 | AM39: =IF($H39=0,0,INDEX(AM$324:AM$558,$H39)) -> 0 | AN39: =IF($H39=0,0,INDEX(AN$324:AN$558,$H39)) -> 0 | AO39: =IF($H39=0,0,INDEX(AO$324:AO$558,$H39)) -> 0 | AP39: =IF($H39=0,0,INDEX(AP$324:AP$558,$H39)) -> 0 | AQ39: =IF($H39=0,0,INDEX(AQ$324:AQ$558,$H39)) -> 0 | AR39: =IF($H39=0,0,INDEX(AR$324:AR$558,$H39)) -> 0
C40: 0 | D40: 0 | E40: 0 | F40: 0 | G40: 0 | H40: 0 | I40: =IF($H40=0,0,INDEX(I$164:I$238,$H40)) -> 0 | J40: =IF($H40=0,0,INDEX(J$164:J$238,$H40)) -> 0 | K40: =IF($H40=0,0,INDEX(K$164:K$238,$H40)) -> 0 | L40: =IF($H40=0,0,INDEX(L$164:L$238,$H40)) -> 0 | M40: =IF($H40=0,0,INDEX(M$164:M$238,$H40)) -> 0 | N40: =IF($H40=0,0,INDEX(N$164:N$238,$H40)) -> 0 | O40: =IF($H40=0,0,INDEX(O$164:O$238,$H40)) -> 0 | P40: =IF($H40=0,0,INDEX(P$164:P$238,$H40)) -> 0 | Q40: =IF($H40=0,0,INDEX(Q$164:Q$238,$H40)) -> 0 | R40: =IF($H40=0,0,INDEX(R$164:R$238,$H40)) -> 0 | S40: =IF($H40=0,0,INDEX(S$164:S$238,$H40)) -> 0 | T40: =IF($H40=0,0,INDEX(T$164:T$238,$H40)) -> 0 | U40: =IF($H40=0,0,INDEX(U$164:U$238,$H40)) -> 0 | V40: =IF($H40=0,0,INDEX(V$164:V$238,$H40)) -> 0 | W40: =IF($H40=0,0,INDEX(W$164:W$238,$H40)) -> 0 | X40: =IF($H40=0,0,INDEX(X$164:X$238,$H40)) -> 0 | Y40: =IF($H40=0,0,INDEX(Y$164:Y$238,$H40)) -> 0 | Z40: =IF($H40=0,0,INDEX(Z$164:Z$238,$H40)) -> 0 | AA40: =IF($H40=0,0,INDEX(AA$164:AA$238,$H40)) -> 0 | AB40: =IF($H40=0,0,INDEX(AB$164:AB$238,$H40)) -> 0 | AD40: =IF(SUMPRODUCT(--_xlfn.ISFORMULA(C40:AB40))=26,"OK","CHECK") -> OK | AE40: =IF($H40=0,0,INDEX(AE$324:AE$558,$H40)) -> 0 | AF40: =IF($H40=0,0,INDEX(AF$324:AF$558,$H40)) -> 0 | AG40: =IF($H40=0,0,INDEX(AG$324:AG$558,$H40)) -> 0 | AH40: =IF($H40=0,0,INDEX(AH$324:AH$558,$H40)) -> 0 | AI40: =IF($H40=0,0,INDEX(AI$324:AI$558,$H40)) -> 0 | AJ40: =IF($H40=0,0,INDEX(AJ$324:AJ$558,$H40)) -> 0 | AK40: =IF($H40=0,0,INDEX(AK$324:AK$558,$H40)) -> 0 | AL40: =IF($H40=0,0,INDEX(AL$324:AL$558,$H40)) -> 0 | AM40: =IF($H40=0,0,INDEX(AM$324:AM$558,$H40)) -> 0 | AN40: =IF($H40=0,0,INDEX(AN$324:AN$558,$H40)) -> 0 | AO40: =IF($H40=0,0,INDEX(AO$324:AO$558,$H40)) -> 0 | AP40: =IF($H40=0,0,INDEX(AP$324:AP$558,$H40)) -> 0 | AQ40: =IF($H40=0,0,INDEX(AQ$324:AQ$558,$H40)) -> 0 | AR40: =IF($H40=0,0,INDEX(AR$324:AR$558,$H40)) -> 0
C41: 0 | D41: 0 | E41: 0 | F41: 0 | G41: 0 | H41: 0 | I41: =IF($H41=0,0,INDEX(I$164:I$238,$H41)) -> 0 | J41: =IF($H41=0,0,INDEX(J$164:J$238,$H41)) -> 0 | K41: =IF($H41=0,0,INDEX(K$164:K$238,$H41)) -> 0 | L41: =IF($H41=0,0,INDEX(L$164:L$238,$H41)) -> 0 | M41: =IF($H41=0,0,INDEX(M$164:M$238,$H41)) -> 0 | N41: =IF($H41=0,0,INDEX(N$164:N$238,$H41)) -> 0 | O41: =IF($H41=0,0,INDEX(O$164:O$238,$H41)) -> 0 | P41: =IF($H41=0,0,INDEX(P$164:P$238,$H41)) -> 0 | Q41: =IF($H41=0,0,INDEX(Q$164:Q$238,$H41)) -> 0 | R41: =IF($H41=0,0,INDEX(R$164:R$238,$H41)) -> 0 | S41: =IF($H41=0,0,INDEX(S$164:S$238,$H41)) -> 0 | T41: =IF($H41=0,0,INDEX(T$164:T$238,$H41)) -> 0 | U41: =IF($H41=0,0,INDEX(U$164:U$238,$H41)) -> 0 | V41: =IF($H41=0,0,INDEX(V$164:V$238,$H41)) -> 0 | W41: =IF($H41=0,0,INDEX(W$164:W$238,$H41)) -> 0 | X41: =IF($H41=0,0,INDEX(X$164:X$238,$H41)) -> 0 | Y41: =IF($H41=0,0,INDEX(Y$164:Y$238,$H41)) -> 0 | Z41: =IF($H41=0,0,INDEX(Z$164:Z$238,$H41)) -> 0 | AA41: =IF($H41=0,0,INDEX(AA$164:AA$238,$H41)) -> 0 | AB41: =IF($H41=0,0,INDEX(AB$164:AB$238,$H41)) -> 0 | AD41: =IF(SUMPRODUCT(--_xlfn.ISFORMULA(C41:AB41))=26,"OK","CHECK") -> OK | AE41: =IF($H41=0,0,INDEX(AE$324:AE$558,$H41)) -> 0 | AF41: =IF($H41=0,0,INDEX(AF$324:AF$558,$H41)) -> 0 | AG41: =IF($H41=0,0,INDEX(AG$324:AG$558,$H41)) -> 0 | AH41: =IF($H41=0,0,INDEX(AH$324:AH$558,$H41)) -> 0 | AI41: =IF($H41=0,0,INDEX(AI$324:AI$558,$H41)) -> 0 | AJ41: =IF($H41=0,0,INDEX(AJ$324:AJ$558,$H41)) -> 0 | AK41: =IF($H41=0,0,INDEX(AK$324:AK$558,$H41)) -> 0 | AL41: =IF($H41=0,0,INDEX(AL$324:AL$558,$H41)) -> 0 | AM41: =IF($H41=0,0,INDEX(AM$324:AM$558,$H41)) -> 0 | AN41: =IF($H41=0,0,INDEX(AN$324:AN$558,$H41)) -> 0 | AO41: =IF($H41=0,0,INDEX(AO$324:AO$558,$H41)) -> 0 | AP41: =IF($H41=0,0,INDEX(AP$324:AP$558,$H41)) -> 0 | AQ41: =IF($H41=0,0,INDEX(AQ$324:AQ$558,$H41)) -> 0 | AR41: =IF($H41=0,0,INDEX(AR$324:AR$558,$H41)) -> 0
C42: 0 | D42: 0 | E42: 0 | F42: 0 | G42: 0 | H42: 0 | I42: =IF($H42=0,0,INDEX(I$164:I$238,$H42)) -> 0 | J42: =IF($H42=0,0,INDEX(J$164:J$238,$H42)) -> 0 | K42: =IF($H42=0,0,INDEX(K$164:K$238,$H42)) -> 0 | L42: =IF($H42=0,0,INDEX(L$164:L$238,$H42)) -> 0 | M42: =IF($H42=0,0,INDEX(M$164:M$238,$H42)) -> 0 | N42: =IF($H42=0,0,INDEX(N$164:N$238,$H42)) -> 0 | O42: =IF($H42=0,0,INDEX(O$164:O$238,$H42)) -> 0 | P42: =IF($H42=0,0,INDEX(P$164:P$238,$H42)) -> 0 | Q42: =IF($H42=0,0,INDEX(Q$164:Q$238,$H42)) -> 0 | R42: =IF($H42=0,0,INDEX(R$164:R$238,$H42)) -> 0 | S42: =IF($H42=0,0,INDEX(S$164:S$238,$H42)) -> 0 | T42: =IF($H42=0,0,INDEX(T$164:T$238,$H42)) -> 0 | U42: =IF($H42=0,0,INDEX(U$164:U$238,$H42)) -> 0 | V42: =IF($H42=0,0,INDEX(V$164:V$238,$H42)) -> 0 | W42: =IF($H42=0,0,INDEX(W$164:W$238,$H42)) -> 0 | X42: =IF($H42=0,0,INDEX(X$164:X$238,$H42)) -> 0 | Y42: =IF($H42=0,0,INDEX(Y$164:Y$238,$H42)) -> 0 | Z42: =IF($H42=0,0,INDEX(Z$164:Z$238,$H42)) -> 0 | AA42: =IF($H42=0,0,INDEX(AA$164:AA$238,$H42)) -> 0 | AB42: =IF($H42=0,0,INDEX(AB$164:AB$238,$H42)) -> 0 | AD42: =IF(SUMPRODUCT(--_xlfn.ISFORMULA(C42:AB42))=26,"OK","CHECK") -> OK | AE42: =IF($H42=0,0,INDEX(AE$324:AE$558,$H42)) -> 0 | AF42: =IF($H42=0,0,INDEX(AF$324:AF$558,$H42)) -> 0 | AG42: =IF($H42=0,0,INDEX(AG$324:AG$558,$H42)) -> 0 | AH42: =IF($H42=0,0,INDEX(AH$324:AH$558,$H42)) -> 0 | AI42: =IF($H42=0,0,INDEX(AI$324:AI$558,$H42)) -> 0 | AJ42: =IF($H42=0,0,INDEX(AJ$324:AJ$558,$H42)) -> 0 | AK42: =IF($H42=0,0,INDEX(AK$324:AK$558,$H42)) -> 0 | AL42: =IF($H42=0,0,INDEX(AL$324:AL$558,$H42)) -> 0 | AM42: =IF($H42=0,0,INDEX(AM$324:AM$558,$H42)) -> 0 | AN42: =IF($H42=0,0,INDEX(AN$324:AN$558,$H42)) -> 0 | AO42: =IF($H42=0,0,INDEX(AO$324:AO$558,$H42)) -> 0 | AP42: =IF($H42=0,0,INDEX(AP$324:AP$558,$H42)) -> 0 | AQ42: =IF($H42=0,0,INDEX(AQ$324:AQ$558,$H42)) -> 0 | AR42: =IF($H42=0,0,INDEX(AR$324:AR$558,$H42)) -> 0
C43: 0 | D43: 0 | E43: 0 | F43: 0 | G43: 0 | H43: 0 | I43: =IF($H43=0,0,INDEX(I$164:I$238,$H43)) -> 0 | J43: =IF($H43=0,0,INDEX(J$164:J$238,$H43)) -> 0 | K43: =IF($H43=0,0,INDEX(K$164:K$238,$H43)) -> 0 | L43: =IF($H43=0,0,INDEX(L$164:L$238,$H43)) -> 0 | M43: =IF($H43=0,0,INDEX(M$164:M$238,$H43)) -> 0 | N43: =IF($H43=0,0,INDEX(N$164:N$238,$H43)) -> 0 | O43: =IF($H43=0,0,INDEX(O$164:O$238,$H43)) -> 0 | P43: =IF($H43=0,0,INDEX(P$164:P$238,$H43)) -> 0 | Q43: =IF($H43=0,0,INDEX(Q$164:Q$238,$H43)) -> 0 | R43: =IF($H43=0,0,INDEX(R$164:R$238,$H43)) -> 0 | S43: =IF($H43=0,0,INDEX(S$164:S$238,$H43)) -> 0 | T43: =IF($H43=0,0,INDEX(T$164:T$238,$H43)) -> 0 | U43: =IF($H43=0,0,INDEX(U$164:U$238,$H43)) -> 0 | V43: =IF($H43=0,0,INDEX(V$164:V$238,$H43)) -> 0 | W43: =IF($H43=0,0,INDEX(W$164:W$238,$H43)) -> 0 | X43: =IF($H43=0,0,INDEX(X$164:X$238,$H43)) -> 0 | Y43: =IF($H43=0,0,INDEX(Y$164:Y$238,$H43)) -> 0 | Z43: =IF($H43=0,0,INDEX(Z$164:Z$238,$H43)) -> 0 | AA43: =IF($H43=0,0,INDEX(AA$164:AA$238,$H43)) -> 0 | AB43: =IF($H43=0,0,INDEX(AB$164:AB$238,$H43)) -> 0 | AD43: =IF(SUMPRODUCT(--_xlfn.ISFORMULA(C43:AB43))=26,"OK","CHECK") -> OK | AE43: =IF($H43=0,0,INDEX(AE$324:AE$558,$H43)) -> 0 | AF43: =IF($H43=0,0,INDEX(AF$324:AF$558,$H43)) -> 0 | AG43: =IF($H43=0,0,INDEX(AG$324:AG$558,$H43)) -> 0 | AH43: =IF($H43=0,0,INDEX(AH$324:AH$558,$H43)) -> 0 | AI43: =IF($H43=0,0,INDEX(AI$324:AI$558,$H43)) -> 0 | AJ43: =IF($H43=0,0,INDEX(AJ$324:AJ$558,$H43)) -> 0 | AK43: =IF($H43=0,0,INDEX(AK$324:AK$558,$H43)) -> 0 | AL43: =IF($H43=0,0,INDEX(AL$324:AL$558,$H43)) -> 0 | AM43: =IF($H43=0,0,INDEX(AM$324:AM$558,$H43)) -> 0 | AN43: =IF($H43=0,0,INDEX(AN$324:AN$558,$H43)) -> 0 | AO43: =IF($H43=0,0,INDEX(AO$324:AO$558,$H43)) -> 0 | AP43: =IF($H43=0,0,INDEX(AP$324:AP$558,$H43)) -> 0 | AQ43: =IF($H43=0,0,INDEX(AQ$324:AQ$558,$H43)) -> 0 | AR43: =IF($H43=0,0,INDEX(AR$324:AR$558,$H43)) -> 0
C44: 0 | D44: 0 | E44: 0 | F44: 0 | G44: 0 | H44: 0 | I44: =IF($H44=0,0,INDEX(I$164:I$238,$H44)) -> 0 | J44: =IF($H44=0,0,INDEX(J$164:J$238,$H44)) -> 0 | K44: =IF($H44=0,0,INDEX(K$164:K$238,$H44)) -> 0 | L44: =IF($H44=0,0,INDEX(L$164:L$238,$H44)) -> 0 | M44: =IF($H44=0,0,INDEX(M$164:M$238,$H44)) -> 0 | N44: =IF($H44=0,0,INDEX(N$164:N$238,$H44)) -> 0 | O44: =IF($H44=0,0,INDEX(O$164:O$238,$H44)) -> 0 | P44: =IF($H44=0,0,INDEX(P$164:P$238,$H44)) -> 0 | Q44: =IF($H44=0,0,INDEX(Q$164:Q$238,$H44)) -> 0 | R44: =IF($H44=0,0,INDEX(R$164:R$238,$H44)) -> 0 | S44: =IF($H44=0,0,INDEX(S$164:S$238,$H44)) -> 0 | T44: =IF($H44=0,0,INDEX(T$164:T$238,$H44)) -> 0 | U44: =IF($H44=0,0,INDEX(U$164:U$238,$H44)) -> 0 | V44: =IF($H44=0,0,INDEX(V$164:V$238,$H44)) -> 0 | W44: =IF($H44=0,0,INDEX(W$164:W$238,$H44)) -> 0 | X44: =IF($H44=0,0,INDEX(X$164:X$238,$H44)) -> 0 | Y44: =IF($H44=0,0,INDEX(Y$164:Y$238,$H44)) -> 0 | Z44: =IF($H44=0,0,INDEX(Z$164:Z$238,$H44)) -> 0 | AA44: =IF($H44=0,0,INDEX(AA$164:AA$238,$H44)) -> 0 | AB44: =IF($H44=0,0,INDEX(AB$164:AB$238,$H44)) -> 0 | AD44: =IF(SUMPRODUCT(--_xlfn.ISFORMULA(C44:AB44))=26,"OK","CHECK") -> OK | AE44: =IF($H44=0,0,INDEX(AE$324:AE$558,$H44)) -> 0 | AF44: =IF($H44=0,0,INDEX(AF$324:AF$558,$H44)) -> 0 | AG44: =IF($H44=0,0,INDEX(AG$324:AG$558,$H44)) -> 0 | AH44: =IF($H44=0,0,INDEX(AH$324:AH$558,$H44)) -> 0 | AI44: =IF($H44=0,0,INDEX(AI$324:AI$558,$H44)) -> 0 | AJ44: =IF($H44=0,0,INDEX(AJ$324:AJ$558,$H44)) -> 0 | AK44: =IF($H44=0,0,INDEX(AK$324:AK$558,$H44)) -> 0 | AL44: =IF($H44=0,0,INDEX(AL$324:AL$558,$H44)) -> 0 | AM44: =IF($H44=0,0,INDEX(AM$324:AM$558,$H44)) -> 0 | AN44: =IF($H44=0,0,INDEX(AN$324:AN$558,$H44)) -> 0 | AO44: =IF($H44=0,0,INDEX(AO$324:AO$558,$H44)) -> 0 | AP44: =IF($H44=0,0,INDEX(AP$324:AP$558,$H44)) -> 0 | AQ44: =IF($H44=0,0,INDEX(AQ$324:AQ$558,$H44)) -> 0 | AR44: =IF($H44=0,0,INDEX(AR$324:AR$558,$H44)) -> 0
C45: 0 | D45: 0 | E45: 0 | F45: 0 | G45: 0 | H45: 0 | I45: =IF($H45=0,0,INDEX(I$164:I$238,$H45)) -> 0 | J45: =IF($H45=0,0,INDEX(J$164:J$238,$H45)) -> 0 | K45: =IF($H45=0,0,INDEX(K$164:K$238,$H45)) -> 0 | L45: =IF($H45=0,0,INDEX(L$164:L$238,$H45)) -> 0 | M45: =IF($H45=0,0,INDEX(M$164:M$238,$H45)) -> 0 | N45: =IF($H45=0,0,INDEX(N$164:N$238,$H45)) -> 0 | O45: =IF($H45=0,0,INDEX(O$164:O$238,$H45)) -> 0 | P45: =IF($H45=0,0,INDEX(P$164:P$238,$H45)) -> 0 | Q45: =IF($H45=0,0,INDEX(Q$164:Q$238,$H45)) -> 0 | R45: =IF($H45=0,0,INDEX(R$164:R$238,$H45)) -> 0 | S45: =IF($H45=0,0,INDEX(S$164:S$238,$H45)) -> 0 | T45: =IF($H45=0,0,INDEX(T$164:T$238,$H45)) -> 0 | U45: =IF($H45=0,0,INDEX(U$164:U$238,$H45)) -> 0 | V45: =IF($H45=0,0,INDEX(V$164:V$238,$H45)) -> 0 | W45: =IF($H45=0,0,INDEX(W$164:W$238,$H45)) -> 0 | X45: =IF($H45=0,0,INDEX(X$164:X$238,$H45)) -> 0 | Y45: =IF($H45=0,0,INDEX(Y$164:Y$238,$H45)) -> 0 | Z45: =IF($H45=0,0,INDEX(Z$164:Z$238,$H45)) -> 0 | AA45: =IF($H45=0,0,INDEX(AA$164:AA$238,$H45)) -> 0 | AB45: =IF($H45=0,0,INDEX(AB$164:AB$238,$H45)) -> 0 | AD45: =IF(SUMPRODUCT(--_xlfn.ISFORMULA(C45:AB45))=26,"OK","CHECK") -> OK | AE45: =IF($H45=0,0,INDEX(AE$324:AE$558,$H45)) -> 0 | AF45: =IF($H45=0,0,INDEX(AF$324:AF$558,$H45)) -> 0 | AG45: =IF($H45=0,0,INDEX(AG$324:AG$558,$H45)) -> 0 | AH45: =IF($H45=0,0,INDEX(AH$324:AH$558,$H45)) -> 0 | AI45: =IF($H45=0,0,INDEX(AI$324:AI$558,$H45)) -> 0 | AJ45: =IF($H45=0,0,INDEX(AJ$324:AJ$558,$H45)) -> 0 | AK45: =IF($H45=0,0,INDEX(AK$324:AK$558,$H45)) -> 0 | AL45: =IF($H45=0,0,INDEX(AL$324:AL$558,$H45)) -> 0 | AM45: =IF($H45=0,0,INDEX(AM$324:AM$558,$H45)) -> 0 | AN45: =IF($H45=0,0,INDEX(AN$324:AN$558,$H45)) -> 0 | AO45: =IF($H45=0,0,INDEX(AO$324:AO$558,$H45)) -> 0 | AP45: =IF($H45=0,0,INDEX(AP$324:AP$558,$H45)) -> 0 | AQ45: =IF($H45=0,0,INDEX(AQ$324:AQ$558,$H45)) -> 0 | AR45: =IF($H45=0,0,INDEX(AR$324:AR$558,$H45)) -> 0
C46: 0 | D46: 0 | E46: 0 | F46: 0 | G46: 0 | H46: 0 | I46: =IF($H46=0,0,INDEX(I$164:I$238,$H46)) -> 0 | J46: =IF($H46=0,0,INDEX(J$164:J$238,$H46)) -> 0 | K46: =IF($H46=0,0,INDEX(K$164:K$238,$H46)) -> 0 | L46: =IF($H46=0,0,INDEX(L$164:L$238,$H46)) -> 0 | M46: =IF($H46=0,0,INDEX(M$164:M$238,$H46)) -> 0 | N46: =IF($H46=0,0,INDEX(N$164:N$238,$H46)) -> 0 | O46: =IF($H46=0,0,INDEX(O$164:O$238,$H46)) -> 0 | P46: =IF($H46=0,0,INDEX(P$164:P$238,$H46)) -> 0 | Q46: =IF($H46=0,0,INDEX(Q$164:Q$238,$H46)) -> 0 | R46: =IF($H46=0,0,INDEX(R$164:R$238,$H46)) -> 0 | S46: =IF($H46=0,0,INDEX(S$164:S$238,$H46)) -> 0 | T46: =IF($H46=0,0,INDEX(T$164:T$238,$H46)) -> 0 | U46: =IF($H46=0,0,INDEX(U$164:U$238,$H46)) -> 0 | V46: =IF($H46=0,0,INDEX(V$164:V$238,$H46)) -> 0 | W46: =IF($H46=0,0,INDEX(W$164:W$238,$H46)) -> 0 | X46: =IF($H46=0,0,INDEX(X$164:X$238,$H46)) -> 0 | Y46: =IF($H46=0,0,INDEX(Y$164:Y$238,$H46)) -> 0 | Z46: =IF($H46=0,0,INDEX(Z$164:Z$238,$H46)) -> 0 | AA46: =IF($H46=0,0,INDEX(AA$164:AA$238,$H46)) -> 0 | AB46: =IF($H46=0,0,INDEX(AB$164:AB$238,$H46)) -> 0 | AD46: =IF(SUMPRODUCT(--_xlfn.ISFORMULA(C46:AB46))=26,"OK","CHECK") -> OK | AE46: =IF($H46=0,0,INDEX(AE$324:AE$558,$H46)) -> 0 | AF46: =IF($H46=0,0,INDEX(AF$324:AF$558,$H46)) -> 0 | AG46: =IF($H46=0,0,INDEX(AG$324:AG$558,$H46)) -> 0 | AH46: =IF($H46=0,0,INDEX(AH$324:AH$558,$H46)) -> 0 | AI46: =IF($H46=0,0,INDEX(AI$324:AI$558,$H46)) -> 0 | AJ46: =IF($H46=0,0,INDEX(AJ$324:AJ$558,$H46)) -> 0 | AK46: =IF($H46=0,0,INDEX(AK$324:AK$558,$H46)) -> 0 | AL46: =IF($H46=0,0,INDEX(AL$324:AL$558,$H46)) -> 0 | AM46: =IF($H46=0,0,INDEX(AM$324:AM$558,$H46)) -> 0 | AN46: =IF($H46=0,0,INDEX(AN$324:AN$558,$H46)) -> 0 | AO46: =IF($H46=0,0,INDEX(AO$324:AO$558,$H46)) -> 0 | AP46: =IF($H46=0,0,INDEX(AP$324:AP$558,$H46)) -> 0 | AQ46: =IF($H46=0,0,INDEX(AQ$324:AQ$558,$H46)) -> 0 | AR46: =IF($H46=0,0,INDEX(AR$324:AR$558,$H46)) -> 0
C47: 0 | D47: 0 | E47: 0 | F47: 0 | G47: 0 | H47: 0 | I47: =IF($H47=0,0,INDEX(I$164:I$238,$H47)) -> 0 | J47: =IF($H47=0,0,INDEX(J$164:J$238,$H47)) -> 0 | K47: =IF($H47=0,0,INDEX(K$164:K$238,$H47)) -> 0 | L47: =IF($H47=0,0,INDEX(L$164:L$238,$H47)) -> 0 | M47: =IF($H47=0,0,INDEX(M$164:M$238,$H47)) -> 0 | N47: =IF($H47=0,0,INDEX(N$164:N$238,$H47)) -> 0 | O47: =IF($H47=0,0,INDEX(O$164:O$238,$H47)) -> 0 | P47: =IF($H47=0,0,INDEX(P$164:P$238,$H47)) -> 0 | Q47: =IF($H47=0,0,INDEX(Q$164:Q$238,$H47)) -> 0 | R47: =IF($H47=0,0,INDEX(R$164:R$238,$H47)) -> 0 | S47: =IF($H47=0,0,INDEX(S$164:S$238,$H47)) -> 0 | T47: =IF($H47=0,0,INDEX(T$164:T$238,$H47)) -> 0 | U47: =IF($H47=0,0,INDEX(U$164:U$238,$H47)) -> 0 | V47: =IF($H47=0,0,INDEX(V$164:V$238,$H47)) -> 0 | W47: =IF($H47=0,0,INDEX(W$164:W$238,$H47)) -> 0 | X47: =IF($H47=0,0,INDEX(X$164:X$238,$H47)) -> 0 | Y47: =IF($H47=0,0,INDEX(Y$164:Y$238,$H47)) -> 0 | Z47: =IF($H47=0,0,INDEX(Z$164:Z$238,$H47)) -> 0 | AA47: =IF($H47=0,0,INDEX(AA$164:AA$238,$H47)) -> 0 | AB47: =IF($H47=0,0,INDEX(AB$164:AB$238,$H47)) -> 0 | AD47: =IF(SUMPRODUCT(--_xlfn.ISFORMULA(C47:AB47))=26,"OK","CHECK") -> OK | AE47: =IF($H47=0,0,INDEX(AE$324:AE$558,$H47)) -> 0 | AF47: =IF($H47=0,0,INDEX(AF$324:AF$558,$H47)) -> 0 | AG47: =IF($H47=0,0,INDEX(AG$324:AG$558,$H47)) -> 0 | AH47: =IF($H47=0,0,INDEX(AH$324:AH$558,$H47)) -> 0 | AI47: =IF($H47=0,0,INDEX(AI$324:AI$558,$H47)) -> 0 | AJ47: =IF($H47=0,0,INDEX(AJ$324:AJ$558,$H47)) -> 0 | AK47: =IF($H47=0,0,INDEX(AK$324:AK$558,$H47)) -> 0 | AL47: =IF($H47=0,0,INDEX(AL$324:AL$558,$H47)) -> 0 | AM47: =IF($H47=0,0,INDEX(AM$324:AM$558,$H47)) -> 0 | AN47: =IF($H47=0,0,INDEX(AN$324:AN$558,$H47)) -> 0 | AO47: =IF($H47=0,0,INDEX(AO$324:AO$558,$H47)) -> 0 | AP47: =IF($H47=0,0,INDEX(AP$324:AP$558,$H47)) -> 0 | AQ47: =IF($H47=0,0,INDEX(AQ$324:AQ$558,$H47)) -> 0 | AR47: =IF($H47=0,0,INDEX(AR$324:AR$558,$H47)) -> 0
C48: 0 | D48: 0 | E48: 0 | F48: 0 | G48: 0 | H48: 0 | I48: =IF($H48=0,0,INDEX(I$164:I$238,$H48)) -> 0 | J48: =IF($H48=0,0,INDEX(J$164:J$238,$H48)) -> 0 | K48: =IF($H48=0,0,INDEX(K$164:K$238,$H48)) -> 0 | L48: =IF($H48=0,0,INDEX(L$164:L$238,$H48)) -> 0 | M48: =IF($H48=0,0,INDEX(M$164:M$238,$H48)) -> 0 | N48: =IF($H48=0,0,INDEX(N$164:N$238,$H48)) -> 0 | O48: =IF($H48=0,0,INDEX(O$164:O$238,$H48)) -> 0 | P48: =IF($H48=0,0,INDEX(P$164:P$238,$H48)) -> 0 | Q48: =IF($H48=0,0,INDEX(Q$164:Q$238,$H48)) -> 0 | R48: =IF($H48=0,0,INDEX(R$164:R$238,$H48)) -> 0 | S48: =IF($H48=0,0,INDEX(S$164:S$238,$H48)) -> 0 | T48: =IF($H48=0,0,INDEX(T$164:T$238,$H48)) -> 0 | U48: =IF($H48=0,0,INDEX(U$164:U$238,$H48)) -> 0 | V48: =IF($H48=0,0,INDEX(V$164:V$238,$H48)) -> 0 | W48: =IF($H48=0,0,INDEX(W$164:W$238,$H48)) -> 0 | X48: =IF($H48=0,0,INDEX(X$164:X$238,$H48)) -> 0 | Y48: =IF($H48=0,0,INDEX(Y$164:Y$238,$H48)) -> 0 | Z48: =IF($H48=0,0,INDEX(Z$164:Z$238,$H48)) -> 0 | AA48: =IF($H48=0,0,INDEX(AA$164:AA$238,$H48)) -> 0 | AB48: =IF($H48=0,0,INDEX(AB$164:AB$238,$H48)) -> 0 | AD48: =IF(SUMPRODUCT(--_xlfn.ISFORMULA(C48:AB48))=26,"OK","CHECK") -> OK | AE48: =IF($H48=0,0,INDEX(AE$324:AE$558,$H48)) -> 0 | AF48: =IF($H48=0,0,INDEX(AF$324:AF$558,$H48)) -> 0 | AG48: =IF($H48=0,0,INDEX(AG$324:AG$558,$H48)) -> 0 | AH48: =IF($H48=0,0,INDEX(AH$324:AH$558,$H48)) -> 0 | AI48: =IF($H48=0,0,INDEX(AI$324:AI$558,$H48)) -> 0 | AJ48: =IF($H48=0,0,INDEX(AJ$324:AJ$558,$H48)) -> 0 | AK48: =IF($H48=0,0,INDEX(AK$324:AK$558,$H48)) -> 0 | AL48: =IF($H48=0,0,INDEX(AL$324:AL$558,$H48)) -> 0 | AM48: =IF($H48=0,0,INDEX(AM$324:AM$558,$H48)) -> 0 | AN48: =IF($H48=0,0,INDEX(AN$324:AN$558,$H48)) -> 0 | AO48: =IF($H48=0,0,INDEX(AO$324:AO$558,$H48)) -> 0 | AP48: =IF($H48=0,0,INDEX(AP$324:AP$558,$H48)) -> 0 | AQ48: =IF($H48=0,0,INDEX(AQ$324:AQ$558,$H48)) -> 0 | AR48: =IF($H48=0,0,INDEX(AR$324:AR$558,$H48)) -> 0
C50: =C241 -> Designated Pricing Proposal Costs
C51: =C19 -> Small single rate | D51: Residential | E51: NEE11 | F51: 0 | G51: 0 | H51: 1 | I51: =IF($H51=0,0,INDEX(I$242:I$316,$H51)) -> 0 | J51: =IF($H51=0,0,INDEX(J$242:J$316,$H51)) -> 0 | K51: =IF($H51=0,0,INDEX(K$242:K$316,$H51)) -> 3.273343461 | L51: =IF($H51=0,0,INDEX(L$242:L$316,$H51)) -> 3.273343461 | M51: =IF($H51=0,0,INDEX(M$242:M$316,$H51)) -> 0 | N51: =IF($H51=0,0,INDEX(N$242:N$316,$H51)) -> 0 | O51: =IF($H51=0,0,INDEX(O$242:O$316,$H51)) -> 0 | P51: =IF($H51=0,0,INDEX(P$242:P$316,$H51)) -> 0 | Q51: =IF($H51=0,0,INDEX(Q$242:Q$316,$H51)) -> 0 | R51: =IF($H51=0,0,INDEX(R$242:R$316,$H51)) -> 0 | S51: =IF($H51=0,0,INDEX(S$242:S$316,$H51)) -> 0 | T51: =IF($H51=0,0,INDEX(T$242:T$316,$H51)) -> 0 | U51: =IF($H51=0,0,INDEX(U$242:U$316,$H51)) -> 0 | V51: =IF($H51=0,0,INDEX(V$242:V$316,$H51)) -> 0 | W51: =IF($H51=0,0,INDEX(W$242:W$316,$H51)) -> 0 | X51: =IF($H51=0,0,INDEX(X$242:X$316,$H51)) -> 0 | Y51: =IF($H51=0,0,INDEX(Y$242:Y$316,$H51)) -> 0 | Z51: =IF($H51=0,0,INDEX(Z$242:Z$316,$H51)) -> 0 | AA51: =IF($H51=0,0,INDEX(AA$242:AA$316,$H51)) -> 0 | AB51: =IF($H51=0,0,INDEX(AB$242:AB$316,$H51)) -> 0 | AD51: =IF(SUMPRODUCT(--_xlfn.ISFORMULA(C51:AB51))=26,"OK","CHECK") -> OK | AE51: =IF($H51=0,0,INDEX(AE$562:AE$796,$H51)) -> 0 | AF51: =IF($H51=0,0,INDEX(AF$562:AF$796,$H51)) -> 0 | AG51: =IF($H51=0,0,INDEX(AG$562:AG$796,$H51)) -> 0 | AH51: =IF($H51=0,0,INDEX(AH$562:AH$796,$H51)) -> 0 | AI51: =IF($H51=0,0,INDEX(AI$562:AI$796,$H51)) -> 0 | AJ51: =IF($H51=0,0,INDEX(AJ$562:AJ$796,$H51)) -> 0 | AK51: =IF($H51=0,0,INDEX(AK$562:AK$796,$H51)) -> 0 | AL51: =IF($H51=0,0,INDEX(AL$562:AL$796,$H51)) -> 0 | AM51: =IF($H51=0,0,INDEX(AM$562:AM$796,$H51)) -> 0 | AN51: =IF($H51=0,0,INDEX(AN$562:AN$796,$H51)) -> 0 | AO51: =IF($H51=0,0,INDEX(AO$562:AO$796,$H51)) -> 0 | AP51: =IF($H51=0,0,INDEX(AP$562:AP$796,$H51)) -> 0 | AQ51: =IF($H51=0,0,INDEX(AQ$562:AQ$796,$H51)) -> 0 | AR51: =IF($H51=0,0,INDEX(AR$562:AR$796,$H51)) -> 0
C52: Small single rate & dedicated circuit 24 hour | D52: Residential | E52: NEE19 | F52: 0 | G52: 0 | H52: 3 | I52: =IF($H52=0,0,INDEX(I$242:I$316,$H52)) -> 0 | J52: =IF($H52=0,0,INDEX(J$242:J$316,$H52)) -> 0 | K52: =IF($H52=0,0,INDEX(K$242:K$316,$H52)) -> 3.273343461 | L52: =IF($H52=0,0,INDEX(L$242:L$316,$H52)) -> 3.273343461 | M52: =IF($H52=0,0,INDEX(M$242:M$316,$H52)) -> 0 | N52: =IF($H52=0,0,INDEX(N$242:N$316,$H52)) -> 0 | O52: =IF($H52=0,0,INDEX(O$242:O$316,$H52)) -> 0 | P52: =IF($H52=0,0,INDEX(P$242:P$316,$H52)) -> 0 | Q52: =IF($H52=0,0,INDEX(Q$242:Q$316,$H52)) -> 0 | R52: =IF($H52=0,0,INDEX(R$242:R$316,$H52)) -> 0 | S52: =IF($H52=0,0,INDEX(S$242:S$316,$H52)) -> 0.9129061516 | T52: =IF($H52=0,0,INDEX(T$242:T$316,$H52)) -> 0 | U52: =IF($H52=0,0,INDEX(U$242:U$316,$H52)) -> 0 | V52: =IF($H52=0,0,INDEX(V$242:V$316,$H52)) -> 0 | W52: =IF($H52=0,0,INDEX(W$242:W$316,$H52)) -> 0 | X52: =IF($H52=0,0,INDEX(X$242:X$316,$H52)) -> 0 | Y52: =IF($H52=0,0,INDEX(Y$242:Y$316,$H52)) -> 0 | Z52: =IF($H52=0,0,INDEX(Z$242:Z$316,$H52)) -> 0 | AA52: =IF($H52=0,0,INDEX(AA$242:AA$316,$H52)) -> 0 | AB52: =IF($H52=0,0,INDEX(AB$242:AB$316,$H52)) -> 0 | AD52: =IF(SUMPRODUCT(--_xlfn.ISFORMULA(C52:AB52))=26,"OK","CHECK") -> OK | AE52: =IF($H52=0,0,INDEX(AE$562:AE$796,$H52)) -> 0 | AF52: =IF($H52=0,0,INDEX(AF$562:AF$796,$H52)) -> 0 | AG52: =IF($H52=0,0,INDEX(AG$562:AG$796,$H52)) -> 0 | AH52: =IF($H52=0,0,INDEX(AH$562:AH$796,$H52)) -> 0 | AI52: =IF($H52=0,0,INDEX(AI$562:AI$796,$H52)) -> 0 | AJ52: =IF($H52=0,0,INDEX(AJ$562:AJ$796,$H52)) -> 0 | AK52: =IF($H52=0,0,INDEX(AK$562:AK$796,$H52)) -> 0 | AL52: =IF($H52=0,0,INDEX(AL$562:AL$796,$H52)) -> 0 | AM52: =IF($H52=0,0,INDEX(AM$562:AM$796,$H52)) -> 0 | AN52: =IF($H52=0,0,INDEX(AN$562:AN$796,$H52)) -> 0 | AO52: =IF($H52=0,0,INDEX(AO$562:AO$796,$H52)) -> 0 | AP52: =IF($H52=0,0,INDEX(AP$562:AP$796,$H52)) -> 0 | AQ52: =IF($H52=0,0,INDEX(AQ$562:AQ$796,$H52)) -> 0 | AR52: =IF($H52=0,0,INDEX(AR$562:AR$796,$H52)) -> 0
C53: Small residential time of use | D53: Residential | E53: NASS11 | F53: 0 | G53: 0 | H53: 4 | I53: =IF($H53=0,0,INDEX(I$242:I$316,$H53)) -> 0 | J53: =IF($H53=0,0,INDEX(J$242:J$316,$H53)) -> 0 | K53: =IF($H53=0,0,INDEX(K$242:K$316,$H53)) -> 0 | L53: =IF($H53=0,0,INDEX(L$242:L$316,$H53)) -> 0 | M53: =IF($H53=0,0,INDEX(M$242:M$316,$H53)) -> 3.273343461 | N53: =IF($H53=0,0,INDEX(N$242:N$316,$H53)) -> 0 | O53: =IF($H53=0,0,INDEX(O$242:O$316,$H53)) -> 0 | P53: =IF($H53=0,0,INDEX(P$242:P$316,$H53)) -> 0 | Q53: =IF($H53=0,0,INDEX(Q$242:Q$316,$H53)) -> 0 | R53: =IF($H53=0,0,INDEX(R$242:R$316,$H53)) -> 0.9129061516 | S53: =IF($H53=0,0,INDEX(S$242:S$316,$H53)) -> 0 | T53: =IF($H53=0,0,INDEX(T$242:T$316,$H53)) -> 0 | U53: =IF($H53=0,0,INDEX(U$242:U$316,$H53)) -> 0 | V53: =IF($H53=0,0,INDEX(V$242:V$316,$H53)) -> 0 | W53: =IF($H53=0,0,INDEX(W$242:W$316,$H53)) -> 0 | X53: =IF($H53=0,0,INDEX(X$242:X$316,$H53)) -> 0 | Y53: =IF($H53=0,0,INDEX(Y$242:Y$316,$H53)) -> 0 | Z53: =IF($H53=0,0,INDEX(Z$242:Z$316,$H53)) -> 0 | AA53: =IF($H53=0,0,INDEX(AA$242:AA$316,$H53)) -> 0 | AB53: =IF($H53=0,0,INDEX(AB$242:AB$316,$H53)) -> 0 | AD53: =IF(SUMPRODUCT(--_xlfn.ISFORMULA(C53:AB53))=26,"OK","CHECK") -> OK | AE53: =IF($H53=0,0,INDEX(AE$562:AE$796,$H53)) -> 0 | AF53: =IF($H53=0,0,INDEX(AF$562:AF$796,$H53)) -> 0 | AG53: =IF($H53=0,0,INDEX(AG$562:AG$796,$H53)) -> 0 | AH53: =IF($H53=0,0,INDEX(AH$562:AH$796,$H53)) -> 0 | AI53: =IF($H53=0,0,INDEX(AI$562:AI$796,$H53)) -> 0 | AJ53: =IF($H53=0,0,INDEX(AJ$562:AJ$796,$H53)) -> 0 | AK53: =IF($H53=0,0,INDEX(AK$562:AK$796,$H53)) -> 0 | AL53: =IF($H53=0,0,INDEX(AL$562:AL$796,$H53)) -> 0 | AM53: =IF($H53=0,0,INDEX(AM$562:AM$796,$H53)) -> 0 | AN53: =IF($H53=0,0,INDEX(AN$562:AN$796,$H53)) -> 0 | AO53: =IF($H53=0,0,INDEX(AO$562:AO$796,$H53)) -> 0 | AP53: =IF($H53=0,0,INDEX(AP$562:AP$796,$H53)) -> 0 | AQ53: =IF($H53=0,0,INDEX(AQ$562:AQ$796,$H53)) -> 0 | AR53: =IF($H53=0,0,INDEX(AR$562:AR$796,$H53)) -> 0
C54: Small business single rate | D54: Small industrial & commercial | E54: NEE12 | F54: 0 | G54: 0 | H54: 16 | I54: =IF($H54=0,0,INDEX(I$242:I$316,$H54)) -> 0 | J54: =IF($H54=0,0,INDEX(J$242:J$316,$H54)) -> 0 | K54: =IF($H54=0,0,INDEX(K$242:K$316,$H54)) -> 3.273343461 | L54: =IF($H54=0,0,INDEX(L$242:L$316,$H54)) -> 3.273343461 | M54: =IF($H54=0,0,INDEX(M$242:M$316,$H54)) -> 0 | N54: =IF($H54=0,0,INDEX(N$242:N$316,$H54)) -> 0 | O54: =IF($H54=0,0,INDEX(O$242:O$316,$H54)) -> 0 | P54: =IF($H54=0,0,INDEX(P$242:P$316,$H54)) -> 0 | Q54: =IF($H54=0,0,INDEX(Q$242:Q$316,$H54)) -> 0 | R54: =IF($H54=0,0,INDEX(R$242:R$316,$H54)) -> 0 | S54: =IF($H54=0,0,INDEX(S$242:S$316,$H54)) -> 0 | T54: =IF($H54=0,0,INDEX(T$242:T$316,$H54)) -> 0 | U54: =IF($H54=0,0,INDEX(U$242:U$316,$H54)) -> 0 | V54: =IF($H54=0,0,INDEX(V$242:V$316,$H54)) -> 0 | W54: =IF($H54=0,0,INDEX(W$242:W$316,$H54)) -> 0 | X54: =IF($H54=0,0,INDEX(X$242:X$316,$H54)) -> 0 | Y54: =IF($H54=0,0,INDEX(Y$242:Y$316,$H54)) -> 0 | Z54: =IF($H54=0,0,INDEX(Z$242:Z$316,$H54)) -> 0 | AA54: =IF($H54=0,0,INDEX(AA$242:AA$316,$H54)) -> 0 | AB54: =IF($H54=0,0,INDEX(AB$242:AB$316,$H54)) -> 0 | AD54: =IF(SUMPRODUCT(--_xlfn.ISFORMULA(C54:AB54))=26,"OK","CHECK") -> OK | AE54: =IF($H54=0,0,INDEX(AE$562:AE$796,$H54)) -> 0 | AF54: =IF($H54=0,0,INDEX(AF$562:AF$796,$H54)) -> 0 | AG54: =IF($H54=0,0,INDEX(AG$562:AG$796,$H54)) -> 0 | AH54: =IF($H54=0,0,INDEX(AH$562:AH$796,$H54)) -> 0 | AI54: =IF($H54=0,0,INDEX(AI$562:AI$796,$H54)) -> 0 | AJ54: =IF($H54=0,0,INDEX(AJ$562:AJ$796,$H54)) -> 0 | AK54: =IF($H54=0,0,INDEX(AK$562:AK$796,$H54)) -> 0 | AL54: =IF($H54=0,0,INDEX(AL$562:AL$796,$H54)) -> 0 | AM54: =IF($H54=0,0,INDEX(AM$562:AM$796,$H54)) -> 0 | AN54: =IF($H54=0,0,INDEX(AN$562:AN$796,$H54)) -> 0 | AO54: =IF($H54=0,0,INDEX(AO$562:AO$796,$H54)) -> 0 | AP54: =IF($H54=0,0,INDEX(AP$562:AP$796,$H54)) -> 0 | AQ54: =IF($H54=0,0,INDEX(AQ$562:AQ$796,$H54)) -> 0 | AR54: =IF($H54=0,0,INDEX(AR$562:AR$796,$H54)) -> 0
C55: Small business time of use | D55: Small industrial & commercial | E55: NAST12 | F55: 0 | G55: 0 | H55: 21 | I55: =IF($H55=0,0,INDEX(I$242:I$316,$H55)) -> 0 | J55: =IF($H55=0,0,INDEX(J$242:J$316,$H55)) -> 0 | K55: =IF($H55=0,0,INDEX(K$242:K$316,$H55)) -> 0 | L55: =IF($H55=0,0,INDEX(L$242:L$316,$H55)) -> 0 | M55: =IF($H55=0,0,INDEX(M$242:M$316,$H55)) -> 3.273343461 | N55: =IF($H55=0,0,INDEX(N$242:N$316,$H55)) -> 0 | O55: =IF($H55=0,0,INDEX(O$242:O$316,$H55)) -> 0 | P55: =IF($H55=0,0,INDEX(P$242:P$316,$H55)) -> 0 | Q55: =IF($H55=0,0,INDEX(Q$242:Q$316,$H55)) -> 0 | R55: =IF($H55=0,0,INDEX(R$242:R$316,$H55)) -> 0.9129061516 | S55: =IF($H55=0,0,INDEX(S$242:S$316,$H55)) -> 0 | T55: =IF($H55=0,0,INDEX(T$242:T$316,$H55)) -> 0 | U55: =IF($H55=0,0,INDEX(U$242:U$316,$H55)) -> 0 | V55: =IF($H55=0,0,INDEX(V$242:V$316,$H55)) -> 0 | W55: =IF($H55=0,0,INDEX(W$242:W$316,$H55)) -> 0 | X55: =IF($H55=0,0,INDEX(X$242:X$316,$H55)) -> 0 | Y55: =IF($H55=0,0,INDEX(Y$242:Y$316,$H55)) -> 0 | Z55: =IF($H55=0,0,INDEX(Z$242:Z$316,$H55)) -> 0 | AA55: =IF($H55=0,0,INDEX(AA$242:AA$316,$H55)) -> 0 | AB55: =IF($H55=0,0,INDEX(AB$242:AB$316,$H55)) -> 0 | AD55: =IF(SUMPRODUCT(--_xlfn.ISFORMULA(C55:AB55))=26,"OK","CHECK") -> OK | AE55: =IF($H55=0,0,INDEX(AE$562:AE$796,$H55)) -> 0 | AF55: =IF($H55=0,0,INDEX(AF$562:AF$796,$H55)) -> 0 | AG55: =IF($H55=0,0,INDEX(AG$562:AG$796,$H55)) -> 0 | AH55: =IF($H55=0,0,INDEX(AH$562:AH$796,$H55)) -> 0 | AI55: =IF($H55=0,0,INDEX(AI$562:AI$796,$H55)) -> 0 | AJ55: =IF($H55=0,0,INDEX(AJ$562:AJ$796,$H55)) -> 0 | AK55: =IF($H55=0,0,INDEX(AK$562:AK$796,$H55)) -> 0 | AL55: =IF($H55=0,0,INDEX(AL$562:AL$796,$H55)) -> 0 | AM55: =IF($H55=0,0,INDEX(AM$562:AM$796,$H55)) -> 0 | AN55: =IF($H55=0,0,INDEX(AN$562:AN$796,$H55)) -> 0 | AO55: =IF($H55=0,0,INDEX(AO$562:AO$796,$H55)) -> 0 | AP55: =IF($H55=0,0,INDEX(AP$562:AP$796,$H55)) -> 0 | AQ55: =IF($H55=0,0,INDEX(AQ$562:AQ$796,$H55)) -> 0 | AR55: =IF($H55=0,0,INDEX(AR$562:AR$796,$H55)) -> 0
C56: 0 | D56: 0 | E56: 0 | F56: 0 | G56: 0 | H56: 0 | I56: =IF($H56=0,0,INDEX(I$242:I$316,$H56)) -> 0 | J56: =IF($H56=0,0,INDEX(J$242:J$316,$H56)) -> 0 | K56: =IF($H56=0,0,INDEX(K$242:K$316,$H56)) -> 0 | L56: =IF($H56=0,0,INDEX(L$242:L$316,$H56)) -> 0 | M56: =IF($H56=0,0,INDEX(M$242:M$316,$H56)) -> 0 | N56: =IF($H56=0,0,INDEX(N$242:N$316,$H56)) -> 0 | O56: =IF($H56=0,0,INDEX(O$242:O$316,$H56)) -> 0 | P56: =IF($H56=0,0,INDEX(P$242:P$316,$H56)) -> 0 | Q56: =IF($H56=0,0,INDEX(Q$242:Q$316,$H56)) -> 0 | R56: =IF($H56=0,0,INDEX(R$242:R$316,$H56)) -> 0 | S56: =IF($H56=0,0,INDEX(S$242:S$316,$H56)) -> 0 | T56: =IF($H56=0,0,INDEX(T$242:T$316,$H56)) -> 0 | U56: =IF($H56=0,0,INDEX(U$242:U$316,$H56)) -> 0 | V56: =IF($H56=0,0,INDEX(V$242:V$316,$H56)) -> 0 | W56: =IF($H56=0,0,INDEX(W$242:W$316,$H56)) -> 0 | X56: =IF($H56=0,0,INDEX(X$242:X$316,$H56)) -> 0 | Y56: =IF($H56=0,0,INDEX(Y$242:Y$316,$H56)) -> 0 | Z56: =IF($H56=0,0,INDEX(Z$242:Z$316,$H56)) -> 0 | AA56: =IF($H56=0,0,INDEX(AA$242:AA$316,$H56)) -> 0 | AB56: =IF($H56=0,0,INDEX(AB$242:AB$316,$H56)) -> 0 | AD56: =IF(SUMPRODUCT(--_xlfn.ISFORMULA(C56:AB56))=26,"OK","CHECK") -> OK | AE56: =IF($H56=0,0,INDEX(AE$562:AE$796,$H56)) -> 0 | AF56: =IF($H56=0,0,INDEX(AF$562:AF$796,$H56)) -> 0 | AG56: =IF($H56=0,0,INDEX(AG$562:AG$796,$H56)) -> 0 | AH56: =IF($H56=0,0,INDEX(AH$562:AH$796,$H56)) -> 0 | AI56: =IF($H56=0,0,INDEX(AI$562:AI$796,$H56)) -> 0 | AJ56: =IF($H56=0,0,INDEX(AJ$562:AJ$796,$H56)) -> 0 | AK56: =IF($H56=0,0,INDEX(AK$562:AK$796,$H56)) -> 0 | AL56: =IF($H56=0,0,INDEX(AL$562:AL$796,$H56)) -> 0 | AM56: =IF($H56=0,0,INDEX(AM$562:AM$796,$H56)) -> 0 | AN56: =IF($H56=0,0,INDEX(AN$562:AN$796,$H56)) -> 0 | AO56: =IF($H56=0,0,INDEX(AO$562:AO$796,$H56)) -> 0 | AP56: =IF($H56=0,0,INDEX(AP$562:AP$796,$H56)) -> 0 | AQ56: =IF($H56=0,0,INDEX(AQ$562:AQ$796,$H56)) -> 0 | AR56: =IF($H56=0,0,INDEX(AR$562:AR$796,$H56)) -> 0
C57: 0 | D57: 0 | E57: 0 | F57: 0 | G57: 0 | H57: 0 | I57: =IF($H57=0,0,INDEX(I$242:I$316,$H57)) -> 0 | J57: =IF($H57=0,0,INDEX(J$242:J$316,$H57)) -> 0 | K57: =IF($H57=0,0,INDEX(K$242:K$316,$H57)) -> 0 | L57: =IF($H57=0,0,INDEX(L$242:L$316,$H57)) -> 0 | M57: =IF($H57=0,0,INDEX(M$242:M$316,$H57)) -> 0 | N57: =IF($H57=0,0,INDEX(N$242:N$316,$H57)) -> 0 | O57: =IF($H57=0,0,INDEX(O$242:O$316,$H57)) -> 0 | P57: =IF($H57=0,0,INDEX(P$242:P$316,$H57)) -> 0 | Q57: =IF($H57=0,0,INDEX(Q$242:Q$316,$H57)) -> 0 | R57: =IF($H57=0,0,INDEX(R$242:R$316,$H57)) -> 0 | S57: =IF($H57=0,0,INDEX(S$242:S$316,$H57)) -> 0 | T57: =IF($H57=0,0,INDEX(T$242:T$316,$H57)) -> 0 | U57: =IF($H57=0,0,INDEX(U$242:U$316,$H57)) -> 0 | V57: =IF($H57=0,0,INDEX(V$242:V$316,$H57)) -> 0 | W57: =IF($H57=0,0,INDEX(W$242:W$316,$H57)) -> 0 | X57: =IF($H57=0,0,INDEX(X$242:X$316,$H57)) -> 0 | Y57: =IF($H57=0,0,INDEX(Y$242:Y$316,$H57)) -> 0 | Z57: =IF($H57=0,0,INDEX(Z$242:Z$316,$H57)) -> 0 | AA57: =IF($H57=0,0,INDEX(AA$242:AA$316,$H57)) -> 0 | AB57: =IF($H57=0,0,INDEX(AB$242:AB$316,$H57)) -> 0 | AD57: =IF(SUMPRODUCT(--_xlfn.ISFORMULA(C57:AB57))=26,"OK","CHECK") -> OK | AE57: =IF($H57=0,0,INDEX(AE$562:AE$796,$H57)) -> 0 | AF57: =IF($H57=0,0,INDEX(AF$562:AF$796,$H57)) -> 0 | AG57: =IF($H57=0,0,INDEX(AG$562:AG$796,$H57)) -> 0 | AH57: =IF($H57=0,0,INDEX(AH$562:AH$796,$H57)) -> 0 | AI57: =IF($H57=0,0,INDEX(AI$562:AI$796,$H57)) -> 0 | AJ57: =IF($H57=0,0,INDEX(AJ$562:AJ$796,$H57)) -> 0 | AK57: =IF($H57=0,0,INDEX(AK$562:AK$796,$H57)) -> 0 | AL57: =IF($H57=0,0,INDEX(AL$562:AL$796,$H57)) -> 0 | AM57: =IF($H57=0,0,INDEX(AM$562:AM$796,$H57)) -> 0 | AN57: =IF($H57=0,0,INDEX(AN$562:AN$796,$H57)) -> 0 | AO57: =IF($H57=0,0,INDEX(AO$562:AO$796,$H57)) -> 0 | AP57: =IF($H57=0,0,INDEX(AP$562:AP$796,$H57)) -> 0 | AQ57: =IF($H57=0,0,INDEX(AQ$562:AQ$796,$H57)) -> 0 | AR57: =IF($H57=0,0,INDEX(AR$562:AR$796,$H57)) -> 0
C58: 0 | D58: 0 | E58: 0 | F58: 0 | G58: 0 | H58: 0 | I58: =IF($H58=0,0,INDEX(I$242:I$316,$H58)) -> 0 | J58: =IF($H58=0,0,INDEX(J$242:J$316,$H58)) -> 0 | K58: =IF($H58=0,0,INDEX(K$242:K$316,$H58)) -> 0 | L58: =IF($H58=0,0,INDEX(L$242:L$316,$H58)) -> 0 | M58: =IF($H58=0,0,INDEX(M$242:M$316,$H58)) -> 0 | N58: =IF($H58=0,0,INDEX(N$242:N$316,$H58)) -> 0 | O58: =IF($H58=0,0,INDEX(O$242:O$316,$H58)) -> 0 | P58: =IF($H58=0,0,INDEX(P$242:P$316,$H58)) -> 0 | Q58: =IF($H58=0,0,INDEX(Q$242:Q$316,$H58)) -> 0 | R58: =IF($H58=0,0,INDEX(R$242:R$316,$H58)) -> 0 | S58: =IF($H58=0,0,INDEX(S$242:S$316,$H58)) -> 0 | T58: =IF($H58=0,0,INDEX(T$242:T$316,$H58)) -> 0 | U58: =IF($H58=0,0,INDEX(U$242:U$316,$H58)) -> 0 | V58: =IF($H58=0,0,INDEX(V$242:V$316,$H58)) -> 0 | W58: =IF($H58=0,0,INDEX(W$242:W$316,$H58)) -> 0 | X58: =IF($H58=0,0,INDEX(X$242:X$316,$H58)) -> 0 | Y58: =IF($H58=0,0,INDEX(Y$242:Y$316,$H58)) -> 0 | Z58: =IF($H58=0,0,INDEX(Z$242:Z$316,$H58)) -> 0 | AA58: =IF($H58=0,0,INDEX(AA$242:AA$316,$H58)) -> 0 | AB58: =IF($H58=0,0,INDEX(AB$242:AB$316,$H58)) -> 0 | AD58: =IF(SUMPRODUCT(--_xlfn.ISFORMULA(C58:AB58))=26,"OK","CHECK") -> OK | AE58: =IF($H58=0,0,INDEX(AE$562:AE$796,$H58)) -> 0 | AF58: =IF($H58=0,0,INDEX(AF$562:AF$796,$H58)) -> 0 | AG58: =IF($H58=0,0,INDEX(AG$562:AG$796,$H58)) -> 0 | AH58: =IF($H58=0,0,INDEX(AH$562:AH$796,$H58)) -> 0 | AI58: =IF($H58=0,0,INDEX(AI$562:AI$796,$H58)) -> 0 | AJ58: =IF($H58=0,0,INDEX(AJ$562:AJ$796,$H58)) -> 0 | AK58: =IF($H58=0,0,INDEX(AK$562:AK$796,$H58)) -> 0 | AL58: =IF($H58=0,0,INDEX(AL$562:AL$796,$H58)) -> 0 | AM58: =IF($H58=0,0,INDEX(AM$562:AM$796,$H58)) -> 0 | AN58: =IF($H58=0,0,INDEX(AN$562:AN$796,$H58)) -> 0 | AO58: =IF($H58=0,0,INDEX(AO$562:AO$796,$H58)) -> 0 | AP58: =IF($H58=0,0,INDEX(AP$562:AP$796,$H58)) -> 0 | AQ58: =IF($H58=0,0,INDEX(AQ$562:AQ$796,$H58)) -> 0 | AR58: =IF($H58=0,0,INDEX(AR$562:AR$796,$H58)) -> 0
C59: 0 | D59: 0 | E59: 0 | F59: 0 | G59: 0 | H59: 0 | I59: =IF($H59=0,0,INDEX(I$242:I$316,$H59)) -> 0 | J59: =IF($H59=0,0,INDEX(J$242:J$316,$H59)) -> 0 | K59: =IF($H59=0,0,INDEX(K$242:K$316,$H59)) -> 0 | L59: =IF($H59=0,0,INDEX(L$242:L$316,$H59)) -> 0 | M59: =IF($H59=0,0,INDEX(M$242:M$316,$H59)) -> 0 | N59: =IF($H59=0,0,INDEX(N$242:N$316,$H59)) -> 0 | O59: =IF($H59=0,0,INDEX(O$242:O$316,$H59)) -> 0 | P59: =IF($H59=0,0,INDEX(P$242:P$316,$H59)) -> 0 | Q59: =IF($H59=0,0,INDEX(Q$242:Q$316,$H59)) -> 0 | R59: =IF($H59=0,0,INDEX(R$242:R$316,$H59)) -> 0 | S59: =IF($H59=0,0,INDEX(S$242:S$316,$H59)) -> 0 | T59: =IF($H59=0,0,INDEX(T$242:T$316,$H59)) -> 0 | U59: =IF($H59=0,0,INDEX(U$242:U$316,$H59)) -> 0 | V59: =IF($H59=0,0,INDEX(V$242:V$316,$H59)) -> 0 | W59: =IF($H59=0,0,INDEX(W$242:W$316,$H59)) -> 0 | X59: =IF($H59=0,0,INDEX(X$242:X$316,$H59)) -> 0 | Y59: =IF($H59=0,0,INDEX(Y$242:Y$316,$H59)) -> 0 | Z59: =IF($H59=0,0,INDEX(Z$242:Z$316,$H59)) -> 0 | AA59: =IF($H59=0,0,INDEX(AA$242:AA$316,$H59)) -> 0 | AB59: =IF($H59=0,0,INDEX(AB$242:AB$316,$H59)) -> 0 | AD59: =IF(SUMPRODUCT(--_xlfn.ISFORMULA(C59:AB59))=26,"OK","CHECK") -> OK | AE59: =IF($H59=0,0,INDEX(AE$562:AE$796,$H59)) -> 0 | AF59: =IF($H59=0,0,INDEX(AF$562:AF$796,$H59)) -> 0 | AG59: =IF($H59=0,0,INDEX(AG$562:AG$796,$H59)) -> 0 | AH59: =IF($H59=0,0,INDEX(AH$562:AH$796,$H59)) -> 0 | AI59: =IF($H59=0,0,INDEX(AI$562:AI$796,$H59)) -> 0 | AJ59: =IF($H59=0,0,INDEX(AJ$562:AJ$796,$H59)) -> 0 | AK59: =IF($H59=0,0,INDEX(AK$562:AK$796,$H59)) -> 0 | AL59: =IF($H59=0,0,INDEX(AL$562:AL$796,$H59)) -> 0 | AM59: =IF($H59=0,0,INDEX(AM$562:AM$796,$H59)) -> 0 | AN59: =IF($H59=0,0,INDEX(AN$562:AN$796,$H59)) -> 0 | AO59: =IF($H59=0,0,INDEX(AO$562:AO$796,$H59)) -> 0 | AP59: =IF($H59=0,0,INDEX(AP$562:AP$796,$H59)) -> 0 | AQ59: =IF($H59=0,0,INDEX(AQ$562:AQ$796,$H59)) -> 0 | AR59: =IF($H59=0,0,INDEX(AR$562:AR$796,$H59)) -> 0
C60: 0 | D60: 0 | E60: 0 | F60: 0 | G60: 0 | H60: 0 | I60: =IF($H60=0,0,INDEX(I$242:I$316,$H60)) -> 0 | J60: =IF($H60=0,0,INDEX(J$242:J$316,$H60)) -> 0 | K60: =IF($H60=0,0,INDEX(K$242:K$316,$H60)) -> 0 | L60: =IF($H60=0,0,INDEX(L$242:L$316,$H60)) -> 0 | M60: =IF($H60=0,0,INDEX(M$242:M$316,$H60)) -> 0 | N60: =IF($H60=0,0,INDEX(N$242:N$316,$H60)) -> 0 | O60: =IF($H60=0,0,INDEX(O$242:O$316,$H60)) -> 0 | P60: =IF($H60=0,0,INDEX(P$242:P$316,$H60)) -> 0 | Q60: =IF($H60=0,0,INDEX(Q$242:Q$316,$H60)) -> 0 | R60: =IF($H60=0,0,INDEX(R$242:R$316,$H60)) -> 0 | S60: =IF($H60=0,0,INDEX(S$242:S$316,$H60)) -> 0 | T60: =IF($H60=0,0,INDEX(T$242:T$316,$H60)) -> 0 | U60: =IF($H60=0,0,INDEX(U$242:U$316,$H60)) -> 0 | V60: =IF($H60=0,0,INDEX(V$242:V$316,$H60)) -> 0 | W60: =IF($H60=0,0,INDEX(W$242:W$316,$H60)) -> 0 | X60: =IF($H60=0,0,INDEX(X$242:X$316,$H60)) -> 0 | Y60: =IF($H60=0,0,INDEX(Y$242:Y$316,$H60)) -> 0 | Z60: =IF($H60=0,0,INDEX(Z$242:Z$316,$H60)) -> 0 | AA60: =IF($H60=0,0,INDEX(AA$242:AA$316,$H60)) -> 0 | AB60: =IF($H60=0,0,INDEX(AB$242:AB$316,$H60)) -> 0 | AD60: =IF(SUMPRODUCT(--_xlfn.ISFORMULA(C60:AB60))=26,"OK","CHECK") -> OK | AE60: =IF($H60=0,0,INDEX(AE$562:AE$796,$H60)) -> 0 | AF60: =IF($H60=0,0,INDEX(AF$562:AF$796,$H60)) -> 0 | AG60: =IF($H60=0,0,INDEX(AG$562:AG$796,$H60)) -> 0 | AH60: =IF($H60=0,0,INDEX(AH$562:AH$796,$H60)) -> 0 | AI60: =IF($H60=0,0,INDEX(AI$562:AI$796,$H60)) -> 0 | AJ60: =IF($H60=0,0,INDEX(AJ$562:AJ$796,$H60)) -> 0 | AK60: =IF($H60=0,0,INDEX(AK$562:AK$796,$H60)) -> 0 | AL60: =IF($H60=0,0,INDEX(AL$562:AL$796,$H60)) -> 0 | AM60: =IF($H60=0,0,INDEX(AM$562:AM$796,$H60)) -> 0 | AN60: =IF($H60=0,0,INDEX(AN$562:AN$796,$H60)) -> 0 | AO60: =IF($H60=0,0,INDEX(AO$562:AO$796,$H60)) -> 0 | AP60: =IF($H60=0,0,INDEX(AP$562:AP$796,$H60)) -> 0 | AQ60: =IF($H60=0,0,INDEX(AQ$562:AQ$796,$H60)) -> 0 | AR60: =IF($H60=0,0,INDEX(AR$562:AR$796,$H60)) -> 0
C61: 0 | D61: 0 | E61: 0 | F61: 0 | G61: 0 | H61: 0 | I61: =IF($H61=0,0,INDEX(I$242:I$316,$H61)) -> 0 | J61: =IF($H61=0,0,INDEX(J$242:J$316,$H61)) -> 0 | K61: =IF($H61=0,0,INDEX(K$242:K$316,$H61)) -> 0 | L61: =IF($H61=0,0,INDEX(L$242:L$316,$H61)) -> 0 | M61: =IF($H61=0,0,INDEX(M$242:M$316,$H61)) -> 0 | N61: =IF($H61=0,0,INDEX(N$242:N$316,$H61)) -> 0 | O61: =IF($H61=0,0,INDEX(O$242:O$316,$H61)) -> 0 | P61: =IF($H61=0,0,INDEX(P$242:P$316,$H61)) -> 0 | Q61: =IF($H61=0,0,INDEX(Q$242:Q$316,$H61)) -> 0 | R61: =IF($H61=0,0,INDEX(R$242:R$316,$H61)) -> 0 | S61: =IF($H61=0,0,INDEX(S$242:S$316,$H61)) -> 0 | T61: =IF($H61=0,0,INDEX(T$242:T$316,$H61)) -> 0 | U61: =IF($H61=0,0,INDEX(U$242:U$316,$H61)) -> 0 | V61: =IF($H61=0,0,INDEX(V$242:V$316,$H61)) -> 0 | W61: =IF($H61=0,0,INDEX(W$242:W$316,$H61)) -> 0 | X61: =IF($H61=0,0,INDEX(X$242:X$316,$H61)) -> 0 | Y61: =IF($H61=0,0,INDEX(Y$242:Y$316,$H61)) -> 0 | Z61: =IF($H61=0,0,INDEX(Z$242:Z$316,$H61)) -> 0 | AA61: =IF($H61=0,0,INDEX(AA$242:AA$316,$H61)) -> 0 | AB61: =IF($H61=0,0,INDEX(AB$242:AB$316,$H61)) -> 0 | AD61: =IF(SUMPRODUCT(--_xlfn.ISFORMULA(C61:AB61))=26,"OK","CHECK") -> OK | AE61: =IF($H61=0,0,INDEX(AE$562:AE$796,$H61)) -> 0 | AF61: =IF($H61=0,0,INDEX(AF$562:AF$796,$H61)) -> 0 | AG61: =IF($H61=0,0,INDEX(AG$562:AG$796,$H61)) -> 0 | AH61: =IF($H61=0,0,INDEX(AH$562:AH$796,$H61)) -> 0 | AI61: =IF($H61=0,0,INDEX(AI$562:AI$796,$H61)) -> 0 | AJ61: =IF($H61=0,0,INDEX(AJ$562:AJ$796,$H61)) -> 0 | AK61: =IF($H61=0,0,INDEX(AK$562:AK$796,$H61)) -> 0 | AL61: =IF($H61=0,0,INDEX(AL$562:AL$796,$H61)) -> 0 | AM61: =IF($H61=0,0,INDEX(AM$562:AM$796,$H61)) -> 0 | AN61: =IF($H61=0,0,INDEX(AN$562:AN$796,$H61)) -> 0 | AO61: =IF($H61=0,0,INDEX(AO$562:AO$796,$H61)) -> 0 | AP61: =IF($H61=0,0,INDEX(AP$562:AP$796,$H61)) -> 0 | AQ61: =IF($H61=0,0,INDEX(AQ$562:AQ$796,$H61)) -> 0 | AR61: =IF($H61=0,0,INDEX(AR$562:AR$796,$H61)) -> 0
C62: 0 | D62: 0 | E62: 0 | F62: 0 | G62: 0 | H62: 0 | I62: =IF($H62=0,0,INDEX(I$242:I$316,$H62)) -> 0 | J62: =IF($H62=0,0,INDEX(J$242:J$316,$H62)) -> 0 | K62: =IF($H62=0,0,INDEX(K$242:K$316,$H62)) -> 0 | L62: =IF($H62=0,0,INDEX(L$242:L$316,$H62)) -> 0 | M62: =IF($H62=0,0,INDEX(M$242:M$316,$H62)) -> 0 | N62: =IF($H62=0,0,INDEX(N$242:N$316,$H62)) -> 0 | O62: =IF($H62=0,0,INDEX(O$242:O$316,$H62)) -> 0 | P62: =IF($H62=0,0,INDEX(P$242:P$316,$H62)) -> 0 | Q62: =IF($H62=0,0,INDEX(Q$242:Q$316,$H62)) -> 0 | R62: =IF($H62=0,0,INDEX(R$242:R$316,$H62)) -> 0 | S62: =IF($H62=0,0,INDEX(S$242:S$316,$H62)) -> 0 | T62: =IF($H62=0,0,INDEX(T$242:T$316,$H62)) -> 0 | U62: =IF($H62=0,0,INDEX(U$242:U$316,$H62)) -> 0 | V62: =IF($H62=0,0,INDEX(V$242:V$316,$H62)) -> 0 | W62: =IF($H62=0,0,INDEX(W$242:W$316,$H62)) -> 0 | X62: =IF($H62=0,0,INDEX(X$242:X$316,$H62)) -> 0 | Y62: =IF($H62=0,0,INDEX(Y$242:Y$316,$H62)) -> 0 | Z62: =IF($H62=0,0,INDEX(Z$242:Z$316,$H62)) -> 0 | AA62: =IF($H62=0,0,INDEX(AA$242:AA$316,$H62)) -> 0 | AB62: =IF($H62=0,0,INDEX(AB$242:AB$316,$H62)) -> 0 | AD62: =IF(SUMPRODUCT(--_xlfn.ISFORMULA(C62:AB62))=26,"OK","CHECK") -> OK | AE62: =IF($H62=0,0,INDEX(AE$562:AE$796,$H62)) -> 0 | AF62: =IF($H62=0,0,INDEX(AF$562:AF$796,$H62)) -> 0 | AG62: =IF($H62=0,0,INDEX(AG$562:AG$796,$H62)) -> 0 | AH62: =IF($H62=0,0,INDEX(AH$562:AH$796,$H62)) -> 0 | AI62: =IF($H62=0,0,INDEX(AI$562:AI$796,$H62)) -> 0 | AJ62: =IF($H62=0,0,INDEX(AJ$562:AJ$796,$H62)) -> 0 | AK62: =IF($H62=0,0,INDEX(AK$562:AK$796,$H62)) -> 0 | AL62: =IF($H62=0,0,INDEX(AL$562:AL$796,$H62)) -> 0 | AM62: =IF($H62=0,0,INDEX(AM$562:AM$796,$H62)) -> 0 | AN62: =IF($H62=0,0,INDEX(AN$562:AN$796,$H62)) -> 0 | AO62: =IF($H62=0,0,INDEX(AO$562:AO$796,$H62)) -> 0 | AP62: =IF($H62=0,0,INDEX(AP$562:AP$796,$H62)) -> 0 | AQ62: =IF($H62=0,0,INDEX(AQ$562:AQ$796,$H62)) -> 0 | AR62: =IF($H62=0,0,INDEX(AR$562:AR$796,$H62)) -> 0
C63: 0 | D63: 0 | E63: 0 | F63: 0 | G63: 0 | H63: 0 | I63: =IF($H63=0,0,INDEX(I$242:I$316,$H63)) -> 0 | J63: =IF($H63=0,0,INDEX(J$242:J$316,$H63)) -> 0 | K63: =IF($H63=0,0,INDEX(K$242:K$316,$H63)) -> 0 | L63: =IF($H63=0,0,INDEX(L$242:L$316,$H63)) -> 0 | M63: =IF($H63=0,0,INDEX(M$242:M$316,$H63)) -> 0 | N63: =IF($H63=0,0,INDEX(N$242:N$316,$H63)) -> 0 | O63: =IF($H63=0,0,INDEX(O$242:O$316,$H63)) -> 0 | P63: =IF($H63=0,0,INDEX(P$242:P$316,$H63)) -> 0 | Q63: =IF($H63=0,0,INDEX(Q$242:Q$316,$H63)) -> 0 | R63: =IF($H63=0,0,INDEX(R$242:R$316,$H63)) -> 0 | S63: =IF($H63=0,0,INDEX(S$242:S$316,$H63)) -> 0 | T63: =IF($H63=0,0,INDEX(T$242:T$316,$H63)) -> 0 | U63: =IF($H63=0,0,INDEX(U$242:U$316,$H63)) -> 0 | V63: =IF($H63=0,0,INDEX(V$242:V$316,$H63)) -> 0 | W63: =IF($H63=0,0,INDEX(W$242:W$316,$H63)) -> 0 | X63: =IF($H63=0,0,INDEX(X$242:X$316,$H63)) -> 0 | Y63: =IF($H63=0,0,INDEX(Y$242:Y$316,$H63)) -> 0 | Z63: =IF($H63=0,0,INDEX(Z$242:Z$316,$H63)) -> 0 | AA63: =IF($H63=0,0,INDEX(AA$242:AA$316,$H63)) -> 0 | AB63: =IF($H63=0,0,INDEX(AB$242:AB$316,$H63)) -> 0 | AD63: =IF(SUMPRODUCT(--_xlfn.ISFORMULA(C63:AB63))=26,"OK","CHECK") -> OK | AE63: =IF($H63=0,0,INDEX(AE$562:AE$796,$H63)) -> 0 | AF63: =IF($H63=0,0,INDEX(AF$562:AF$796,$H63)) -> 0 | AG63: =IF($H63=0,0,INDEX(AG$562:AG$796,$H63)) -> 0 | AH63: =IF($H63=0,0,INDEX(AH$562:AH$796,$H63)) -> 0 | AI63: =IF($H63=0,0,INDEX(AI$562:AI$796,$H63)) -> 0 | AJ63: =IF($H63=0,0,INDEX(AJ$562:AJ$796,$H63)) -> 0 | AK63: =IF($H63=0,0,INDEX(AK$562:AK$796,$H63)) -> 0 | AL63: =IF($H63=0,0,INDEX(AL$562:AL$796,$H63)) -> 0 | AM63: =IF($H63=0,0,INDEX(AM$562:AM$796,$H63)) -> 0 | AN63: =IF($H63=0,0,INDEX(AN$562:AN$796,$H63)) -> 0 | AO63: =IF($H63=0,0,INDEX(AO$562:AO$796,$H63)) -> 0 | AP63: =IF($H63=0,0,INDEX(AP$562:AP$796,$H63)) -> 0 | AQ63: =IF($H63=0,0,INDEX(AQ$562:AQ$796,$H63)) -> 0 | AR63: =IF($H63=0,0,INDEX(AR$562:AR$796,$H63)) -> 0
C64: 0 | D64: 0 | E64: 0 | F64: 0 | G64: 0 | H64: 0 | I64: =IF($H64=0,0,INDEX(I$242:I$316,$H64)) -> 0 | J64: =IF($H64=0,0,INDEX(J$242:J$316,$H64)) -> 0 | K64: =IF($H64=0,0,INDEX(K$242:K$316,$H64)) -> 0 | L64: =IF($H64=0,0,INDEX(L$242:L$316,$H64)) -> 0 | M64: =IF($H64=0,0,INDEX(M$242:M$316,$H64)) -> 0 | N64: =IF($H64=0,0,INDEX(N$242:N$316,$H64)) -> 0 | O64: =IF($H64=0,0,INDEX(O$242:O$316,$H64)) -> 0 | P64: =IF($H64=0,0,INDEX(P$242:P$316,$H64)) -> 0 | Q64: =IF($H64=0,0,INDEX(Q$242:Q$316,$H64)) -> 0 | R64: =IF($H64=0,0,INDEX(R$242:R$316,$H64)) -> 0 | S64: =IF($H64=0,0,INDEX(S$242:S$316,$H64)) -> 0 | T64: =IF($H64=0,0,INDEX(T$242:T$316,$H64)) -> 0 | U64: =IF($H64=0,0,INDEX(U$242:U$316,$H64)) -> 0 | V64: =IF($H64=0,0,INDEX(V$242:V$316,$H64)) -> 0 | W64: =IF($H64=0,0,INDEX(W$242:W$316,$H64)) -> 0 | X64: =IF($H64=0,0,INDEX(X$242:X$316,$H64)) -> 0 | Y64: =IF($H64=0,0,INDEX(Y$242:Y$316,$H64)) -> 0 | Z64: =IF($H64=0,0,INDEX(Z$242:Z$316,$H64)) -> 0 | AA64: =IF($H64=0,0,INDEX(AA$242:AA$316,$H64)) -> 0 | AB64: =IF($H64=0,0,INDEX(AB$242:AB$316,$H64)) -> 0 | AD64: =IF(SUMPRODUCT(--_xlfn.ISFORMULA(C64:AB64))=26,"OK","CHECK") -> OK | AE64: =IF($H64=0,0,INDEX(AE$562:AE$796,$H64)) -> 0 | AF64: =IF($H64=0,0,INDEX(AF$562:AF$796,$H64)) -> 0 | AG64: =IF($H64=0,0,INDEX(AG$562:AG$796,$H64)) -> 0 | AH64: =IF($H64=0,0,INDEX(AH$562:AH$796,$H64)) -> 0 | AI64: =IF($H64=0,0,INDEX(AI$562:AI$796,$H64)) -> 0 | AJ64: =IF($H64=0,0,INDEX(AJ$562:AJ$796,$H64)) -> 0 | AK64: =IF($H64=0,0,INDEX(AK$562:AK$796,$H64)) -> 0 | AL64: =IF($H64=0,0,INDEX(AL$562:AL$796,$H64)) -> 0 | AM64: =IF($H64=0,0,INDEX(AM$562:AM$796,$H64)) -> 0 | AN64: =IF($H64=0,0,INDEX(AN$562:AN$796,$H64)) -> 0 | AO64: =IF($H64=0,0,INDEX(AO$562:AO$796,$H64)) -> 0 | AP64: =IF($H64=0,0,INDEX(AP$562:AP$796,$H64)) -> 0 | AQ64: =IF($H64=0,0,INDEX(AQ$562:AQ$796,$H64)) -> 0 | AR64: =IF($H64=0,0,INDEX(AR$562:AR$796,$H64)) -> 0
C66: =C319 -> Jurisdictional Scheme Amounts
C67: =C19 -> Small single rate | D67: Residential | E67: NEE11 | F67: 0 | G67: 0 | H67: 1 | I67: =IF($H67=0,0,INDEX(I$320:I$394,$H67)) -> 0 | J67: =IF($H67=0,0,INDEX(J$320:J$394,$H67)) -> 0 | K67: =IF($H67=0,0,INDEX(K$320:K$394,$H67)) -> 0.1690301769 | L67: =IF($H67=0,0,INDEX(L$320:L$394,$H67)) -> 0.1690301769 | M67: =IF($H67=0,0,INDEX(M$320:M$394,$H67)) -> 0 | N67: =IF($H67=0,0,INDEX(N$320:N$394,$H67)) -> 0 | O67: =IF($H67=0,0,INDEX(O$320:O$394,$H67)) -> 0 | P67: =IF($H67=0,0,INDEX(P$320:P$394,$H67)) -> 0 | Q67: =IF($H67=0,0,INDEX(Q$320:Q$394,$H67)) -> 0 | R67: =IF($H67=0,0,INDEX(R$320:R$394,$H67)) -> 0 | S67: =IF($H67=0,0,INDEX(S$320:S$394,$H67)) -> 0 | T67: =IF($H67=0,0,INDEX(T$320:T$394,$H67)) -> 0 | U67: =IF($H67=0,0,INDEX(U$320:U$394,$H67)) -> 0 | V67: =IF($H67=0,0,INDEX(V$320:V$394,$H67)) -> 0 | W67: =IF($H67=0,0,INDEX(W$320:W$394,$H67)) -> 0 | X67: =IF($H67=0,0,INDEX(X$320:X$394,$H67)) -> 0 | Y67: =IF($H67=0,0,INDEX(Y$320:Y$394,$H67)) -> 0 | Z67: =IF($H67=0,0,INDEX(Z$320:Z$394,$H67)) -> 0 | AA67: =IF($H67=0,0,INDEX(AA$320:AA$394,$H67)) -> 0 | AB67: =IF($H67=0,0,INDEX(AB$320:AB$394,$H67)) -> 0 | AD67: =IF(SUMPRODUCT(--_xlfn.ISFORMULA(C67:AB67))=26,"OK","CHECK") -> OK | AE67: =IF($H67=0,0,INDEX(AE$800:AE$1034,$H67)) -> 0 | AF67: =IF($H67=0,0,INDEX(AF$800:AF$1034,$H67)) -> 0 | AG67: =IF($H67=0,0,INDEX(AG$800:AG$1034,$H67)) -> 0 | AH67: =IF($H67=0,0,INDEX(AH$800:AH$1034,$H67)) -> 0 | AI67: =IF($H67=0,0,INDEX(AI$800:AI$1034,$H67)) -> 0 | AJ67: =IF($H67=0,0,INDEX(AJ$800:AJ$1034,$H67)) -> 0 | AK67: =IF($H67=0,0,INDEX(AK$800:AK$1034,$H67)) -> 0 | AL67: =IF($H67=0,0,INDEX(AL$800:AL$1034,$H67)) -> 0 | AM67: =IF($H67=0,0,INDEX(AM$800:AM$1034,$H67)) -> 0 | AN67: =IF($H67=0,0,INDEX(AN$800:AN$1034,$H67)) -> 0 | AO67: =IF($H67=0,0,INDEX(AO$800:AO$1034,$H67)) -> 0 | AP67: =IF($H67=0,0,INDEX(AP$800:AP$1034,$H67)) -> 0 | AQ67: =IF($H67=0,0,INDEX(AQ$800:AQ$1034,$H67)) -> 0 | AR67: =IF($H67=0,0,INDEX(AR$800:AR$1034,$H67)) -> 0
C68: Small single rate & dedicated circuit 24 hour | D68: Residential | E68: NEE19 | F68: 0 | G68: 0 | H68: 3 | I68: =IF($H68=0,0,INDEX(I$320:I$394,$H68)) -> 0 | J68: =IF($H68=0,0,INDEX(J$320:J$394,$H68)) -> 0 | K68: =IF($H68=0,0,INDEX(K$320:K$394,$H68)) -> 0.1690301769 | L68: =IF($H68=0,0,INDEX(L$320:L$394,$H68)) -> 0.1690301769 | M68: =IF($H68=0,0,INDEX(M$320:M$394,$H68)) -> 0 | N68: =IF($H68=0,0,INDEX(N$320:N$394,$H68)) -> 0 | O68: =IF($H68=0,0,INDEX(O$320:O$394,$H68)) -> 0 | P68: =IF($H68=0,0,INDEX(P$320:P$394,$H68)) -> 0 | Q68: =IF($H68=0,0,INDEX(Q$320:Q$394,$H68)) -> 0 | R68: =IF($H68=0,0,INDEX(R$320:R$394,$H68)) -> 0 | S68: =IF($H68=0,0,INDEX(S$320:S$394,$H68)) -> 0.1419018769 | T68: =IF($H68=0,0,INDEX(T$320:T$394,$H68)) -> 0 | U68: =IF($H68=0,0,INDEX(U$320:U$394,$H68)) -> 0 | V68: =IF($H68=0,0,INDEX(V$320:V$394,$H68)) -> 0 | W68: =IF($H68=0,0,INDEX(W$320:W$394,$H68)) -> 0 | X68: =IF($H68=0,0,INDEX(X$320:X$394,$H68)) -> 0 | Y68: =IF($H68=0,0,INDEX(Y$320:Y$394,$H68)) -> 0 | Z68: =IF($H68=0,0,INDEX(Z$320:Z$394,$H68)) -> 0 | AA68: =IF($H68=0,0,INDEX(AA$320:AA$394,$H68)) -> 0 | AB68: =IF($H68=0,0,INDEX(AB$320:AB$394,$H68)) -> 0 | AD68: =IF(SUMPRODUCT(--_xlfn.ISFORMULA(C68:AB68))=26,"OK","CHECK") -> OK | AE68: =IF($H68=0,0,INDEX(AE$800:AE$1034,$H68)) -> 0 | AF68: =IF($H68=0,0,INDEX(AF$800:AF$1034,$H68)) -> 0 | AG68: =IF($H68=0,0,INDEX(AG$800:AG$1034,$H68)) -> 0 | AH68: =IF($H68=0,0,INDEX(AH$800:AH$1034,$H68)) -> 0 | AI68: =IF($H68=0,0,INDEX(AI$800:AI$1034,$H68)) -> 0 | AJ68: =IF($H68=0,0,INDEX(AJ$800:AJ$1034,$H68)) -> 0 | AK68: =IF($H68=0,0,INDEX(AK$800:AK$1034,$H68)) -> 0 | AL68: =IF($H68=0,0,INDEX(AL$800:AL$1034,$H68)) -> 0 | AM68: =IF($H68=0,0,INDEX(AM$800:AM$1034,$H68)) -> 0 | AN68: =IF($H68=0,0,INDEX(AN$800:AN$1034,$H68)) -> 0 | AO68: =IF($H68=0,0,INDEX(AO$800:AO$1034,$H68)) -> 0 | AP68: =IF($H68=0,0,INDEX(AP$800:AP$1034,$H68)) -> 0 | AQ68: =IF($H68=0,0,INDEX(AQ$800:AQ$1034,$H68)) -> 0 | AR68: =IF($H68=0,0,INDEX(AR$800:AR$1034,$H68)) -> 0
C69: Small residential time of use | D69: Residential | E69: NASS11 | F69: 0 | G69: 0 | H69: 4 | I69: =IF($H69=0,0,INDEX(I$320:I$394,$H69)) -> 0 | J69: =IF($H69=0,0,INDEX(J$320:J$394,$H69)) -> 0 | K69: =IF($H69=0,0,INDEX(K$320:K$394,$H69)) -> 0 | L69: =IF($H69=0,0,INDEX(L$320:L$394,$H69)) -> 0 | M69: =IF($H69=0,0,INDEX(M$320:M$394,$H69)) -> 0.1690301769 | N69: =IF($H69=0,0,INDEX(N$320:N$394,$H69)) -> 0 | O69: =IF($H69=0,0,INDEX(O$320:O$394,$H69)) -> 0 | P69: =IF($H69=0,0,INDEX(P$320:P$394,$H69)) -> 0 | Q69: =IF($H69=0,0,INDEX(Q$320:Q$394,$H69)) -> 0 | R69: =IF($H69=0,0,INDEX(R$320:R$394,$H69)) -> 0.1419018769 | S69: =IF($H69=0,0,INDEX(S$320:S$394,$H69)) -> 0 | T69: =IF($H69=0,0,INDEX(T$320:T$394,$H69)) -> 0 | U69: =IF($H69=0,0,INDEX(U$320:U$394,$H69)) -> 0 | V69: =IF($H69=0,0,INDEX(V$320:V$394,$H69)) -> 0 | W69: =IF($H69=0,0,INDEX(W$320:W$394,$H69)) -> 0 | X69: =IF($H69=0,0,INDEX(X$320:X$394,$H69)) -> 0 | Y69: =IF($H69=0,0,INDEX(Y$320:Y$394,$H69)) -> 0 | Z69: =IF($H69=0,0,INDEX(Z$320:Z$394,$H69)) -> 0 | AA69: =IF($H69=0,0,INDEX(AA$320:AA$394,$H69)) -> 0 | AB69: =IF($H69=0,0,INDEX(AB$320:AB$394,$H69)) -> 0 | AD69: =IF(SUMPRODUCT(--_xlfn.ISFORMULA(C69:AB69))=26,"OK","CHECK") -> OK | AE69: =IF($H69=0,0,INDEX(AE$800:AE$1034,$H69)) -> 0 | AF69: =IF($H69=0,0,INDEX(AF$800:AF$1034,$H69)) -> 0 | AG69: =IF($H69=0,0,INDEX(AG$800:AG$1034,$H69)) -> 0 | AH69: =IF($H69=0,0,INDEX(AH$800:AH$1034,$H69)) -> 0 | AI69: =IF($H69=0,0,INDEX(AI$800:AI$1034,$H69)) -> 0 | AJ69: =IF($H69=0,0,INDEX(AJ$800:AJ$1034,$H69)) -> 0 | AK69: =IF($H69=0,0,INDEX(AK$800:AK$1034,$H69)) -> 0 | AL69: =IF($H69=0,0,INDEX(AL$800:AL$1034,$H69)) -> 0 | AM69: =IF($H69=0,0,INDEX(AM$800:AM$1034,$H69)) -> 0 | AN69: =IF($H69=0,0,INDEX(AN$800:AN$1034,$H69)) -> 0 | AO69: =IF($H69=0,0,INDEX(AO$800:AO$1034,$H69)) -> 0 | AP69: =IF($H69=0,0,INDEX(AP$800:AP$1034,$H69)) -> 0 | AQ69: =IF($H69=0,0,INDEX(AQ$800:AQ$1034,$H69)) -> 0 | AR69: =IF($H69=0,0,INDEX(AR$800:AR$1034,$H69)) -> 0
C70: Small business single rate | D70: Small industrial & commercial | E70: NEE12 | F70: 0 | G70: 0 | H70: 16 | I70: =IF($H70=0,0,INDEX(I$320:I$394,$H70)) -> 0 | J70: =IF($H70=0,0,INDEX(J$320:J$394,$H70)) -> 0 | K70: =IF($H70=0,0,INDEX(K$320:K$394,$H70)) -> 0.1690301769 | L70: =IF($H70=0,0,INDEX(L$320:L$394,$H70)) -> 0.1690301769 | M70: =IF($H70=0,0,INDEX(M$320:M$394,$H70)) -> 0 | N70: =IF($H70=0,0,INDEX(N$320:N$394,$H70)) -> 0 | O70: =IF($H70=0,0,INDEX(O$320:O$394,$H70)) -> 0 | P70: =IF($H70=0,0,INDEX(P$320:P$394,$H70)) -> 0 | Q70: =IF($H70=0,0,INDEX(Q$320:Q$394,$H70)) -> 0 | R70: =IF($H70=0,0,INDEX(R$320:R$394,$H70)) -> 0 | S70: =IF($H70=0,0,INDEX(S$320:S$394,$H70)) -> 0 | T70: =IF($H70=0,0,INDEX(T$320:T$394,$H70)) -> 0 | U70: =IF($H70=0,0,INDEX(U$320:U$394,$H70)) -> 0 | V70: =IF($H70=0,0,INDEX(V$320:V$394,$H70)) -> 0 | W70: =IF($H70=0,0,INDEX(W$320:W$394,$H70)) -> 0 | X70: =IF($H70=0,0,INDEX(X$320:X$394,$H70)) -> 0 | Y70: =IF($H70=0,0,INDEX(Y$320:Y$394,$H70)) -> 0 | Z70: =IF($H70=0,0,INDEX(Z$320:Z$394,$H70)) -> 0 | AA70: =IF($H70=0,0,INDEX(AA$320:AA$394,$H70)) -> 0 | AB70: =IF($H70=0,0,INDEX(AB$320:AB$394,$H70)) -> 0 | AD70: =IF(SUMPRODUCT(--_xlfn.ISFORMULA(C70:AB70))=26,"OK","CHECK") -> OK | AE70: =IF($H70=0,0,INDEX(AE$800:AE$1034,$H70)) -> 0 | AF70: =IF($H70=0,0,INDEX(AF$800:AF$1034,$H70)) -> 0 | AG70: =IF($H70=0,0,INDEX(AG$800:AG$1034,$H70)) -> 0 | AH70: =IF($H70=0,0,INDEX(AH$800:AH$1034,$H70)) -> 0 | AI70: =IF($H70=0,0,INDEX(AI$800:AI$1034,$H70)) -> 0 | AJ70: =IF($H70=0,0,INDEX(AJ$800:AJ$1034,$H70)) -> 0 | AK70: =IF($H70=0,0,INDEX(AK$800:AK$1034,$H70)) -> 0 | AL70: =IF($H70=0,0,INDEX(AL$800:AL$1034,$H70)) -> 0 | AM70: =IF($H70=0,0,INDEX(AM$800:AM$1034,$H70)) -> 0 | AN70: =IF($H70=0,0,INDEX(AN$800:AN$1034,$H70)) -> 0 | AO70: =IF($H70=0,0,INDEX(AO$800:AO$1034,$H70)) -> 0 | AP70: =IF($H70=0,0,INDEX(AP$800:AP$1034,$H70)) -> 0 | AQ70: =IF($H70=0,0,INDEX(AQ$800:AQ$1034,$H70)) -> 0 | AR70: =IF($H70=0,0,INDEX(AR$800:AR$1034,$H70)) -> 0
C71: Small business time of use | D71: Small industrial & commercial | E71: NAST12 | F71: 0 | G71: 0 | H71: 21 | I71: =IF($H71=0,0,INDEX(I$320:I$394,$H71)) -> 0 | J71: =IF($H71=0,0,INDEX(J$320:J$394,$H71)) -> 0 | K71: =IF($H71=0,0,INDEX(K$320:K$394,$H71)) -> 0 | L71: =IF($H71=0,0,INDEX(L$320:L$394,$H71)) -> 0 | M71: =IF($H71=0,0,INDEX(M$320:M$394,$H71)) -> 0.1690301769 | N71: =IF($H71=0,0,INDEX(N$320:N$394,$H71)) -> 0 | O71: =IF($H71=0,0,INDEX(O$320:O$394,$H71)) -> 0 | P71: =IF($H71=0,0,INDEX(P$320:P$394,$H71)) -> 0 | Q71: =IF($H71=0,0,INDEX(Q$320:Q$394,$H71)) -> 0 | R71: =IF($H71=0,0,INDEX(R$320:R$394,$H71)) -> 0.1419018769 | S71: =IF($H71=0,0,INDEX(S$320:S$394,$H71)) -> 0 | T71: =IF($H71=0,0,INDEX(T$320:T$394,$H71)) -> 0 | U71: =IF($H71=0,0,INDEX(U$320:U$394,$H71)) -> 0 | V71: =IF($H71=0,0,INDEX(V$320:V$394,$H71)) -> 0 | W71: =IF($H71=0,0,INDEX(W$320:W$394,$H71)) -> 0 | X71: =IF($H71=0,0,INDEX(X$320:X$394,$H71)) -> 0 | Y71: =IF($H71=0,0,INDEX(Y$320:Y$394,$H71)) -> 0 | Z71: =IF($H71=0,0,INDEX(Z$320:Z$394,$H71)) -> 0 | AA71: =IF($H71=0,0,INDEX(AA$320:AA$394,$H71)) -> 0 | AB71: =IF($H71=0,0,INDEX(AB$320:AB$394,$H71)) -> 0 | AD71: =IF(SUMPRODUCT(--_xlfn.ISFORMULA(C71:AB71))=26,"OK","CHECK") -> OK | AE71: =IF($H71=0,0,INDEX(AE$800:AE$1034,$H71)) -> 0 | AF71: =IF($H71=0,0,INDEX(AF$800:AF$1034,$H71)) -> 0 | AG71: =IF($H71=0,0,INDEX(AG$800:AG$1034,$H71)) -> 0 | AH71: =IF($H71=0,0,INDEX(AH$800:AH$1034,$H71)) -> 0 | AI71: =IF($H71=0,0,INDEX(AI$800:AI$1034,$H71)) -> 0 | AJ71: =IF($H71=0,0,INDEX(AJ$800:AJ$1034,$H71)) -> 0 | AK71: =IF($H71=0,0,INDEX(AK$800:AK$1034,$H71)) -> 0 | AL71: =IF($H71=0,0,INDEX(AL$800:AL$1034,$H71)) -> 0 | AM71: =IF($H71=0,0,INDEX(AM$800:AM$1034,$H71)) -> 0 | AN71: =IF($H71=0,0,INDEX(AN$800:AN$1034,$H71)) -> 0 | AO71: =IF($H71=0,0,INDEX(AO$800:AO$1034,$H71)) -> 0 | AP71: =IF($H71=0,0,INDEX(AP$800:AP$1034,$H71)) -> 0 | AQ71: =IF($H71=0,0,INDEX(AQ$800:AQ$1034,$H71)) -> 0 | AR71: =IF($H71=0,0,INDEX(AR$800:AR$1034,$H71)) -> 0
C72: 0 | D72: 0 | E72: 0 | F72: 0 | G72: 0 | H72: 0 | I72: =IF($H72=0,0,INDEX(I$320:I$394,$H72)) -> 0 | J72: =IF($H72=0,0,INDEX(J$320:J$394,$H72)) -> 0 | K72: =IF($H72=0,0,INDEX(K$320:K$394,$H72)) -> 0 | L72: =IF($H72=0,0,INDEX(L$320:L$394,$H72)) -> 0 | M72: =IF($H72=0,0,INDEX(M$320:M$394,$H72)) -> 0 | N72: =IF($H72=0,0,INDEX(N$320:N$394,$H72)) -> 0 | O72: =IF($H72=0,0,INDEX(O$320:O$394,$H72)) -> 0 | P72: =IF($H72=0,0,INDEX(P$320:P$394,$H72)) -> 0 | Q72: =IF($H72=0,0,INDEX(Q$320:Q$394,$H72)) -> 0 | R72: =IF($H72=0,0,INDEX(R$320:R$394,$H72)) -> 0 | S72: =IF($H72=0,0,INDEX(S$320:S$394,$H72)) -> 0 | T72: =IF($H72=0,0,INDEX(T$320:T$394,$H72)) -> 0 | U72: =IF($H72=0,0,INDEX(U$320:U$394,$H72)) -> 0 | V72: =IF($H72=0,0,INDEX(V$320:V$394,$H72)) -> 0 | W72: =IF($H72=0,0,INDEX(W$320:W$394,$H72)) -> 0 | X72: =IF($H72=0,0,INDEX(X$320:X$394,$H72)) -> 0 | Y72: =IF($H72=0,0,INDEX(Y$320:Y$394,$H72)) -> 0 | Z72: =IF($H72=0,0,INDEX(Z$320:Z$394,$H72)) -> 0 | AA72: =IF($H72=0,0,INDEX(AA$320:AA$394,$H72)) -> 0 | AB72: =IF($H72=0,0,INDEX(AB$320:AB$394,$H72)) -> 0 | AC72: =IF($H72=0,0,INDEX(AC$800:AC$1034,$H72)) -> 0 | AD72: =IF(SUMPRODUCT(--_xlfn.ISFORMULA(C72:AB72))=26,"OK","CHECK") -> OK | AE72: =IF($H72=0,0,INDEX(AE$800:AE$1034,$H72)) -> 0 | AF72: =IF($H72=0,0,INDEX(AF$800:AF$1034,$H72)) -> 0 | AG72: =IF($H72=0,0,INDEX(AG$800:AG$1034,$H72)) -> 0 | AH72: =IF($H72=0,0,INDEX(AH$800:AH$1034,$H72)) -> 0 | AI72: =IF($H72=0,0,INDEX(AI$800:AI$1034,$H72)) -> 0 | AJ72: =IF($H72=0,0,INDEX(AJ$800:AJ$1034,$H72)) -> 0 | AK72: =IF($H72=0,0,INDEX(AK$800:AK$1034,$H72)) -> 0 | AL72: =IF($H72=0,0,INDEX(AL$800:AL$1034,$H72)) -> 0 | AM72: =IF($H72=0,0,INDEX(AM$800:AM$1034,$H72)) -> 0 | AN72: =IF($H72=0,0,INDEX(AN$800:AN$1034,$H72)) -> 0 | AO72: =IF($H72=0,0,INDEX(AO$800:AO$1034,$H72)) -> 0 | AP72: =IF($H72=0,0,INDEX(AP$800:AP$1034,$H72)) -> 0 | AQ72: =IF($H72=0,0,INDEX(AQ$800:AQ$1034,$H72)) -> 0 | AR72: =IF($H72=0,0,INDEX(AR$800:AR$1034,$H72)) -> 0
C73: 0 | D73: 0 | E73: 0 | F73: 0 | G73: 0 | H73: 0 | I73: =IF($H73=0,0,INDEX(I$320:I$394,$H73)) -> 0 | J73: =IF($H73=0,0,INDEX(J$320:J$394,$H73)) -> 0 | K73: =IF($H73=0,0,INDEX(K$320:K$394,$H73)) -> 0 | L73: =IF($H73=0,0,INDEX(L$320:L$394,$H73)) -> 0 | M73: =IF($H73=0,0,INDEX(M$320:M$394,$H73)) -> 0 | N73: =IF($H73=0,0,INDEX(N$320:N$394,$H73)) -> 0 | O73: =IF($H73=0,0,INDEX(O$320:O$394,$H73)) -> 0 | P73: =IF($H73=0,0,INDEX(P$320:P$394,$H73)) -> 0 | Q73: =IF($H73=0,0,INDEX(Q$320:Q$394,$H73)) -> 0 | R73: =IF($H73=0,0,INDEX(R$320:R$394,$H73)) -> 0 | S73: =IF($H73=0,0,INDEX(S$320:S$394,$H73)) -> 0 | T73: =IF($H73=0,0,INDEX(T$320:T$394,$H73)) -> 0 | U73: =IF($H73=0,0,INDEX(U$320:U$394,$H73)) -> 0 | V73: =IF($H73=0,0,INDEX(V$320:V$394,$H73)) -> 0 | W73: =IF($H73=0,0,INDEX(W$320:W$394,$H73)) -> 0 | X73: =IF($H73=0,0,INDEX(X$320:X$394,$H73)) -> 0 | Y73: =IF($H73=0,0,INDEX(Y$320:Y$394,$H73)) -> 0 | Z73: =IF($H73=0,0,INDEX(Z$320:Z$394,$H73)) -> 0 | AA73: =IF($H73=0,0,INDEX(AA$320:AA$394,$H73)) -> 0 | AB73: =IF($H73=0,0,INDEX(AB$320:AB$394,$H73)) -> 0 | AC73: =IF($H73=0,0,INDEX(AC$800:AC$1034,$H73)) -> 0 | AD73: =IF(SUMPRODUCT(--_xlfn.ISFORMULA(C73:AB73))=26,"OK","CHECK") -> OK | AE73: =IF($H73=0,0,INDEX(AE$800:AE$1034,$H73)) -> 0 | AF73: =IF($H73=0,0,INDEX(AF$800:AF$1034,$H73)) -> 0 | AG73: =IF($H73=0,0,INDEX(AG$800:AG$1034,$H73)) -> 0 | AH73: =IF($H73=0,0,INDEX(AH$800:AH$1034,$H73)) -> 0 | AI73: =IF($H73=0,0,INDEX(AI$800:AI$1034,$H73)) -> 0 | AJ73: =IF($H73=0,0,INDEX(AJ$800:AJ$1034,$H73)) -> 0 | AK73: =IF($H73=0,0,INDEX(AK$800:AK$1034,$H73)) -> 0 | AL73: =IF($H73=0,0,INDEX(AL$800:AL$1034,$H73)) -> 0 | AM73: =IF($H73=0,0,INDEX(AM$800:AM$1034,$H73)) -> 0 | AN73: =IF($H73=0,0,INDEX(AN$800:AN$1034,$H73)) -> 0 | AO73: =IF($H73=0,0,INDEX(AO$800:AO$1034,$H73)) -> 0 | AP73: =IF($H73=0,0,INDEX(AP$800:AP$1034,$H73)) -> 0 | AQ73: =IF($H73=0,0,INDEX(AQ$800:AQ$1034,$H73)) -> 0 | AR73: =IF($H73=0,0,INDEX(AR$800:AR$1034,$H73)) -> 0
C74: 0 | D74: 0 | E74: 0 | F74: 0 | G74: 0 | H74: 0 | I74: =IF($H74=0,0,INDEX(I$320:I$394,$H74)) -> 0 | J74: =IF($H74=0,0,INDEX(J$320:J$394,$H74)) -> 0 | K74: =IF($H74=0,0,INDEX(K$320:K$394,$H74)) -> 0 | L74: =IF($H74=0,0,INDEX(L$320:L$394,$H74)) -> 0 | M74: =IF($H74=0,0,INDEX(M$320:M$394,$H74)) -> 0 | N74: =IF($H74=0,0,INDEX(N$320:N$394,$H74)) -> 0 | O74: =IF($H74=0,0,INDEX(O$320:O$394,$H74)) -> 0 | P74: =IF($H74=0,0,INDEX(P$320:P$394,$H74)) -> 0 | Q74: =IF($H74=0,0,INDEX(Q$320:Q$394,$H74)) -> 0 | R74: =IF($H74=0,0,INDEX(R$320:R$394,$H74)) -> 0 | S74: =IF($H74=0,0,INDEX(S$320:S$394,$H74)) -> 0 | T74: =IF($H74=0,0,INDEX(T$320:T$394,$H74)) -> 0 | U74: =IF($H74=0,0,INDEX(U$320:U$394,$H74)) -> 0 | V74: =IF($H74=0,0,INDEX(V$320:V$394,$H74)) -> 0 | W74: =IF($H74=0,0,INDEX(W$320:W$394,$H74)) -> 0 | X74: =IF($H74=0,0,INDEX(X$320:X$394,$H74)) -> 0 | Y74: =IF($H74=0,0,INDEX(Y$320:Y$394,$H74)) -> 0 | Z74: =IF($H74=0,0,INDEX(Z$320:Z$394,$H74)) -> 0 | AA74: =IF($H74=0,0,INDEX(AA$320:AA$394,$H74)) -> 0 | AB74: =IF($H74=0,0,INDEX(AB$320:AB$394,$H74)) -> 0 | AC74: =IF($H74=0,0,INDEX(AC$800:AC$1034,$H74)) -> 0 | AD74: =IF(SUMPRODUCT(--_xlfn.ISFORMULA(C74:AB74))=26,"OK","CHECK") -> OK | AE74: =IF($H74=0,0,INDEX(AE$800:AE$1034,$H74)) -> 0 | AF74: =IF($H74=0,0,INDEX(AF$800:AF$1034,$H74)) -> 0 | AG74: =IF($H74=0,0,INDEX(AG$800:AG$1034,$H74)) -> 0 | AH74: =IF($H74=0,0,INDEX(AH$800:AH$1034,$H74)) -> 0 | AI74: =IF($H74=0,0,INDEX(AI$800:AI$1034,$H74)) -> 0 | AJ74: =IF($H74=0,0,INDEX(AJ$800:AJ$1034,$H74)) -> 0 | AK74: =IF($H74=0,0,INDEX(AK$800:AK$1034,$H74)) -> 0 | AL74: =IF($H74=0,0,INDEX(AL$800:AL$1034,$H74)) -> 0 | AM74: =IF($H74=0,0,INDEX(AM$800:AM$1034,$H74)) -> 0 | AN74: =IF($H74=0,0,INDEX(AN$800:AN$1034,$H74)) -> 0 | AO74: =IF($H74=0,0,INDEX(AO$800:AO$1034,$H74)) -> 0 | AP74: =IF($H74=0,0,INDEX(AP$800:AP$1034,$H74)) -> 0 | AQ74: =IF($H74=0,0,INDEX(AQ$800:AQ$1034,$H74)) -> 0 | AR74: =IF($H74=0,0,INDEX(AR$800:AR$1034,$H74)) -> 0
C75: 0 | D75: 0 | E75: 0 | F75: 0 | G75: 0 | H75: 0 | I75: =IF($H75=0,0,INDEX(I$320:I$394,$H75)) -> 0 | J75: =IF($H75=0,0,INDEX(J$320:J$394,$H75)) -> 0 | K75: =IF($H75=0,0,INDEX(K$320:K$394,$H75)) -> 0 | L75: =IF($H75=0,0,INDEX(L$320:L$394,$H75)) -> 0 | M75: =IF($H75=0,0,INDEX(M$320:M$394,$H75)) -> 0 | N75: =IF($H75=0,0,INDEX(N$320:N$394,$H75)) -> 0 | O75: =IF($H75=0,0,INDEX(O$320:O$394,$H75)) -> 0 | P75: =IF($H75=0,0,INDEX(P$320:P$394,$H75)) -> 0 | Q75: =IF($H75=0,0,INDEX(Q$320:Q$394,$H75)) -> 0 | R75: =IF($H75=0,0,INDEX(R$320:R$394,$H75)) -> 0 | S75: =IF($H75=0,0,INDEX(S$320:S$394,$H75)) -> 0 | T75: =IF($H75=0,0,INDEX(T$320:T$394,$H75)) -> 0 | U75: =IF($H75=0,0,INDEX(U$320:U$394,$H75)) -> 0 | V75: =IF($H75=0,0,INDEX(V$320:V$394,$H75)) -> 0 | W75: =IF($H75=0,0,INDEX(W$320:W$394,$H75)) -> 0 | X75: =IF($H75=0,0,INDEX(X$320:X$394,$H75)) -> 0 | Y75: =IF($H75=0,0,INDEX(Y$320:Y$394,$H75)) -> 0 | Z75: =IF($H75=0,0,INDEX(Z$320:Z$394,$H75)) -> 0 | AA75: =IF($H75=0,0,INDEX(AA$320:AA$394,$H75)) -> 0 | AB75: =IF($H75=0,0,INDEX(AB$320:AB$394,$H75)) -> 0 | AC75: =IF($H75=0,0,INDEX(AC$800:AC$1034,$H75)) -> 0 | AD75: =IF(SUMPRODUCT(--_xlfn.ISFORMULA(C75:AB75))=26,"OK","CHECK") -> OK | AE75: =IF($H75=0,0,INDEX(AE$800:AE$1034,$H75)) -> 0 | AF75: =IF($H75=0,0,INDEX(AF$800:AF$1034,$H75)) -> 0 | AG75: =IF($H75=0,0,INDEX(AG$800:AG$1034,$H75)) -> 0 | AH75: =IF($H75=0,0,INDEX(AH$800:AH$1034,$H75)) -> 0 | AI75: =IF($H75=0,0,INDEX(AI$800:AI$1034,$H75)) -> 0 | AJ75: =IF($H75=0,0,INDEX(AJ$800:AJ$1034,$H75)) -> 0 | AK75: =IF($H75=0,0,INDEX(AK$800:AK$1034,$H75)) -> 0 | AL75: =IF($H75=0,0,INDEX(AL$800:AL$1034,$H75)) -> 0 | AM75: =IF($H75=0,0,INDEX(AM$800:AM$1034,$H75)) -> 0 | AN75: =IF($H75=0,0,INDEX(AN$800:AN$1034,$H75)) -> 0 | AO75: =IF($H75=0,0,INDEX(AO$800:AO$1034,$H75)) -> 0 | AP75: =IF($H75=0,0,INDEX(AP$800:AP$1034,$H75)) -> 0 | AQ75: =IF($H75=0,0,INDEX(AQ$800:AQ$1034,$H75)) -> 0 | AR75: =IF($H75=0,0,INDEX(AR$800:AR$1034,$H75)) -> 0
C76: 0 | D76: 0 | E76: 0 | F76: 0 | G76: 0 | H76: 0 | I76: =IF($H76=0,0,INDEX(I$320:I$394,$H76)) -> 0 | J76: =IF($H76=0,0,INDEX(J$320:J$394,$H76)) -> 0 | K76: =IF($H76=0,0,INDEX(K$320:K$394,$H76)) -> 0 | L76: =IF($H76=0,0,INDEX(L$320:L$394,$H76)) -> 0 | M76: =IF($H76=0,0,INDEX(M$320:M$394,$H76)) -> 0 | N76: =IF($H76=0,0,INDEX(N$320:N$394,$H76)) -> 0 | O76: =IF($H76=0,0,INDEX(O$320:O$394,$H76)) -> 0 | P76: =IF($H76=0,0,INDEX(P$320:P$394,$H76)) -> 0 | Q76: =IF($H76=0,0,INDEX(Q$320:Q$394,$H76)) -> 0 | R76: =IF($H76=0,0,INDEX(R$320:R$394,$H76)) -> 0 | S76: =IF($H76=0,0,INDEX(S$320:S$394,$H76)) -> 0 | T76: =IF($H76=0,0,INDEX(T$320:T$394,$H76)) -> 0 | U76: =IF($H76=0,0,INDEX(U$320:U$394,$H76)) -> 0 | V76: =IF($H76=0,0,INDEX(V$320:V$394,$H76)) -> 0 | W76: =IF($H76=0,0,INDEX(W$320:W$394,$H76)) -> 0 | X76: =IF($H76=0,0,INDEX(X$320:X$394,$H76)) -> 0 | Y76: =IF($H76=0,0,INDEX(Y$320:Y$394,$H76)) -> 0 | Z76: =IF($H76=0,0,INDEX(Z$320:Z$394,$H76)) -> 0 | AA76: =IF($H76=0,0,INDEX(AA$320:AA$394,$H76)) -> 0 | AB76: =IF($H76=0,0,INDEX(AB$320:AB$394,$H76)) -> 0 | AC76: =IF($H76=0,0,INDEX(AC$800:AC$1034,$H76)) -> 0 | AD76: =IF(SUMPRODUCT(--_xlfn.ISFORMULA(C76:AB76))=26,"OK","CHECK") -> OK | AE76: =IF($H76=0,0,INDEX(AE$800:AE$1034,$H76)) -> 0 | AF76: =IF($H76=0,0,INDEX(AF$800:AF$1034,$H76)) -> 0 | AG76: =IF($H76=0,0,INDEX(AG$800:AG$1034,$H76)) -> 0 | AH76: =IF($H76=0,0,INDEX(AH$800:AH$1034,$H76)) -> 0 | AI76: =IF($H76=0,0,INDEX(AI$800:AI$1034,$H76)) -> 0 | AJ76: =IF($H76=0,0,INDEX(AJ$800:AJ$1034,$H76)) -> 0 | AK76: =IF($H76=0,0,INDEX(AK$800:AK$1034,$H76)) -> 0 | AL76: =IF($H76=0,0,INDEX(AL$800:AL$1034,$H76)) -> 0 | AM76: =IF($H76=0,0,INDEX(AM$800:AM$1034,$H76)) -> 0 | AN76: =IF($H76=0,0,INDEX(AN$800:AN$1034,$H76)) -> 0 | AO76: =IF($H76=0,0,INDEX(AO$800:AO$1034,$H76)) -> 0 | AP76: =IF($H76=0,0,INDEX(AP$800:AP$1034,$H76)) -> 0 | AQ76: =IF($H76=0,0,INDEX(AQ$800:AQ$1034,$H76)) -> 0 | AR76: =IF($H76=0,0,INDEX(AR$800:AR$1034,$H76)) -> 0
C77: 0 | D77: 0 | E77: 0 | F77: 0 | G77: 0 | H77: 0 | I77: =IF($H77=0,0,INDEX(I$320:I$394,$H77)) -> 0 | J77: =IF($H77=0,0,INDEX(J$320:J$394,$H77)) -> 0 | K77: =IF($H77=0,0,INDEX(K$320:K$394,$H77)) -> 0 | L77: =IF($H77=0,0,INDEX(L$320:L$394,$H77)) -> 0 | M77: =IF($H77=0,0,INDEX(M$320:M$394,$H77)) -> 0 | N77: =IF($H77=0,0,INDEX(N$320:N$394,$H77)) -> 0 | O77: =IF($H77=0,0,INDEX(O$320:O$394,$H77)) -> 0 | P77: =IF($H77=0,0,INDEX(P$320:P$394,$H77)) -> 0 | Q77: =IF($H77=0,0,INDEX(Q$320:Q$394,$H77)) -> 0 | R77: =IF($H77=0,0,INDEX(R$320:R$394,$H77)) -> 0 | S77: =IF($H77=0,0,INDEX(S$320:S$394,$H77)) -> 0 | T77: =IF($H77=0,0,INDEX(T$320:T$394,$H77)) -> 0 | U77: =IF($H77=0,0,INDEX(U$320:U$394,$H77)) -> 0 | V77: =IF($H77=0,0,INDEX(V$320:V$394,$H77)) -> 0 | W77: =IF($H77=0,0,INDEX(W$320:W$394,$H77)) -> 0 | X77: =IF($H77=0,0,INDEX(X$320:X$394,$H77)) -> 0 | Y77: =IF($H77=0,0,INDEX(Y$320:Y$394,$H77)) -> 0 | Z77: =IF($H77=0,0,INDEX(Z$320:Z$394,$H77)) -> 0 | AA77: =IF($H77=0,0,INDEX(AA$320:AA$394,$H77)) -> 0 | AB77: =IF($H77=0,0,INDEX(AB$320:AB$394,$H77)) -> 0 | AC77: =IF($H77=0,0,INDEX(AC$800:AC$1034,$H77)) -> 0 | AD77: =IF(SUMPRODUCT(--_xlfn.ISFORMULA(C77:AB77))=26,"OK","CHECK") -> OK | AE77: =IF($H77=0,0,INDEX(AE$800:AE$1034,$H77)) -> 0 | AF77: =IF($H77=0,0,INDEX(AF$800:AF$1034,$H77)) -> 0 | AG77: =IF($H77=0,0,INDEX(AG$800:AG$1034,$H77)) -> 0 | AH77: =IF($H77=0,0,INDEX(AH$800:AH$1034,$H77)) -> 0 | AI77: =IF($H77=0,0,INDEX(AI$800:AI$1034,$H77)) -> 0 | AJ77: =IF($H77=0,0,INDEX(AJ$800:AJ$1034,$H77)) -> 0 | AK77: =IF($H77=0,0,INDEX(AK$800:AK$1034,$H77)) -> 0 | AL77: =IF($H77=0,0,INDEX(AL$800:AL$1034,$H77)) -> 0 | AM77: =IF($H77=0,0,INDEX(AM$800:AM$1034,$H77)) -> 0 | AN77: =IF($H77=0,0,INDEX(AN$800:AN$1034,$H77)) -> 0 | AO77: =IF($H77=0,0,INDEX(AO$800:AO$1034,$H77)) -> 0 | AP77: =IF($H77=0,0,INDEX(AP$800:AP$1034,$H77)) -> 0 | AQ77: =IF($H77=0,0,INDEX(AQ$800:AQ$1034,$H77)) -> 0 | AR77: =IF($H77=0,0,INDEX(AR$800:AR$1034,$H77)) -> 0
C78: 0 | D78: 0 | E78: 0 | F78: 0 | G78: 0 | H78: 0 | I78: =IF($H78=0,0,INDEX(I$320:I$394,$H78)) -> 0 | J78: =IF($H78=0,0,INDEX(J$320:J$394,$H78)) -> 0 | K78: =IF($H78=0,0,INDEX(K$320:K$394,$H78)) -> 0 | L78: =IF($H78=0,0,INDEX(L$320:L$394,$H78)) -> 0 | M78: =IF($H78=0,0,INDEX(M$320:M$394,$H78)) -> 0 | N78: =IF($H78=0,0,INDEX(N$320:N$394,$H78)) -> 0 | O78: =IF($H78=0,0,INDEX(O$320:O$394,$H78)) -> 0 | P78: =IF($H78=0,0,INDEX(P$320:P$394,$H78)) -> 0 | Q78: =IF($H78=0,0,INDEX(Q$320:Q$394,$H78)) -> 0 | R78: =IF($H78=0,0,INDEX(R$320:R$394,$H78)) -> 0 | S78: =IF($H78=0,0,INDEX(S$320:S$394,$H78)) -> 0 | T78: =IF($H78=0,0,INDEX(T$320:T$394,$H78)) -> 0 | U78: =IF($H78=0,0,INDEX(U$320:U$394,$H78)) -> 0 | V78: =IF($H78=0,0,INDEX(V$320:V$394,$H78)) -> 0 | W78: =IF($H78=0,0,INDEX(W$320:W$394,$H78)) -> 0 | X78: =IF($H78=0,0,INDEX(X$320:X$394,$H78)) -> 0 | Y78: =IF($H78=0,0,INDEX(Y$320:Y$394,$H78)) -> 0 | Z78: =IF($H78=0,0,INDEX(Z$320:Z$394,$H78)) -> 0 | AA78: =IF($H78=0,0,INDEX(AA$320:AA$394,$H78)) -> 0 | AB78: =IF($H78=0,0,INDEX(AB$320:AB$394,$H78)) -> 0 | AC78: =IF($H78=0,0,INDEX(AC$800:AC$1034,$H78)) -> 0 | AD78: =IF(SUMPRODUCT(--_xlfn.ISFORMULA(C78:AB78))=26,"OK","CHECK") -> OK | AE78: =IF($H78=0,0,INDEX(AE$800:AE$1034,$H78)) -> 0 | AF78: =IF($H78=0,0,INDEX(AF$800:AF$1034,$H78)) -> 0 | AG78: =IF($H78=0,0,INDEX(AG$800:AG$1034,$H78)) -> 0 | AH78: =IF($H78=0,0,INDEX(AH$800:AH$1034,$H78)) -> 0 | AI78: =IF($H78=0,0,INDEX(AI$800:AI$1034,$H78)) -> 0 | AJ78: =IF($H78=0,0,INDEX(AJ$800:AJ$1034,$H78)) -> 0 | AK78: =IF($H78=0,0,INDEX(AK$800:AK$1034,$H78)) -> 0 | AL78: =IF($H78=0,0,INDEX(AL$800:AL$1034,$H78)) -> 0 | AM78: =IF($H78=0,0,INDEX(AM$800:AM$1034,$H78)) -> 0 | AN78: =IF($H78=0,0,INDEX(AN$800:AN$1034,$H78)) -> 0 | AO78: =IF($H78=0,0,INDEX(AO$800:AO$1034,$H78)) -> 0 | AP78: =IF($H78=0,0,INDEX(AP$800:AP$1034,$H78)) -> 0 | AQ78: =IF($H78=0,0,INDEX(AQ$800:AQ$1034,$H78)) -> 0 | AR78: =IF($H78=0,0,INDEX(AR$800:AR$1034,$H78)) -> 0
C79: 0 | D79: 0 | E79: 0 | F79: 0 | G79: 0 | H79: 0 | I79: =IF($H79=0,0,INDEX(I$320:I$394,$H79)) -> 0 | J79: =IF($H79=0,0,INDEX(J$320:J$394,$H79)) -> 0 | K79: =IF($H79=0,0,INDEX(K$320:K$394,$H79)) -> 0 | L79: =IF($H79=0,0,INDEX(L$320:L$394,$H79)) -> 0 | M79: =IF($H79=0,0,INDEX(M$320:M$394,$H79)) -> 0 | N79: =IF($H79=0,0,INDEX(N$320:N$394,$H79)) -> 0 | O79: =IF($H79=0,0,INDEX(O$320:O$394,$H79)) -> 0 | P79: =IF($H79=0,0,INDEX(P$320:P$394,$H79)) -> 0 | Q79: =IF($H79=0,0,INDEX(Q$320:Q$394,$H79)) -> 0 | R79: =IF($H79=0,0,INDEX(R$320:R$394,$H79)) -> 0 | S79: =IF($H79=0,0,INDEX(S$320:S$394,$H79)) -> 0 | T79: =IF($H79=0,0,INDEX(T$320:T$394,$H79)) -> 0 | U79: =IF($H79=0,0,INDEX(U$320:U$394,$H79)) -> 0 | V79: =IF($H79=0,0,INDEX(V$320:V$394,$H79)) -> 0 | W79: =IF($H79=0,0,INDEX(W$320:W$394,$H79)) -> 0 | X79: =IF($H79=0,0,INDEX(X$320:X$394,$H79)) -> 0 | Y79: =IF($H79=0,0,INDEX(Y$320:Y$394,$H79)) -> 0 | Z79: =IF($H79=0,0,INDEX(Z$320:Z$394,$H79)) -> 0 | AA79: =IF($H79=0,0,INDEX(AA$320:AA$394,$H79)) -> 0 | AB79: =IF($H79=0,0,INDEX(AB$320:AB$394,$H79)) -> 0 | AC79: =IF($H79=0,0,INDEX(AC$800:AC$1034,$H79)) -> 0 | AD79: =IF(SUMPRODUCT(--_xlfn.ISFORMULA(C79:AB79))=26,"OK","CHECK") -> OK | AE79: =IF($H79=0,0,INDEX(AE$800:AE$1034,$H79)) -> 0 | AF79: =IF($H79=0,0,INDEX(AF$800:AF$1034,$H79)) -> 0 | AG79: =IF($H79=0,0,INDEX(AG$800:AG$1034,$H79)) -> 0 | AH79: =IF($H79=0,0,INDEX(AH$800:AH$1034,$H79)) -> 0 | AI79: =IF($H79=0,0,INDEX(AI$800:AI$1034,$H79)) -> 0 | AJ79: =IF($H79=0,0,INDEX(AJ$800:AJ$1034,$H79)) -> 0 | AK79: =IF($H79=0,0,INDEX(AK$800:AK$1034,$H79)) -> 0 | AL79: =IF($H79=0,0,INDEX(AL$800:AL$1034,$H79)) -> 0 | AM79: =IF($H79=0,0,INDEX(AM$800:AM$1034,$H79)) -> 0 | AN79: =IF($H79=0,0,INDEX(AN$800:AN$1034,$H79)) -> 0 | AO79: =IF($H79=0,0,INDEX(AO$800:AO$1034,$H79)) -> 0 | AP79: =IF($H79=0,0,INDEX(AP$800:AP$1034,$H79)) -> 0 | AQ79: =IF($H79=0,0,INDEX(AQ$800:AQ$1034,$H79)) -> 0 | AR79: =IF($H79=0,0,INDEX(AR$800:AR$1034,$H79)) -> 0
C80: 0 | D80: 0 | E80: 0 | F80: 0 | G80: 0 | H80: 0 | I80: =IF($H80=0,0,INDEX(I$320:I$394,$H80)) -> 0 | J80: =IF($H80=0,0,INDEX(J$320:J$394,$H80)) -> 0 | K80: =IF($H80=0,0,INDEX(K$320:K$394,$H80)) -> 0 | L80: =IF($H80=0,0,INDEX(L$320:L$394,$H80)) -> 0 | M80: =IF($H80=0,0,INDEX(M$320:M$394,$H80)) -> 0 | N80: =IF($H80=0,0,INDEX(N$320:N$394,$H80)) -> 0 | O80: =IF($H80=0,0,INDEX(O$320:O$394,$H80)) -> 0 | P80: =IF($H80=0,0,INDEX(P$320:P$394,$H80)) -> 0 | Q80: =IF($H80=0,0,INDEX(Q$320:Q$394,$H80)) -> 0 | R80: =IF($H80=0,0,INDEX(R$320:R$394,$H80)) -> 0 | S80: =IF($H80=0,0,INDEX(S$320:S$394,$H80)) -> 0 | T80: =IF($H80=0,0,INDEX(T$320:T$394,$H80)) -> 0 | U80: =IF($H80=0,0,INDEX(U$320:U$394,$H80)) -> 0 | V80: =IF($H80=0,0,INDEX(V$320:V$394,$H80)) -> 0 | W80: =IF($H80=0,0,INDEX(W$320:W$394,$H80)) -> 0 | X80: =IF($H80=0,0,INDEX(X$320:X$394,$H80)) -> 0 | Y80: =IF($H80=0,0,INDEX(Y$320:Y$394,$H80)) -> 0 | Z80: =IF($H80=0,0,INDEX(Z$320:Z$394,$H80)) -> 0 | AA80: =IF($H80=0,0,INDEX(AA$320:AA$394,$H80)) -> 0 | AB80: =IF($H80=0,0,INDEX(AB$320:AB$394,$H80)) -> 0 | AC80: =IF($H80=0,0,INDEX(AC$800:AC$1034,$H80)) -> 0 | AD80: =IF(SUMPRODUCT(--_xlfn.ISFORMULA(C80:AB80))=26,"OK","CHECK") -> OK | AE80: =IF($H80=0,0,INDEX(AE$800:AE$1034,$H80)) -> 0 | AF80: =IF($H80=0,0,INDEX(AF$800:AF$1034,$H80)) -> 0 | AG80: =IF($H80=0,0,INDEX(AG$800:AG$1034,$H80)) -> 0 | AH80: =IF($H80=0,0,INDEX(AH$800:AH$1034,$H80)) -> 0 | AI80: =IF($H80=0,0,INDEX(AI$800:AI$1034,$H80)) -> 0 | AJ80: =IF($H80=0,0,INDEX(AJ$800:AJ$1034,$H80)) -> 0 | AK80: =IF($H80=0,0,INDEX(AK$800:AK$1034,$H80)) -> 0 | AL80: =IF($H80=0,0,INDEX(AL$800:AL$1034,$H80)) -> 0 | AM80: =IF($H80=0,0,INDEX(AM$800:AM$1034,$H80)) -> 0 | AN80: =IF($H80=0,0,INDEX(AN$800:AN$1034,$H80)) -> 0 | AO80: =IF($H80=0,0,INDEX(AO$800:AO$1034,$H80)) -> 0 | AP80: =IF($H80=0,0,INDEX(AP$800:AP$1034,$H80)) -> 0 | AQ80: =IF($H80=0,0,INDEX(AQ$800:AQ$1034,$H80)) -> 0 | AR80: =IF($H80=0,0,INDEX(AR$800:AR$1034,$H80)) -> 0
B83: ="Tariff schedule 3 | "&forecastyear&" prices" -> Tariff schedule 3 | 2026–27 prices | D83: Tariff class | E83: =tariffid1 -> Code | F83: =tariffid2 -> Other identifier | G83: =tariffid3 -> Other identifier | I83: ='Prop. prices'!I5 -> Fixed | J83: ='Prop. prices'!J5 -> Anytime | K83: ='Prop. prices'!K5 -> Block 1 | L83: ='Prop. prices'!L5 -> Block 2 | M83: ='Prop. prices'!M5 -> Peak | N83: ='Prop. prices'!N5 -> Shoulder | O83: ='Prop. prices'!O5 -> Summer peak | P83: ='Prop. prices'!P5 -> Summer shoulder | Q83: ='Prop. prices'!Q5 -> Winter peak | R83: ='Prop. prices'!R5 -> Off-peak | S83: ='Prop. prices'!S5 -> Dedicated | T83: ='Prop. prices'!T5 -> Solar soak | U83: ='Prop. prices'!U5 -> Export charge | V83: ='Prop. prices'!V5 -> Export reward | W83: ='Prop. prices'!W5 -> Capacity | X83: ='Prop. prices'!X5 -> Critical peak | Y83: ='Prop. prices'!Y5 -> Monthly peak | Z83: ='Prop. prices'!Z5 -> Monthly off-peak | AA83: ='Prop. prices'!AA5 -> Rebate | AB83: ='Prop. prices'!AB5 -> HIST - Feed in
I84: ='Prop. prices'!I6 -> $/year | J84: ='Prop. prices'!J6 -> cents/kWh | K84: ='Prop. prices'!K6 -> cents/kWh | L84: ='Prop. prices'!L6 -> cents/kWh | M84: ='Prop. prices'!M6 -> cents/kWh | N84: ='Prop. prices'!N6 -> cents/kWh | O84: ='Prop. prices'!O6 -> cents/kWh | P84: ='Prop. prices'!P6 -> cents/kWh | Q84: ='Prop. prices'!Q6 -> cents/kWh | R84: ='Prop. prices'!R6 -> cents/kWh | S84: ='Prop. prices'!S6 -> cents/kWh | T84: ='Prop. prices'!T6 -> cents/kWh | U84: ='Prop. prices'!U6 -> cents/kWh | V84: ='Prop. prices'!V6 -> cents/kWh | W84: ='Prop. prices'!W6 -> $/kVA/year | X84: ='Prop. prices'!X6 -> $/kVA/year | Y84: ='Prop. prices'!Y6 -> $/kW | Z84: ='Prop. prices'!Z6 -> $/kW | AA84: ='Prop. prices'!AA6 -> $ | AB84: ='Prop. prices'!AB6 -> cents/kWh
C85: Total network prices
C86: =Qty!C36 -> Small single rate | D86: =Qty!D36 -> Residential | E86: =Qty!E36 -> NEE11 | F86: =Qty!F36 -> 0 | G86: =Qty!G36 -> 0 | I86: =I164+I242+I320 -> 145.3052217 | J86: 0 | K86: 13.4296516 | L86: 13.4296516 | M86: 0 | N86: 0 | O86: 0 | P86: 0 | Q86: 0 | R86: 0 | S86: 0 | T86: 0 | U86: 0 | V86: 0 | W86: 0 | X86: 0 | Y86: 0 | Z86: 0 | AA86: 0 | AB86: 0 | AD86: =IF(SUMPRODUCT(--_xlfn.ISFORMULA(C86:AB86))=25,"OK","CHECK") -> OK
C87: =Qty!C37 -> Small single rate standard feed in | D87: =Qty!D37 -> Residential | E87: =Qty!E37 -> NEE11S | F87: =Qty!F37 -> 0 | G87: =Qty!G37 -> 0 | I87: 145.3052217 | J87: 0 | K87: 13.4296516 | L87: 13.4296516 | M87: 0 | N87: 0 | O87: 0 | P87: 0 | Q87: 0 | R87: 0 | S87: 0 | T87: 0 | U87: 0 | V87: 0 | W87: 0 | X87: 0 | Y87: 0 | Z87: 0 | AA87: 0 | AB87: 0 | AD87: =IF(SUMPRODUCT(--_xlfn.ISFORMULA(C87:AB87))=25,"OK","CHECK") -> OK
C88: =Qty!C38 -> Small single rate & dedicated circuit 24 hour | D88: =Qty!D38 -> Residential | E88: =Qty!E38 -> NEE19 | F88: =Qty!F38 -> 0 | G88: =Qty!G38 -> 0 | I88: 145.3052217 | J88: 0 | K88: 13.4296516 | L88: 13.4296516 | M88: 0 | N88: 0 | O88: 0 | P88: 0 | Q88: 0 | R88: 0 | S88: 4.90046407 | T88: 0 | U88: 0 | V88: 0 | W88: 0 | X88: 0 | Y88: 0 | Z88: 0 | AA88: 0 | AB88: 0 | AD88: =IF(SUMPRODUCT(--_xlfn.ISFORMULA(C88:AB88))=25,"OK","CHECK") -> OK
C89: =Qty!C39 -> Small residential time of use | D89: =Qty!D39 -> Residential | E89: =Qty!E39 -> NASS11 | F89: =Qty!F39 -> 0 | G89: =Qty!G39 -> 0 | I89: 145.3052217 | J89: 0 | K89: 0 | L89: 0 | M89: 26.95562084 | N89: 0 | O89: 0 | P89: 0 | Q89: 0 | R89: 5.329943883 | S89: 0 | T89: 1 | U89: 0 | V89: 0 | W89: 0 | X89: 0 | Y89: 0 | Z89: 0 | AA89: 0 | AB89: 0 | AD89: =IF(SUMPRODUCT(--_xlfn.ISFORMULA(C89:AB89))=25,"OK","CHECK") -> OK
C90: =Qty!C40 -> Small residential time of use standard feed in | D90: =Qty!D40 -> Residential | E90: =Qty!E40 -> NASS11S | F90: =Qty!F40 -> 0 | G90: =Qty!G40 -> 0 | I90: 145.3052217 | J90: 0 | K90: 0 | L90: 0 | M90: 26.95562084 | N90: 0 | O90: 0 | P90: 0 | Q90: 0 | R90: 5.329943883 | S90: 0 | T90: 1 | U90: 0 | V90: 0 | W90: 0 | X90: 0 | Y90: 0 | Z90: 0 | AA90: 0 | AB90: 0 | AD90: =IF(SUMPRODUCT(--_xlfn.ISFORMULA(C90:AB90))=25,"OK","CHECK") -> OK
C91: =Qty!C41 -> Small residential time of use & dedicated circuit 24 hour | D91: =Qty!D41 -> Residential | E91: =Qty!E41 -> NAST17 | F91: =Qty!F41 -> 0 | G91: =Qty!G41 -> 0 | I91: 145.3052217 | J91: 0 | K91: 0 | L91: 0 | M91: 26.95562084 | N91: 0 | O91: 0 | P91: 0 | Q91: 0 | R91: 5.329943883 | S91: 4.90046407 | T91: 1 | U91: 0 | V91: 0 | W91: 0 | X91: 0 | Y91: 0 | Z91: 0 | AA91: 0 | AB91: 0 | AD91: =IF(SUMPRODUCT(--_xlfn.ISFORMULA(C91:AB91))=25,"OK","CHECK") -> OK
C92: =Qty!C42 -> Small two rate 8:00 to 8:00 | D92: =Qty!D42 -> Residential | E92: =Qty!E42 -> NEE24 | F92: =Qty!F42 -> 0 | G92: =Qty!G42 -> 0 | I92: 145.3052217 | J92: 0 | K92: 0 | L92: 0 | M92: 12.05344374 | N92: 0 | O92: 0 | P92: 0 | Q92: 0 | R92: 4.681307018 | S92: 0 | T92: 0 | U92: 0 | V92: 0 | W92: 0 | X92: 0 | Y92: 0 | Z92: 0 | AA92: 0 | AB92: 0 | AD92: =IF(SUMPRODUCT(--_xlfn.ISFORMULA(C92:AB92))=25,"OK","CHECK") -> OK
C93: =Qty!C43 -> Small interval meter time of use | D93: =Qty!D43 -> Residential | E93: =Qty!E43 -> NSP20 | F93: =Qty!F43 -> 0 | G93: =Qty!G43 -> 0 | I93: 145.3052217 | J93: 0 | K93: 0 | L93: 0 | M93: 0 | N93: 0 | O93: 47.80297447 | P93: 42.25958132 | Q93: 37.41485663 | R93: 4.838359436 | S93: 0 | T93: 0 | U93: 0 | V93: 0 | W93: 0 | X93: 0 | Y93: 0 | Z93: 0 | AA93: 0 | AB93: 0 | AD93: =IF(SUMPRODUCT(--_xlfn.ISFORMULA(C93:AB93))=25,"OK","CHECK") -> OK
C94: =Qty!C44 -> Small interval meter time of use solar installation standard feed in | D94: =Qty!D44 -> Residential | E94: =Qty!E44 -> NSP23 | F94: =Qty!F44 -> 0 | G94: =Qty!G44 -> 0 | I94: 145.3052217 | J94: 0 | K94: 0 | L94: 0 | M94: 0 | N94: 0 | O94: 47.80297447 | P94: 42.25958132 | Q94: 37.41485663 | R94: 4.838359436 | S94: 0 | T94: 0 | U94: 0 | V94: 0 | W94: 0 | X94: 0 | Y94: 0 | Z94: 0 | AA94: 0 | AB94: 0 | AD94: =IF(SUMPRODUCT(--_xlfn.ISFORMULA(C94:AB94))=25,"OK","CHECK") -> OK
C95: =Qty!C45 -> Small dedicated circuit | D95: =Qty!D45 -> Residential | E95: =Qty!E45 -> NEE30 | F95: =Qty!F45 -> 0 | G95: =Qty!G45 -> 0 | I95: 0 | J95: 0 | K95: 0 | L95: 0 | M95: 0 | N95: 0 | O95: 0 | P95: 0 | Q95: 0 | R95: 0 | S95: 4.90046407 | T95: 0 | U95: 0 | V95: 0 | W95: 0 | X95: 0 | Y95: 0 | Z95: 0 | AA95: 0 | AB95: 0 | AD95: =IF(SUMPRODUCT(--_xlfn.ISFORMULA(C95:AB95))=25,"OK","CHECK") -> OK
C96: =Qty!C46 -> Small dedicated circuit with afternoon boost | D96: =Qty!D46 -> Residential | E96: =Qty!E46 -> NEE31 | F96: =Qty!F46 -> 0 | G96: =Qty!G46 -> 0 | I96: 0 | J96: 0 | K96: 0 | L96: 0 | M96: 0 | N96: 0 | O96: 0 | P96: 0 | Q96: 0 | R96: 0 | S96: 4.90046407 | T96: 0 | U96: 0 | V96: 0 | W96: 0 | X96: 0 | Y96: 0 | Z96: 0 | AA96: 0 | AB96: 0 | AD96: =IF(SUMPRODUCT(--_xlfn.ISFORMULA(C96:AB96))=25,"OK","CHECK") -> OK
C97: =Qty!C47 -> Small dedicated circuit 8:00 to 8:00 | D97: =Qty!D47 -> Residential | E97: =Qty!E47 -> NEE32 | F97: =Qty!F47 -> 0 | G97: =Qty!G47 -> 0 | I97: 0 | J97: 0 | K97: 0 | L97: 0 | M97: 0 | N97: 0 | O97: 0 | P97: 0 | Q97: 0 | R97: 0 | S97: 4.90046407 | T97: 0 | U97: 0 | V97: 0 | W97: 0 | X97: 0 | Y97: 0 | Z97: 0 | AA97: 0 | AB97: 0 | AD97: =IF(SUMPRODUCT(--_xlfn.ISFORMULA(C97:AB97))=25,"OK","CHECK") -> OK
C98: =Qty!C48 -> Small dedicated circuit 24 hour | D98: =Qty!D48 -> Residential | E98: =Qty!E48 -> NEE33 | F98: =Qty!F48 -> 0 | G98: =Qty!G48 -> 0 | I98: 0 | J98: 0 | K98: 0 | L98: 0 | M98: 0 | N98: 0 | O98: 0 | P98: 0 | Q98: 0 | R98: 0 | S98: 4.90046407 | T98: 0 | U98: 0 | V98: 0 | W98: 0 | X98: =X176+X254+X332 -> 0 | Y98: =Y176+Y254+Y332 -> 0 | Z98: =Z176+Z254+Z332 -> 0 | AA98: =AA176+AA254+AA332 -> 0 | AB98: =AB176+AB254+AB332 -> 0 | AD98: =IF(SUMPRODUCT(--_xlfn.ISFORMULA(C98:AB98))=25,"OK","CHECK") -> OK
C99: =Qty!C49 -> Residential CER | D99: =Qty!D49 -> Residential | E99: =Qty!E49 -> RCER11 | F99: =Qty!F49 -> 0 | G99: =Qty!G49 -> 0 | I99: =I177+I255+I333 -> 145.3052217 | J99: 0 | K99: 0 | L99: 0 | M99: 26.95562084 | N99: 0 | O99: 0 | P99: 0 | Q99: 0 | R99: 5.329943883 | S99: 0 | T99: 1 | U99: 1 | V99: -10 | W99: 0 | X99: 0 | Y99: 0 | Z99: 0 | AA99: 0 | AB99: 0 | AD99: =IF(SUMPRODUCT(--_xlfn.ISFORMULA(C99:AB99))=25,"OK","CHECK") -> OK
C100: =Qty!C50 -> 0 | D100: =Qty!D50 -> 0 | E100: =Qty!E50 -> 0 | F100: =Qty!F50 -> 0 | G100: =Qty!G50 -> 0 | I100: 0 | J100: 0 | K100: 0 | L100: 0 | M100: 0 | N100: 0 | O100: 0 | P100: 0 | Q100: 0 | R100: 0 | S100: 0 | T100: 0 | U100: 0 | V100: 0 | W100: 0 | X100: 0 | Y100: 0 | Z100: 0 | AA100: 0 | AB100: 0 | AD100: =IF(SUMPRODUCT(--_xlfn.ISFORMULA(C100:AB100))=25,"OK","CHECK") -> OK
C101: =Qty!C51 -> Small business single rate | D101: =Qty!D51 -> Small industrial & commercial | E101: =Qty!E51 -> NEE12 | F101: =Qty!F51 -> 0 | G101: =Qty!G51 -> 0 | I101: 148.9378522 | J101: 0 | K101: 17.60728387 | L101: 17.60728387 | M101: 0 | N101: 0 | O101: 0 | P101: 0 | Q101: 0 | R101: 0 | S101: 0 | T101: 0 | U101: 0 | V101: 0 | W101: 0 | X101: 0 | Y101: 0 | Z101: 0 | AA101: 0 | AB101: 0 | AD101: =IF(SUMPRODUCT(--_xlfn.ISFORMULA(C101:AB101))=25,"OK","CHECK") -> OK
C102: =Qty!C52 -> Small business single rate standard feed in | D102: =Qty!D52 -> Small industrial & commercial | E102: =Qty!E52 -> NEE12S | F102: =Qty!F52 -> 0 | G102: =Qty!G52 -> 0 | I102: 148.9378522 | J102: 0 | K102: 17.60728387 | L102: 17.60728387 | M102: 0 | N102: 0 | O102: 0 | P102: 0 | Q102: 0 | R102: 0 | S102: 0 | T102: 0 | U102: 0 | V102: 0 | W102: 0 | X102: 0 | Y102: 0 | Z102: 0 | AA102: 0 | AB102: 0 | AD102: =IF(SUMPRODUCT(--_xlfn.ISFORMULA(C102:AB102))=25,"OK","CHECK") -> OK
C103: =Qty!C53 -> Small business single rate & dedicated circuit | D103: =Qty!D53 -> Small industrial & commercial | E103: =Qty!E53 -> NEE16 | F103: =Qty!F53 -> 0 | G103: =Qty!G53 -> 0 | I103: 148.9378522 | J103: 0 | K103: 17.60728387 | L103: 17.60728387 | M103: 0 | N103: 0 | O103: 0 | P103: 0 | Q103: 0 | R103: 0 | S103: 4.889221898 | T103: 0 | U103: 0 | V103: 0 | W103: 0 | X103: 0 | Y103: 0 | Z103: 0 | AA103: 0 | AB103: 0 | AD103: =IF(SUMPRODUCT(--_xlfn.ISFORMULA(C103:AB103))=25,"OK","CHECK") -> OK
C104: =Qty!C54 -> Small business single rate & dedicated circuit with afternoon boost | D104: =Qty!D54 -> Small industrial & commercial | E104: =Qty!E54 -> NEE17 | F104: =Qty!F54 -> 0 | G104: =Qty!G54 -> 0 | I104: 148.9378522 | J104: 0 | K104: 17.60728387 | L104: 17.60728387 | M104: 0 | N104: 0 | O104: 0 | P104: 0 | Q104: 0 | R104: 0 | S104: 4.889221898 | T104: 0 | U104: 0 | V104: 0 | W104: 0 | X104: 0 | Y104: 0 | Z104: 0 | AA104: 0 | AB104: 0 | AD104: =IF(SUMPRODUCT(--_xlfn.ISFORMULA(C104:AB104))=25,"OK","CHECK") -> OK
C105: =Qty!C55 -> Small business single rate & dedicated circuit 8:00 to 8:00 | D105: =Qty!D55 -> Small industrial & commercial | E105: =Qty!E55 -> NEE18 | F105: =Qty!F55 -> 0 | G105: =Qty!G55 -> 0 | I105: 148.9378522 | J105: 0 | K105: 17.60728387 | L105: 17.60728387 | M105: 0 | N105: 0 | O105: 0 | P105: 0 | Q105: 0 | R105: 0 | S105: 4.889221898 | T105: 0 | U105: 0 | V105: 0 | W105: 0 | X105: 0 | Y105: 0 | Z105: 0 | AA105: 0 | AB105: 0 | AD105: =IF(SUMPRODUCT(--_xlfn.ISFORMULA(C105:AB105))=25,"OK","CHECK") -> OK
C106: =Qty!C56 -> Small business time of use | D106: =Qty!D56 -> Small industrial & commercial | E106: =Qty!E56 -> NAST12 | F106: =Qty!F56 -> 0 | G106: =Qty!G56 -> 0 | I106: 148.9378522 | J106: 0 | K106: 0 | L106: 0 | M106: 20.77312399 | N106: 0 | O106: 0 | P106: 0 | Q106: 0 | R106: 4.879130184 | S106: 0 | T106: 0 | U106: 0 | V106: 0 | W106: 0 | X106: 0 | Y106: 0 | Z106: 0 | AA106: 0 | AB106: 0 | AD106: =IF(SUMPRODUCT(--_xlfn.ISFORMULA(C106:AB106))=25,"OK","CHECK") -> OK
C107: =Qty!C57 -> Small business time of use standard feed in | D107: =Qty!D57 -> Small industrial & commercial | E107: =Qty!E57 -> NAST12S | F107: =Qty!F57 -> 0 | G107: =Qty!G57 -> 0 | I107: 148.9378522 | J107: 0 | K107: 0 | L107: 0 | M107: 20.77312399 | N107: 0 | O107: 0 | P107: 0 | Q107: 0 | R107: 4.879130184 | S107: 0 | T107: 0 | U107: 0 | V107: 0 | W107: 0 | X107: 0 | Y107: 0 | Z107: 0 | AA107: 0 | AB107: 0 | AD107: =IF(SUMPRODUCT(--_xlfn.ISFORMULA(C107:AB107))=25,"OK","CHECK") -> OK
C108: =Qty!C58 -> Small business single rate demand | D108: =Qty!D58 -> Small industrial & commercial | E108: =Qty!E58 -> NASN12 | F108: =Qty!F58 -> 0 | G108: =Qty!G58 -> 0 | I108: 148.9378522 | J108: 16.79588897 | K108: 0 | L108: 0 | M108: 0 | N108: 0 | O108: 0 | P108: 0 | Q108: 0 | R108: 0 | S108: 0 | T108: 0 | U108: 0 | V108: 0 | W108: 0 | X108: 0 | Y108: 11.47253155 | Z108: 2.862194725 | AA108: 0 | AB108: 0 | AD108: =IF(SUMPRODUCT(--_xlfn.ISFORMULA(C108:AB108))=25,"OK","CHECK") -> OK
C109: =Qty!C59 -> Small business single rate demand standard feed in | D109: =Qty!D59 -> Small industrial & commercial | E109: =Qty!E59 -> NASN12S | F109: =Qty!F59 -> 0 | G109: =Qty!G59 -> 0 | I109: 148.9378522 | J109: 16.79588897 | K109: 0 | L109: 0 | M109: 0 | N109: 0 | O109: 0 | P109: 0 | Q109: 0 | R109: 0 | S109: 0 | T109: 0 | U109: 0 | V109: 0 | W109: 0 | X109: 0 | Y109: 11.47253155 | Z109: 2.862194725 | AA109: 0 | AB109: 0 | AD109: =IF(SUMPRODUCT(--_xlfn.ISFORMULA(C109:AB109))=25,"OK","CHECK") -> OK
C110: =Qty!C60 -> Business > 40 MWh single rate demand | D110: =Qty!D60 -> Small industrial & commercial | E110: =Qty!E60 -> NASN19 | F110: =Qty!F60 -> 0 | G110: =Qty!G60 -> 0 | I110: 156.2031133 | J110: 19.40606798 | K110: 0 | L110: 0 | M110: 0 | N110: 0 | O110: 0 | P110: 0 | Q110: 0 | R110: 0 | S110: 0 | T110: 0 | U110: 0 | V110: 0 | W110: 0 | X110: 0 | Y110: 9.193294026 | Z110: 2.293565073 | AA110: 0 | AB110: 0 | AD110: =IF(SUMPRODUCT(--_xlfn.ISFORMULA(C110:AB110))=25,"OK","CHECK") -> OK
C111: =Qty!C61 -> Business > 40 MWh two rate demand | D111: =Qty!D61 -> Small industrial & commercial | E111: =Qty!E61 -> NASN21 | F111: =Qty!F61 -> 0 | G111: =Qty!G61 -> 0 | I111: 156.2031133 | J111: 0 | K111: 0 | L111: 0 | M111: 19.38040383 | N111: 0 | O111: 0 | P111: 0 | Q111: 0 | R111: 4.724104553 | S111: 0 | T111: 0 | U111: 0 | V111: 0 | W111: 0 | X111: =X189+X267+X345 -> 0 | Y111: =Y189+Y267+Y345 -> 9.193294026 | Z111: =Z189+Z267+Z345 -> 2.293565073 | AA111: =AA189+AA267+AA345 -> 0 | AB111: =AB189+AB267+AB345 -> 0 | AD111: =IF(SUMPRODUCT(--_xlfn.ISFORMULA(C111:AB111))=25,"OK","CHECK") -> OK
C112: =Qty!C62 -> Business > 40 MWh two rate demand standard feed in | D112: =Qty!D62 -> Small industrial & commercial | E112: =Qty!E62 -> NASN2S | F112: =Qty!F62 -> 0 | G112: =Qty!G62 -> 0 | I112: =I190+I268+I346 -> 156.2031133 | J112: 0 | K112: 0 | L112: 0 | M112: 19.38040383 | N112: 0 | O112: 0 | P112: 0 | Q112: 0 | R112: 4.724104553 | S112: 0 | T112: 0 | U112: 0 | V112: 0 | W112: 0 | X112: 0 | Y112: 9.193294026 | Z112: 2.293565073 | AA112: 0 | AB112: 0 | AD112: =IF(SUMPRODUCT(--_xlfn.ISFORMULA(C112:AB112))=25,"OK","CHECK") -> OK
C113: =Qty!C63 -> Small business interval meter time of use | D113: =Qty!D63 -> Small industrial & commercial | E113: =Qty!E63 -> NSP21 | F113: =Qty!F63 -> 0 | G113: =Qty!G63 -> 0 | I113: 148.9378522 | J113: 0 | K113: 0 | L113: 0 | M113: 0 | N113: 0 | O113: 50.3679398 | P113: 44.50402324 | Q113: 39.37917271 | R113: 5.057127397 | S113: 0 | T113: 0 | U113: 0 | V113: 0 | W113: 0 | X113: 0 | Y113: 0 | Z113: 0 | AA113: 0 | AB113: 0 | AD113: =IF(SUMPRODUCT(--_xlfn.ISFORMULA(C113:AB113))=25,"OK","CHECK") -> OK
C114: =Qty!C64 -> Small business interval meter low peak time of use | D114: =Qty!D64 -> Small industrial & commercial | E114: =Qty!E64 -> NSP27 | F114: =Qty!F64 -> 0 | G114: =Qty!G64 -> 0 | I114: 148.9378522 | J114: 0 | K114: 0 | L114: 0 | M114: 0 | N114: 0 | O114: 29.8088958 | P114: 26.55535994 | Q114: 23.7135836 | R114: 8.293163679 | S114: 0 | T114: 0 | U114: 0 | V114: 0 | W114: 0 | X114: 0 | Y114: 0 | Z114: 0 | AA114: 0 | AB114: 0 | AD114: =IF(SUMPRODUCT(--_xlfn.ISFORMULA(C114:AB114))=25,"OK","CHECK") -> OK
C115: =Qty!C65 -> Small business interval meter time of use solar installation standard feed in | D115: =Qty!D65 -> Small industrial & commercial | E115: =Qty!E65 -> SSP27 | F115: =Qty!F65 -> 0 | G115: =Qty!G65 -> 0 | I115: 148.9378522 | J115: 0 | K115: 0 | L115: 0 | M115: 0 | N115: 0 | O115: 29.8088958 | P115: 26.55535994 | Q115: 23.7135836 | R115: 8.293163679 | S115: 0 | T115: 0 | U115: 0 | V115: 0 | W115: 0 | X115: 0 | Y115: 0 | Z115: 0 | AA115: 0 | AB115: 0 | AD115: =IF(SUMPRODUCT(--_xlfn.ISFORMULA(C115:AB115))=25,"OK","CHECK") -> OK
C116: =Qty!C66 -> 0 | D116: =Qty!D66 -> 0 | E116: =Qty!E66 -> 0 | F116: =Qty!F66 -> 0 | G116: =Qty!G66 -> 0 | I116: 0 | J116: 0 | K116: 0 | L116: 0 | M116: 0 | N116: 0 | O116: 0 | P116: 0 | Q116: 0 | R116: 0 | S116: 0 | T116: 0 | U116: 0 | V116: 0 | W116: 0 | X116: 0 | Y116: 0 | Z116: 0 | AA116: 0 | AB116: 0 | AD116: =IF(SUMPRODUCT(--_xlfn.ISFORMULA(C116:AB116))=25,"OK","CHECK") -> OK
C117: =Qty!C67 -> Public lighting and street furniture | D117: =Qty!D67 -> Medium industrial & commercial | E117: =Qty!E67 -> NEE52 | F117: =Qty!F67 -> 0 | G117: =Qty!G67 -> 0 | I117: 0 | J117: 0 | K117: 0 | L117: 0 | M117: 24.83336813 | N117: 0 | O117: 0 | P117: 0 | Q117: 0 | R117: 11.89969788 | S117: 0 | T117: 0 | U117: 0 | V117: 0 | W117: 0 | X117: 0 | Y117: 0 | Z117: 0 | AA117: 0 | AB117: 0 | AD117: =IF(SUMPRODUCT(--_xlfn.ISFORMULA(C117:AB117))=25,"OK","CHECK") -> OK
C118: =Qty!C68 -> Medium snowfields | D118: =Qty!D68 -> Medium industrial & commercial | E118: =Qty!E68 -> NEE55 | F118: =Qty!F68 -> 0 | G118: =Qty!G68 -> 0 | I118: 211.533691 | J118: 0 | K118: 0 | L118: 0 | M118: 21.81967113 | N118: 0 | O118: 0 | P118: 0 | Q118: 0 | R118: 6.099632857 | S118: 0 | T118: 0 | U118: 0 | V118: 0 | W118: 0 | X118: 0 | Y118: 0 | Z118: 0 | AA118: 0 | AB118: 0 | AD118: =IF(SUMPRODUCT(--_xlfn.ISFORMULA(C118:AB118))=25,"OK","CHECK") -> OK
C119: =Qty!C69 -> Medium interval meter time of use snowfields | D119: =Qty!D69 -> Medium industrial & commercial | E119: =Qty!E69 -> NSP55 | F119: =Qty!F69 -> 0 | G119: =Qty!G69 -> 0 | I119: 211.533691 | J119: 0 | K119: 0 | L119: 0 | M119: 0 | N119: 0 | O119: 52.41175402 | P119: 46.27116533 | Q119: 40.90462367 | R119: 3.900113038 | S119: 0 | T119: 0 | U119: 0 | V119: 0 | W119: 0 | X119: 0 | Y119: 0 | Z119: 0 | AA119: 0 | AB119: 0 | AD119: =IF(SUMPRODUCT(--_xlfn.ISFORMULA(C119:AB119))=25,"OK","CHECK") -> OK
C120: =Qty!C70 -> Medium critical peak demand 160 MWh to 400 MWh | D120: =Qty!D70 -> Medium industrial & commercial | E120: =Qty!E70 -> NSP56 | F120: =Qty!F70 -> 0 | G120: =Qty!G70 -> 0 | I120: 3544.934421 | J120: 0 | K120: 0 | L120: 0 | M120: 17.48327525 | N120: 13.43484554 | O120: 0 | P120: 0 | Q120: 0 | R120: 5.535245395 | S120: 0 | T120: 0 | U120: 0 | V120: 0 | W120: 24.52152769 | X120: 40.8734283 | Y120: 0 | Z120: 0 | AA120: 0 | AB120: 0 | AD120: =IF(SUMPRODUCT(--_xlfn.ISFORMULA(C120:AB120))=25,"OK","CHECK") -> OK
C121: =Qty!C71 -> Medium critical peak demand 160 MWh to 400 MWh (Transitional) | D121: =Qty!D71 -> Medium industrial & commercial | E121: =Qty!E71 -> NAT56 | F121: =Qty!F71 -> 0 | G121: =Qty!G71 -> 0 | I121: 3544.934421 | J121: 0 | K121: 0 | L121: 0 | M121: 17.48327525 | N121: 13.43484554 | O121: 0 | P121: 0 | Q121: 0 | R121: 5.535245395 | S121: 0 | T121: 0 | U121: 0 | V121: 0 | W121: 0 | X121: 0 | Y121: 0 | Z121: 0 | AA121: 0 | AB121: 0 | AD121: =IF(SUMPRODUCT(--_xlfn.ISFORMULA(C121:AB121))=25,"OK","CHECK") -> OK
C122: =Qty!C72 -> Medium critical peak demand 160 MWh to 400 MWh within embedded network | D122: =Qty!D72 -> Medium industrial & commercial | E122: =Qty!E72 -> NEN56 | F122: =Qty!F72 -> 0 | G122: =Qty!G72 -> 0 | I122: 3544.934421 | J122: 0 | K122: 0 | L122: 0 | M122: 14.57360451 | N122: 11.14905415 | O122: 0 | P122: 0 | Q122: 0 | R122: 5.811485687 | S122: 0 | T122: 0 | U122: 0 | V122: 0 | W122: 24.52152769 | X122: 40.8734283 | Y122: 0 | Z122: 0 | AA122: 0 | AB122: 0 | AD122: =IF(SUMPRODUCT(--_xlfn.ISFORMULA(C122:AB122))=25,"OK","CHECK") -> OK
C123: =Qty!C73 -> 0 | D123: =Qty!D73 -> 0 | E123: =Qty!E73 -> 0 | F123: =Qty!F73 -> 0 | G123: =Qty!G73 -> 0 | I123: 0 | J123: 0 | K123: 0 | L123: 0 | M123: 0 | N123: 0 | O123: 0 | P123: 0 | Q123: 0 | R123: 0 | S123: 0 | T123: 0 | U123: 0 | V123: 0 | W123: 0 | X123: 0 | Y123: 0 | Z123: 0 | AA123: 0 | AB123: 0 | AD123: =IF(SUMPRODUCT(--_xlfn.ISFORMULA(C123:AB123))=25,"OK","CHECK") -> OK
C124: =Qty!C74 -> Large critical peak demand 400 MWh to 750 MWh | D124: =Qty!D74 -> Large industrial & commercial | E124: =Qty!E74 -> NSP75 | F124: =Qty!F74 -> 0 | G124: =Qty!G74 -> 0 | I124: 7829.429077 | J124: 0 | K124: 0 | L124: 0 | M124: 7.326336807 | N124: 6.019593047 | O124: 0 | P124: 0 | Q124: 0 | R124: 2.479298509 | S124: 0 | T124: 0 | U124: 0 | V124: 0 | W124: 59.54065629 | X124: =X202+X280+X358 -> 99.85793363 | Y124: =Y202+Y280+Y358 -> 0 | Z124: =Z202+Z280+Z358 -> 0 | AA124: =AA202+AA280+AA358 -> 0 | AB124: =AB202+AB280+AB358 -> 0 | AD124: =IF(SUMPRODUCT(--_xlfn.ISFORMULA(C124:AB124))=25,"OK","CHECK") -> OK
C125: =Qty!C75 -> Large critical peak demand 400 MWh to 750 MWh (Transitional) | D125: =Qty!D75 -> Large industrial & commercial | E125: =Qty!E75 -> NAT75 | F125: =Qty!F75 -> 0 | G125: =Qty!G75 -> 0 | I125: =I203+I281+I359 -> 7829.429077 | J125: 0 | K125: 0 | L125: 0 | M125: 7.326336807 | N125: 6.019593047 | O125: 0 | P125: 0 | Q125: 0 | R125: 2.479298509 | S125: 0 | T125: 0 | U125: 0 | V125: 0 | W125: 0 | X125: 0 | Y125: 0 | Z125: 0 | AA125: 0 | AB125: 0 | AD125: =IF(SUMPRODUCT(--_xlfn.ISFORMULA(C125:AB125))=25,"OK","CHECK") -> OK
C126: =Qty!C76 -> Large critical peak demand 750 MWh to 2000 MWh | D126: =Qty!D76 -> Large industrial & commercial | E126: =Qty!E76 -> NSP76 | F126: =Qty!F76 -> 0 | G126: =Qty!G76 -> 0 | I126: 7829.429077 | J126: 0 | K126: 0 | L126: 0 | M126: 7.053827572 | N126: 5.750903969 | O126: 0 | P126: 0 | Q126: 0 | R126: 2.317752716 | S126: 0 | T126: 0 | U126: 0 | V126: 0 | W126: 62.08102392 | X126: 104.9892235 | Y126: 0 | Z126: 0 | AA126: 0 | AB126: 0 | AD126: =IF(SUMPRODUCT(--_xlfn.ISFORMULA(C126:AB126))=25,"OK","CHECK") -> OK
C127: =Qty!C77 -> Large critical peak demand 2000 MWh to 4000 MWh | D127: =Qty!D77 -> Large industrial & commercial | E127: =Qty!E77 -> NSP77 | F127: =Qty!F77 -> 0 | G127: =Qty!G77 -> 0 | I127: 7829.429077 | J127: 0 | K127: 0 | L127: 0 | M127: 6.986410462 | N127: 5.722643121 | O127: 0 | P127: 0 | Q127: 0 | R127: 2.238983454 | S127: 0 | T127: 0 | U127: 0 | V127: 0 | W127: 68.05910298 | X127: 112.9768471 | Y127: 0 | Z127: 0 | AA127: 0 | AB127: 0 | AD127: =IF(SUMPRODUCT(--_xlfn.ISFORMULA(C127:AB127))=25,"OK","CHECK") -> OK
C128: =Qty!C78 -> Large critical peak demand over 4000 MWh | D128: =Qty!D78 -> Large industrial & commercial | E128: =Qty!E78 -> NSP78 | F128: =Qty!F78 -> 0 | G128: =Qty!G78 -> 0 | I128: 7829.429077 | J128: 0 | K128: 0 | L128: 0 | M128: 6.602055876 | N128: 5.470339299 | O128: 0 | P128: 0 | Q128: 0 | R128: 2.061866002 | S128: 0 | T128: 0 | U128: 0 | V128: 0 | W128: 74.8713326 | X128: 123.871359 | Y128: 0 | Z128: 0 | AA128: 0 | AB128: 0 | AD128: =IF(SUMPRODUCT(--_xlfn.ISFORMULA(C128:AB128))=25,"OK","CHECK") -> OK
C129: =Qty!C79 -> 0 | D129: =Qty!D79 -> 0 | E129: =Qty!E79 -> 0 | F129: =Qty!F79 -> 0 | G129: =Qty!G79 -> 0 | I129: 0 | J129: 0 | K129: 0 | L129: 0 | M129: 0 | N129: 0 | O129: 0 | P129: 0 | Q129: 0 | R129: 0 | S129: 0 | T129: 0 | U129: 0 | V129: 0 | W129: 0 | X129: 0 | Y129: 0 | Z129: 0 | AA129: 0 | AB129: 0 | AD129: =IF(SUMPRODUCT(--_xlfn.ISFORMULA(C129:AB129))=25,"OK","CHECK") -> OK
C130: =Qty!C80 -> High voltage critical peak demand | D130: =Qty!D80 -> High voltage | E130: =Qty!E80 -> NSP81 | F130: =Qty!F80 -> 0 | G130: =Qty!G80 -> 0 | I130: 7829.429077 | J130: 0 | K130: 0 | L130: 0 | M130: 3.998459917 | N130: 0 | O130: 0 | P130: 0 | Q130: 0 | R130: 1.206248718 | S130: 0 | T130: 0 | U130: 0 | V130: 0 | W130: 49.20148122 | X130: 80.6361134 | Y130: 0 | Z130: 0 | AA130: 0 | AB130: 0 | AD130: =IF(SUMPRODUCT(--_xlfn.ISFORMULA(C130:AB130))=25,"OK","CHECK") -> OK
C131: =Qty!C81 -> High voltage critical peak demand low energy use | D131: =Qty!D81 -> High voltage | E131: =Qty!E81 -> NSP83 | F131: =Qty!F81 -> 0 | G131: =Qty!G81 -> 0 | I131: 7829.429077 | J131: 0 | K131: 0 | L131: 0 | M131: 15.19345279 | N131: 7.444406023 | O131: 0 | P131: 0 | Q131: 0 | R131: 2.211824337 | S131: 0 | T131: 0 | U131: 0 | V131: 0 | W131: 5.243629445 | X131: 8.663387779 | Y131: 0 | Z131: 0 | AA131: 0 | AB131: 0 | AD131: =IF(SUMPRODUCT(--_xlfn.ISFORMULA(C131:AB131))=25,"OK","CHECK") -> OK
C132: =Qty!C82 -> 0 | D132: =Qty!D82 -> 0 | E132: =Qty!E82 -> 0 | F132: =Qty!F82 -> 0 | G132: =Qty!G82 -> 0 | I132: 0 | J132: 0 | K132: 0 | L132: 0 | M132: 0 | N132: 0 | O132: 0 | P132: 0 | Q132: 0 | R132: 0 | S132: 0 | T132: 0 | U132: 0 | V132: 0 | W132: 0 | X132: 0 | Y132: 0 | Z132: 0 | AA132: 0 | AB132: 0 | AD132: =IF(SUMPRODUCT(--_xlfn.ISFORMULA(C132:AB132))=25,"OK","CHECK") -> OK
C133: =Qty!C83 -> 0 | D133: =Qty!D83 -> 0 | E133: =Qty!E83 -> 0 | F133: =Qty!F83 -> 0 | G133: =Qty!G83 -> 0 | I133: 0 | J133: 0 | K133: 0 | L133: 0 | M133: 0 | N133: 0 | O133: 0 | P133: 0 | Q133: 0 | R133: 0 | S133: 0 | T133: 0 | U133: 0 | V133: 0 | W133: 0 | X133: 0 | Y133: 0 | Z133: 0 | AA133: 0 | AB133: 0 | AD133: =IF(SUMPRODUCT(--_xlfn.ISFORMULA(C133:AB133))=25,"OK","CHECK") -> OK
C134: =Qty!C84 -> 0 | D134: =Qty!D84 -> 0 | E134: =Qty!E84 -> 0 | F134: =Qty!F84 -> 0 | G134: =Qty!G84 -> 0 | I134: 0 | J134: 0 | K134: 0 | L134: 0 | M134: 0 | N134: 0 | O134: 0 | P134: 0 | Q134: 0 | R134: 0 | S134: 0 | T134: 0 | U134: 0 | V134: 0 | W134: 0 | X134: 0 | Y134: 0 | Z134: 0 | AA134: 0 | AB134: 0 | AD134: =IF(SUMPRODUCT(--_xlfn.ISFORMULA(C134:AB134))=25,"OK","CHECK") -> OK
C135: =Qty!C85 -> 0 | D135: =Qty!D85 -> 0 | E135: =Qty!E85 -> 0 | F135: =Qty!F85 -> 0 | G135: =Qty!G85 -> 0 | I135: 0 | J135: 0 | K135: 0 | L135: 0 | M135: 0 | N135: 0 | O135: 0 | P135: 0 | Q135: 0 | R135: 0 | S135: 0 | T135: 0 | U135: 0 | V135: 0 | W135: 0 | X135: 0 | Y135: 0 | Z135: 0 | AA135: 0 | AB135: 0 | AD135: =IF(SUMPRODUCT(--_xlfn.ISFORMULA(C135:AB135))=25,"OK","CHECK") -> OK
C136: =Qty!C86 -> 0 | D136: =Qty!D86 -> 0 | E136: =Qty!E86 -> 0 | F136: =Qty!F86 -> 0 | G136: =Qty!G86 -> 0 | I136: 0 | J136: 0 | K136: 0 | L136: 0 | M136: 0 | N136: 0 | O136: 0 | P136: 0 | Q136: 0 | R136: 0 | S136: 0 | T136: 0 | U136: 0 | V136: 0 | W136: 0 | X136: 0 | Y136: 0 | Z136: 0 | AA136: 0 | AB136: 0 | AD136: =IF(SUMPRODUCT(--_xlfn.ISFORMULA(C136:AB136))=25,"OK","CHECK") -> OK
C137: =Qty!C87 -> 0 | D137: =Qty!D87 -> 0 | E137: =Qty!E87 -> 0 | F137: =Qty!F87 -> 0 | G137: =Qty!G87 -> 0 | I137: 0 | J137: 0 | K137: 0 | L137: 0 | M137: 0 | N137: 0 | O137: 0 | P137: 0 | Q137: 0 | R137: 0 | S137: 0 | T137: 0 | U137: 0 | V137: 0 | W137: 0 | X137: =X215+X293+X371 -> 0 | Y137: =Y215+Y293+Y371 -> 0 | Z137: =Z215+Z293+Z371 -> 0 | AA137: =AA215+AA293+AA371 -> 0 | AB137: =AB215+AB293+AB371 -> 0 | AD137: =IF(SUMPRODUCT(--_xlfn.ISFORMULA(C137:AB137))=25,"OK","CHECK") -> OK
C138: =Qty!C88 -> 0 | D138: =Qty!D88 -> 0 | E138: =Qty!E88 -> 0 | F138: =Qty!F88 -> 0 | G138: =Qty!G88 -> 0 | I138: =I216+I294+I372 -> 0 | J138: 0 | K138: 0 | L138: 0 | M138: 0 | N138: 0 | O138: 0 | P138: 0 | Q138: 0 | R138: 0 | S138: 0 | T138: 0 | U138: 0 | V138: 0 | W138: 0 | X138: 0 | Y138: 0 | Z138: 0 | AA138: 0 | AB138: 0 | AD138: =IF(SUMPRODUCT(--_xlfn.ISFORMULA(C138:AB138))=25,"OK","CHECK") -> OK
C139: =Qty!C89 -> 0 | D139: =Qty!D89 -> 0 | E139: =Qty!E89 -> 0 | F139: =Qty!F89 -> 0 | G139: =Qty!G89 -> 0 | I139: 0 | J139: 0 | K139: 0 | L139: 0 | M139: 0 | N139: 0 | O139: 0 | P139: 0 | Q139: 0 | R139: 0 | S139: 0 | T139: 0 | U139: 0 | V139: 0 | W139: 0 | X139: 0 | Y139: 0 | Z139: 0 | AA139: 0 | AB139: 0 | AD139: =IF(SUMPRODUCT(--_xlfn.ISFORMULA(C139:AB139))=25,"OK","CHECK") -> OK
C140: =Qty!C90 -> 0 | D140: =Qty!D90 -> 0 | E140: =Qty!E90 -> 0 | F140: =Qty!F90 -> 0 | G140: =Qty!G90 -> 0 | I140: 0 | J140: 0 | K140: 0 | L140: 0 | M140: 0 | N140: 0 | O140: 0 | P140: 0 | Q140: 0 | R140: 0 | S140: 0 | T140: 0 | U140: 0 | V140: 0 | W140: 0 | X140: 0 | Y140: 0 | Z140: 0 | AA140: 0 | AB140: 0 | AD140: =IF(SUMPRODUCT(--_xlfn.ISFORMULA(C140:AB140))=25,"OK","CHECK") -> OK
C141: =Qty!C91 -> 0 | D141: =Qty!D91 -> 0 | E141: =Qty!E91 -> 0 | F141: =Qty!F91 -> 0 | G141: =Qty!G91 -> 0 | I141: 0 | J141: 0 | K141: 0 | L141: 0 | M141: 0 | N141: 0 | O141: 0 | P141: 0 | Q141: 0 | R141: 0 | S141: 0 | T141: 0 | U141: 0 | V141: 0 | W141: 0 | X141: 0 | Y141: 0 | Z141: 0 | AA141: 0 | AB141: 0 | AD141: =IF(SUMPRODUCT(--_xlfn.ISFORMULA(C141:AB141))=25,"OK","CHECK") -> OK
C142: =Qty!C92 -> 0 | D142: =Qty!D92 -> 0 | E142: =Qty!E92 -> 0 | F142: =Qty!F92 -> 0 | G142: =Qty!G92 -> 0 | I142: 0 | J142: 0 | K142: 0 | L142: 0 | M142: 0 | N142: 0 | O142: 0 | P142: 0 | Q142: 0 | R142: 0 | S142: 0 | T142: 0 | U142: 0 | V142: 0 | W142: 0 | X142: 0 | Y142: 0 | Z142: 0 | AA142: 0 | AB142: 0 | AD142: =IF(SUMPRODUCT(--_xlfn.ISFORMULA(C142:AB142))=25,"OK","CHECK") -> OK
C143: =Qty!C93 -> 0 | D143: =Qty!D93 -> 0 | E143: =Qty!E93 -> 0 | F143: =Qty!F93 -> 0 | G143: =Qty!G93 -> 0 | I143: 0 | J143: 0 | K143: 0 | L143: 0 | M143: 0 | N143: 0 | O143: 0 | P143: 0 | Q143: 0 | R143: 0 | S143: 0 | T143: 0 | U143: 0 | V143: 0 | W143: 0 | X143: 0 | Y143: 0 | Z143: 0 | AA143: 0 | AB143: 0 | AD143: =IF(SUMPRODUCT(--_xlfn.ISFORMULA(C143:AB143))=25,"OK","CHECK") -> OK
C144: =Qty!C94 -> 0 | D144: =Qty!D94 -> 0 | E144: =Qty!E94 -> 0 | F144: =Qty!F94 -> 0 | G144: =Qty!G94 -> 0 | I144: 0 | J144: 0 | K144: 0 | L144: 0 | M144: 0 | N144: 0 | O144: 0 | P144: 0 | Q144: 0 | R144: 0 | S144: 0 | T144: 0 | U144: 0 | V144: 0 | W144: 0 | X144: 0 | Y144: 0 | Z144: 0 | AA144: 0 | AB144: 0 | AD144: =IF(SUMPRODUCT(--_xlfn.ISFORMULA(C144:AB144))=25,"OK","CHECK") -> OK
C145: =Qty!C95 -> 0 | D145: =Qty!D95 -> 0 | E145: =Qty!E95 -> 0 | F145: =Qty!F95 -> 0 | G145: =Qty!G95 -> 0 | I145: 0 | J145: 0 | K145: 0 | L145: 0 | M145: 0 | N145: 0 | O145: 0 | P145: 0 | Q145: 0 | R145: 0 | S145: 0 | T145: 0 | U145: 0 | V145: 0 | W145: 0 | X145: 0 | Y145: 0 | Z145: 0 | AA145: 0 | AB145: 0 | AD145: =IF(SUMPRODUCT(--_xlfn.ISFORMULA(C145:AB145))=25,"OK","CHECK") -> OK
C146: =Qty!C96 -> 0 | D146: =Qty!D96 -> 0 | E146: =Qty!E96 -> 0 | F146: =Qty!F96 -> 0 | G146: =Qty!G96 -> 0 | I146: 0 | J146: 0 | K146: 0 | L146: 0 | M146: 0 | N146: 0 | O146: 0 | P146: 0 | Q146: 0 | R146: 0 | S146: 0 | T146: 0 | U146: 0 | V146: 0 | W146: 0 | X146: 0 | Y146: 0 | Z146: 0 | AA146: 0 | AB146: 0 | AD146: =IF(SUMPRODUCT(--_xlfn.ISFORMULA(C146:AB146))=25,"OK","CHECK") -> OK
C147: =Qty!C97 -> 0 | D147: =Qty!D97 -> 0 | E147: =Qty!E97 -> 0 | F147: =Qty!F97 -> 0 | G147: =Qty!G97 -> 0 | I147: 0 | J147: 0 | K147: 0 | L147: 0 | M147: 0 | N147: 0 | O147: 0 | P147: 0 | Q147: 0 | R147: 0 | S147: 0 | T147: 0 | U147: 0 | V147: 0 | W147: 0 | X147: 0 | Y147: 0 | Z147: 0 | AA147: 0 | AB147: 0 | AD147: =IF(SUMPRODUCT(--_xlfn.ISFORMULA(C147:AB147))=25,"OK","CHECK") -> OK
C148: =Qty!C98 -> 0 | D148: =Qty!D98 -> 0 | E148: =Qty!E98 -> 0 | F148: =Qty!F98 -> 0 | G148: =Qty!G98 -> 0 | I148: 0 | J148: 0 | K148: 0 | L148: 0 | M148: 0 | N148: 0 | O148: 0 | P148: 0 | Q148: 0 | R148: 0 | S148: 0 | T148: 0 | U148: 0 | V148: 0 | W148: 0 | X148: 0 | Y148: 0 | Z148: 0 | AA148: 0 | AB148: 0 | AD148: =IF(SUMPRODUCT(--_xlfn.ISFORMULA(C148:AB148))=25,"OK","CHECK") -> OK
C149: =Qty!C99 -> 0 | D149: =Qty!D99 -> 0 | E149: =Qty!E99 -> 0 | F149: =Qty!F99 -> 0 | G149: =Qty!G99 -> 0 | I149: 0 | J149: 0 | K149: 0 | L149: 0 | M149: 0 | N149: 0 | O149: 0 | P149: 0 | Q149: 0 | R149: 0 | S149: 0 | T149: 0 | U149: 0 | V149: 0 | W149: 0 | X149: 0 | Y149: 0 | Z149: 0 | AA149: 0 | AB149: 0 | AD149: =IF(SUMPRODUCT(--_xlfn.ISFORMULA(C149:AB149))=25,"OK","CHECK") -> OK
C150: =Qty!C100 -> 0 | D150: =Qty!D100 -> 0 | E150: =Qty!E100 -> 0 | F150: =Qty!F100 -> 0 | G150: =Qty!G100 -> 0 | I150: 0 | J150: 0 | K150: 0 | L150: 0 | M150: 0 | N150: 0 | O150: 0 | P150: 0 | Q150: 0 | R150: 0 | S150: 0 | T150: 0 | U150: 0 | V150: 0 | W150: 0 | X150: =X228+X306+X384 -> 0 | Y150: =Y228+Y306+Y384 -> 0 | Z150: =Z228+Z306+Z384 -> 0 | AA150: =AA228+AA306+AA384 -> 0 | AB150: =AB228+AB306+AB384 -> 0 | AD150: =IF(SUMPRODUCT(--_xlfn.ISFORMULA(C150:AB150))=25,"OK","CHECK") -> OK
C151: =Qty!C101 -> 0 | D151: =Qty!D101 -> 0 | E151: =Qty!E101 -> 0 | F151: =Qty!F101 -> 0 | G151: =Qty!G101 -> 0 | I151: =I229+I307+I385 -> 0 | J151: 0 | K151: 0 | L151: 0 | M151: 0 | N151: 0 | O151: 0 | P151: 0 | Q151: 0 | R151: 0 | S151: 0 | T151: 0 | U151: 0 | V151: 0 | W151: 0 | X151: 0 | Y151: 0 | Z151: 0 | AA151: 0 | AB151: 0 | AD151: =IF(SUMPRODUCT(--_xlfn.ISFORMULA(C151:AB151))=25,"OK","CHECK") -> OK
C152: =Qty!C102 -> 0 | D152: =Qty!D102 -> 0 | E152: =Qty!E102 -> 0 | F152: =Qty!F102 -> 0 | G152: =Qty!G102 -> 0 | I152: 0 | J152: 0 | K152: 0 | L152: 0 | M152: 0 | N152: 0 | O152: 0 | P152: 0 | Q152: 0 | R152: 0 | S152: 0 | T152: 0 | U152: 0 | V152: 0 | W152: 0 | X152: 0 | Y152: 0 | Z152: 0 | AA152: 0 | AB152: 0 | AD152: =IF(SUMPRODUCT(--_xlfn.ISFORMULA(C152:AB152))=25,"OK","CHECK") -> OK
C153: =Qty!C103 -> 0 | D153: =Qty!D103 -> 0 | E153: =Qty!E103 -> 0 | F153: =Qty!F103 -> 0 | G153: =Qty!G103 -> 0 | I153: 0 | J153: 0 | K153: 0 | L153: 0 | M153: 0 | N153: 0 | O153: 0 | P153: 0 | Q153: 0 | R153: 0 | S153: 0 | T153: 0 | U153: 0 | V153: 0 | W153: 0 | X153: 0 | Y153: 0 | Z153: 0 | AA153: 0 | AB153: 0 | AD153: =IF(SUMPRODUCT(--_xlfn.ISFORMULA(C153:AB153))=25,"OK","CHECK") -> OK
C154: =Qty!C104 -> 0 | D154: =Qty!D104 -> 0 | E154: =Qty!E104 -> 0 | F154: =Qty!F104 -> 0 | G154: =Qty!G104 -> 0 | I154: 0 | J154: 0 | K154: 0 | L154: 0 | M154: 0 | N154: 0 | O154: 0 | P154: 0 | Q154: 0 | R154: 0 | S154: 0 | T154: 0 | U154: 0 | V154: 0 | W154: 0 | X154: 0 | Y154: 0 | Z154: 0 | AA154: 0 | AB154: 0 | AD154: =IF(SUMPRODUCT(--_xlfn.ISFORMULA(C154:AB154))=25,"OK","CHECK") -> OK
C155: =Qty!C105 -> 0 | D155: =Qty!D105 -> 0 | E155: =Qty!E105 -> 0 | F155: =Qty!F105 -> 0 | G155: =Qty!G105 -> 0 | I155: 0 | J155: 0 | K155: 0 | L155: 0 | M155: 0 | N155: 0 | O155: 0 | P155: 0 | Q155: 0 | R155: 0 | S155: 0 | T155: 0 | U155: 0 | V155: 0 | W155: 0 | X155: 0 | Y155: 0 | Z155: 0 | AA155: 0 | AB155: 0 | AD155: =IF(SUMPRODUCT(--_xlfn.ISFORMULA(C155:AB155))=25,"OK","CHECK") -> OK
C156: =Qty!C106 -> 0 | D156: =Qty!D106 -> 0 | E156: =Qty!E106 -> 0 | F156: =Qty!F106 -> 0 | G156: =Qty!G106 -> 0 | I156: 0 | J156: 0 | K156: 0 | L156: 0 | M156: 0 | N156: 0 | O156: 0 | P156: 0 | Q156: 0 | R156: 0 | S156: 0 | T156: 0 | U156: 0 | V156: 0 | W156: 0 | X156: 0 | Y156: 0 | Z156: 0 | AA156: 0 | AB156: 0 | AD156: =IF(SUMPRODUCT(--_xlfn.ISFORMULA(C156:AB156))=25,"OK","CHECK") -> OK
C157: =Qty!C107 -> 0 | D157: =Qty!D107 -> 0 | E157: =Qty!E107 -> 0 | F157: =Qty!F107 -> 0 | G157: =Qty!G107 -> 0 | I157: 0 | J157: 0 | K157: 0 | L157: 0 | M157: 0 | N157: 0 | O157: 0 | P157: 0 | Q157: 0 | R157: 0 | S157: 0 | T157: 0 | U157: 0 | V157: 0 | W157: 0 | X157: 0 | Y157: 0 | Z157: 0 | AA157: 0 | AB157: 0 | AD157: =IF(SUMPRODUCT(--_xlfn.ISFORMULA(C157:AB157))=25,"OK","CHECK") -> OK
C158: =Qty!C108 -> 0 | D158: =Qty!D108 -> 0 | E158: =Qty!E108 -> 0 | F158: =Qty!F108 -> 0 | G158: =Qty!G108 -> 0 | I158: 0 | J158: 0 | K158: 0 | L158: 0 | M158: 0 | N158: 0 | O158: 0 | P158: 0 | Q158: 0 | R158: 0 | S158: 0 | T158: 0 | U158: 0 | V158: 0 | W158: 0 | X158: 0 | Y158: 0 | Z158: 0 | AA158: 0 | AB158: 0 | AD158: =IF(SUMPRODUCT(--_xlfn.ISFORMULA(C158:AB158))=25,"OK","CHECK") -> OK
C159: =Qty!C109 -> 0 | D159: =Qty!D109 -> 0 | E159: =Qty!E109 -> 0 | F159: =Qty!F109 -> 0 | G159: =Qty!G109 -> 0 | I159: 0 | J159: 0 | K159: 0 | L159: 0 | M159: 0 | N159: 0 | O159: 0 | P159: 0 | Q159: 0 | R159: 0 | S159: 0 | T159: 0 | U159: 0 | V159: 0 | W159: 0 | X159: 0 | Y159: 0 | Z159: 0 | AA159: 0 | AB159: 0 | AD159: =IF(SUMPRODUCT(--_xlfn.ISFORMULA(C159:AB159))=25,"OK","CHECK") -> OK
C160: =Qty!C110 -> 0 | D160: =Qty!D110 -> 0 | E160: =Qty!E110 -> 0 | F160: =Qty!F110 -> 0 | G160: =Qty!G110 -> 0 | I160: 0 | J160: 0 | K160: 0 | L160: 0 | M160: 0 | N160: 0 | O160: 0 | P160: 0 | Q160: 0 | R160: 0 | S160: 0 | T160: 0 | U160: 0 | V160: 0 | W160: 0 | X160: 0 | Y160: 0 | Z160: 0 | AA160: 0 | AB160: 0 | AD160: =IF(SUMPRODUCT(--_xlfn.ISFORMULA(C160:AB160))=25,"OK","CHECK") -> OK
C163: Distribution
C164: =C86 -> Small single rate | D164: Residential | E164: NEE11 | F164: 0 | G164: 0 | I164: ='Prop. prices'!I8 -> 145.3052217 | J164: ='Prop. prices'!J8 -> 0 | K164: ='Prop. prices'!K8 -> 9.987277961 | L164: ='Prop. prices'!L8 -> 9.987277961 | M164: ='Prop. prices'!M8 -> 0 | N164: ='Prop. prices'!N8 -> 0 | O164: ='Prop. prices'!O8 -> 0 | P164: ='Prop. prices'!P8 -> 0 | Q164: ='Prop. prices'!Q8 -> 0 | R164: ='Prop. prices'!R8 -> 0 | S164: ='Prop. prices'!S8 -> 0 | T164: ='Prop. prices'!T8 -> 0 | U164: ='Prop. prices'!U8 -> 0 | V164: ='Prop. prices'!V8 -> 0 | W164: ='Prop. prices'!W8 -> 0 | X164: ='Prop. prices'!X8 -> 0 | Y164: ='Prop. prices'!Y8 -> 0 | Z164: ='Prop. prices'!Z8 -> 0 | AA164: ='Prop. prices'!AA8 -> 0 | AB164: ='Prop. prices'!AB8 -> 0 | AD164: =IF(SUMPRODUCT(--_xlfn.ISFORMULA(C164:AB164))=25,"OK","CHECK") -> OK
C165: Small single rate standard feed in | D165: Residential | E165: NEE11S | F165: 0 | G165: 0 | I165: ='Prop. prices'!I9 -> 145.3052217 | J165: ='Prop. prices'!J9 -> 0 | K165: ='Prop. prices'!K9 -> 9.987277961 | L165: ='Prop. prices'!L9 -> 9.987277961 | M165: ='Prop. prices'!M9 -> 0 | N165: ='Prop. prices'!N9 -> 0 | O165: ='Prop. prices'!O9 -> 0 | P165: ='Prop. prices'!P9 -> 0 | Q165: ='Prop. prices'!Q9 -> 0 | R165: ='Prop. prices'!R9 -> 0 | S165: ='Prop. prices'!S9 -> 0 | T165: ='Prop. prices'!T9 -> 0 | U165: ='Prop. prices'!U9 -> 0 | V165: ='Prop. prices'!V9 -> 0 | W165: ='Prop. prices'!W9 -> 0 | X165: ='Prop. prices'!X9 -> 0 | Y165: ='Prop. prices'!Y9 -> 0 | Z165: ='Prop. prices'!Z9 -> 0 | AA165: ='Prop. prices'!AA9 -> 0 | AB165: ='Prop. prices'!AB9 -> 0 | AD165: =IF(SUMPRODUCT(--_xlfn.ISFORMULA(C165:AB165))=25,"OK","CHECK") -> OK
C166: Small single rate & dedicated circuit 24 hour | D166: Residential | E166: NEE19 | F166: 0 | G166: 0 | I166: ='Prop. prices'!I10 -> 145.3052217 | J166: ='Prop. prices'!J10 -> 0 | K166: ='Prop. prices'!K10 -> 9.987277961 | L166: ='Prop. prices'!L10 -> 9.987277961 | M166: ='Prop. prices'!M10 -> 0 | N166: ='Prop. prices'!N10 -> 0 | O166: ='Prop. prices'!O10 -> 0 | P166: ='Prop. prices'!P10 -> 0 | Q166: ='Prop. prices'!Q10 -> 0 | R166: ='Prop. prices'!R10 -> 0 | S166: ='Prop. prices'!S10 -> 3.845656042 | T166: ='Prop. prices'!T10 -> 0 | U166: ='Prop. prices'!U10 -> 0 | V166: ='Prop. prices'!V10 -> 0 | W166: ='Prop. prices'!W10 -> 0 | X166: ='Prop. prices'!X10 -> 0 | Y166: ='Prop. prices'!Y10 -> 0 | Z166: ='Prop. prices'!Z10 -> 0 | AA166: ='Prop. prices'!AA10 -> 0 | AB166: ='Prop. prices'!AB10 -> 0 | AD166: =IF(SUMPRODUCT(--_xlfn.ISFORMULA(C166:AB166))=25,"OK","CHECK") -> OK
C167: Small residential time of use | D167: Residential | E167: NASS11 | F167: 0 | G167: 0 | I167: ='Prop. prices'!I11 -> 145.3052217 | J167: ='Prop. prices'!J11 -> 0 | K167: ='Prop. prices'!K11 -> 0 | L167: ='Prop. prices'!L11 -> 0 | M167: ='Prop. prices'!M11 -> 23.5132472 | N167: ='Prop. prices'!N11 -> 0 | O167: ='Prop. prices'!O11 -> 0 | P167: ='Prop. prices'!P11 -> 0 | Q167: ='Prop. prices'!Q11 -> 0 | R167: ='Prop. prices'!R11 -> 4.275135854 | S167: ='Prop. prices'!S11 -> 0 | T167: ='Prop. prices'!T11 -> 1 | U167: ='Prop. prices'!U11 -> 0 | V167: ='Prop. prices'!V11 -> 0 | W167: ='Prop. prices'!W11 -> 0 | X167: ='Prop. prices'!X11 -> 0 | Y167: ='Prop. prices'!Y11 -> 0 | Z167: ='Prop. prices'!Z11 -> 0 | AA167: ='Prop. prices'!AA11 -> 0 | AB167: ='Prop. prices'!AB11 -> 0 | AD167: =IF(SUMPRODUCT(--_xlfn.ISFORMULA(C167:AB167))=25,"OK","CHECK") -> OK
C168: Small residential time of use standard feed in | D168: Residential | E168: NASS11S | F168: 0 | G168: 0 | I168: ='Prop. prices'!I12 -> 145.3052217 | J168: ='Prop. prices'!J12 -> 0 | K168: ='Prop. prices'!K12 -> 0 | L168: ='Prop. prices'!L12 -> 0 | M168: ='Prop. prices'!M12 -> 23.5132472 | N168: ='Prop. prices'!N12 -> 0 | O168: ='Prop. prices'!O12 -> 0 | P168: ='Prop. prices'!P12 -> 0 | Q168: ='Prop. prices'!Q12 -> 0 | R168: ='Prop. prices'!R12 -> 4.275135854 | S168: ='Prop. prices'!S12 -> 0 | T168: ='Prop. prices'!T12 -> 1 | U168: ='Prop. prices'!U12 -> 0 | V168: ='Prop. prices'!V12 -> 0 | W168: ='Prop. prices'!W12 -> 0 | X168: ='Prop. prices'!X12 -> 0 | Y168: ='Prop. prices'!Y12 -> 0 | Z168: ='Prop. prices'!Z12 -> 0 | AA168: ='Prop. prices'!AA12 -> 0 | AB168: ='Prop. prices'!AB12 -> 0 | AD168: =IF(SUMPRODUCT(--_xlfn.ISFORMULA(C168:AB168))=25,"OK","CHECK") -> OK
C169: Small residential time of use & dedicated circuit 24 hour | D169: Residential | E169: NAST17 | F169: 0 | G169: 0 | I169: ='Prop. prices'!I13 -> 145.3052217 | J169: ='Prop. prices'!J13 -> 0 | K169: ='Prop. prices'!K13 -> 0 | L169: ='Prop. prices'!L13 -> 0 | M169: ='Prop. prices'!M13 -> 23.5132472 | N169: ='Prop. prices'!N13 -> 0 | O169: ='Prop. prices'!O13 -> 0 | P169: ='Prop. prices'!P13 -> 0 | Q169: ='Prop. prices'!Q13 -> 0 | R169: ='Prop. prices'!R13 -> 4.275135854 | S169: ='Prop. prices'!S13 -> 3.845656042 | T169: ='Prop. prices'!T13 -> 1 | U169: ='Prop. prices'!U13 -> 0 | V169: ='Prop. prices'!V13 -> 0 | W169: ='Prop. prices'!W13 -> 0 | X169: ='Prop. prices'!X13 -> 0 | Y169: ='Prop. prices'!Y13 -> 0 | Z169: ='Prop. prices'!Z13 -> 0 | AA169: ='Prop. prices'!AA13 -> 0 | AB169: ='Prop. prices'!AB13 -> 0 | AD169: =IF(SUMPRODUCT(--_xlfn.ISFORMULA(C169:AB169))=25,"OK","CHECK") -> OK
C170: Small two rate 8:00 to 8:00 | D170: Residential | E170: NEE24 | F170: 0 | G170: 0 | I170: ='Prop. prices'!I14 -> 145.3052217 | J170: ='Prop. prices'!J14 -> 0 | K170: ='Prop. prices'!K14 -> 0 | L170: ='Prop. prices'!L14 -> 0 | M170: ='Prop. prices'!M14 -> 8.611070099 | N170: ='Prop. prices'!N14 -> 0 | O170: ='Prop. prices'!O14 -> 0 | P170: ='Prop. prices'!P14 -> 0 | Q170: ='Prop. prices'!Q14 -> 0 | R170: ='Prop. prices'!R14 -> 3.626498989 | S170: ='Prop. prices'!S14 -> 0 | T170: ='Prop. prices'!T14 -> 0 | U170: ='Prop. prices'!U14 -> 0 | V170: ='Prop. prices'!V14 -> 0 | W170: ='Prop. prices'!W14 -> 0 | X170: ='Prop. prices'!X14 -> 0 | Y170: ='Prop. prices'!Y14 -> 0 | Z170: ='Prop. prices'!Z14 -> 0 | AA170: ='Prop. prices'!AA14 -> 0 | AB170: ='Prop. prices'!AB14 -> 0 | AD170: =IF(SUMPRODUCT(--_xlfn.ISFORMULA(C170:AB170))=25,"OK","CHECK") -> OK
C171: Small interval meter time of use | D171: Residential | E171: NSP20 | F171: 0 | G171: 0 | I171: ='Prop. prices'!I15 -> 145.3052217 | J171: ='Prop. prices'!J15 -> 0 | K171: ='Prop. prices'!K15 -> 0 | L171: ='Prop. prices'!L15 -> 0 | M171: ='Prop. prices'!M15 -> 0 | N171: ='Prop. prices'!N15 -> 0 | O171: ='Prop. prices'!O15 -> 44.36060083 | P171: ='Prop. prices'!P15 -> 38.81720768 | Q171: ='Prop. prices'!Q15 -> 33.972483 | R171: ='Prop. prices'!R15 -> 3.783551407 | S171: ='Prop. prices'!S15 -> 0 | T171: ='Prop. prices'!T15 -> 0 | U171: ='Prop. prices'!U15 -> 0 | V171: ='Prop. prices'!V15 -> 0 | W171: ='Prop. prices'!W15 -> 0 | X171: ='Prop. prices'!X15 -> 0 | Y171: ='Prop. prices'!Y15 -> 0 | Z171: ='Prop. prices'!Z15 -> 0 | AA171: ='Prop. prices'!AA15 -> 0 | AB171: ='Prop. prices'!AB15 -> 0 | AD171: =IF(SUMPRODUCT(--_xlfn.ISFORMULA(C171:AB171))=25,"OK","CHECK") -> OK
C172: Small interval meter time of use solar installation standard feed in | D172: Residential | E172: NSP23 | F172: 0 | G172: 0 | I172: ='Prop. prices'!I16 -> 145.3052217 | J172: ='Prop. prices'!J16 -> 0 | K172: ='Prop. prices'!K16 -> 0 | L172: ='Prop. prices'!L16 -> 0 | M172: ='Prop. prices'!M16 -> 0 | N172: ='Prop. prices'!N16 -> 0 | O172: ='Prop. prices'!O16 -> 44.36060083 | P172: ='Prop. prices'!P16 -> 38.81720768 | Q172: ='Prop. prices'!Q16 -> 33.972483 | R172: ='Prop. prices'!R16 -> 3.783551407 | S172: ='Prop. prices'!S16 -> 0 | T172: ='Prop. prices'!T16 -> 0 | U172: ='Prop. prices'!U16 -> 0 | V172: ='Prop. prices'!V16 -> 0 | W172: ='Prop. prices'!W16 -> 0 | X172: ='Prop. prices'!X16 -> 0 | Y172: ='Prop. prices'!Y16 -> 0 | Z172: ='Prop. prices'!Z16 -> 0 | AA172: ='Prop. prices'!AA16 -> 0 | AB172: ='Prop. prices'!AB16 -> 0 | AD172: =IF(SUMPRODUCT(--_xlfn.ISFORMULA(C172:AB172))=25,"OK","CHECK") -> OK
C173: Small dedicated circuit | D173: Residential | E173: NEE30 | F173: 0 | G173: 0 | I173: ='Prop. prices'!I17 -> 0 | J173: ='Prop. prices'!J17 -> 0 | K173: ='Prop. prices'!K17 -> 0 | L173: ='Prop. prices'!L17 -> 0 | M173: ='Prop. prices'!M17 -> 0 | N173: ='Prop. prices'!N17 -> 0 | O173: ='Prop. prices'!O17 -> 0 | P173: ='Prop. prices'!P17 -> 0 | Q173: ='Prop. prices'!Q17 -> 0 | R173: ='Prop. prices'!R17 -> 0 | S173: ='Prop. prices'!S17 -> 3.845656042 | T173: ='Prop. prices'!T17 -> 0 | U173: ='Prop. prices'!U17 -> 0 | V173: ='Prop. prices'!V17 -> 0 | W173: ='Prop. prices'!W17 -> 0 | X173: ='Prop. prices'!X17 -> 0 | Y173: ='Prop. prices'!Y17 -> 0 | Z173: ='Prop. prices'!Z17 -> 0 | AA173: ='Prop. prices'!AA17 -> 0 | AB173: ='Prop. prices'!AB17 -> 0 | AD173: =IF(SUMPRODUCT(--_xlfn.ISFORMULA(C173:AB173))=25,"OK","CHECK") -> OK
C174: Small dedicated circuit with afternoon boost | D174: Residential | E174: NEE31 | F174: 0 | G174: 0 | I174: ='Prop. prices'!I18 -> 0 | J174: ='Prop. prices'!J18 -> 0 | K174: ='Prop. prices'!K18 -> 0 | L174: ='Prop. prices'!L18 -> 0 | M174: ='Prop. prices'!M18 -> 0 | N174: ='Prop. prices'!N18 -> 0 | O174: ='Prop. prices'!O18 -> 0 | P174: ='Prop. prices'!P18 -> 0 | Q174: ='Prop. prices'!Q18 -> 0 | R174: ='Prop. prices'!R18 -> 0 | S174: ='Prop. prices'!S18 -> 3.845656042 | T174: ='Prop. prices'!T18 -> 0 | U174: ='Prop. prices'!U18 -> 0 | V174: ='Prop. prices'!V18 -> 0 | W174: ='Prop. prices'!W18 -> 0 | X174: ='Prop. prices'!X18 -> 0 | Y174: ='Prop. prices'!Y18 -> 0 | Z174: ='Prop. prices'!Z18 -> 0 | AA174: ='Prop. prices'!AA18 -> 0 | AB174: ='Prop. prices'!AB18 -> 0 | AD174: =IF(SUMPRODUCT(--_xlfn.ISFORMULA(C174:AB174))=25,"OK","CHECK") -> OK
C175: Small dedicated circuit 8:00 to 8:00 | D175: Residential | E175: NEE32 | F175: 0 | G175: 0 | I175: ='Prop. prices'!I19 -> 0 | J175: ='Prop. prices'!J19 -> 0 | K175: ='Prop. prices'!K19 -> 0 | L175: ='Prop. prices'!L19 -> 0 | M175: ='Prop. prices'!M19 -> 0 | N175: ='Prop. prices'!N19 -> 0 | O175: ='Prop. prices'!O19 -> 0 | P175: ='Prop. prices'!P19 -> 0 | Q175: ='Prop. prices'!Q19 -> 0 | R175: ='Prop. prices'!R19 -> 0 | S175: ='Prop. prices'!S19 -> 3.845656042 | T175: ='Prop. prices'!T19 -> 0 | U175: ='Prop. prices'!U19 -> 0 | V175: ='Prop. prices'!V19 -> 0 | W175: ='Prop. prices'!W19 -> 0 | X175: ='Prop. prices'!X19 -> 0 | Y175: ='Prop. prices'!Y19 -> 0 | Z175: ='Prop. prices'!Z19 -> 0 | AA175: ='Prop. prices'!AA19 -> 0 | AB175: ='Prop. prices'!AB19 -> 0 | AD175: =IF(SUMPRODUCT(--_xlfn.ISFORMULA(C175:AB175))=25,"OK","CHECK") -> OK
C176: Small dedicated circuit 24 hour | D176: Residential | E176: NEE33 | F176: 0 | G176: 0 | I176: ='Prop. prices'!I20 -> 0 | J176: ='Prop. prices'!J20 -> 0 | K176: ='Prop. prices'!K20 -> 0 | L176: ='Prop. prices'!L20 -> 0 | M176: ='Prop. prices'!M20 -> 0 | N176: ='Prop. prices'!N20 -> 0 | O176: ='Prop. prices'!O20 -> 0 | P176: ='Prop. prices'!P20 -> 0 | Q176: ='Prop. prices'!Q20 -> 0 | R176: ='Prop. prices'!R20 -> 0 | S176: ='Prop. prices'!S20 -> 3.845656042 | T176: ='Prop. prices'!T20 -> 0 | U176: ='Prop. prices'!U20 -> 0 | V176: ='Prop. prices'!V20 -> 0 | W176: ='Prop. prices'!W20 -> 0 | X176: ='Prop. prices'!X20 -> 0 | Y176: ='Prop. prices'!Y20 -> 0 | Z176: ='Prop. prices'!Z20 -> 0 | AA176: ='Prop. prices'!AA20 -> 0 | AB176: ='Prop. prices'!AB20 -> 0 | AD176: =IF(SUMPRODUCT(--_xlfn.ISFORMULA(C176:AB176))=25,"OK","CHECK") -> OK
C177: Residential CER | D177: Residential | E177: RCER11 | F177: 0 | G177: 0 | I177: ='Prop. prices'!I21 -> 145.3052217 | J177: ='Prop. prices'!J21 -> 0 | K177: ='Prop. prices'!K21 -> 0 | L177: ='Prop. prices'!L21 -> 0 | M177: ='Prop. prices'!M21 -> 23.5132472 | N177: ='Prop. prices'!N21 -> 0 | O177: ='Prop. prices'!O21 -> 0 | P177: ='Prop. prices'!P21 -> 0 | Q177: ='Prop. prices'!Q21 -> 0 | R177: ='Prop. prices'!R21 -> 4.275135854 | S177: ='Prop. prices'!S21 -> 0 | T177: ='Prop. prices'!T21 -> 1 | U177: ='Prop. prices'!U21 -> 1 | V177: ='Prop. prices'!V21 -> -10 | W177: ='Prop. prices'!W21 -> 0 | X177: ='Prop. prices'!X21 -> 0 | Y177: ='Prop. prices'!Y21 -> 0 | Z177: ='Prop. prices'!Z21 -> 0 | AA177: ='Prop. prices'!AA21 -> 0 | AB177: ='Prop. prices'!AB21 -> 0 | AD177: =IF(SUMPRODUCT(--_xlfn.ISFORMULA(C177:AB177))=25,"OK","CHECK") -> OK
C178: 0 | D178: 0 | E178: 0 | F178: 0 | G178: 0 | I178: ='Prop. prices'!I22 -> 0 | J178: ='Prop. prices'!J22 -> 0 | K178: ='Prop. prices'!K22 -> 0 | L178: ='Prop. prices'!L22 -> 0 | M178: ='Prop. prices'!M22 -> 0 | N178: ='Prop. prices'!N22 -> 0 | O178: ='Prop. prices'!O22 -> 0 | P178: ='Prop. prices'!P22 -> 0 | Q178: ='Prop. prices'!Q22 -> 0 | R178: ='Prop. prices'!R22 -> 0 | S178: ='Prop. prices'!S22 -> 0 | T178: ='Prop. prices'!T22 -> 0 | U178: ='Prop. prices'!U22 -> 0 | V178: ='Prop. prices'!V22 -> 0 | W178: ='Prop. prices'!W22 -> 0 | X178: ='Prop. prices'!X22 -> 0 | Y178: ='Prop. prices'!Y22 -> 0 | Z178: ='Prop. prices'!Z22 -> 0 | AA178: ='Prop. prices'!AA22 -> 0 | AB178: ='Prop. prices'!AB22 -> 0 | AD178: =IF(SUMPRODUCT(--_xlfn.ISFORMULA(C178:AB178))=25,"OK","CHECK") -> OK
C179: Small business single rate | D179: Small industrial & commercial | E179: NEE12 | F179: 0 | G179: 0 | I179: ='Prop. prices'!I23 -> 148.9378522 | J179: ='Prop. prices'!J23 -> 0 | K179: ='Prop. prices'!K23 -> 14.16491023 | L179: ='Prop. prices'!L23 -> 14.16491023 | M179: ='Prop. prices'!M23 -> 0 | N179: ='Prop. prices'!N23 -> 0 | O179: ='Prop. prices'!O23 -> 0 | P179: ='Prop. prices'!P23 -> 0 | Q179: ='Prop. prices'!Q23 -> 0 | R179: ='Prop. prices'!R23 -> 0 | S179: ='Prop. prices'!S23 -> 0 | T179: ='Prop. prices'!T23 -> 0 | U179: ='Prop. prices'!U23 -> 0 | V179: ='Prop. prices'!V23 -> 0 | W179: ='Prop. prices'!W23 -> 0 | X179: ='Prop. prices'!X23 -> 0 | Y179: ='Prop. prices'!Y23 -> 0 | Z179: ='Prop. prices'!Z23 -> 0 | AA179: ='Prop. prices'!AA23 -> 0 | AB179: ='Prop. prices'!AB23 -> 0 | AD179: =IF(SUMPRODUCT(--_xlfn.ISFORMULA(C179:AB179))=25,"OK","CHECK") -> OK
C180: =C102 -> Small business single rate standard feed in | D180: Small industrial & commercial | E180: NEE12S | F180: 0 | G180: 0 | I180: ='Prop. prices'!I24 -> 148.9378522 | J180: ='Prop. prices'!J24 -> 0 | K180: ='Prop. prices'!K24 -> 14.16491023 | L180: ='Prop. prices'!L24 -> 14.16491023 | M180: ='Prop. prices'!M24 -> 0 | N180: ='Prop. prices'!N24 -> 0 | O180: ='Prop. prices'!O24 -> 0 | P180: ='Prop. prices'!P24 -> 0 | Q180: ='Prop. prices'!Q24 -> 0 | R180: ='Prop. prices'!R24 -> 0 | S180: ='Prop. prices'!S24 -> 0 | T180: ='Prop. prices'!T24 -> 0 | U180: ='Prop. prices'!U24 -> 0 | V180: ='Prop. prices'!V24 -> 0 | W180: ='Prop. prices'!W24 -> 0 | X180: ='Prop. prices'!X24 -> 0 | Y180: ='Prop. prices'!Y24 -> 0 | Z180: ='Prop. prices'!Z24 -> 0 | AA180: ='Prop. prices'!AA24 -> 0 | AB180: ='Prop. prices'!AB24 -> 0 | AD180: =IF(SUMPRODUCT(--_xlfn.ISFORMULA(C180:AB180))=25,"OK","CHECK") -> OK
C181: Small business single rate & dedicated circuit | D181: Small industrial & commercial | E181: NEE16 | F181: 0 | G181: 0 | I181: ='Prop. prices'!I25 -> 148.9378522 | J181: ='Prop. prices'!J25 -> 0 | K181: ='Prop. prices'!K25 -> 14.16491023 | L181: ='Prop. prices'!L25 -> 14.16491023 | M181: ='Prop. prices'!M25 -> 0 | N181: ='Prop. prices'!N25 -> 0 | O181: ='Prop. prices'!O25 -> 0 | P181: ='Prop. prices'!P25 -> 0 | Q181: ='Prop. prices'!Q25 -> 0 | R181: ='Prop. prices'!R25 -> 0 | S181: ='Prop. prices'!S25 -> 3.834413869 | T181: ='Prop. prices'!T25 -> 0 | U181: ='Prop. prices'!U25 -> 0 | V181: ='Prop. prices'!V25 -> 0 | W181: ='Prop. prices'!W25 -> 0 | X181: ='Prop. prices'!X25 -> 0 | Y181: ='Prop. prices'!Y25 -> 0 | Z181: ='Prop. prices'!Z25 -> 0 | AA181: ='Prop. prices'!AA25 -> 0 | AB181: ='Prop. prices'!AB25 -> 0 | AD181: =IF(SUMPRODUCT(--_xlfn.ISFORMULA(C181:AB181))=25,"OK","CHECK") -> OK
C182: Small business single rate & dedicated circuit with afternoon boost | D182: Small industrial & commercial | E182: NEE17 | F182: 0 | G182: 0 | I182: ='Prop. prices'!I26 -> 148.9378522 | J182: ='Prop. prices'!J26 -> 0 | K182: ='Prop. prices'!K26 -> 14.16491023 | L182: ='Prop. prices'!L26 -> 14.16491023 | M182: ='Prop. prices'!M26 -> 0 | N182: ='Prop. prices'!N26 -> 0 | O182: ='Prop. prices'!O26 -> 0 | P182: ='Prop. prices'!P26 -> 0 | Q182: ='Prop. prices'!Q26 -> 0 | R182: ='Prop. prices'!R26 -> 0 | S182: ='Prop. prices'!S26 -> 3.834413869 | T182: ='Prop. prices'!T26 -> 0 | U182: ='Prop. prices'!U26 -> 0 | V182: ='Prop. prices'!V26 -> 0 | W182: ='Prop. prices'!W26 -> 0 | X182: ='Prop. prices'!X26 -> 0 | Y182: ='Prop. prices'!Y26 -> 0 | Z182: ='Prop. prices'!Z26 -> 0 | AA182: ='Prop. prices'!AA26 -> 0 | AB182: ='Prop. prices'!AB26 -> 0 | AD182: =IF(SUMPRODUCT(--_xlfn.ISFORMULA(C182:AB182))=25,"OK","CHECK") -> OK
C183: Small business single rate & dedicated circuit 8:00 to 8:00 | D183: Small industrial & commercial | E183: NEE18 | F183: 0 | G183: 0 | I183: ='Prop. prices'!I27 -> 148.9378522 | J183: ='Prop. prices'!J27 -> 0 | K183: ='Prop. prices'!K27 -> 14.16491023 | L183: ='Prop. prices'!L27 -> 14.16491023 | M183: ='Prop. prices'!M27 -> 0 | N183: ='Prop. prices'!N27 -> 0 | O183: ='Prop. prices'!O27 -> 0 | P183: ='Prop. prices'!P27 -> 0 | Q183: ='Prop. prices'!Q27 -> 0 | R183: ='Prop. prices'!R27 -> 0 | S183: ='Prop. prices'!S27 -> 3.834413869 | T183: ='Prop. prices'!T27 -> 0 | U183: ='Prop. prices'!U27 -> 0 | V183: ='Prop. prices'!V27 -> 0 | W183: ='Prop. prices'!W27 -> 0 | X183: ='Prop. prices'!X27 -> 0 | Y183: ='Prop. prices'!Y27 -> 0 | Z183: ='Prop. prices'!Z27 -> 0 | AA183: ='Prop. prices'!AA27 -> 0 | AB183: ='Prop. prices'!AB27 -> 0 | AD183: =IF(SUMPRODUCT(--_xlfn.ISFORMULA(C183:AB183))=25,"OK","CHECK") -> OK
C184: Small business time of use | D184: Small industrial & commercial | E184: NAST12 | F184: 0 | G184: 0 | I184: ='Prop. prices'!I28 -> 148.9378522 | J184: ='Prop. prices'!J28 -> 0 | K184: ='Prop. prices'!K28 -> 0 | L184: ='Prop. prices'!L28 -> 0 | M184: ='Prop. prices'!M28 -> 17.33075036 | N184: ='Prop. prices'!N28 -> 0 | O184: ='Prop. prices'!O28 -> 0 | P184: ='Prop. prices'!P28 -> 0 | Q184: ='Prop. prices'!Q28 -> 0 | R184: ='Prop. prices'!R28 -> 3.824322156 | S184: ='Prop. prices'!S28 -> 0 | T184: ='Prop. prices'!T28 -> 0 | U184: ='Prop. prices'!U28 -> 0 | V184: ='Prop. prices'!V28 -> 0 | W184: ='Prop. prices'!W28 -> 0 | X184: ='Prop. prices'!X28 -> 0 | Y184: ='Prop. prices'!Y28 -> 0 | Z184: ='Prop. prices'!Z28 -> 0 | AA184: ='Prop. prices'!AA28 -> 0 | AB184: ='Prop. prices'!AB28 -> 0 | AD184: =IF(SUMPRODUCT(--_xlfn.ISFORMULA(C184:AB184))=25,"OK","CHECK") -> OK
C185: Small business time of use standard feed in | D185: Small industrial & commercial | E185: NAST12S | F185: 0 | G185: 0 | I185: ='Prop. prices'!I29 -> 148.9378522 | J185: ='Prop. prices'!J29 -> 0 | K185: ='Prop. prices'!K29 -> 0 | L185: ='Prop. prices'!L29 -> 0 | M185: ='Prop. prices'!M29 -> 17.33075036 | N185: ='Prop. prices'!N29 -> 0 | O185: ='Prop. prices'!O29 -> 0 | P185: ='Prop. prices'!P29 -> 0 | Q185: ='Prop. prices'!Q29 -> 0 | R185: ='Prop. prices'!R29 -> 3.824322156 | S185: ='Prop. prices'!S29 -> 0 | T185: ='Prop. prices'!T29 -> 0 | U185: ='Prop. prices'!U29 -> 0 | V185: ='Prop. prices'!V29 -> 0 | W185: ='Prop. prices'!W29 -> 0 | X185: ='Prop. prices'!X29 -> 0 | Y185: ='Prop. prices'!Y29 -> 0 | Z185: ='Prop. prices'!Z29 -> 0 | AA185: ='Prop. prices'!AA29 -> 0 | AB185: ='Prop. prices'!AB29 -> 0 | AD185: =IF(SUMPRODUCT(--_xlfn.ISFORMULA(C185:AB185))=25,"OK","CHECK") -> OK
C186: Small business single rate demand | D186: Small industrial & commercial | E186: NASN12 | F186: 0 | G186: 0 | I186: ='Prop. prices'!I30 -> 148.9378522 | J186: ='Prop. prices'!J30 -> 13.35351533 | K186: ='Prop. prices'!K30 -> 0 | L186: ='Prop. prices'!L30 -> 0 | M186: ='Prop. prices'!M30 -> 0 | N186: ='Prop. prices'!N30 -> 0 | O186: ='Prop. prices'!O30 -> 0 | P186: ='Prop. prices'!P30 -> 0 | Q186: ='Prop. prices'!Q30 -> 0 | R186: ='Prop. prices'!R30 -> 0 | S186: ='Prop. prices'!S30 -> 0 | T186: ='Prop. prices'!T30 -> 0 | U186: ='Prop. prices'!U30 -> 0 | V186: ='Prop. prices'!V30 -> 0 | W186: ='Prop. prices'!W30 -> 0 | X186: ='Prop. prices'!X30 -> 0 | Y186: ='Prop. prices'!Y30 -> 11.47253155 | Z186: ='Prop. prices'!Z30 -> 2.862194725 | AA186: ='Prop. prices'!AA30 -> 0 | AB186: ='Prop. prices'!AB30 -> 0 | AD186: =IF(SUMPRODUCT(--_xlfn.ISFORMULA(C186:AB186))=25,"OK","CHECK") -> OK
C187: Small business single rate demand standard feed in | D187: Small industrial & commercial | E187: NASN12S | F187: 0 | G187: 0 | I187: ='Prop. prices'!I31 -> 148.9378522 | J187: ='Prop. prices'!J31 -> 13.35351533 | K187: ='Prop. prices'!K31 -> 0 | L187: ='Prop. prices'!L31 -> 0 | M187: ='Prop. prices'!M31 -> 0 | N187: ='Prop. prices'!N31 -> 0 | O187: ='Prop. prices'!O31 -> 0 | P187: ='Prop. prices'!P31 -> 0 | Q187: ='Prop. prices'!Q31 -> 0 | R187: ='Prop. prices'!R31 -> 0 | S187: ='Prop. prices'!S31 -> 0 | T187: ='Prop. prices'!T31 -> 0 | U187: ='Prop. prices'!U31 -> 0 | V187: ='Prop. prices'!V31 -> 0 | W187: ='Prop. prices'!W31 -> 0 | X187: ='Prop. prices'!X31 -> 0 | Y187: ='Prop. prices'!Y31 -> 11.47253155 | Z187: ='Prop. prices'!Z31 -> 2.862194725 | AA187: ='Prop. prices'!AA31 -> 0 | AB187: ='Prop. prices'!AB31 -> 0 | AD187: =IF(SUMPRODUCT(--_xlfn.ISFORMULA(C187:AB187))=25,"OK","CHECK") -> OK
C188: Business > 40 MWh single rate demand | D188: Small industrial & commercial | E188: NASN19 | F188: 0 | G188: 0 | I188: ='Prop. prices'!I32 -> 156.2031133 | J188: ='Prop. prices'!J32 -> 15.96369434 | K188: ='Prop. prices'!K32 -> 0 | L188: ='Prop. prices'!L32 -> 0 | M188: ='Prop. prices'!M32 -> 0 | N188: ='Prop. prices'!N32 -> 0 | O188: ='Prop. prices'!O32 -> 0 | P188: ='Prop. prices'!P32 -> 0 | Q188: ='Prop. prices'!Q32 -> 0 | R188: ='Prop. prices'!R32 -> 0 | S188: ='Prop. prices'!S32 -> 0 | T188: ='Prop. prices'!T32 -> 0 | U188: ='Prop. prices'!U32 -> 0 | V188: ='Prop. prices'!V32 -> 0 | W188: ='Prop. prices'!W32 -> 0 | X188: ='Prop. prices'!X32 -> 0 | Y188: ='Prop. prices'!Y32 -> 9.193294026 | Z188: ='Prop. prices'!Z32 -> 2.293565073 | AA188: ='Prop. prices'!AA32 -> 0 | AB188: ='Prop. prices'!AB32 -> 0 | AD188: =IF(SUMPRODUCT(--_xlfn.ISFORMULA(C188:AB188))=25,"OK","CHECK") -> OK
C189: Business > 40 MWh two rate demand | D189: Small industrial & commercial | E189: NASN21 | F189: 0 | G189: 0 | I189: ='Prop. prices'!I33 -> 156.2031133 | J189: ='Prop. prices'!J33 -> 0 | K189: ='Prop. prices'!K33 -> 0 | L189: ='Prop. prices'!L33 -> 0 | M189: ='Prop. prices'!M33 -> 15.9380302 | N189: ='Prop. prices'!N33 -> 0 | O189: ='Prop. prices'!O33 -> 0 | P189: ='Prop. prices'!P33 -> 0 | Q189: ='Prop. prices'!Q33 -> 0 | R189: ='Prop. prices'!R33 -> 3.669296524 | S189: ='Prop. prices'!S33 -> 0 | T189: ='Prop. prices'!T33 -> 0 | U189: ='Prop. prices'!U33 -> 0 | V189: ='Prop. prices'!V33 -> 0 | W189: ='Prop. prices'!W33 -> 0 | X189: ='Prop. prices'!X33 -> 0 | Y189: ='Prop. prices'!Y33 -> 9.193294026 | Z189: ='Prop. prices'!Z33 -> 2.293565073 | AA189: ='Prop. prices'!AA33 -> 0 | AB189: ='Prop. prices'!AB33 -> 0 | AD189: =IF(SUMPRODUCT(--_xlfn.ISFORMULA(C189:AB189))=25,"OK","CHECK") -> OK
C190: Business > 40 MWh two rate demand standard feed in | D190: Small industrial & commercial | E190: NASN2S | F190: 0 | G190: 0 | I190: ='Prop. prices'!I34 -> 156.2031133 | J190: ='Prop. prices'!J34 -> 0 | K190: ='Prop. prices'!K34 -> 0 | L190: ='Prop. prices'!L34 -> 0 | M190: ='Prop. prices'!M34 -> 15.9380302 | N190: ='Prop. prices'!N34 -> 0 | O190: ='Prop. prices'!O34 -> 0 | P190: ='Prop. prices'!P34 -> 0 | Q190: ='Prop. prices'!Q34 -> 0 | R190: ='Prop. prices'!R34 -> 3.669296524 | S190: ='Prop. prices'!S34 -> 0 | T190: ='Prop. prices'!T34 -> 0 | U190: ='Prop. prices'!U34 -> 0 | V190: ='Prop. prices'!V34 -> 0 | W190: ='Prop. prices'!W34 -> 0 | X190: ='Prop. prices'!X34 -> 0 | Y190: ='Prop. prices'!Y34 -> 9.193294026 | Z190: ='Prop. prices'!Z34 -> 2.293565073 | AA190: ='Prop. prices'!AA34 -> 0 | AB190: ='Prop. prices'!AB34 -> 0 | AD190: =IF(SUMPRODUCT(--_xlfn.ISFORMULA(C190:AB190))=25,"OK","CHECK") -> OK
C191: Small business interval meter time of use | D191: Small industrial & commercial | E191: NSP21 | F191: 0 | G191: 0 | I191: ='Prop. prices'!I35 -> 148.9378522 | J191: ='Prop. prices'!J35 -> 0 | K191: ='Prop. prices'!K35 -> 0 | L191: ='Prop. prices'!L35 -> 0 | M191: ='Prop. prices'!M35 -> 0 | N191: ='Prop. prices'!N35 -> 0 | O191: ='Prop. prices'!O35 -> 46.92556616 | P191: ='Prop. prices'!P35 -> 41.0616496 | Q191: ='Prop. prices'!Q35 -> 35.93679907 | R191: ='Prop. prices'!R35 -> 4.002319368 | S191: ='Prop. prices'!S35 -> 0 | T191: ='Prop. prices'!T35 -> 0 | U191: ='Prop. prices'!U35 -> 0 | V191: ='Prop. prices'!V35 -> 0 | W191: ='Prop. prices'!W35 -> 0 | X191: ='Prop. prices'!X35 -> 0 | Y191: ='Prop. prices'!Y35 -> 0 | Z191: ='Prop. prices'!Z35 -> 0 | AA191: ='Prop. prices'!AA35 -> 0 | AB191: ='Prop. prices'!AB35 -> 0 | AD191: =IF(SUMPRODUCT(--_xlfn.ISFORMULA(C191:AB191))=25,"OK","CHECK") -> OK
C192: Small business interval meter low peak time of use | D192: Small industrial & commercial | E192: NSP27 | F192: 0 | G192: 0 | I192: ='Prop. prices'!I36 -> 148.9378522 | J192: ='Prop. prices'!J36 -> 0 | K192: ='Prop. prices'!K36 -> 0 | L192: ='Prop. prices'!L36 -> 0 | M192: ='Prop. prices'!M36 -> 0 | N192: ='Prop. prices'!N36 -> 0 | O192: ='Prop. prices'!O36 -> 26.36652216 | P192: ='Prop. prices'!P36 -> 23.11298631 | Q192: ='Prop. prices'!Q36 -> 20.27120996 | R192: ='Prop. prices'!R36 -> 7.238355651 | S192: ='Prop. prices'!S36 -> 0 | T192: ='Prop. prices'!T36 -> 0 | U192: ='Prop. prices'!U36 -> 0 | V192: ='Prop. prices'!V36 -> 0 | W192: ='Prop. prices'!W36 -> 0 | X192: ='Prop. prices'!X36 -> 0 | Y192: ='Prop. prices'!Y36 -> 0 | Z192: ='Prop. prices'!Z36 -> 0 | AA192: ='Prop. prices'!AA36 -> 0 | AB192: ='Prop. prices'!AB36 -> 0 | AD192: =IF(SUMPRODUCT(--_xlfn.ISFORMULA(C192:AB192))=25,"OK","CHECK") -> OK
C193: Small business interval meter time of use solar installation standard feed in | D193: Small industrial & commercial | E193: SSP27 | F193: 0 | G193: 0 | I193: ='Prop. prices'!I37 -> 148.9378522 | J193: ='Prop. prices'!J37 -> 0 | K193: ='Prop. prices'!K37 -> 0 | L193: ='Prop. prices'!L37 -> 0 | M193: ='Prop. prices'!M37 -> 0 | N193: ='Prop. prices'!N37 -> 0 | O193: ='Prop. prices'!O37 -> 26.36652216 | P193: ='Prop. prices'!P37 -> 23.11298631 | Q193: ='Prop. prices'!Q37 -> 20.27120996 | R193: ='Prop. prices'!R37 -> 7.238355651 | S193: ='Prop. prices'!S37 -> 0 | T193: ='Prop. prices'!T37 -> 0 | U193: ='Prop. prices'!U37 -> 0 | V193: ='Prop. prices'!V37 -> 0 | W193: ='Prop. prices'!W37 -> 0 | X193: ='Prop. prices'!X37 -> 0 | Y193: ='Prop. prices'!Y37 -> 0 | Z193: ='Prop. prices'!Z37 -> 0 | AA193: ='Prop. prices'!AA37 -> 0 | AB193: ='Prop. prices'!AB37 -> 0 | AD193: =IF(SUMPRODUCT(--_xlfn.ISFORMULA(C193:AB193))=25,"OK","CHECK") -> OK
C194: 0 | D194: 0 | E194: 0 | F194: 0 | G194: 0 | I194: ='Prop. prices'!I38 -> 0 | J194: ='Prop. prices'!J38 -> 0 | K194: ='Prop. prices'!K38 -> 0 | L194: ='Prop. prices'!L38 -> 0 | M194: ='Prop. prices'!M38 -> 0 | N194: ='Prop. prices'!N38 -> 0 | O194: ='Prop. prices'!O38 -> 0 | P194: ='Prop. prices'!P38 -> 0 | Q194: ='Prop. prices'!Q38 -> 0 | R194: ='Prop. prices'!R38 -> 0 | S194: ='Prop. prices'!S38 -> 0 | T194: ='Prop. prices'!T38 -> 0 | U194: ='Prop. prices'!U38 -> 0 | V194: ='Prop. prices'!V38 -> 0 | W194: ='Prop. prices'!W38 -> 0 | X194: ='Prop. prices'!X38 -> 0 | Y194: ='Prop. prices'!Y38 -> 0 | Z194: ='Prop. prices'!Z38 -> 0 | AA194: ='Prop. prices'!AA38 -> 0 | AB194: ='Prop. prices'!AB38 -> 0 | AD194: =IF(SUMPRODUCT(--_xlfn.ISFORMULA(C194:AB194))=25,"OK","CHECK") -> OK
C195: Public lighting and street furniture | D195: Medium industrial & commercial | E195: NEE52 | F195: 0 | G195: 0 | I195: ='Prop. prices'!I39 -> 0 | J195: ='Prop. prices'!J39 -> 0 | K195: ='Prop. prices'!K39 -> 0 | L195: ='Prop. prices'!L39 -> 0 | M195: ='Prop. prices'!M39 -> 21.3909945 | N195: ='Prop. prices'!N39 -> 0 | O195: ='Prop. prices'!O39 -> 0 | P195: ='Prop. prices'!P39 -> 0 | Q195: ='Prop. prices'!Q39 -> 0 | R195: ='Prop. prices'!R39 -> 10.84488985 | S195: ='Prop. prices'!S39 -> 0 | T195: ='Prop. prices'!T39 -> 0 | U195: ='Prop. prices'!U39 -> 0 | V195: ='Prop. prices'!V39 -> 0 | W195: ='Prop. prices'!W39 -> 0 | X195: ='Prop. prices'!X39 -> 0 | Y195: ='Prop. prices'!Y39 -> 0 | Z195: ='Prop. prices'!Z39 -> 0 | AA195: ='Prop. prices'!AA39 -> 0 | AB195: ='Prop. prices'!AB39 -> 0 | AD195: =IF(SUMPRODUCT(--_xlfn.ISFORMULA(C195:AB195))=25,"OK","CHECK") -> OK
C196: =C118 -> Medium snowfields | D196: Medium industrial & commercial | E196: NEE55 | F196: 0 | G196: 0 | I196: ='Prop. prices'!I40 -> 143.9374661 | J196: ='Prop. prices'!J40 -> 0 | K196: ='Prop. prices'!K40 -> 0 | L196: ='Prop. prices'!L40 -> 0 | M196: ='Prop. prices'!M40 -> 18.54632767 | N196: ='Prop. prices'!N40 -> 0 | O196: ='Prop. prices'!O40 -> 0 | P196: ='Prop. prices'!P40 -> 0 | Q196: ='Prop. prices'!Q40 -> 0 | R196: ='Prop. prices'!R40 -> 5.186726705 | S196: ='Prop. prices'!S40 -> 0 | T196: ='Prop. prices'!T40 -> 0 | U196: ='Prop. prices'!U40 -> 0 | V196: ='Prop. prices'!V40 -> 0 | W196: ='Prop. prices'!W40 -> 0 | X196: ='Prop. prices'!X40 -> 0 | Y196: ='Prop. prices'!Y40 -> 0 | Z196: ='Prop. prices'!Z40 -> 0 | AA196: ='Prop. prices'!AA40 -> 0 | AB196: ='Prop. prices'!AB40 -> 0 | AD196: =IF(SUMPRODUCT(--_xlfn.ISFORMULA(C196:AB196))=25,"OK","CHECK") -> OK
C197: Medium interval meter time of use snowfields | D197: Medium industrial & commercial | E197: NSP55 | F197: 0 | G197: 0 | I197: ='Prop. prices'!I41 -> 143.9374661 | J197: ='Prop. prices'!J41 -> 0 | K197: ='Prop. prices'!K41 -> 0 | L197: ='Prop. prices'!L41 -> 0 | M197: ='Prop. prices'!M41 -> 0 | N197: ='Prop. prices'!N41 -> 0 | O197: ='Prop. prices'!O41 -> 49.13841056 | P197: ='Prop. prices'!P41 -> 42.99782187 | Q197: ='Prop. prices'!Q41 -> 37.63128021 | R197: ='Prop. prices'!R41 -> 2.987206886 | S197: ='Prop. prices'!S41 -> 0 | T197: ='Prop. prices'!T41 -> 0 | U197: ='Prop. prices'!U41 -> 0 | V197: ='Prop. prices'!V41 -> 0 | W197: ='Prop. prices'!W41 -> 0 | X197: ='Prop. prices'!X41 -> 0 | Y197: ='Prop. prices'!Y41 -> 0 | Z197: ='Prop. prices'!Z41 -> 0 | AA197: ='Prop. prices'!AA41 -> 0 | AB197: ='Prop. prices'!AB41 -> 0 | AD197: =IF(SUMPRODUCT(--_xlfn.ISFORMULA(C197:AB197))=25,"OK","CHECK") -> OK
C198: Medium critical peak demand 160 MWh to 400 MWh | D198: Medium industrial & commercial | E198: NSP56 | F198: 0 | G198: 0 | I198: ='Prop. prices'!I42 -> 3467.299706 | J198: ='Prop. prices'!J42 -> 0 | K198: ='Prop. prices'!K42 -> 0 | L198: ='Prop. prices'!L42 -> 0 | M198: ='Prop. prices'!M42 -> 14.20993179 | N198: ='Prop. prices'!N42 -> 10.16150207 | O198: ='Prop. prices'!O42 -> 0 | P198: ='Prop. prices'!P42 -> 0 | Q198: ='Prop. prices'!Q42 -> 0 | R198: ='Prop. prices'!R42 -> 4.622339243 | S198: ='Prop. prices'!S42 -> 0 | T198: ='Prop. prices'!T42 -> 0 | U198: ='Prop. prices'!U42 -> 0 | V198: ='Prop. prices'!V42 -> 0 | W198: ='Prop. prices'!W42 -> 24.52152769 | X198: ='Prop. prices'!X42 -> 40.8734283 | Y198: ='Prop. prices'!Y42 -> 0 | Z198: ='Prop. prices'!Z42 -> 0 | AA198: ='Prop. prices'!AA42 -> 0 | AB198: ='Prop. prices'!AB42 -> 0 | AD198: =IF(SUMPRODUCT(--_xlfn.ISFORMULA(C198:AB198))=25,"OK","CHECK") -> OK
C199: Medium critical peak demand 160 MWh to 400 MWh (Transitional) | D199: Medium industrial & commercial | E199: NAT56 | F199: 0 | G199: 0 | I199: ='Prop. prices'!I43 -> 3467.299706 | J199: ='Prop. prices'!J43 -> 0 | K199: ='Prop. prices'!K43 -> 0 | L199: ='Prop. prices'!L43 -> 0 | M199: ='Prop. prices'!M43 -> 14.20993179 | N199: ='Prop. prices'!N43 -> 10.16150207 | O199: ='Prop. prices'!O43 -> 0 | P199: ='Prop. prices'!P43 -> 0 | Q199: ='Prop. prices'!Q43 -> 0 | R199: ='Prop. prices'!R43 -> 4.622339243 | S199: ='Prop. prices'!S43 -> 0 | T199: ='Prop. prices'!T43 -> 0 | U199: ='Prop. prices'!U43 -> 0 | V199: ='Prop. prices'!V43 -> 0 | W199: ='Prop. prices'!W43 -> 0 | X199: ='Prop. prices'!X43 -> 0 | Y199: ='Prop. prices'!Y43 -> 0 | Z199: ='Prop. prices'!Z43 -> 0 | AA199: ='Prop. prices'!AA43 -> 0 | AB199: ='Prop. prices'!AB43 -> 0 | AD199: =IF(SUMPRODUCT(--_xlfn.ISFORMULA(C199:AB199))=25,"OK","CHECK") -> OK
C200: Medium critical peak demand 160 MWh to 400 MWh within embedded network | D200: Medium industrial & commercial | E200: NEN56 | F200: 0 | G200: 0 | I200: ='Prop. prices'!I44 -> 3467.299706 | J200: ='Prop. prices'!J44 -> 0 | K200: ='Prop. prices'!K44 -> 0 | L200: ='Prop. prices'!L44 -> 0 | M200: ='Prop. prices'!M44 -> 11.30026105 | N200: ='Prop. prices'!N44 -> 7.875710692 | O200: ='Prop. prices'!O44 -> 0 | P200: ='Prop. prices'!P44 -> 0 | Q200: ='Prop. prices'!Q44 -> 0 | R200: ='Prop. prices'!R44 -> 4.898579535 | S200: ='Prop. prices'!S44 -> 0 | T200: ='Prop. prices'!T44 -> 0 | U200: ='Prop. prices'!U44 -> 0 | V200: ='Prop. prices'!V44 -> 0 | W200: ='Prop. prices'!W44 -> 24.52152769 | X200: ='Prop. prices'!X44 -> 40.8734283 | Y200: ='Prop. prices'!Y44 -> 0 | Z200: ='Prop. prices'!Z44 -> 0 | AA200: ='Prop. prices'!AA44 -> 0 | AB200: ='Prop. prices'!AB44 -> 0 | AD200: =IF(SUMPRODUCT(--_xlfn.ISFORMULA(C200:AB200))=25,"OK","CHECK") -> OK
C201: 0 | D201: 0 | E201: 0 | F201: 0 | G201: 0 | I201: ='Prop. prices'!I45 -> 0 | J201: ='Prop. prices'!J45 -> 0 | K201: ='Prop. prices'!K45 -> 0 | L201: ='Prop. prices'!L45 -> 0 | M201: ='Prop. prices'!M45 -> 0 | N201: ='Prop. prices'!N45 -> 0 | O201: ='Prop. prices'!O45 -> 0 | P201: ='Prop. prices'!P45 -> 0 | Q201: ='Prop. prices'!Q45 -> 0 | R201: ='Prop. prices'!R45 -> 0 | S201: ='Prop. prices'!S45 -> 0 | T201: ='Prop. prices'!T45 -> 0 | U201: ='Prop. prices'!U45 -> 0 | V201: ='Prop. prices'!V45 -> 0 | W201: ='Prop. prices'!W45 -> 0 | X201: ='Prop. prices'!X45 -> 0 | Y201: ='Prop. prices'!Y45 -> 0 | Z201: ='Prop. prices'!Z45 -> 0 | AA201: ='Prop. prices'!AA45 -> 0 | AB201: ='Prop. prices'!AB45 -> 0 | AD201: =IF(SUMPRODUCT(--_xlfn.ISFORMULA(C201:AB201))=25,"OK","CHECK") -> OK
C202: Large critical peak demand 400 MWh to 750 MWh | D202: Large industrial & commercial | E202: NSP75 | F202: 0 | G202: 0 | I202: ='Prop. prices'!I46 -> 7751.794362 | J202: ='Prop. prices'!J46 -> 0 | K202: ='Prop. prices'!K46 -> 0 | L202: ='Prop. prices'!L46 -> 0 | M202: ='Prop. prices'!M46 -> 4.052993346 | N202: ='Prop. prices'!N46 -> 2.746249586 | O202: ='Prop. prices'!O46 -> 0 | P202: ='Prop. prices'!P46 -> 0 | Q202: ='Prop. prices'!Q46 -> 0 | R202: ='Prop. prices'!R46 -> 1.566392358 | S202: ='Prop. prices'!S46 -> 0 | T202: ='Prop. prices'!T46 -> 0 | U202: ='Prop. prices'!U46 -> 0 | V202: ='Prop. prices'!V46 -> 0 | W202: ='Prop. prices'!W46 -> 59.54065629 | X202: ='Prop. prices'!X46 -> 99.85793363 | Y202: ='Prop. prices'!Y46 -> 0 | Z202: ='Prop. prices'!Z46 -> 0 | AA202: ='Prop. prices'!AA46 -> 0 | AB202: ='Prop. prices'!AB46 -> 0 | AD202: =IF(SUMPRODUCT(--_xlfn.ISFORMULA(C202:AB202))=25,"OK","CHECK") -> OK
C203: Large critical peak demand 400 MWh to 750 MWh (Transitional) | D203: Large industrial & commercial | E203: NAT75 | F203: 0 | G203: 0 | I203: ='Prop. prices'!I47 -> 7751.794362 | J203: ='Prop. prices'!J47 -> 0 | K203: ='Prop. prices'!K47 -> 0 | L203: ='Prop. prices'!L47 -> 0 | M203: ='Prop. prices'!M47 -> 4.052993346 | N203: ='Prop. prices'!N47 -> 2.746249586 | O203: ='Prop. prices'!O47 -> 0 | P203: ='Prop. prices'!P47 -> 0 | Q203: ='Prop. prices'!Q47 -> 0 | R203: ='Prop. prices'!R47 -> 1.566392358 | S203: ='Prop. prices'!S47 -> 0 | T203: ='Prop. prices'!T47 -> 0 | U203: ='Prop. prices'!U47 -> 0 | V203: ='Prop. prices'!V47 -> 0 | W203: ='Prop. prices'!W47 -> 0 | X203: ='Prop. prices'!X47 -> 0 | Y203: ='Prop. prices'!Y47 -> 0 | Z203: ='Prop. prices'!Z47 -> 0 | AA203: ='Prop. prices'!AA47 -> 0 | AB203: ='Prop. prices'!AB47 -> 0 | AD203: =IF(SUMPRODUCT(--_xlfn.ISFORMULA(C203:AB203))=25,"OK","CHECK") -> OK
C204: Large critical peak demand 750 MWh to 2000 MWh | D204: Large industrial & commercial | E204: NSP76 | F204: 0 | G204: 0 | I204: ='Prop. prices'!I48 -> 7751.794362 | J204: ='Prop. prices'!J48 -> 0 | K204: ='Prop. prices'!K48 -> 0 | L204: ='Prop. prices'!L48 -> 0 | M204: ='Prop. prices'!M48 -> 3.780484111 | N204: ='Prop. prices'!N48 -> 2.477560508 | O204: ='Prop. prices'!O48 -> 0 | P204: ='Prop. prices'!P48 -> 0 | Q204: ='Prop. prices'!Q48 -> 0 | R204: ='Prop. prices'!R48 -> 1.404846565 | S204: ='Prop. prices'!S48 -> 0 | T204: ='Prop. prices'!T48 -> 0 | U204: ='Prop. prices'!U48 -> 0 | V204: ='Prop. prices'!V48 -> 0 | W204: ='Prop. prices'!W48 -> 62.08102392 | X204: ='Prop. prices'!X48 -> 104.9892235 | Y204: ='Prop. prices'!Y48 -> 0 | Z204: ='Prop. prices'!Z48 -> 0 | AA204: ='Prop. prices'!AA48 -> 0 | AB204: ='Prop. prices'!AB48 -> 0 | AD204: =IF(SUMPRODUCT(--_xlfn.ISFORMULA(C204:AB204))=25,"OK","CHECK") -> OK
C205: Large critical peak demand 2000 MWh to 4000 MWh | D205: Large industrial & commercial | E205: NSP77 | F205: 0 | G205: 0 | I205: ='Prop. prices'!I49 -> 7751.794362 | J205: ='Prop. prices'!J49 -> 0 | K205: ='Prop. prices'!K49 -> 0 | L205: ='Prop. prices'!L49 -> 0 | M205: ='Prop. prices'!M49 -> 3.713067001 | N205: ='Prop. prices'!N49 -> 2.44929966 | O205: ='Prop. prices'!O49 -> 0 | P205: ='Prop. prices'!P49 -> 0 | Q205: ='Prop. prices'!Q49 -> 0 | R205: ='Prop. prices'!R49 -> 1.326077302 | S205: ='Prop. prices'!S49 -> 0 | T205: ='Prop. prices'!T49 -> 0 | U205: ='Prop. prices'!U49 -> 0 | V205: ='Prop. prices'!V49 -> 0 | W205: ='Prop. prices'!W49 -> 68.05910298 | X205: ='Prop. prices'!X49 -> 112.9768471 | Y205: ='Prop. prices'!Y49 -> 0 | Z205: ='Prop. prices'!Z49 -> 0 | AA205: ='Prop. prices'!AA49 -> 0 | AB205: ='Prop. prices'!AB49 -> 0 | AD205: =IF(SUMPRODUCT(--_xlfn.ISFORMULA(C205:AB205))=25,"OK","CHECK") -> OK
C206: Large critical peak demand over 4000 MWh | D206: Large industrial & commercial | E206: NSP78 | F206: 0 | G206: 0 | I206: ='Prop. prices'!I50 -> 7751.794362 | J206: ='Prop. prices'!J50 -> 0 | K206: ='Prop. prices'!K50 -> 0 | L206: ='Prop. prices'!L50 -> 0 | M206: ='Prop. prices'!M50 -> 3.328712415 | N206: ='Prop. prices'!N50 -> 2.196995838 | O206: ='Prop. prices'!O50 -> 0 | P206: ='Prop. prices'!P50 -> 0 | Q206: ='Prop. prices'!Q50 -> 0 | R206: ='Prop. prices'!R50 -> 1.14895985 | S206: ='Prop. prices'!S50 -> 0 | T206: ='Prop. prices'!T50 -> 0 | U206: ='Prop. prices'!U50 -> 0 | V206: ='Prop. prices'!V50 -> 0 | W206: ='Prop. prices'!W50 -> 74.8713326 | X206: ='Prop. prices'!X50 -> 123.871359 | Y206: ='Prop. prices'!Y50 -> 0 | Z206: ='Prop. prices'!Z50 -> 0 | AA206: ='Prop. prices'!AA50 -> 0 | AB206: ='Prop. prices'!AB50 -> 0 | AD206: =IF(SUMPRODUCT(--_xlfn.ISFORMULA(C206:AB206))=25,"OK","CHECK") -> OK
C207: 0 | D207: 0 | E207: 0 | F207: 0 | G207: 0 | I207: ='Prop. prices'!I51 -> 0 | J207: ='Prop. prices'!J51 -> 0 | K207: ='Prop. prices'!K51 -> 0 | L207: ='Prop. prices'!L51 -> 0 | M207: ='Prop. prices'!M51 -> 0 | N207: ='Prop. prices'!N51 -> 0 | O207: ='Prop. prices'!O51 -> 0 | P207: ='Prop. prices'!P51 -> 0 | Q207: ='Prop. prices'!Q51 -> 0 | R207: ='Prop. prices'!R51 -> 0 | S207: ='Prop. prices'!S51 -> 0 | T207: ='Prop. prices'!T51 -> 0 | U207: ='Prop. prices'!U51 -> 0 | V207: ='Prop. prices'!V51 -> 0 | W207: ='Prop. prices'!W51 -> 0 | X207: ='Prop. prices'!X51 -> 0 | Y207: ='Prop. prices'!Y51 -> 0 | Z207: ='Prop. prices'!Z51 -> 0 | AA207: ='Prop. prices'!AA51 -> 0 | AB207: ='Prop. prices'!AB51 -> 0 | AD207: =IF(SUMPRODUCT(--_xlfn.ISFORMULA(C207:AB207))=25,"OK","CHECK") -> OK
C208: High voltage critical peak demand | D208: High voltage | E208: NSP81 | F208: 0 | G208: 0 | I208: ='Prop. prices'!I52 -> 7751.794362 | J208: ='Prop. prices'!J52 -> 0 | K208: ='Prop. prices'!K52 -> 0 | L208: ='Prop. prices'!L52 -> 0 | M208: ='Prop. prices'!M52 -> 0.7251164567 | N208: ='Prop. prices'!N52 -> 0 | O208: ='Prop. prices'!O52 -> 0 | P208: ='Prop. prices'!P52 -> 0 | Q208: ='Prop. prices'!Q52 -> 0 | R208: ='Prop. prices'!R52 -> 0.2933425666 | S208: ='Prop. prices'!S52 -> 0 | T208: ='Prop. prices'!T52 -> 0 | U208: ='Prop. prices'!U52 -> 0 | V208: ='Prop. prices'!V52 -> 0 | W208: ='Prop. prices'!W52 -> 49.20148122 | X208: ='Prop. prices'!X52 -> 80.6361134 | Y208: ='Prop. prices'!Y52 -> 0 | Z208: ='Prop. prices'!Z52 -> 0 | AA208: ='Prop. prices'!AA52 -> 0 | AB208: ='Prop. prices'!AB52 -> 0 | AD208: =IF(SUMPRODUCT(--_xlfn.ISFORMULA(C208:AB208))=25,"OK","CHECK") -> OK
C209: High voltage critical peak demand low energy use | D209: High voltage | E209: NSP83 | F209: 0 | G209: 0 | I209: ='Prop. prices'!I53 -> 7751.794362 | J209: ='Prop. prices'!J53 -> 0 | K209: ='Prop. prices'!K53 -> 0 | L209: ='Prop. prices'!L53 -> 0 | M209: ='Prop. prices'!M53 -> 11.92010933 | N209: ='Prop. prices'!N53 -> 4.171062563 | O209: ='Prop. prices'!O53 -> 0 | P209: ='Prop. prices'!P53 -> 0 | Q209: ='Prop. prices'!Q53 -> 0 | R209: ='Prop. prices'!R53 -> 1.298918186 | S209: ='Prop. prices'!S53 -> 0 | T209: ='Prop. prices'!T53 -> 0 | U209: ='Prop. prices'!U53 -> 0 | V209: ='Prop. prices'!V53 -> 0 | W209: ='Prop. prices'!W53 -> 5.243629445 | X209: ='Prop. prices'!X53 -> 8.663387779 | Y209: ='Prop. prices'!Y53 -> 0 | Z209: ='Prop. prices'!Z53 -> 0 | AA209: ='Prop. prices'!AA53 -> 0 | AB209: ='Prop. prices'!AB53 -> 0 | AD209: =IF(SUMPRODUCT(--_xlfn.ISFORMULA(C209:AB209))=25,"OK","CHECK") -> OK
C210: 0 | D210: 0 | E210: 0 | F210: 0 | G210: 0 | I210: ='Prop. prices'!I54 -> 0 | J210: ='Prop. prices'!J54 -> 0 | K210: ='Prop. prices'!K54 -> 0 | L210: ='Prop. prices'!L54 -> 0 | M210: ='Prop. prices'!M54 -> 0 | N210: ='Prop. prices'!N54 -> 0 | O210: ='Prop. prices'!O54 -> 0 | P210: ='Prop. prices'!P54 -> 0 | Q210: ='Prop. prices'!Q54 -> 0 | R210: ='Prop. prices'!R54 -> 0 | S210: ='Prop. prices'!S54 -> 0 | T210: ='Prop. prices'!T54 -> 0 | U210: ='Prop. prices'!U54 -> 0 | V210: ='Prop. prices'!V54 -> 0 | W210: ='Prop. prices'!W54 -> 0 | X210: ='Prop. prices'!X54 -> 0 | Y210: ='Prop. prices'!Y54 -> 0 | Z210: ='Prop. prices'!Z54 -> 0 | AA210: ='Prop. prices'!AA54 -> 0 | AB210: ='Prop. prices'!AB54 -> 0 | AD210: =IF(SUMPRODUCT(--_xlfn.ISFORMULA(C210:AB210))=25,"OK","CHECK") -> OK
C211: 0 | D211: 0 | E211: 0 | F211: 0 | G211: 0 | I211: ='Prop. prices'!I55 -> 0 | J211: ='Prop. prices'!J55 -> 0 | K211: ='Prop. prices'!K55 -> 0 | L211: ='Prop. prices'!L55 -> 0 | M211: ='Prop. prices'!M55 -> 0 | N211: ='Prop. prices'!N55 -> 0 | O211: ='Prop. prices'!O55 -> 0 | P211: ='Prop. prices'!P55 -> 0 | Q211: ='Prop. prices'!Q55 -> 0 | R211: ='Prop. prices'!R55 -> 0 | S211: ='Prop. prices'!S55 -> 0 | T211: ='Prop. prices'!T55 -> 0 | U211: ='Prop. prices'!U55 -> 0 | V211: ='Prop. prices'!V55 -> 0 | W211: ='Prop. prices'!W55 -> 0 | X211: ='Prop. prices'!X55 -> 0 | Y211: ='Prop. prices'!Y55 -> 0 | Z211: ='Prop. prices'!Z55 -> 0 | AA211: ='Prop. prices'!AA55 -> 0 | AB211: ='Prop. prices'!AB55 -> 0 | AD211: =IF(SUMPRODUCT(--_xlfn.ISFORMULA(C211:AB211))=25,"OK","CHECK") -> OK
... 110 more rows

Sheet Stakeholder report
I1: Back to Index
E3: =DNSP&" "&forecastyear&" pricing" -> AusNet Services 2026–27 pricing
E4: Stakeholder report
B6: ="The AER provides the below information in relation to "&DNSP&"'s "&forecastyear&" pricing proposal. This information includes:" -> The AER provides the below information in relation to AusNet Services's 2026–27 pricing proposal. This information includes: | G6: Revenue trends | H6: Consumption trends | I6: Cost movements
B7: This report is intended to compliment the AER's Statement of Reasons, published upon approval of the pricing proposal. More information regarding our decision can be found in the AER's Statement of Reasons.
B8: ="More information underlying that provided below can be found in "&DNSP&"'s "&forecastyear&" pricing model and proposal document." -> More information underlying that provided below can be found in AusNet Services's 2026–27 pricing model and proposal document.
B9: If you require assistance navigating the data and mechanisms below, navigating underlying data, or have any feedback, please reach out to AERPricing@aer.gov.au
B11: Revenue trends
B12: ="The below table provides allowed revenues for "&DNSP&" for "&forecastyear&" as well as historical years. This includes revenues allowed to pass-through any transmission and jurisdictional scheme costs." -> The below table provides allowed revenues for AusNet Services for 2026–27 as well as historical years. This includes revenues allowed to pass-through any transmission and jurisdictional scheme costs.
B13: ="Allowed revenues are as per the AER's final "&LEFT(RCP_firstyear,5)&RIGHT(RCP_lastyear,2)&" determination, adjusted for actual CPI and annual debt updates, and may also include approved cost pass-throughs." -> Allowed revenues are as per the AER's final 2026–31 determination, adjusted for actual CPI and annual debt updates, and may also include approved cost pass-throughs.
B14: Other adjustments are listed, including incentive schemes, cost pass-throughs, true-ups for under/over-recovered revenues. Cost pass-throughs may be applied through the allowed revenue (X-factor), or through adjustments (C-factor).
B15: Please note, metering revenue is excluded from network revenue below as metering operates as a price cap for some networks.
D17: =tminus3_year -> 2023–24 | E17: =previousyear -> 2024–25 | F17: =currentyear -> 2025–26 | G17: =forecastyear -> 2026–27 | H17: =forecastyear& " movement" -> 2026–27 movement | I17: ="3-year trend to "&forecastyear -> 3-year trend to 2026–27
B18: Allowed distribution revenue ($m) | D18: ='Stakeholder report'!D22-'Stakeholder report'!D19-'Stakeholder report'!D20-INDEX(Financial!$J$35:$Q$35,1,MATCH('Stakeholder report'!D17,Financial!$J$14:$Q$14,0)) -> 730.3907171 | E18: ='Stakeholder report'!E22-'Stakeholder report'!E19-'Stakeholder report'!E20-INDEX(Financial!$J$35:$Q$35,1,MATCH('Stakeholder report'!E17,Financial!$J$14:$Q$14,0)) -> 803.9400545 | F18: ='Stakeholder report'!F22-'Stakeholder report'!F19-'Stakeholder report'!F20-INDEX(Financial!$J$35:$Q$35,1,MATCH('Stakeholder report'!F17,Financial!$J$14:$Q$14,0)) -> 847.3111885 | G18: ='Stakeholder report'!G22-'Stakeholder report'!G19-'Stakeholder report'!G20-INDEX(Financial!$J$35:$Q$35,1,MATCH('Stakeholder report'!G17,Financial!$J$14:$Q$14,0)) -> 874.6444251 | H18: =IFERROR(G18/F18-1,0) -> 0.03225879343 | I18: =IFERROR(SLOPE(D18:G18,'Qty forecasts'!$H$6:$K$6)/D18,0) -> 0.06518870616
B19: Incentive schemes ($m) | D19: =INDEX(Financial!$J$24:$Q$24,1,MATCH('Stakeholder report'!D17,Financial!$J$14:$Q$14,0)) -> 24.59213152 | E19: =INDEX(Financial!$J$24:$Q$24,1,MATCH('Stakeholder report'!E17,Financial!$J$14:$Q$14,0)) -> 11.08048515 | F19: =INDEX(Financial!$J$24:$Q$24,1,MATCH('Stakeholder report'!F17,Financial!$J$14:$Q$14,0)) -> 14.6435222 | G19: =INDEX(Financial!$J$24:$Q$24,1,MATCH('Stakeholder report'!G17,Financial!$J$14:$Q$14,0)) -> -19.52076029 | H19: =IFERROR(G19/F19-1,0) -> -2.333064547 | I19: =IFERROR(SLOPE(D19:G19,'Qty forecasts'!$H$6:$K$6)/D19,0) -> -0.5236456965
B20: Cost pass-throughs ($m) | D20: =INDEX(Financial!$J$29:$Q$29,1,MATCH('Stakeholder report'!D17,Financial!$J$14:$Q$14,0)) -> 12.943853 | E20: =INDEX(Financial!$J$29:$Q$29,1,MATCH('Stakeholder report'!E17,Financial!$J$14:$Q$14,0)) -> 13.116866 | F20: =INDEX(Financial!$J$29:$Q$29,1,MATCH('Stakeholder report'!F17,Financial!$J$14:$Q$14,0)) -> 29.213927 | G20: =INDEX(Financial!$J$29:$Q$29,1,MATCH('Stakeholder report'!G17,Financial!$J$14:$Q$14,0)) -> 16.747898 | H20: -0.4267152786 | I20: =IFERROR(SLOPE(D20:G20,'Qty forecasts'!$H$6:$K$6)/D20,0) -> 0.2125271046
B21: Unders/overs true-up ($m) | D21: =INDEX(Accounts!$J$18:$Q$18,1,MATCH('Stakeholder report'!D17,Accounts!$J$11:$Q$11,0)) -> -22.31987403 | E21: =INDEX(Accounts!$J$18:$Q$18,1,MATCH('Stakeholder report'!E17,Accounts!$J$11:$Q$11,0)) -> 7.074880252 | F21: =INDEX(Accounts!$J$18:$Q$18,1,MATCH('Stakeholder report'!F17,Accounts!$J$11:$Q$11,0)) -> -11.12298839 | G21: =INDEX(Accounts!$J$18:$Q$18,1,MATCH('Stakeholder report'!G17,Accounts!$J$11:$Q$11,0)) -> -11.1296681 | H21: 0.0006005324592 | I21: =IFERROR(SLOPE(D21:G21,'Qty forecasts'!$H$6:$K$6)/D21,0) -> -0.06887471291
B22: Total allowed distribution revenue ($m)¹ | D22: =INDEX(Accounts!$J$17:$Q$17,1,MATCH('Stakeholder report'!D17,Accounts!$J$11:$Q$11,0))+INDEX(Accounts!$J$18:$Q$18,1,MATCH('Stakeholder report'!D17,Accounts!$J$11:$Q$11,0)) -> 746.5063066 | E22: =INDEX(Accounts!$J$17:$Q$17,1,MATCH('Stakeholder report'!E17,Accounts!$J$11:$Q$11,0))+INDEX(Accounts!$J$18:$Q$18,1,MATCH('Stakeholder report'!E17,Accounts!$J$11:$Q$11,0)) -> 836.1231063 | F22: =INDEX(Accounts!$J$17:$Q$17,1,MATCH('Stakeholder report'!F17,Accounts!$J$11:$Q$11,0))+INDEX(Accounts!$J$18:$Q$18,1,MATCH('Stakeholder report'!F17,Accounts!$J$11:$Q$11,0)) -> 880.0456494 | G22: =INDEX(Accounts!$J$17:$Q$17,1,MATCH('Stakeholder report'!G17,Accounts!$J$11:$Q$11,0))+INDEX(Accounts!$J$18:$Q$18,1,MATCH('Stakeholder report'!G17,Accounts!$J$11:$Q$11,0)) -> 860.7418948 | H22: -0.02193494692 | I22: =IFERROR(SLOPE(D22:G22,'Qty forecasts'!$H$6:$K$6)/D22,0) -> 0.05179183407
B24: Transmission (DPPC) costs ($m) | D24: =INDEX(Accounts!$J$35:$Q$35,1,MATCH('Stakeholder report'!D17,Accounts!$J$11:$Q$11,0)) -> 115.6125301 | E24: =INDEX(Accounts!$J$35:$Q$35,1,MATCH('Stakeholder report'!E17,Accounts!$J$11:$Q$11,0)) -> 146.3634042 | F24: =INDEX(Accounts!$J$35:$Q$35,1,MATCH('Stakeholder report'!F17,Accounts!$J$11:$Q$11,0)) -> 138.0613944 | G24: =INDEX(Accounts!$J$35:$Q$35,1,MATCH('Stakeholder report'!G17,Accounts!$J$11:$Q$11,0)) -> 181.6562196 | H24: 0.3157640509 | I24: =IFERROR(SLOPE(D24:G24,'Qty forecasts'!$H$6:$K$6)/D24,0) -> 0.1641941911
B25: Unders/overs true-up ($m) | D25: =INDEX(Accounts!$J$36:$Q$36,1,MATCH('Stakeholder report'!D17,Accounts!$J$11:$Q$11,0)) -> -2.832917517 | E25: =INDEX(Accounts!$J$36:$Q$36,1,MATCH('Stakeholder report'!E17,Accounts!$J$11:$Q$11,0)) -> 1.730124946 | F25: =INDEX(Accounts!$J$36:$Q$36,1,MATCH('Stakeholder report'!F17,Accounts!$J$11:$Q$11,0)) -> 0.8365944875 | G25: =INDEX(Accounts!$J$36:$Q$36,1,MATCH('Stakeholder report'!G17,Accounts!$J$11:$Q$11,0)) -> 1.28908697 | H25: 0.5408743295 | I25: =IFERROR(SLOPE(D25:G25,'Qty forecasts'!$H$6:$K$6)/D25,0) -> -0.4049705977
B26: Total allowed transmission (DPPC) revenue ($m) | D26: =D24+D25 -> 112.7796126 | E26: =E24+E25 -> 148.0935292 | F26: =F24+F25 -> 138.8979889 | G26: =G24+G25 -> 182.9453066 | H26: 0.3171199094 | I26: =IFERROR(SLOPE(D26:G26,'Qty forecasts'!$H$6:$K$6)/D26,0) -> 0.1784910739
B28: Jurisdictional scheme amounts ($m) | D28: =INDEX(Accounts!$J$55:$Q$55,1,MATCH('Stakeholder report'!D17,Accounts!$J$11:$Q$11,0)) -> 35.34142033 | E28: =INDEX(Accounts!$J$55:$Q$55,1,MATCH('Stakeholder report'!E17,Accounts!$J$11:$Q$11,0)) -> 13.60369344 | F28: =INDEX(Accounts!$J$55:$Q$55,1,MATCH('Stakeholder report'!F17,Accounts!$J$11:$Q$11,0)) -> 6.600299 | G28: =INDEX(Accounts!$J$55:$Q$55,1,MATCH('Stakeholder report'!G17,Accounts!$J$11:$Q$11,0)) -> 7.016461738 | H28: 0.06305210384 | I28: =IFERROR(SLOPE(D28:G28,'Qty forecasts'!$H$6:$K$6)/D28,0) -> -0.2602562924
B29: Unders/overs true-up ($m) | D29: =INDEX(Accounts!$J$56:$Q$56,1,MATCH('Stakeholder report'!D17,Accounts!$J$11:$Q$11,0)) -> -1.679071486 | E29: =INDEX(Accounts!$J$56:$Q$56,1,MATCH('Stakeholder report'!E17,Accounts!$J$11:$Q$11,0)) -> 7.06220744 | F29: =INDEX(Accounts!$J$56:$Q$56,1,MATCH('Stakeholder report'!F17,Accounts!$J$11:$Q$11,0)) -> 9.225426417 | G29: =INDEX(Accounts!$J$56:$Q$56,1,MATCH('Stakeholder report'!G17,Accounts!$J$11:$Q$11,0)) -> 1.210137582 | H29: -0.8688258378 | I29: =IFERROR(SLOPE(D29:G29,'Qty forecasts'!$H$6:$K$6)/D29,0) -> -0.6450497356
B30: Total allowed jurisdictional scheme revenue ($m) | D30: =D28+D29 -> 33.66234885 | E30: =E28+E29 -> 20.66590088 | F30: =F28+F29 -> 15.82572542 | G30: =G28+G29 -> 8.22659932 | H30: -0.4801755305 | I30: =IFERROR(SLOPE(D30:G30,'Qty forecasts'!$H$6:$K$6)/D30,0) -> -0.2410628694
B32: Total allowed network revenue ($m) | D32: =D22+D26+D30 -> 892.948268 | E32: =E22+E26+E30 -> 1004.882536 | F32: =F22+F26+F30 -> 1034.769364 | G32: =G22+G26+G30 -> 1051.913801 | H32: 0.01656836543 | I32: =IFERROR(SLOPE(D32:G32,'Qty forecasts'!$H$6:$K$6)/D32,0) -> 0.05675395131
B33: 1 - Total allowed distribution revenue may not equal the sum of the proceeding rows as other minor adjustments may exist.
B36: Consumption trends
B37: ="The below table provides energy consumption trends for "&DNSP&". Some datasets are only now available due to the use of the standardised pricing models or new data requirements, and therefore historical data is not provided here." -> The below table provides energy consumption trends for AusNet Services. Some datasets are only now available due to the use of the standardised pricing models or new data requirements, and therefore historical data is not provided here.
B38: Charts are provided below to visualise some of these data trends.
D40: =tminus6_year -> HY21 | E40: =tminus5_year -> 2021–22 | F40: =tminus4_year -> 2022–23 | G40: =tminus3_year -> 2023–24 | H40: =previousyear -> 2024–25 | I40: =currentyear -> 2025–26 | J40: =forecastyear -> 2026–27 | K40: =H17 -> 2026–27 movement | L40: 6-year trend to 2023–24
B41: Residential consumption (GWh) | D41: ='Qty forecasts'!E9 -> 3301.921751 | E41: ='Qty forecasts'!F9 -> 3418.327894 | F41: ='Qty forecasts'!G9 -> 3425.773546 | G41: ='Qty forecasts'!H9 -> 3426.244503 | H41: ='Qty forecasts'!I9 -> 3554.940016 | I41: ='Qty forecasts'!J9 -> 3744.352048 | J41: ='Qty forecasts'!K9 -> 3905.749606 | K41: =IFERROR(J41/I41-1,0) -> 0.04310426897 | L41: =IFERROR(SLOPE(D41:J41,'Qty forecasts'!$E$6:$K$6)/D41,0) -> 0.02804317499
B42: Small business consumption (GWh) | D42: ='Qty forecasts'!E10 -> 1102.63271 | E42: ='Qty forecasts'!F10 -> 564.1192164 | F42: ='Qty forecasts'!G10 -> 615.4506959 | G42: ='Qty forecasts'!H10 -> 633.2985625 | H42: ='Qty forecasts'!I10 -> 647.5959801 | I42: ='Qty forecasts'!J10 -> 658.037507 | J42: ='Qty forecasts'!K10 -> 672.1381378 | K42: =IFERROR(J42/I42-1,0) -> 0.0214283087 | L42: =IFERROR(SLOPE(D42:J42,'Qty forecasts'!$E$6:$K$6)/D42,0) -> -0.03470595686
B43: Other consumption (GWh) | D43: ='Qty forecasts'!E14 -> 3122.695889 | E43: ='Qty forecasts'!F14 -> 3605.768836 | F43: ='Qty forecasts'!G14 -> 3581.517024 | G43: ='Qty forecasts'!H14 -> 3539.790873 | H43: ='Qty forecasts'!I14 -> 3605.529725 | I43: ='Qty forecasts'!J14 -> 3652.576606 | J43: ='Qty forecasts'!K14 -> 3708.986149 | K43: 0.01544376743 | L43: =IFERROR(SLOPE(D43:J43,'Qty forecasts'!$E$6:$K$6)/D43,0) -> 0.02146152705
B44: Total Consumption (GWh) | D44: ='Qty forecasts'!E21 -> 7527.25035 | E44: ='Qty forecasts'!F21 -> 7588.215946 | F44: ='Qty forecasts'!G21 -> 7622.741266 | G44: ='Qty forecasts'!H21 -> 7599.333938 | H44: ='Qty forecasts'!I21 -> 7808.065722 | I44: ='Qty forecasts'!J21 -> 8054.966161 | J44: ='Qty forecasts'!K21 -> 8286.873893 | K44: 0.02879065258 | L44: =IFERROR(SLOPE(D44:J44,'Qty forecasts'!$E$6:$K$6)/D44,0) -> 0.016120929
K45: 0 | L45: =IFERROR(SLOPE(D45:J45,'Qty forecasts'!$E$6:$K$6)/D45,0) -> 0
B46: Residential customer numbers | D46: ='Qty forecasts'!E25 -> 696635.5 | E46: ='Qty forecasts'!F25 -> 711284.5 | F46: ='Qty forecasts'!G25 -> 724670 | G46: ='Qty forecasts'!H25 -> 737264 | H46: ='Qty forecasts'!I25 -> 757266 | I46: ='Qty forecasts'!J25 -> 754922 | J46: ='Qty forecasts'!K25 -> 769104 | K46: 0.01878604677 | L46: =IFERROR(SLOPE(D46:J46,'Qty forecasts'!$E$6:$K$6)/D46,0) -> 0.0172910931
B47: Small business customer numbers | D47: ='Qty forecasts'!E26 -> 60361.55 | E47: ='Qty forecasts'!F26 -> 60401 | F47: ='Qty forecasts'!G26 -> 59892 | G47: ='Qty forecasts'!H26 -> 60562 | H47: ='Qty forecasts'!I26 -> 60869 | I47: ='Qty forecasts'!J26 -> 60834 | J47: ='Qty forecasts'!K26 -> 61082 | K47: 0.004076667653 | L47: =IFERROR(SLOPE(D47:J47,'Qty forecasts'!$E$6:$K$6)/D47,0) -> 0.002369264871
B48: Other customer numbers | D48: ='Qty forecasts'!E30 -> 27248.45 | E48: ='Qty forecasts'!F30 -> 24938 | F48: ='Qty forecasts'!G30 -> 26018 | G48: ='Qty forecasts'!H30 -> 25628.5 | H48: ='Qty forecasts'!I30 -> 25995 | I48: ='Qty forecasts'!J30 -> 19308 | J48: ='Qty forecasts'!K30 -> 19361 | K48: 0.002744976176 | L48: =IFERROR(SLOPE(D48:J48,'Qty forecasts'!$E$6:$K$6)/D48,0) -> -0.04580253975
B49: Total customer numbers | D49: ='Qty forecasts'!E32 -> 784245.5 | E49: ='Qty forecasts'!F32 -> 796623.5 | F49: ='Qty forecasts'!G32 -> 810580 | G49: ='Qty forecasts'!H32 -> 823454.5 | H49: ='Qty forecasts'!I32 -> 844130 | I49: ='Qty forecasts'!J32 -> 835064 | J49: ='Qty forecasts'!K32 -> 849547 | K49: 0.01734358085 | L49: =IFERROR(SLOPE(D49:J49,'Qty forecasts'!$E$6:$K$6)/D49,0) -> 0.01395041932
K50: 0 | L50: =IFERROR(SLOPE(D50:J50,'Qty forecasts'!$E$6:$K$6)/D50,0) -> 0
B51: Average residential consumption (kWh) | D51: =IFERROR(D41*1000000/D46,0) -> 4739.812644 | E51: =IFERROR(E41*1000000/E46,0) -> 4805.851799 | F51: 4727.356653 | G51: 4647.242376 | H51: 4694.440284 | I51: 4959.919102 | J51: 5078.311394 | K51: 0.02386980296 | L51: =IFERROR(SLOPE(D51:J51,'Qty forecasts'!$E$6:$K$6)/D51,0) -> 0.009725478505
B52: Average small business consumption (kWh) | D52: =IFERROR(D42*1000000/D47,0) -> 18267.13711 | E52: 9339.567497 | F52: 10276.00841 | G52: 10457.02854 | H52: 10639.17561 | I52: 10816.93637 | J52: 11003.86592 | K52: 0.01728119137 | L52: =IFERROR(SLOPE(D52:J52,'Qty forecasts'!$E$6:$K$6)/D52,0) -> -0.03611463687
B53: Average other consumption (kWh) | D53: 114600.8631 | E53: 144589.335 | F53: 137655.3549 | G53: 138119.3153 | H53: 138700.8935 | I53: 189174.2597 | J53: 191569.9679 | K53: 0.0126640288 | L53: =IFERROR(SLOPE(D53:J53,'Qty forecasts'!$E$6:$K$6)/D53,0) -> 0.1000748828
B54: Average total consumption (kWh) | D54: 9598.079109 | E54: 9525.473383 | F54: 9404.057916 | G54: 9228.602113 | H54: 9249.837965 | I54: 9645.926733 | J54: 9754.461958 | K54: 0.01125192309 | L54: =IFERROR(SLOPE(D54:J54,'Qty forecasts'!$E$6:$K$6)/D54,0) -> 0.002068253487
B79: Cost movements
B80: The second table below provides cost movement analysis for small customer consumption tariffs. Tariffs with demand/capacity components are not included in this mechanism.
B81: Tariffs can be selected from the drop-down menus in the first table below. Consumption profiles can also be adjusted in this table to override calculated average consumption (including exports and TOU where applicable).
B82: Where no overrides are entered, consumption will be calculated on averages of the most recent actual data for that tariff. Demand and capacity will be calculated in this way as no overrides are provided.
B83: Waterfall charts are also provided to visualise these cost movements and how revenue adjustments might impact at the tariff level.
B85: Please note, an assumption is made in this analysis that revenue adjustments are apportioned equally across all tariffs.
B86: Any residual movements are grouped with the volume updates and tariff path components. These residuals would also include the variance of application from our assumption.
B88: Tariff selection | D88: Consumption overrides | E88: Exports | F88: TOU - Peak % | G88: TOU - Shoulder % | H88: TOU - Off peak %
B89: Small single rate
B90: Small residential time of use
B91: Small business single rate
B92: Small business time of use
D94: Customer type | E94: Ratio of customer type | F94: Consumption (kWh) | G94: =previousyear -> 2024–25 | H94: =currentyear -> 2025–26 | I94: =forecastyear -> 2026–27 | J94: ="$ change in "&forecastyear -> $ change in 2026–27 | K94: ="% change in "&forecastyear -> % change in 2026–27
B95: =B89 -> Small single rate | D95: =INDEX('Stakeholder report data'!I$207:I$272,MATCH('Stakeholder report'!$B95,'Stakeholder report data'!$C$207:$C$272,0)) ->  | E95: =INDEX('Stakeholder report data'!J$207:J$272,MATCH('Stakeholder report'!$B95,'Stakeholder report data'!$C$207:$C$272,0)) ->  | F95: =INDEX('Stakeholder report data'!K$207:K$272,MATCH('Stakeholder report'!$B95,'Stakeholder report data'!$C$207:$C$272,0)) ->  | G95: =INDEX('Stakeholder report data'!L$207:L$272,MATCH('Stakeholder report'!$B95,'Stakeholder report data'!$C$207:$C$272,0)) ->  | H95: =INDEX('Stakeholder report data'!M$207:M$272,MATCH('Stakeholder report'!$B95,'Stakeholder report data'!$C$207:$C$272,0)) ->  | I95: =INDEX('Stakeholder report data'!N$207:N$272,MATCH('Stakeholder report'!$B95,'Stakeholder report data'!$C$207:$C$272,0)) ->  | J95: =INDEX('Stakeholder report data'!O$207:O$272,MATCH('Stakeholder report'!$B95,'Stakeholder report data'!$C$207:$C$272,0)) ->  | K95: =INDEX('Stakeholder report data'!P$207:P$272,MATCH('Stakeholder report'!$B95,'Stakeholder report data'!$C$207:$C$272,0)) -> 
B96: =B90 -> Small residential time of use | D96: =INDEX('Stakeholder report data'!I$207:I$272,MATCH('Stakeholder report'!$B96,'Stakeholder report data'!$C$207:$C$272,0)) ->  | E96: =INDEX('Stakeholder report data'!J$207:J$272,MATCH('Stakeholder report'!$B96,'Stakeholder report data'!$C$207:$C$272,0)) ->  | F96: =INDEX('Stakeholder report data'!K$207:K$272,MATCH('Stakeholder report'!$B96,'Stakeholder report data'!$C$207:$C$272,0)) ->  | G96: =INDEX('Stakeholder report data'!L$207:L$272,MATCH('Stakeholder report'!$B96,'Stakeholder report data'!$C$207:$C$272,0)) ->  | H96: =INDEX('Stakeholder report data'!M$207:M$272,MATCH('Stakeholder report'!$B96,'Stakeholder report data'!$C$207:$C$272,0)) ->  | I96: =INDEX('Stakeholder report data'!N$207:N$272,MATCH('Stakeholder report'!$B96,'Stakeholder report data'!$C$207:$C$272,0)) ->  | J96: =INDEX('Stakeholder report data'!O$207:O$272,MATCH('Stakeholder report'!$B96,'Stakeholder report data'!$C$207:$C$272,0)) ->  | K96: =INDEX('Stakeholder report data'!P$207:P$272,MATCH('Stakeholder report'!$B96,'Stakeholder report data'!$C$207:$C$272,0)) -> 
B97: =B91 -> Small business single rate | D97: =INDEX('Stakeholder report data'!I$207:I$272,MATCH('Stakeholder report'!$B97,'Stakeholder report data'!$C$207:$C$272,0)) ->  | E97: =INDEX('Stakeholder report data'!J$207:J$272,MATCH('Stakeholder report'!$B97,'Stakeholder report data'!$C$207:$C$272,0)) ->  | F97: =INDEX('Stakeholder report data'!K$207:K$272,MATCH('Stakeholder report'!$B97,'Stakeholder report data'!$C$207:$C$272,0)) ->  | G97: =INDEX('Stakeholder report data'!L$207:L$272,MATCH('Stakeholder report'!$B97,'Stakeholder report data'!$C$207:$C$272,0)) ->  | H97: =INDEX('Stakeholder report data'!M$207:M$272,MATCH('Stakeholder report'!$B97,'Stakeholder report data'!$C$207:$C$272,0)) ->  | I97: =INDEX('Stakeholder report data'!N$207:N$272,MATCH('Stakeholder report'!$B97,'Stakeholder report data'!$C$207:$C$272,0)) ->  | J97: =INDEX('Stakeholder report data'!O$207:O$272,MATCH('Stakeholder report'!$B97,'Stakeholder report data'!$C$207:$C$272,0)) ->  | K97: =INDEX('Stakeholder report data'!P$207:P$272,MATCH('Stakeholder report'!$B97,'Stakeholder report data'!$C$207:$C$272,0)) -> 
B98: =B92 -> Small business time of use | D98: =INDEX('Stakeholder report data'!I$207:I$272,MATCH('Stakeholder report'!$B98,'Stakeholder report data'!$C$207:$C$272,0)) ->  | E98: =INDEX('Stakeholder report data'!J$207:J$272,MATCH('Stakeholder report'!$B98,'Stakeholder report data'!$C$207:$C$272,0)) ->  | F98: =INDEX('Stakeholder report data'!K$207:K$272,MATCH('Stakeholder report'!$B98,'Stakeholder report data'!$C$207:$C$272,0)) ->  | G98: =INDEX('Stakeholder report data'!L$207:L$272,MATCH('Stakeholder report'!$B98,'Stakeholder report data'!$C$207:$C$272,0)) ->  | H98: =INDEX('Stakeholder report data'!M$207:M$272,MATCH('Stakeholder report'!$B98,'Stakeholder report data'!$C$207:$C$272,0)) ->  | I98: =INDEX('Stakeholder report data'!N$207:N$272,MATCH('Stakeholder report'!$B98,'Stakeholder report data'!$C$207:$C$272,0)) ->  | J98: =INDEX('Stakeholder report data'!O$207:O$272,MATCH('Stakeholder report'!$B98,'Stakeholder report data'!$C$207:$C$272,0)) ->  | K98: =INDEX('Stakeholder report data'!P$207:P$272,MATCH('Stakeholder report'!$B98,'Stakeholder report data'!$C$207:$C$272,0)) -> 

Sheet Proposal report
I1: Back to Index
E3: =DNSP&" "&forecastyear&" pricing" -> AusNet Services 2026–27 pricing
E4: Pricing proposal report
B6: ="The below information is provided in relation to "&DNSP&"'s "&forecastyear&" pricing proposal. This information includes:" -> The below information is provided in relation to AusNet Services's 2026–27 pricing proposal. This information includes: | F6: Revenues | G6: Unders/overs accounts | H6: Side constraints | I6: Tariff trials | J6: Standalone and avoidable costs
B7: ="This report is intended to compliment "&DNSP&"'s "&forecastyear&" pricing proposal by highlighting key data from this model for the purposes of demonstrating compliance with the National Electricity Rules and other requirements." -> This report is intended to compliment AusNet Services's 2026–27 pricing proposal by highlighting key data from this model for the purposes of demonstrating compliance with the National Electricity Rules and other requirements.
B8: ="More information underlying that provided below can be found in "&DNSP&"'s "&forecastyear&" pricing model and proposal document." -> More information underlying that provided below can be found in AusNet Services's 2026–27 pricing model and proposal document.
B10: Revenues
B11: ="The below table provides weighted average revenues for "&DNSP&" for "&forecastyear&" and "&currentyear&". This information is provided at the tariff class level." -> The below table provides weighted average revenues for AusNet Services for 2026–27 and 2025–26. This information is provided at the tariff class level.
B12: ="This table supports the requirement for "&DNSP&" to set out, for each tariff class related to standard control services, the expected weighted average revenue for the relevant regulatory year and also for the current regulatory year." -> This table supports the requirement for AusNet Services to set out, for each tariff class related to standard control services, the expected weighted average revenue for the relevant regulatory year and also for the current regulatory year.
B13: This requirement is set out in the NER at cl.6.18.2(b)(4).
D15: =currentyear&" ($m)" -> 2025–26 ($m) | E15: =forecastyear&" ($m)" -> 2026–27 ($m) | F15: % change | G15: =currentyear&" with "&forecastyear&" quantities ($m)" -> 2025–26 with 2026–27 quantities ($m) | H15: =forecastyear&" ($m)" -> 2026–27 ($m) | I15: weighted average % change
B16: =Tables!C9 -> Residential | D16: =Tables!D9 -> 498.2949687 | E16: =Tables!E9 -> 478.8282792 | F16: =Tables!F9 -> -0.03906659849 | G16: =Tables!G9 -> 0 | H16: =Tables!H9 -> 478.8282792 | I16: =Tables!I9 -> 0
B17: =Tables!C10 -> Small industrial & commercial | D17: =Tables!D10 -> 170.4485361 | E17: =Tables!E10 -> 167.516806 | F17: =Tables!F10 -> -0.01720008947 | G17: =Tables!G10 -> 0 | H17: =Tables!H10 -> 167.516806 | I17: =Tables!I10 -> 0
B18: =Tables!C11 -> Medium industrial & commercial | D18: =Tables!D11 -> 61.89819383 | E18: =Tables!E11 -> 60.34166558 | F18: =Tables!F11 -> -0.02514658586 | G18: =Tables!G11 -> 0 | H18: =Tables!H11 -> 60.34166558 | I18: =Tables!I11 -> 0
B19: =Tables!C12 -> Large industrial & commercial | D19: =Tables!D12 -> 123.8498702 | E19: =Tables!E12 -> 124.6523271 | F19: =Tables!F12 -> 0.006479271592 | G19: =Tables!G12 -> 0 | H19: =Tables!H12 -> 124.6523271 | I19: =Tables!I12 -> 0
B20: =Tables!C13 -> High voltage | D20: =Tables!D13 -> 25.211792 | E20: =Tables!E13 -> 24.25745392 | F20: =Tables!F13 -> -0.03785284607 | G20: =Tables!G13 -> 0 | H20: =Tables!H13 -> 24.25745392 | I20: =Tables!I13 -> 0
B21: =Tables!C14 -> Subtransmission | D21: =Tables!D14 -> 4.61750485 | E21: =Tables!E14 -> 4.291052277 | F21: =Tables!F14 -> -0.07069891294 | G21: =Tables!G14 -> 0 | H21: =Tables!H14 -> 4.291052277 | I21: =Tables!I14 -> 0
B22: =Tables!C15 -> 0 | D22: =Tables!D15 -> 0 | E22: =Tables!E15 -> 0 | F22: =Tables!F15 -> 0 | G22: =Tables!G15 -> 0 | H22: =Tables!H15 -> 0 | I22: =Tables!I15 -> 0
B23: =Tables!C16 -> 0 | D23: =Tables!D16 -> 0 | E23: =Tables!E16 -> 0 | F23: =Tables!F16 -> 0 | G23: =Tables!G16 -> 0 | H23: =Tables!H16 -> 0 | I23: =Tables!I16 -> 0
B24: =Tables!C17 -> 0 | D24: =Tables!D17 -> 0 | E24: =Tables!E17 -> 0 | F24: =Tables!F17 -> 0 | G24: =Tables!G17 -> 0 | H24: =Tables!H17 -> 0 | I24: =Tables!I17 -> 0
B25: =Tables!C18 -> 0 | D25: =Tables!D18 -> 0 | E25: =Tables!E18 -> 0 | F25: =Tables!F18 -> 0 | G25: =Tables!G18 -> 0 | H25: =Tables!H18 -> 0 | I25: =Tables!I18 -> 0
B26: =Tables!C19 -> 0 | D26: =Tables!D19 -> 0 | E26: =Tables!E19 -> 0 | F26: =Tables!F19 -> 0 | G26: =Tables!G19 -> 0 | H26: =Tables!H19 -> 0 | I26: =Tables!I19 -> 0
B27: Total | D27: =Tables!D20 -> 884.3208657 | E27: =Tables!E20 -> 859.8875842 | F27: =Tables!F20 -> -0.02762943005 | G27: =Tables!G20 -> 0 | H27: =Tables!H20 -> 859.8875842 | I27: =Tables!I20 -> 0
B30: The below tables provide the build-up of allowable revenue for each component of network revenue - distribution, designated pricing proposal charges, and jurisdictional schemes.
B31: ="These tables support the NER requirements for "&DNSP&" to set out how desingated pricing proposal charges and jurisdictional sheme amounts are to be passed on to consumers, as per NER cll. 6.18.2(b)(6) and (6A)." -> These tables support the NER requirements for AusNet Services to set out how desingated pricing proposal charges and jurisdictional sheme amounts are to be passed on to consumers, as per NER cll. 6.18.2(b)(6) and (6A).
B32: ="These tables also support the NER requirements for "&DNSP&" to demonstrate compliance with the control mechanism formulae set out in the applicable distribution determination, as per NER cl. 6.18.2(b)(7)." -> These tables also support the NER requirements for AusNet Services to demonstrate compliance with the control mechanism formulae set out in the applicable distribution determination, as per NER cl. 6.18.2(b)(7).
B34: Distribution | D34: $m | E34: $m | H34: Designated pricing proposal charges | J34: $m | K34: $m
B35: =Tables!C26 -> Annual smoothed revenue for 2026–27 (ARt) | E35: =Tables!E26 -> 874.6444251 | H35: =Tables!C41 -> TUOS expenditure charges for 2026–27 | J35: =Tables!D41 -> 0
B36: =Tables!C27 -> Inflation (CPI) | D36: =Tables!D27 -> 0 | H36: =Tables!C42 -> Avoided TUOS charges for 2026–27 | J36: =Tables!D42 -> 0.55443003
B37: =Tables!C28 -> X-factor for 2026–27 | D37: =Tables!D28 -> 0 | H37: =Tables!C43 -> Cross-boundary expenditure charges for 2026–27 | J37: =Tables!D43 -> -9.035666114
B38: =Tables!C29 -> S factor (STPIS 1.2) | D38: =Tables!D29 -> 0 | H38: =Tables!C44 -> AEMO charges charges for 2026–27 | J38: =Tables!D44 -> 179.9459356
B39: =Tables!C31 -> Adjusted annual smoothed revenue for 2026–27 (AARt) | E39: =Tables!E31 -> 874.6444251 | H39: =Tables!C45 -> Connection fees charges for 2026–27 | J39: =Tables!D45 -> 10.19152003
B40: =Tables!C32 -> I factor (incentive schemes payments applied in 2026–27) | D40: =Tables!D32 -> -19.52076029 | H40: =Tables!C46 -> Total Forecast DPPC | J40: =Tables!I33 -> 0 | K40: =Tables!E46 -> 181.6562196
B41: =Tables!C33 -> C factor (approved cost pass-throughs applied in 2026–27) | D41: =Tables!D33 -> 16.747898 | H41: =Tables!C47 -> Under/over-recovery adjustment applied in 2026–27 | J41: =Tables!D47 -> 1.28908697
B42: =Tables!C34 -> B factor (annual adjustment factors applied in 2026–27) | D42: =Tables!D34 -> -11.1296681 | H42: =Tables!C48 -> Total allowable revenue for 2026–27 | J42: =Tables!I35 -> 0 | K42: =Tables!E48 -> 182.9453066
B43: =Tables!C35 -> Total allowable revenue for 2026–27 (TARt) | E43: =Tables!E35 -> 860.7418948
B46: Metering (Victoria only) | D46: $m | E46: $m | H46: Jurisdictional scheme amounts | J46: $m | K46: $m
B47: =Tables!C76 -> Annual smoothed revenue for 2026–27 (ARt) | E47: =Tables!E76 -> 40.28702655 | H47: =Tables!C57 -> PFiT charges for 2026–27 | J47: =Tables!D57 -> 0
B48: =Tables!C77 -> Inflation (CPI) | D48: =Tables!D77 -> 0 | H48: =Tables!C58 -> ESV levy charges for 2026–27 | J48: =Tables!D58 -> 6.198380705
B49: =Tables!C78 -> Metering X-factor for 2026–27 | D49: =Tables!D78 -> 0 | H49: =Tables!C59 -> License fees charges for 2026–27 | J49: =Tables!D59 -> 0.818081033
B50: =Tables!C79 -> Adjusted annual smoothed revenue for 2026–27 (AARt) | E50: =Tables!E79 -> 40.28702655 | H50: =Tables!C60 ->  | J50: =Tables!D60 -> 0
B51: =Tables!C80 -> Metering C-factor applied in 2026–27 | D51: =Tables!D80 -> 0 | H51: =Tables!C61 -> Total Forecast JSA | J51: =Tables!I47 -> 0 | K51: =Tables!E61 -> 7.016461738
B52: =Tables!C81 -> Metering B-factorapplied in 2026–27 | D52: =Tables!D81 -> -0.698259197 | H52: =Tables!C62 -> Under/over-recovery adjustment applied in 2026–27 | J52: =Tables!D62 -> 1.210137582
B53: =Tables!C82 -> Total allowable revenue for 2026–27 (TARMt) | E53: =Tables!E82 -> 39.58876735 | H53: =Tables!C63 -> Total allowable revenue for 2026–27 | J53: =Tables!I49 -> 0 | K53: =Tables!E63 -> 8.22659932
B56: Unders/overs accounts
B57: The below tables provide a summary of the unders/overs statements and accounts for each component of network revenue - distribution, designated pricing proposal charges, and jurisdictional schemes.
B58: ="These tables support the NER requirements for "&DNSP&" to set out how desingated pricing proposal charges and jurisdictional scheme amounts are to be passed on to consumers, as per NER cll. 6.18.2(b)(6) and (6A)." -> These tables support the NER requirements for AusNet Services to set out how desingated pricing proposal charges and jurisdictional scheme amounts are to be passed on to consumers, as per NER cll. 6.18.2(b)(6) and (6A).
B59: ="These tables also support the NER requirements for "&DNSP&" to demonstrate compliance with the mechanisms set out in the applicable distribution determination, as per NER cl. 6.18.2(b)(7)." -> These tables also support the NER requirements for AusNet Services to demonstrate compliance with the mechanisms set out in the applicable distribution determination, as per NER cl. 6.18.2(b)(7).
B61: Distribution | D61: =previousyear&" ($m)" -> 2024–25 ($m) | E61: =currentyear&" ($m)" -> 2025–26 ($m) | F61: =forecastyear&" ($m)" -> 2026–27 ($m) | H61: Designated pricing proposal charges | J61: =D61 -> 2024–25 ($m) | K61: =E61 -> 2025–26 ($m) | L61: =F61 -> 2026–27 ($m)
B62: Revenue from charges | D62: =Tables!L26 -> 824.0143929 | E62: =Tables!M26 -> 884.327123 | F62: =Tables!N26 -> 860.5449701 | H62: =B62 -> Revenue from charges | J62: =Tables!L41 -> 134.7561977 | K62: =Tables!M41 -> 138.6927055 | L62: =Tables!N41 -> 182.9451697
B63: Deliberate under-recoveries | D63: =Tables!L27 -> 0 | E63: =Tables!M27 -> 0 | F63: =Tables!N27 -> 0 | H63: Cross-boundary revenue | J63: =Tables!L42 -> 10.75221129 | K63: =Tables!M42 -> 0 | L63: =Tables!N42 -> 0
B64: Unpaid network charges (deducted from revenue) | D64: =Tables!L28 -> 0.07217656649 | E64: =Tables!M28 -> 0 | F64: =Tables!N28 -> 0 | H64: =B63 -> Deliberate under-recoveries | J64: =Tables!L43 -> 0 | K64: =Tables!M43 -> 0 | L64: =Tables!N43 -> 0
B65: Total revenue | D65: =Tables!L29 -> 823.9422163 | E65: =Tables!M29 -> 884.327123 | F65: =Tables!N29 -> 860.5449701 | H65: =B64 -> Unpaid network charges (deducted from revenue) | J65: =Tables!L44 -> 0.007671797745 | K65: =Tables!M44 -> 0 | L65: =Tables!N44 -> 0
B66: Total allowable revenue | D66: =Tables!L30 -> 829.048226 | E66: =Tables!M30 -> 891.1686378 | F66: =Tables!N30 -> 871.8715629 | H66: =B65 -> Total revenue | J66: =Tables!L45 -> 145.5007372 | K66: =Tables!M45 -> 138.6927055 | L66: =Tables!N45 -> 182.9451697
B67: Total under/over-recovery of revenue for regulatory year | D67: =D65-D66 -> -5.106009713 | E67: =E65-E66 -> -6.841514753 | F67: =F65-F66 -> -11.32659273 | H67: Total designated pricing proposal charges | J67: =Tables!L46 -> 146.3634042 | K67: =Tables!M46 -> 138.0613944 | L67: =Tables!N46 -> 181.6562196
B68: Balancing adjustment made when year was 't' | D68: =Tables!L31 -> 7.074880252 | E68: =Tables!M31 -> -11.12298839 | F68: =Tables!N31 -> -11.1296681 | H68: =B67 -> Total under/over-recovery of revenue for regulatory year | J68: =J66-J67 -> -0.8626670538 | K68: =K66-K67 -> 0.6313110914 | L68: =L66-L67 -> 1.288950136
B69: Net under/over-recovery of revenue for regulatory year | D69: =Tables!L32 -> -12.18088996 | E69: =Tables!M32 -> 4.281473632 | F69: =Tables!N32 -> -0.1969246268 | H69: =B68 -> Balancing adjustment made when year was 't' | J69: =Tables!L47 -> 1.730124946 | K69: =Tables!M47 -> 0.8365944875 | L69: =Tables!N47 -> 1.28908697
H70: =B69 -> Net under/over-recovery of revenue for regulatory year | J70: =Tables!L48 -> -2.592792 | K70: =Tables!M48 -> -0.2052833961 | L70: =Tables!N48 -> -0.0001368340338
B71: Opening balance | D71: =Tables!L33 -> 20.70525396 | E71: =Tables!M33 -> 16.86719732 | F71: =Tables!N33 -> 10.74297447
B72: Interest on opening balance | D72: =Tables!L34 -> 1.442865778 | E72: =Tables!M34 -> 0.8968154771 | F72: =Tables!N34 -> 0.7873063037 | H72: =B71 -> Opening balance | J72: =Tables!L49 -> -0.8455099534 | K72: =Tables!M49 -> -1.796648922 | L72: =Tables!N49 -> -1.244298418
B73: Under/over-recovery of revenue for regulatory year | D73: =Tables!L35 -> -5.106009713 | E73: =Tables!M35 -> -6.841514753 | F73: =Tables!N35 -> -11.32659273 | H73: =B72 -> Interest on opening balance | J73: =Tables!L50 -> -0.05892018417 | K73: =Tables!M50 -> -0.09552639539 | L73: =Tables!N50 -> -0.09118926892
B74: Interest on under/over-recovery for regulatory year | D74: =Tables!L36 -> -0.1749127028 | E74: =Tables!M36 -> -0.1795235727 | F74: =Tables!N36 -> -0.4077009819 | H74: =B73 -> Under/over-recovery of revenue for regulatory year | J74: =Tables!L51 -> -0.8626670538 | K74: =Tables!M51 -> 0.6313110914 | L74: =Tables!N51 -> 1.288950136
B75: Closing balance | D75: =Tables!L37 -> 16.86719732 | E75: =Tables!M37 -> 10.74297447 | F75: =Tables!N37 -> -0.2040129336 | H75: =B74 -> Interest on under/over-recovery for regulatory year | J75: =Tables!L52 -> -0.02955173109 | K75: =Tables!M52 -> 0.01656580841 | L75: =Tables!N52 -> 0.04639579163
H76: =B75 -> Closing balance | J76: =Tables!L53 -> -1.796648922 | K76: =Tables!M53 -> -1.244298418 | L76: =Tables!N53 -> -0.0001417593782
B79: Jurisdictional scheme amounts | D79: =D61 -> 2024–25 ($m) | E79: =E61 -> 2025–26 ($m) | F79: =F61 -> 2026–27 ($m) | H79: Metering | J79: =D61 -> 2024–25 ($m) | K79: =E61 -> 2025–26 ($m) | L79: =F61 -> 2026–27 ($m)
B80: =B62 -> Revenue from charges | D80: =Tables!L57 -> 18.78040628 | E80: =Tables!M57 -> 15.23625508 | F80: =Tables!N57 -> 8.225779484 | H80: =B62 -> Revenue from charges | J80: =Tables!L76 -> 67.76236771 | K80: =Tables!M76 -> 72.10884178 | L80: =Tables!N76 -> 39.58844115
B81: =B63 -> Deliberate under-recoveries | D81: =Tables!L58 -> 0 | E81: =Tables!M58 -> 0 | F81: =Tables!N58 -> 0 | H81: =B63 -> Deliberate under-recoveries | J81: =Tables!L77 -> 0 | K81: =Tables!M77 -> 0 | L81: =Tables!N77 -> 0
B82: Unpaid network charges (deducted from revenue) | D82: =Tables!L59 -> 0.002554635765 | E82: =Tables!M59 -> 0 | F82: =Tables!N59 -> 0 | H82: Unpaid network charges (deducted from revenue) | J82: =Tables!L78 -> 0.00418028 | K82: =Tables!M78 -> 0 | L82: =Tables!N78 -> 0
B83: Total revenue | D83: =Tables!L60 -> 18.77785165 | E83: =Tables!M60 -> 15.23625508 | F83: =Tables!N60 -> 8.225779484 | H83: Total revenue | J83: =Tables!L79 -> 67.75818743 | K83: =Tables!M79 -> 72.10884178 | L83: =Tables!N79 -> 39.58844115
B84: Total jurisdictional scheme amounts | D84: =Tables!L65 -> 13.60369344 | E84: =Tables!M65 -> 6.600299 | F84: =Tables!N65 -> 7.016461738 | H84: Total allowable revenue | J84: =Tables!L80 -> 68.45957346 | K84: =Tables!M80 -> 71.98432591 | L84: =Tables!N80 -> 40.28702655
B85: Total under/over-recovery of revenue for regulatory year | D85: =D83-D84 -> 5.174158208 | E85: =E83-E84 -> 8.635956085 | F85: =F83-F84 -> 1.209317746 | H85: Total under/over-recovery of revenue for regulatory year | J85: =J83-J84 -> -0.7013860329 | K85: =K83-K84 -> 0.1245158702 | L85: =L83-L84 -> -0.6985853957
B86: Balancing adjustment made when year was 't' | D86: =Tables!L66 -> 7.06220744 | E86: =Tables!M66 -> 9.225426417 | F86: =Tables!N66 -> 1.210137582 | H86: Balancing adjustment made when year was 't' | J86: =Tables!L81 -> -0.938432746 | K86: =Tables!M81 -> 0.1245664018 | L86: =Tables!N81 -> -0.698259197
B87: Net under/over-recovery of revenue for regulatory year | D87: =Tables!L67 -> -1.888049232 | E87: =Tables!M67 -> -0.5894703324 | F87: =Tables!N67 -> -0.0008198351836 | H87: Net under/over-recovery of revenue for regulatory year | J87: =Tables!L82 -> 0.237046713 | K87: =Tables!M82 -> -5.053161669e-05 | L87: =Tables!N82 -> -0.000326198711
B88: 0 | H88: 0 | J88: =Tables!I86 -> 0 | K88: =Tables!J86 -> 0 | L88: =Tables!K86 -> 0.09006109468
B89: Opening balance | D89: =Tables!L68 -> -13.90657339 | E89: =Tables!M68 -> -9.524261069 | F89: =Tables!N68 -> -1.168092079 | H89: Opening balance | J89: =Tables!L83 -> 1.163007317 | K89: =Tables!M83 -> 0.5186397314 | L89: =Tables!N83 -> 0.6739986009
B90: Interest on opening balance | D90: =Tables!L69 -> -0.9690931039 | E90: =Tables!M69 -> -0.506397392 | F90: =Tables!N69 -> -0.08560443472 | H90: Interest on opening balance | J90: =Tables!L84 -> 0.08104529701 | K90: =Tables!M84 -> 0.02757566235 | L90: =Tables!N84 -> 0.04939445295
B91: Under/over-recovery of revenue for regulatory year | D91: =Tables!L70 -> 5.174158208 | E91: =Tables!M70 -> 8.635956085 | F91: =Tables!N70 -> 1.209317746 | H91: Under/over-recovery of revenue for regulatory year | J91: =Tables!L85 -> -0.7013860329 | K91: =Tables!M85 -> 0.1245158702 | L91: =Tables!N85 -> -0.6985853957
B92: Interest on under/over-recovery for regulatory year | D92: =Tables!L71 -> 0.1772472141 | E92: =Tables!M71 -> 0.226610297 | F92: =Tables!N71 -> 0.04352942182 | H92: Interest on under/over-recovery for regulatory year | J92: =Tables!L86 -> -0.02402684946 | K92: =Tables!M86 -> 0.00326733694 | L92: =Tables!N86 -> -0.02514559838
B93: Closing balance | D93: =Tables!L72 -> -9.524261069 | E93: =Tables!M72 -> -1.168092079 | F93: =Tables!N72 -> -0.0008493451711 | H93: Closing balance | J93: =Tables!L87 -> 0.5186397314 | K93: =Tables!M87 -> 0.6739986009 | L93: =Tables!N87 -> -0.0003379402415
B96: Side constraints
B97: ="The below table provides weighted average revenue movements for "&DNSP&" for "&forecastyear&" and "&currentyear&". This information is provided at the tariff class level." -> The below table provides weighted average revenue movements for AusNet Services for 2026–27 and 2025–26. This information is provided at the tariff class level.
B98: Also provided is the components of the permissable percentage threshold for which weighted average tariff class revenue movements are constrained by.
B99: ="This table supports the requirement for "&DNSP&" to ensure that the weighted average revenue to be raised from a tariff class in any year must not exceed the corresponding expected revenue for the preceding year by more than the permissable percentage." -> This table supports the requirement for AusNet Services to ensure that the weighted average revenue to be raised from a tariff class in any year must not exceed the corresponding expected revenue for the preceding year by more than the permissable percentage.
B100: This requirement is set out in the NER at cl.6.18.6(b). This requirement does not apply in the first year of a new regulatory control period.
D102: =G15 -> 2025–26 with 2026–27 quantities ($m) | E102: =H15 -> 2026–27 ($m) | F102: =I15 -> weighted average % change | I102: Permissable percentage
B103: =Tables!C93 -> Residential | D103: =Tables!D93 -> 0 | E103: =Tables!E93 -> 478.8282792 | F103: =Tables!F93 -> 0 | H103: =Tables!H93 -> Inflation | I103: =Tables!J93 -> 0
B104: =Tables!C94 -> Small industrial & commercial | D104: =Tables!D94 -> 0 | E104: =Tables!E94 -> 167.516806 | F104: =Tables!F94 -> 0 | H104: =Tables!H94 -> X-factor (if X>0, X=0) | I104: =Tables!J94 -> 0
B105: =Tables!C95 -> Medium industrial & commercial | D105: =Tables!D95 -> 0 | E105: =Tables!E95 -> 60.34166558 | F105: =Tables!F95 -> 0 | H105: =Tables!H95 -> NER allowance | I105: =Tables!J95 -> 0
B106: =Tables!C96 -> Large industrial & commercial | D106: =Tables!D96 -> 0 | E106: =Tables!E96 -> 124.6523271 | F106: =Tables!F96 -> 0 | H106: =Tables!H96 -> AA factor | I106: =Tables!J96 -> 0
B107: =Tables!C97 -> High voltage | D107: =Tables!D97 -> 0 | E107: =Tables!E97 -> 24.25745392 | F107: =Tables!F97 -> 0 | H107: =Tables!H97 -> D factor | I107: =Tables!J97 -> 0
B108: =Tables!C98 -> Subtransmission | D108: =Tables!D98 -> 0 | E108: =Tables!E98 -> 4.291052277 | F108: =Tables!F98 -> 0 | H108: =Tables!H98 -> Q factor | I108: =Tables!J98 -> 0
B109: =Tables!C99 -> 0 | D109: =Tables!D99 -> 0 | E109: =Tables!E99 -> 0 | F109: =Tables!F99 -> 0 | I109: =Tables!J99 -> 0
B110: =Tables!C100 -> 0 | D110: =Tables!D100 -> 0 | E110: =Tables!E100 -> 0 | F110: =Tables!F100 -> 0
B111: =Tables!C101 -> 0 | D111: =Tables!D101 -> 0 | E111: =Tables!E101 -> 0 | F111: =Tables!F101 -> 0
B112: =Tables!C102 -> 0 | D112: =Tables!D102 -> 0 | E112: =Tables!E102 -> 0 | F112: =Tables!F102 -> 0
B113: =Tables!C103 -> 0 | D113: =Tables!D103 -> 0 | E113: =Tables!E103 -> 0 | F113: =Tables!F103 -> 0
B114: =Tables!C104 -> Total | D114: =Tables!D104 -> 0 | E114: =Tables!E104 -> 859.8875842 | F114: =Tables!F104 -> 0 | H114: Permissable percentage | I114: =Tables!J100 -> 0
B117: Tariff trials
B118: ="The below table provides trial tariff revenues for "&DNSP&" for "&forecastyear&" and historical years." -> The below table provides trial tariff revenues for AusNet Services for 2026–27 and historical years.
B119: ="This table supports the requirement for "&DNSP&" to ensure that the forecast revenue to be raised from a tariff trial in any year must not exceed a threshold of "&individualtrialthreshold*100&"%." -> This table supports the requirement for AusNet Services to ensure that the forecast revenue to be raised from a tariff trial in any year must not exceed a threshold of 1%.
B120: ="This table also supports the requirement for "&DNSP&" to ensure that the aggregate forecast revenue to be raised from all tariff trials in any year must not exceed a threshold of "&General!F22*100&"%." -> This table also supports the requirement for AusNet Services to ensure that the aggregate forecast revenue to be raised from all tariff trials in any year must not exceed a threshold of 5%.
B121: This requirement is set out in the NER at cl.6.18.1C(a). Historical years are provided for information.
D123: =previousyear -> 2024–25 | E123: =currentyear -> 2025–26 | F123: =forecastyear -> 2026–27
B124: =Compliance!C64 -> NAST16T | D124: =INDEX(Compliance!$J64:$Q64,1,MATCH('Proposal report'!D$123,Compliance!$J$62:$Q$62,0)) -> 3.272826656e-06 | E124: =INDEX(Compliance!$J64:$Q64,1,MATCH('Proposal report'!E$123,Compliance!$J$62:$Q$62,0)) -> 4.760518756e-06 | F124: =INDEX(Compliance!$J64:$Q64,1,MATCH('Proposal report'!F$123,Compliance!$J$62:$Q$62,0)) -> 9.728126094e-06
B125: =Compliance!C65 -> NSSM01T | D125: =INDEX(Compliance!$J65:$Q65,1,MATCH('Proposal report'!D$123,Compliance!$J$62:$Q$62,0)) -> 3.056751192e-07 | E125: =INDEX(Compliance!$J65:$Q65,1,MATCH('Proposal report'!E$123,Compliance!$J$62:$Q$62,0)) -> 2.260972513e-06 | F125: =INDEX(Compliance!$J65:$Q65,1,MATCH('Proposal report'!F$123,Compliance!$J$62:$Q$62,0)) -> 2.197155955e-05
B126: =Compliance!C66 -> NSSL01T | D126: =INDEX(Compliance!$J66:$Q66,1,MATCH('Proposal report'!D$123,Compliance!$J$62:$Q$62,0)) -> 0 | E126: =INDEX(Compliance!$J66:$Q66,1,MATCH('Proposal report'!E$123,Compliance!$J$62:$Q$62,0)) -> 0 | F126: =INDEX(Compliance!$J66:$Q66,1,MATCH('Proposal report'!F$123,Compliance!$J$62:$Q$62,0)) -> 0.0001072475265
B127: =Compliance!C67 -> UESH01T | D127: =INDEX(Compliance!$J67:$Q67,1,MATCH('Proposal report'!D$123,Compliance!$J$62:$Q$62,0)) -> 0 | E127: =INDEX(Compliance!$J67:$Q67,1,MATCH('Proposal report'!E$123,Compliance!$J$62:$Q$62,0)) -> 0 | F127: =INDEX(Compliance!$J67:$Q67,1,MATCH('Proposal report'!F$123,Compliance!$J$62:$Q$62,0)) -> 0.0003276179523
B128: =Compliance!C68 -> UESS01T | D128: =INDEX(Compliance!$J68:$Q68,1,MATCH('Proposal report'!D$123,Compliance!$J$62:$Q$62,0)) -> 0 | E128: =INDEX(Compliance!$J68:$Q68,1,MATCH('Proposal report'!E$123,Compliance!$J$62:$Q$62,0)) -> 0 | F128: =INDEX(Compliance!$J68:$Q68,1,MATCH('Proposal report'!F$123,Compliance!$J$62:$Q$62,0)) -> 0.0002734818288
B129: =Compliance!C69 -> NEV10 | D129: =INDEX(Compliance!$J69:$Q69,1,MATCH('Proposal report'!D$123,Compliance!$J$62:$Q$62,0)) -> 0 | E129: =INDEX(Compliance!$J69:$Q69,1,MATCH('Proposal report'!E$123,Compliance!$J$62:$Q$62,0)) -> 0 | F129: =INDEX(Compliance!$J69:$Q69,1,MATCH('Proposal report'!F$123,Compliance!$J$62:$Q$62,0)) -> 1.394704879e-05
B130: =Compliance!C70 -> 0 | D130: =INDEX(Compliance!$J70:$Q70,1,MATCH('Proposal report'!D$123,Compliance!$J$62:$Q$62,0)) -> 0 | E130: =INDEX(Compliance!$J70:$Q70,1,MATCH('Proposal report'!E$123,Compliance!$J$62:$Q$62,0)) -> 0 | F130: =INDEX(Compliance!$J70:$Q70,1,MATCH('Proposal report'!F$123,Compliance!$J$62:$Q$62,0)) -> 0
B131: =Compliance!C71 -> 0 | D131: =INDEX(Compliance!$J71:$Q71,1,MATCH('Proposal report'!D$123,Compliance!$J$62:$Q$62,0)) -> 0 | E131: =INDEX(Compliance!$J71:$Q71,1,MATCH('Proposal report'!E$123,Compliance!$J$62:$Q$62,0)) -> 0 | F131: =INDEX(Compliance!$J71:$Q71,1,MATCH('Proposal report'!F$123,Compliance!$J$62:$Q$62,0)) -> 0
B132: =Compliance!C72 -> 0 | D132: =INDEX(Compliance!$J72:$Q72,1,MATCH('Proposal report'!D$123,Compliance!$J$62:$Q$62,0)) -> 0 | E132: =INDEX(Compliance!$J72:$Q72,1,MATCH('Proposal report'!E$123,Compliance!$J$62:$Q$62,0)) -> 0 | F132: =INDEX(Compliance!$J72:$Q72,1,MATCH('Proposal report'!F$123,Compliance!$J$62:$Q$62,0)) -> 0
B133: =Compliance!C73 -> 0 | D133: =INDEX(Compliance!$J73:$Q73,1,MATCH('Proposal report'!D$123,Compliance!$J$62:$Q$62,0)) -> 0 | E133: =INDEX(Compliance!$J73:$Q73,1,MATCH('Proposal report'!E$123,Compliance!$J$62:$Q$62,0)) -> 0 | F133: =INDEX(Compliance!$J73:$Q73,1,MATCH('Proposal report'!F$123,Compliance!$J$62:$Q$62,0)) -> 0
B134: =Compliance!C74 -> 0 | D134: =INDEX(Compliance!$J74:$Q74,1,MATCH('Proposal report'!D$123,Compliance!$J$62:$Q$62,0)) -> 0 | E134: =INDEX(Compliance!$J74:$Q74,1,MATCH('Proposal report'!E$123,Compliance!$J$62:$Q$62,0)) -> 0 | F134: =INDEX(Compliance!$J74:$Q74,1,MATCH('Proposal report'!F$123,Compliance!$J$62:$Q$62,0)) -> 0
B135: =Compliance!C75 -> 0 | D135: =INDEX(Compliance!$J75:$Q75,1,MATCH('Proposal report'!D$123,Compliance!$J$62:$Q$62,0)) -> 0 | E135: =INDEX(Compliance!$J75:$Q75,1,MATCH('Proposal report'!E$123,Compliance!$J$62:$Q$62,0)) -> 0 | F135: =INDEX(Compliance!$J75:$Q75,1,MATCH('Proposal report'!F$123,Compliance!$J$62:$Q$62,0)) -> 0
B136: =Compliance!C76 -> 0 | D136: =INDEX(Compliance!$J76:$Q76,1,MATCH('Proposal report'!D$123,Compliance!$J$62:$Q$62,0)) -> 0 | E136: =INDEX(Compliance!$J76:$Q76,1,MATCH('Proposal report'!E$123,Compliance!$J$62:$Q$62,0)) -> 0 | F136: =INDEX(Compliance!$J76:$Q76,1,MATCH('Proposal report'!F$123,Compliance!$J$62:$Q$62,0)) -> 0
B137: =Compliance!C77 -> 0 | D137: =INDEX(Compliance!$J77:$Q77,1,MATCH('Proposal report'!D$123,Compliance!$J$62:$Q$62,0)) -> 0 | E137: =INDEX(Compliance!$J77:$Q77,1,MATCH('Proposal report'!E$123,Compliance!$J$62:$Q$62,0)) -> 0 | F137: =INDEX(Compliance!$J77:$Q77,1,MATCH('Proposal report'!F$123,Compliance!$J$62:$Q$62,0)) -> 0
B138: =Compliance!C78 -> 0 | D138: =INDEX(Compliance!$J78:$Q78,1,MATCH('Proposal report'!D$123,Compliance!$J$62:$Q$62,0)) -> 0 | E138: =INDEX(Compliance!$J78:$Q78,1,MATCH('Proposal report'!E$123,Compliance!$J$62:$Q$62,0)) -> 0 | F138: =INDEX(Compliance!$J78:$Q78,1,MATCH('Proposal report'!F$123,Compliance!$J$62:$Q$62,0)) -> 0
B139: =Compliance!C79 -> 0 | D139: =INDEX(Compliance!$J79:$Q79,1,MATCH('Proposal report'!D$123,Compliance!$J$62:$Q$62,0)) -> 0 | E139: =INDEX(Compliance!$J79:$Q79,1,MATCH('Proposal report'!E$123,Compliance!$J$62:$Q$62,0)) -> 0 | F139: =INDEX(Compliance!$J79:$Q79,1,MATCH('Proposal report'!F$123,Compliance!$J$62:$Q$62,0)) -> 0
B140: =Compliance!C80 -> 0 | D140: =INDEX(Compliance!$J80:$Q80,1,MATCH('Proposal report'!D$123,Compliance!$J$62:$Q$62,0)) -> 0 | E140: =INDEX(Compliance!$J80:$Q80,1,MATCH('Proposal report'!E$123,Compliance!$J$62:$Q$62,0)) -> 0 | F140: =INDEX(Compliance!$J80:$Q80,1,MATCH('Proposal report'!F$123,Compliance!$J$62:$Q$62,0)) -> 0
B141: =Compliance!C81 -> 0 | D141: =INDEX(Compliance!$J81:$Q81,1,MATCH('Proposal report'!D$123,Compliance!$J$62:$Q$62,0)) -> 0 | E141: =INDEX(Compliance!$J81:$Q81,1,MATCH('Proposal report'!E$123,Compliance!$J$62:$Q$62,0)) -> 0 | F141: =INDEX(Compliance!$J81:$Q81,1,MATCH('Proposal report'!F$123,Compliance!$J$62:$Q$62,0)) -> 0
B142: =Compliance!C82 -> 0 | D142: =INDEX(Compliance!$J82:$Q82,1,MATCH('Proposal report'!D$123,Compliance!$J$62:$Q$62,0)) -> 0 | E142: =INDEX(Compliance!$J82:$Q82,1,MATCH('Proposal report'!E$123,Compliance!$J$62:$Q$62,0)) -> 0 | F142: =INDEX(Compliance!$J82:$Q82,1,MATCH('Proposal report'!F$123,Compliance!$J$62:$Q$62,0)) -> 0
B143: =Compliance!C83 -> 0 | D143: =INDEX(Compliance!$J83:$Q83,1,MATCH('Proposal report'!D$123,Compliance!$J$62:$Q$62,0)) -> 0 | E143: =INDEX(Compliance!$J83:$Q83,1,MATCH('Proposal report'!E$123,Compliance!$J$62:$Q$62,0)) -> 0 | F143: =INDEX(Compliance!$J83:$Q83,1,MATCH('Proposal report'!F$123,Compliance!$J$62:$Q$62,0)) -> 0
B144: =Compliance!C84 -> Total trial tariffs | D144: =INDEX(Compliance!$J84:$Q84,1,MATCH('Proposal report'!D$123,Compliance!$J$62:$Q$62,0)) -> 3.578501776e-06 | E144: =INDEX(Compliance!$J84:$Q84,1,MATCH('Proposal report'!E$123,Compliance!$J$62:$Q$62,0)) -> 7.021491268e-06 | F144: =INDEX(Compliance!$J84:$Q84,1,MATCH('Proposal report'!F$123,Compliance!$J$62:$Q$62,0)) -> 0.000753994042
B147: Standalone and avoidable costs
B148: ="The below table provides the total revenues for each tariff class for "&DNSP&" for "&forecastyear&". Information on the standalone and avoidable costs for each tariff class is also provided." -> The below table provides the total revenues for each tariff class for AusNet Services for 2026–27. Information on the standalone and avoidable costs for each tariff class is also provided.
B149: ="This table supports the requirement for "&DNSP&" to ensure that the revenue expected to be recovered for each tariff class must lie between the stand alone cost of serving those customers, and the avoidable cost of not serving those customers." -> This table supports the requirement for AusNet Services to ensure that the revenue expected to be recovered for each tariff class must lie between the stand alone cost of serving those customers, and the avoidable cost of not serving those customers.
B150: This requirement is set out in the NER at cl.6.18.5(e).
D152: Avoidable costs ($m) | E152: Forecast revenue ($m) | F152: Standalone costs ($m)
B153: =Tables!C110 -> Residential | D153: =Tables!D110 -> 0.05010017438 | E153: =Tables!E110 -> 0.1225957441 | F153: =Tables!F110 -> 1.098885718
B154: =Tables!C111 -> Small industrial & commercial | D154: =Tables!D111 -> 0.03061368063 | E154: =Tables!E111 -> 0.1257912316 | F154: =Tables!F111 -> 0.7646843696
B155: =Tables!C112 -> Medium industrial & commercial | D155: =Tables!D112 -> 0.01499532228 | E155: =Tables!E112 -> 0.124235294 | F155: =Tables!F112 -> 0.3233205796
B156: =Tables!C113 -> Large industrial & commercial | D156: =Tables!D113 -> 0.02230419291 | E156: =Tables!E113 -> 0.08357094391 | F156: =Tables!F113 -> 0.4769954745
B157: =Tables!C114 -> High voltage | D157: =Tables!D114 -> 0.01107368438 | E157: =Tables!E114 -> 0.04025632002 | F157: =Tables!F114 -> 0.2406030778
B158: =Tables!C115 -> Subtransmission | D158: =Tables!D115 -> 0.004365762355 | E158: =Tables!E115 -> 0.009138363393 | F158: =Tables!F115 -> 0.08149385657
B159: =Tables!C116 -> 0 | D159: =Tables!D116 -> 0 | E159: =Tables!E116 -> 0 | F159: =Tables!F116 -> 0
B160: =Tables!C117 -> 0 | D160: =Tables!D117 -> 0 | E160: =Tables!E117 -> 0 | F160: =Tables!F117 -> 0
B161: =Tables!C118 -> 0 | D161: =Tables!D118 -> 0 | E161: =Tables!E118 -> 0 | F161: =Tables!F118 -> 0
B162: =Tables!C119 -> 0 | D162: =Tables!D119 -> 0 | E162: =Tables!E119 -> 0 | F162: =Tables!F119 -> 0
B163: =Tables!C120 -> 0 | D163: =Tables!D120 -> 0 | E163: =Tables!E120 -> 0 | F163: =Tables!F120 -> 0

Sheet Model report
B1: ='Outputs>>'!B1 -> AER pricing model - AusNet Services 2026–27 | I1: Back to Index
B2: ='Outputs>>'!C8 -> Model report | J2: =IF(COUNTIF(E5:E68,"NON-COMPLIANT")+COUNTIF(E5:E68,"REVIEW")+COUNTIF(E5:E68,"NO")>0,"REVIEW","COMPLIANT") -> REVIEW | N2: =IF(COUNTIF(C30:Q41,"CHECK")>0,"CHECK","OK") -> CHECK | S2: VALIDATION
B3: ='Outputs>>'!D8 -> Provides output report including compliance, validations, trend analysis, and quantity forecast analysis | S3: =IF(COUNTIF(S5:S68,"CHECK")>0,"CHECK","OK") -> OK
B5: Output report 1 | Compliance | M5: Notes
C7: Total allowable revenues | E7: Compliant? | I7: Total revenue | J7: TAR | K7: Variance
C8: Distribution | E8: =Compliance!S12 -> COMPLIANT | I8: =SUM(Compliance!J8:J10) -> 860.5449701 | J8: =Compliance!J11 -> 860.7418948 | K8: =IF(J8=0,0,I8/J8-1) -> -0.0002287847588 | S8: =IF(SUMPRODUCT(--_xlfn.ISFORMULA(E8:K8))=4,"OK","CHECK") -> OK
C9: Designated pricing proposal costs (DPPC) | E9: =IF(INDEX(Lookups!I129:I143,MATCH(DNSP,Lookups!G129:G143,0))="NT","N/A",Compliance!S19) -> COMPLIANT | I9: =SUM(Compliance!J14:J17) -> 182.9451697 | J9: =Compliance!J18 -> 182.9453066 | K9: =IF(J9=0,0,I9/J9-1) -> -7.479505018e-07 | S9: =IF(SUMPRODUCT(--_xlfn.ISFORMULA(E9:K9))=4,"OK","CHECK") -> OK
C10: Jurisdictional scheme amounts (JSA) | E10: =IF(INDEX(Lookups!I129:I143,MATCH(DNSP,Lookups!G129:G143,0))="NT","N/A",IF(INDEX(Lookups!I129:I143,MATCH(DNSP,Lookups!G129:G143,0))="Tas","N/A",Compliance!S25)) -> COMPLIANT | I10: =SUM(Compliance!J21:J23) -> 8.225779484 | J10: =Compliance!J24 -> 8.22659932 | K10: =IF(J10=0,0,I10/J10-1) -> -9.965663232e-05 | S10: =IF(SUMPRODUCT(--_xlfn.ISFORMULA(E10:K10))=4,"OK","CHECK") -> OK
C11: Metering | E11: =IF(INDEX(Lookups!J129:J143,MATCH(DNSP,Lookups!G129:G143,0))="Yes",Compliance!S30,"N/A") -> COMPLIANT | I11: =SUM(Compliance!J27:J28) -> 39.58844115 | J11: =Compliance!J29 -> 39.58876735 | K11: =IF(J11=0,0,I11/J11-1) -> -8.239678394e-06 | S11: =IF(SUMPRODUCT(--_xlfn.ISFORMULA(E11:K11))=4,"OK","CHECK") -> OK
C13: Unders/overs accounts | E13: Compliant? | I13: Closing balances | J13: Materiality
C14: Distribution | E14: =Compliance!S34 -> COMPLIANT | I14: =Compliance!J34 -> -0.2040129336 | J14: =IF(I14=0,0,I14/J8) -> -0.0002370198718 | S14: =IF(SUMPRODUCT(--_xlfn.ISFORMULA(E14:J14))=3,"OK","CHECK") -> OK
C15: DPPC | E15: =IF(INDEX(Lookups!I129:I143,MATCH(DNSP,Lookups!G129:G143,0))="NT","N/A",Compliance!S35) -> COMPLIANT | I15: =Compliance!J35 -> -0.0001417593782 | J15: =IF(I15=0,0,I15/J9) -> -7.748729984e-07 | S15: =IF(SUMPRODUCT(--_xlfn.ISFORMULA(E15:J15))=3,"OK","CHECK") -> OK
C16: JSA | E16: =IF(INDEX(Lookups!I129:I143,MATCH(DNSP,Lookups!G129:G143,0))="NT","N/A",IF(INDEX(Lookups!I129:I143,MATCH(DNSP,Lookups!G129:G143,0))="Tas","N/A",Compliance!S36)) -> COMPLIANT | I16: =Compliance!J36 -> -0.0008493451711 | J16: =IF(I16=0,0,I16/J10) -> -0.0001032437752 | S16: =IF(SUMPRODUCT(--_xlfn.ISFORMULA(E16:J16))=3,"OK","CHECK") -> OK
C17: Metering | E17: =IF(INDEX(Lookups!J129:J143,MATCH(DNSP,Lookups!G129:G143,0))="Yes",Compliance!S37,"N/A") -> COMPLIANT | I17: =Compliance!J37 -> -0.0003379402415 | J17: =IF(I17=0,0,I17/J11) -> -8.536265819e-06 | S17: =IF(SUMPRODUCT(--_xlfn.ISFORMULA(E17:J17))=3,"OK","CHECK") -> OK
C19: Other compliance | E19: Compliant?
C20: Side constraints | E20: =IF(OR(Compliance!S41:S51="NON-COMPLIANT"),"NON-COMPLIANT","COMPLIANT") -> COMPLIANT | I20: Side constraint threshold | J20: =Compliance!L41 -> 0 | S20: =IF(SUMPRODUCT(--_xlfn.ISFORMULA(E20:J20))=2,"OK","CHECK") -> OK
C21: Metering side constraints | E21: =IF(INDEX(Lookups!J129:J143,MATCH(DNSP,Lookups!G129:G143,0))="Yes",IF(OR(Compliance!S54:S60="NON-COMPLIANT"),"NON-COMPLIANT","COMPLIANT"),"N/A") -> COMPLIANT | I21: Side constraint threshold | J21: =IF(INDEX(Lookups!I129:I143,MATCH(DNSP,Lookups!G129:G143,0))="Vic",Compliance!L54,"N/A") -> 0 | S21: =IF(SUMPRODUCT(--_xlfn.ISFORMULA(E21:J21))=2,"OK","CHECK") -> OK
C22: Trial tariff thresholds (individual) | E22: =IF(OR(Compliance!S64:S83="NON-COMPLIANT"),"NON-COMPLIANT","COMPLIANT") -> COMPLIANT | S22: =IF(_xlfn.ISFORMULA(E22),"OK","CHECK") -> OK
C23: Trial tariff thresholds (aggregate) | E23: =Compliance!S84 -> COMPLIANT | I23: =forecastyear&" aggregate %" -> 2026–27 aggregate % | J23: =INDEX(Compliance!J84:Q84,1,MATCH(forecastyear,Compliance!J62:Q62,0)) -> 0.000753994042 | S23: =IF(SUMPRODUCT(--_xlfn.ISFORMULA(E23:J23))=3,"OK","CHECK") -> OK
C24: Standalone and avoidable costs | E24: =IF(OR(Compliance!S88:S98="NON-COMPLIANT"),"NON-COMPLIANT","COMPLIANT") -> COMPLIANT | S24: =IF(_xlfn.ISFORMULA(E24),"OK","CHECK") -> OK
C25: Movements from indicative prices | E25: =IF(Q34="OK","COMPLIANT","NON-COMPLIANT") -> COMPLIANT | S25: =IF(_xlfn.ISFORMULA(E25),"OK","CHECK") -> OK
B27: Output report 2 | Validations
C29: Validations | E29: Valid? | L29: =E29 -> Valid? | Q29: =E29 -> Valid?
